Workbook

Sheet 操作メニュー
B2: 操作メニュー（F9） | AS2: ア セ ッ ト マ ネ ジ メ ン ト 「簡易支援ツール」 操 作 メ ニ ュ ー | CX2: 操作メニュー（当画面）を表示したい場合は「F9」を押下してください。 | GA2: ステップ２－２（５）管路（様式2-2）の「健全度・更新需要」算定処理
GA3: Step2-2
C4: ステップ１ ひととおりやってみる | AS4: ステップ２ 施設ごとに更新費用を算出してみる | DD4: ステップ３ 更新基準と更新規模の精度を上げる | GA4: 件数が同数になると終了します。もうしばらくお待ちください。
C6: ｽﾃｯﾌﾟ1_1 : データを入力する | X6: ｽﾃｯﾌﾟ1_2 : 財政の条件の改善と料金水準の変更による試算 | AS6: ｽﾃｯﾌﾟ2_1 : 構造物・設備の更新需要を求める | BN6: ｽﾃｯﾌﾟ2_2 : 管路の更新需要を求める | CI6: ｽﾃｯﾌﾟ2_3 : 料金水準の変更による試算 | DD6: ステップ2までのファイルを別途保存
D12: （１） はじめる前に（資産の見通し） | Y12: （１） 将来設定値の入力について | AT12: （１） 構造物・設備の更新需要を求めるために | BO12: （１）管路の更新需要を求めるために | CJ12: （１） 将来設定値の入力について
D15: （２） 初期設定 | Y15: （２） 将来設定値の入力（財政初期設定） | CJ15: （２） 料金改定率の算出方法について | DE15: （２） 施設規模の適正化の検討条件の入力
Y18: （３） 更新事業費の自己財源等について | AV18: Yes：直接入力 | BC18: No：様式2作成ファイルを使用 | BQ18: Yes：直接入力 | BY18: No：様式2作成ファイルを使用 | CJ18: （３） 初期設定（財源確保シナリオパラメータの変更） | DE18: （３） 情報の追加入力（施設・設備）
U19: Yes
N20: No
D21: （３） 建築改良費の実績値の入力（様式1） | Y21: （４） 更新事業費の財源等の入力(様式9) | CJ21: （４） 財政の最新年度実績の入力について | DE21: （４） 情報の追加入力（管路）
Y24: （５） 料金改定率の算出処理 | CJ24: （５） 財政の最新年度実績の入力（様式9） | DE24: （５） 施設規模の適正化の検討条件（様式２）の入力
D27: （５） 様式2-1を確認 | AT27: （４） 様式2-1を確認 | BO27: （４） 様式2-2を確認 | CJ27: （６） 料金改定率の算出処理 | DE27: （６） 構造物・設備（様式2-1）のデータ変更
AG28: No
AD30: Yes | DE30: （７） 管路（様式2-2）のデータ変更
O31: - | P31: - | Q31: - | R31: - | S31: - | T31: - | U31: - | V31: - | AT31: （５） | BO31: （５） | CR31: No
AG32: No
D33: （７） 財政の最新年度実績の入力について | AD33: Yes | AP33: No | AU33: 個別計算 | BP33: 個別計算 | CO33: Yes | DE33: （８） 更新需要の算定処理
CR35: No
D36: （８） 財政の最新年度実績の入力（様式9） | AM36: Yes | CO36: Yes | DA36: No
D39: （９） 表・グラフの確認 | Y39: （６） 表・グラフの確認 | CX39: Yes
D42: （１０）まとめシートについて | Y42: （７）まとめシートについて | AT42: （６） 表・グラフの確認 | BO42: （６） 表・グラフの確認 | CJ42: （７） 表・グラフの確認 | DE42: （９） 表・グラフの確認
AT45: （７）まとめシートについて | BO45: （７）まとめシートについて | CJ45: （８）まとめシートについて | DE45: （１０）まとめシートについて
AU53: ファンクションキーによるシートの遷移機能について
AV54: [F8]キー押下：「初期設定」シートに移動
AV55: [F9]キー押下：「操作メニュー」シートに移動 | CB55: ←ファンクションキーが無効の場合、実行してください。
AV56: [F10]キー押下：「表グラフ確認」シートに移動

Sheet 初期設定
A1: 初期設定(F8)（橙色部分の設定値を必要に応じて変更または登録してください。）
P2: 初期設定（当画面）を表示したい場合は「F8」を押下してください。
B3: 基準年度： | C3: 2024 | E3: システム年： | F3: 2025 | I3: セルの色 | J3: 当シートの入力ルールについて
C4: ='様式2-1'!Y5-2018 -> 6 | J4: 必要に応じて変更してください。
J5: 固定値または自動設定の為、書き換え不可です。 | O5: 自動設定とは関数またはマクロによる編集を示します。
B6: デフレーター（1984年以前のデフレーターは様式1に記載）
B7: 西暦 （年度） | C7: 上・工業用水道 | E7: 国土交通省 建設工事費 デフレーター ＵＲＬ
B8: 1985年度 | C8: 77.7 | E8: http://www.mlit.go.jp/sogoseisaku/jouhouka/sosei_jouhouka_tk4_000112.html
B9: 1986年度 | C9: 76.8
B10: 1987年度 | C10: 77.3 | E10: デフレーターの情報は上記ＵＲＬより「最新の公表資料 月次（Excel形式）の上・工業用水道」を参照し、必要に応じて更新してください。
B11: 1988年度 | C11: 78.7 | E11: 詳細は「はじめる前に」シートを参照してください。
B12: 1989年度 | C12: 82.4
B13: 1990年度 | C13: 85.3 | E13: 健全度の判断基準（構造物及び設備） | I13: シナリオ作成情報
B14: 1991年度 | C14: 87.6 | E14: 資産区分 | F14: 超 | G14: 以下
B15: 1992年度 | C15: 88.6 | E15: 健全資産 | F15: 0 | G15: 1
B16: 1993年度 | C16: 88.4 | E16: 経年化資産 | F16: =G15 -> 1 | G16: 1.5 | Q16: アセット期間
B17: 1994年度 | C17: 88.6 | E17: 老朽化資産 | F17: =G16 -> 1.5 | G17: 3 | Q17: 50
B18: 1995年度 | C18: 88.8
B19: 1996年度 | C19: 88.5 | E19: 健全度の判断基準（管路） | I19: 撤去費・調査設計費等 (付加割合） | J19: 算出する | K19: 建築 | L19: 土木 | M19: 電気 | N19: 機械 | O19: 計装 | P19: その他 | Q19: 管路
B20: 1997年度 | C20: 89.4 | E20: 管路区分 | F20: 超 | G20: 以下 | J20: 撤去費率 | K20: 0.4 | L20: 0.4 | M20: 0.4 | N20: 0.4 | O20: 0.4 | P20: 0.4 | Q20: 0
B21: 1998年度 | C21: 88 | E21: 健全管路 | F21: 0 | G21: 1 | I21: 消費税率 | J21: 10 | K21: ％
B22: 1999年度 | C22: 87 | E22: 経年化管路 | F22: =G21 -> 1 | G22: 1.5 | I22: 固定資産台帳の 帳簿価格 | J22: 税抜
B23: 2000年度 | C23: 87.2 | E23: 老朽化管路 | F23: =G22 -> 1.5 | G23: 3
B24: 2001年度 | C24: 85.6
B25: 2002年度 | C25: 85 | E25: 様式2作成ファイル名 | K25: 建築・土木・設備類の更新基準年数
B26: 2003年度 | C26: 86 | E26: y2-sakusei.xlsm | K26: 工種（施設名） | M26: 法定耐用年数 | N26: 更新基準年数
B27: 2004年度 | C27: 87.5 | K27: 建築 | M27: 50 | N27: 70
B28: 2005年度 | C28: 89 | E28: 当ツールの保存ファイル名 | K28: 土木 | M28: 60 | N28: 73
B29: 2006年度 | C29: 90.6 | E29: ●Kani_Tool_2025_SaveNo1.xlsm | H29: ステップ３にて使用 | K29: 配水池《SUS》 | M29: 45 | N29: 67 | O29: 配水池《SUS》は施設名
B30: 2007年度 | C30: 93.5 | K30: 電気 | M30: 15 | N30: 25
B31: 2008年度 | C31: 98.8 | K31: 機械 | M31: 15 | N31: 24
B32: 2009年度 | C32: 94 | K32: 計装 | M32: 15 | N32: 21 | O32: 電気に含め、15年で計算
B33: 2010年度 | C33: 94.1 | K33: その他１ | M33: 40 | N33: 60 | O33: ステップ1_1で使用
B34: 2011年度 | C34: 95.3 | K34: 管路 | M34: 40 | N34: 60
B35: 2012年度 | C35: 94.7 | E35: 管路の更新基準年数及び改築単価（単価は様式2作成ファイルの「様式2-2準備用」シートより自動編集）
B36: 2013年度 | C36: 96.6 | E36: 管種コード | F36: 管種区分 | M36: 法定耐用年数 | N36: 更新基準年数
B37: 2014年度 | C37: 99.5 | E37: A1 | F37: 鋳鉄管 （ダクタイル鋳鉄管は含まない） (m) | M37: 40 | N37: 50
B38: 2015年度 | C38: 100 | E38: A2 | F38: ダクタイル鋳鉄管 耐震型継手を有する (m) | M38: 40 | N38: 80
B39: 2016年度 | C39: 100.1 | E39: A3 | F39: ダクタイル鋳鉄管 Ｋ形継手等を有するもののうち良い地盤に布設されている (m) | M39: 40 | N39: 70
B40: 2017年度 | C40: 102 | E40: A9 | F40: ダクタイル鋳鉄管 (上記以外・不明なものを含む） (m) | M40: 40 | N40: 60
B41: 2018年度 | C41: 105.8 | E41: B1 | F41: 鋼管 （溶接継手を有する） （m） | M41: 40 | N41: 70
B42: 2019年度 | C42: 108.9 | E42: B9 | F42: 鋼管 （上記以外・不明なものを含む） (m) | M42: 40 | N42: 40
B43: 2020年度 | C43: 108.9 | E43: C1 | F43: 石綿セメント管 (m) | M43: 40 | N43: 40
B44: 2021年度 | C44: 113.6 | E44: D1 | F44: 硬質塩化ビニル管 （ＲＲロング継手等を有する） (m) | M44: 40 | N44: 60
B45: 2022年度 | C45: 122.5 | E45: D2 | F45: 硬質塩化ビニル管 （ＲＲ継手等を有する） (m) | M45: 40 | N45: 50
B46: 2023年度 | E46: D9 | F46: 硬質塩化ビニル管 （上記以外・不明なものを含む） (m) | M46: 40 | N46: 40
B47: 2024年度 | E47: E1 | F47: コンクリート管 (m) | M47: 40 | N47: 40
B48: 2025年度 | E48: F1 | F48: 鉛管 (m) | M48: 40 | N48: 40
B49: 2026年度 | E49: G1 | F49: ポリエチレン管 （高密度、熱融着継手を有する） （m） | M49: 40 | N49: 60
B50: 2027年度 | E50: G9 | F50: ポリエチレン管 （上記以外・不明なものを含む） （m） | M50: 40 | N50: 40
B51: 2028年度 | E51: H1 | F51: ステンレス管 耐震型継手を有する (m) | M51: 40 | N51: 60
B52: 2029年度 | E52: H9 | F52: ステンレス管 (上記以外・不明なものを含む） (m) | M52: 40 | N52: 40
B53: 2030年度 | E53: Z9 | F53: その他 （管種が不明のものを含む） (m) | M53: 40 | N53: 40
B54: 2031年度
B55: 2032年度
B56: 2033年度
B57: 2034年度
B58: 2035年度
B59: 2036年度
B60: 2037年度
B61: 2038年度
B62: 2039年度
B63: 2040年度
B64: 2041年度
B65: 2042年度
B66: 2043年度
B67: 2044年度
B68: 2045年度
B69: 2046年度
B70: 2047年度
B71: 2048年度
B72: 2049年度
B73: 2050年度

Sheet 表グラフ確認
B2: 表グラフ確認(F10) | EY2: 表グラフ確認（当画面）を表示したい場合は「F10」を押下してください。
C4: シナリオ作成の元となるデータ | Y4: 改築未実施シナリオ | AU4: 法定耐用年数で改築シナリオ | BQ4: 更新基準年数で改築シナリオ | CM4: 平準化した更新需要の設定 | DI4: 財政の見通し | EE4: まとめ
CN6: 財政初期設定シート (事業費上限の設定)
X7: ▶ | AT7: ▶ | BP7: ▶ | CL7: ▶ | DH7: ▶
CW8: ▼
AI11: ▼ | BE11: ▼ | CA11: ▼ | DS11: ▼
Z14: 5-1K | BR14: 7-1K | CW14: ▼
D15: 初期設定（関数マクロの基本パラメータ） | Z15: 建造物および設備の健全度（表） | BR15: 建造物および設備の健全度（表） | CN15: 建造物および設備の 健全度（表） | ED15: ▶ | EF15: 検討結果のまとめ
H17: ▼ | R17: ▼ | Z17: 5-2K | BR17: 7-2K
D18: 施設設備 ダウンサイズ設定 | N18: 管路 ダウンサイズ設定 | Z18: 管路の健全度（表） | BR18: 管路の健全度（表） | CN18: 管路の健全度（表）
H20: ▼ | R20: ▼
D21: 建築改良費実績（様式1） | AV21: 6-1J | BR21: 7-1J
AV22: 建造物および設備の 更新需要（表） | BR22: 建造物および設備の 更新需要（表） | CN22: 建造物および設備、 管路の更新需要（表）
M23: ▼
D24: 建築物および設備の 既設データ（様式2-1） | AV24: 6-2J | BR24: 7-2J
AV25: 管路の更新需要（表） | BR25: 管路の更新需要（表）
M26: ▼
D27: 様式2-1（グラフ）
Z28: 5-1K(グラフ) | BR28: 7-1K(グラフ)
M29: ▼ | Z29: 建造物および設備の健全度（グラフ） | BR29: 建造物および設備の 健全度（グラフ） | CN29: 建造物および設備の 健全度（グラフ）
D30: 管路の既設データ（様式2-2）
Z31: 5-2K(グラフ) | BR31: 7-2K(グラフ)
M32: ▼ | Z32: 管路の健全度（グラフ） | BR32: 管路の健全度（グラフ） | CN32: 管路の健全度（グラフ）
D33: 様式2-2（グラフ）
M35: ▼ | AV35: 6-1J(グラフ) | BR35: 7-1J(グラフ)
AV36: 建造物および設備の 更新需要（グラフ） | BR36: 建造物および設備の 更新需要（グラフ） | CN36: 建造物および設備の 更新需要（グラフ）
M37: ▼
AV38: 6-2K(グラフ) | BR38: 7-2J(グラフ)
M39: ▼ | AV39: 管路の更新需要（グラフ） | BR39: 管路の更新需要（グラフ） | CN39: 管路の更新需要(グラフ)
M41: ▼
D42: 財政初期設定シート | DJ42: 財政収支見通し
M44: ▼
D45: 様式9-1(財政収支実績) | DJ45: 収益的収支総括表
DJ48: 資本的収支・資金残高総括表

Sheet 様式1
B1: 様式1
B2: ●年度別建設改良費の実績及び計画
D3: 名目ベース | J3: 名目ベース（千円） | L3: 単位：（ 千円 ） | T3: 実質ベース | AA3: 単位：（ 千円 ） | AB3: 1950年以前 | AG3: デフレーター | AJ3: 1951年以後
B4: 西 暦 | C4: 和 暦 | D4: １ 貯水施設費 | E4: ２ 取水施設費 | F4: ３ 導水施設費 | G4: ４ 浄水施設費 | H4: ５ 送水施設費 | I4: ６ 配水施設費 | J4: ７ その他 | K4: ８ 合計 | L4: 備考 | O4: 西暦 | P4: デフレーター | R4: =様式1!B4 -> 西 暦 | S4: =様式1!C4 -> 和 暦 | T4: =様式1!D4 -> １ 貯水施設費 | U4: =様式1!E4 -> ２ 取水施設費 | V4: =様式1!F4 -> ３ 導水施設費 | W4: =様式1!G4 -> ４ 浄水施設費 | X4: =様式1!H4 -> ５ 送水施設費 | Y4: =様式1!I4 -> ６ 配水施設費 | Z4: =様式1!J4 -> ７ その他 | AA4: =様式1!K4 -> ８ 合計 | AB4: 補正率 | AD4: 和暦 | AE4: 投資額 （実質） | AG4: 西暦 （年度） | AH4: 上・工業用水道 | AJ4: 最新年度を100に補正
B5: 1900 | C5: 33 | K5: =SUM(D5:J5) -> 0 | O5: =B5 -> 1900 | P5: =ROUND($P$56*AB5,3) -> 0.018 | R5: =様式1!B5 -> 1900 | S5: =様式1!C5 -> 33 | T5: =IF($P5=0,,INT(D5/$P5*100+0.5)) -> 0 | U5: 0 | V5: 0 | W5: 0 | X5: 0 | Y5: 0 | Z5: 0 | AA5: =SUM(T5:Z5) -> 0 | AB5: =AO48 -> 0.00168196995 | AD5: =S5 -> 33 | AE5: =AA5 -> 0 | AG5: 1951年度 | AH5: 13.3 | AI5: =IF(AH6=0,IF(AH5<>0,AH5,""),"") ->  | AJ5: =AH5/$AI$106*100 -> 10.85714286
B6: 1901 | C6: 34 | K6: 0 | O6: =B6 -> 1901 | P6: =ROUND($P$56*AB6,3) -> 0.018 | R6: =様式1!B6 -> 1901 | S6: =様式1!C6 -> 34 | T6: =IF($P6=0,,INT(D6/$P6*100+0.5)) -> 0 | U6: =IF($P6=0,,INT(E6/$P6*100+0.5)) -> 0 | V6: =IF($P6=0,,INT(F6/$P6*100+0.5)) -> 0 | W6: =IF($P6=0,,INT(G6/$P6*100+0.5)) -> 0 | X6: =IF($P6=0,,INT(H6/$P6*100+0.5)) -> 0 | Y6: =IF($P6=0,,INT(I6/$P6*100+0.5)) -> 0 | Z6: =IF($P6=0,,INT(J6/$P6*100+0.5)) -> 0 | AA6: =SUM(T6:Z6) -> 0 | AB6: =AO49 -> 0.00168196995 | AD6: 34 | AE6: 0 | AG6: 1952年度 | AH6: 14.3 | AJ6: =AH6/$AI$106*100 -> 11.67346939
B7: 1902 | C7: 35 | K7: 0 | O7: 1902 | P7: =ROUND($P$56*AB7,3) -> 0.018 | R7: =様式1!B7 -> 1902 | S7: =様式1!C7 -> 35 | T7: 0 | U7: 0 | V7: 0 | W7: 0 | X7: 0 | Y7: 0 | Z7: 0 | AA7: 0 | AB7: 0.00168196995 | AD7: 35 | AE7: 0 | AG7: 1953年度 | AH7: 15.3 | AJ7: 12.48979592
B8: 1903 | C8: 36 | K8: 0 | O8: 1903 | P8: 0.018 | R8: =様式1!B8 -> 1903 | S8: =様式1!C8 -> 36 | T8: 0 | U8: 0 | V8: 0 | W8: 0 | X8: 0 | Y8: 0 | Z8: 0 | AA8: 0 | AB8: 0.00168196995 | AD8: 36 | AE8: 0 | AG8: 1954年度 | AH8: 15.3 | AJ8: 12.48979592
B9: 1904 | C9: 37 | K9: 0 | O9: 1904 | P9: 0.018 | R9: =様式1!B9 -> 1904 | S9: =様式1!C9 -> 37 | T9: 0 | U9: 0 | V9: 0 | W9: 0 | X9: 0 | Y9: 0 | Z9: 0 | AA9: 0 | AB9: 0.0016360601 | AD9: 37 | AE9: 0 | AG9: 1955年度 | AH9: 15.4 | AJ9: 12.57142857
B10: 1905 | C10: 38 | K10: 0 | O10: 1905 | P10: 0.019 | R10: =様式1!B10 -> 1905 | S10: =様式1!C10 -> 38 | T10: 0 | U10: 0 | V10: 0 | W10: 0 | X10: 0 | Y10: 0 | Z10: 0 | AA10: 0 | AB10: 0.001723706177 | AD10: 38 | AE10: 0 | AG10: 1956年度 | AH10: 17.1 | AJ10: 13.95918367
B11: 1906 | C11: 39 | K11: 0 | O11: 1906 | P11: 0.02 | R11: =様式1!B11 -> 1906 | S11: =様式1!C11 -> 39 | T11: 0 | U11: 0 | V11: 0 | W11: 0 | X11: 0 | Y11: 0 | Z11: 0 | AA11: 0 | AB11: 0.001848914858 | AD11: 39 | AE11: 0 | AG11: 1957年度 | AH11: 18.1 | AJ11: 14.7755102
B12: 1907 | C12: 40 | K12: 0 | O12: 1907 | P12: 0.023 | R12: =様式1!B12 -> 1907 | S12: =様式1!C12 -> 40 | T12: 0 | U12: 0 | V12: 0 | W12: 0 | X12: 0 | Y12: 0 | Z12: 0 | AA12: 0 | AB12: 0.002086811352 | AD12: 40 | AE12: 0 | AG12: 1958年度 | AH12: 17.5 | AJ12: 14.28571429
B13: 1908 | C13: 41 | K13: 0 | O13: 1908 | P13: 0.024 | R13: =様式1!B13 -> 1908 | S13: =様式1!C13 -> 41 | T13: 0 | U13: 0 | V13: 0 | W13: 0 | X13: 0 | Y13: 0 | Z13: 0 | AA13: 0 | AB13: 0.002228714524 | AD13: 41 | AE13: 0 | AG13: 1959年度 | AH13: 17.9 | AJ13: 14.6122449
B14: 1909 | C14: 42 | K14: 0 | O14: 1909 | P14: 0.024 | R14: =様式1!B14 -> 1909 | S14: =様式1!C14 -> 42 | T14: 0 | U14: 0 | V14: 0 | W14: 0 | X14: 0 | Y14: 0 | Z14: 0 | AA14: 0 | AB14: 0.002178631052 | AD14: 42 | AE14: 0 | AG14: 1960年度 | AH14: 19 | AJ14: 15.51020408
B15: 1910 | C15: 43 | K15: 0 | O15: 1910 | P15: 0.024 | R15: =様式1!B15 -> 1910 | S15: =様式1!C15 -> 43 | T15: 0 | U15: 0 | V15: 0 | W15: 0 | X15: 0 | Y15: 0 | Z15: 0 | AA15: 0 | AB15: 0.002174457429 | AD15: 43 | AE15: 0 | AG15: 1961年度 | AH15: 21 | AJ15: 17.14285714
B16: 1911 | C16: 44 | K16: 0 | O16: 1911 | P16: 0.025 | R16: =様式1!B16 -> 1911 | S16: =様式1!C16 -> 44 | T16: 0 | U16: 0 | V16: 0 | W16: 0 | X16: 0 | Y16: 0 | Z16: 0 | AA16: 0 | AB16: 0.00229966611 | AD16: 44 | AE16: 0 | AG16: 1962年度 | AH16: 21.8 | AJ16: 17.79591837
B17: 1912 | C17: 1 | K17: 0 | O17: 1912 | P17: 0.026 | R17: =様式1!B17 -> 1912 | S17: =様式1!C17 -> 1 | T17: 0 | U17: 0 | V17: 0 | W17: 0 | X17: 0 | Y17: 0 | Z17: 0 | AA17: 0 | AB17: 0.002433222037 | AD17: 1 | AE17: 0 | AG17: 1963年度 | AH17: 22.2 | AJ17: 18.12244898
B18: 1913 | C18: 2 | K18: 0 | O18: 1913 | P18: 0.026 | R18: =様式1!B18 -> 1913 | S18: =様式1!C18 -> 2 | T18: 0 | U18: 0 | V18: 0 | W18: 0 | X18: 0 | Y18: 0 | Z18: 0 | AA18: 0 | AB18: 0.002437395659 | AD18: 2 | AE18: 0 | AG18: 1964年度 | AH18: 23 | AJ18: 18.7755102
B19: 1914 | C19: 3 | K19: 0 | O19: 1914 | P19: 0.026 | R19: =様式1!B19 -> 1914 | S19: =様式1!C19 -> 3 | T19: 0 | U19: 0 | V19: 0 | W19: 0 | X19: 0 | Y19: 0 | Z19: 0 | AA19: 0 | AB19: 0.002424874791 | AD19: 3 | AE19: 0 | AG19: 1965年度 | AH19: 23.7 | AJ19: 19.34693878
B20: 1915 | C20: 4 | K20: 0 | O20: 1915 | P20: 0.025 | R20: =様式1!B20 -> 1915 | S20: =様式1!C20 -> 4 | T20: 0 | U20: 0 | V20: 0 | W20: 0 | X20: 0 | Y20: 0 | Z20: 0 | AA20: 0 | AB20: 0.002328881469 | AD20: 4 | AE20: 0 | AG20: 1966年度 | AH20: 25.3 | AJ20: 20.65306122
B21: 1916 | C21: 5 | K21: 0 | O21: 1916 | P21: 0.027 | R21: =様式1!B21 -> 1916 | S21: =様式1!C21 -> 5 | T21: 0 | U21: 0 | V21: 0 | W21: 0 | X21: 0 | Y21: 0 | Z21: 0 | AA21: 0 | AB21: 0.002441569282 | AD21: 5 | AE21: 0 | AG21: 1967年度 | AH21: 26.7 | AJ21: 21.79591837
B22: 1917 | C22: 6 | K22: 0 | O22: 1917 | P22: 0.032 | R22: =様式1!B22 -> 1917 | S22: =様式1!C22 -> 6 | T22: 0 | U22: 0 | V22: 0 | W22: 0 | X22: 0 | Y22: 0 | Z22: 0 | AA22: 0 | AB22: 0.002992487479 | AD22: 6 | AE22: 0 | AG22: 1968年度 | AH22: 27.5 | AJ22: 22.44897959
B23: 1918 | C23: 7 | K23: 0 | O23: 1918 | P23: 0.044 | R23: =様式1!B23 -> 1918 | S23: =様式1!C23 -> 7 | T23: 0 | U23: 0 | V23: 0 | W23: 0 | X23: 0 | Y23: 0 | Z23: 0 | AA23: 0 | AB23: 0.004048414023 | AD23: 7 | AE23: 0 | AG23: 1969年度 | AH23: 29.5 | AJ23: 24.08163265
B24: 1919 | C24: 8 | K24: 0 | O24: 1919 | P24: 0.064 | R24: =様式1!B24 -> 1919 | S24: =様式1!C24 -> 8 | T24: 0 | U24: 0 | V24: 0 | W24: 0 | X24: 0 | Y24: 0 | Z24: 0 | AA24: 0 | AB24: 0.005905676127 | AD24: 8 | AE24: 0 | AG24: 1970年度 | AH24: 31.7 | AJ24: 25.87755102
B25: 1920 | C25: 9 | K25: 0 | O25: 1920 | P25: 0.085 | R25: =様式1!B25 -> 1920 | S25: =様式1!C25 -> 9 | T25: 0 | U25: 0 | V25: 0 | W25: 0 | X25: 0 | Y25: 0 | Z25: 0 | AA25: 0 | AB25: 0.007871452421 | AD25: 9 | AE25: 0 | AG25: 1971年度 | AH25: 32.4 | AJ25: 26.44897959
B26: 1921 | C26: 10 | K26: 0 | O26: 1921 | P26: 0.071 | R26: =様式1!B26 -> 1921 | S26: =様式1!C26 -> 10 | T26: 0 | U26: 0 | V26: 0 | W26: 0 | X26: 0 | Y26: 0 | Z26: 0 | AA26: 0 | AB26: 0.006540066778 | AD26: 10 | AE26: 0 | AG26: 1972年度 | AH26: 34.3 | AJ26: 28
B27: 1922 | C27: 11 | K27: 0 | O27: 1922 | P27: 0.076 | R27: =様式1!B27 -> 1922 | S27: =様式1!C27 -> 11 | T27: 0 | U27: 0 | V27: 0 | W27: 0 | X27: 0 | Y27: 0 | Z27: 0 | AA27: 0 | AB27: 0.007011686144 | AD27: 11 | AE27: 0 | AG27: 1973年度 | AH27: 43.8 | AJ27: 35.75510204
B28: 1923 | C28: 12 | K28: 0 | O28: 1923 | P28: 0.076 | R28: =様式1!B28 -> 1923 | S28: =様式1!C28 -> 12 | T28: 0 | U28: 0 | V28: 0 | W28: 0 | X28: 0 | Y28: 0 | Z28: 0 | AA28: 0 | AB28: 0.007032554257 | AD28: 12 | AE28: 0 | AG28: 1974年度 | AH28: 53.1 | AJ28: 43.34693878
B29: 1924 | C29: 13 | K29: 0 | O29: 1924 | P29: 0.073 | R29: =様式1!B29 -> 1924 | S29: =様式1!C29 -> 13 | T29: 0 | U29: 0 | V29: 0 | W29: 0 | X29: 0 | Y29: 0 | Z29: 0 | AA29: 0 | AB29: 0.006686143573 | AD29: 13 | AE29: 0 | AG29: 1975年度 | AH29: 53.7 | AJ29: 43.83673469
B30: 1925 | C30: 14 | K30: 0 | O30: 1925 | P30: 0.069 | R30: =様式1!B30 -> 1925 | S30: =様式1!C30 -> 14 | T30: 0 | U30: 0 | V30: 0 | W30: 0 | X30: 0 | Y30: 0 | Z30: 0 | AA30: 0 | AB30: 0.00637312187 | AD30: 14 | AE30: 0 | AG30: 1976年度 | AH30: 57.6 | AJ30: 47.02040816
B31: 1926 | C31: 1 | K31: 0 | O31: 1926 | P31: 0.067 | R31: =様式1!B31 -> 1926 | S31: =様式1!C31 -> 1 | T31: 0 | U31: 0 | V31: 0 | W31: 0 | X31: 0 | Y31: 0 | Z31: 0 | AA31: 0 | AB31: 0.006151919866 | AD31: 1 | AE31: 0 | AG31: 1977年度 | AH31: 60.5 | AJ31: 49.3877551
B32: 1927 | C32: 2 | K32: 0 | O32: 1927 | P32: 0.064 | R32: =様式1!B32 -> 1927 | S32: =様式1!C32 -> 2 | T32: 0 | U32: 0 | V32: 0 | W32: 0 | X32: 0 | Y32: 0 | Z32: 0 | AA32: 0 | AB32: 0.005880634391 | AD32: 2 | AE32: 0 | AG32: 1978年度 | AH32: 64.6 | AI32: =IF(AH33=0,IF(AH32<>0,AH32,""),"") ->  | AJ32: 52.73469388
B33: 1928 | C33: 3 | K33: 0 | O33: 1928 | P33: 0.063 | R33: =様式1!B33 -> 1928 | S33: =様式1!C33 -> 3 | T33: 0 | U33: 0 | V33: 0 | W33: 0 | X33: 0 | Y33: 0 | Z33: 0 | AA33: 0 | AB33: 0.005830550918 | AD33: 3 | AE33: 0 | AG33: 1979年度 | AH33: 70.2 | AI33: =IF(AH34=0,IF(AH33<>0,AH33,""),"") ->  | AJ33: 57.30612245
B34: 1929 | C34: 4 | K34: 0 | O34: 1929 | P34: 0.061 | R34: =様式1!B34 -> 1929 | S34: =様式1!C34 -> 4 | T34: 0 | U34: 0 | V34: 0 | W34: 0 | X34: 0 | Y34: 0 | Z34: 0 | AA34: 0 | AB34: 0.005655258765 | AD34: 4 | AE34: 0 | AG34: 1980年度 | AH34: 76.5 | AJ34: 62.44897959
B35: 1930 | C35: 5 | K35: 0 | O35: 1930 | P35: 0.05 | R35: =様式1!B35 -> 1930 | S35: =様式1!C35 -> 5 | T35: 0 | U35: 0 | V35: 0 | W35: 0 | X35: 0 | Y35: 0 | Z35: 0 | AA35: 0 | AB35: 0.004586811352 | AD35: 5 | AE35: 0 | AG35: 1981年度 | AH35: 77.4 | AJ35: 63.18367347
B36: 1931 | C36: 6 | K36: 0 | O36: 1931 | P36: 0.045 | R36: =様式1!B36 -> 1931 | S36: =様式1!C36 -> 6 | T36: 0 | U36: 0 | V36: 0 | W36: 0 | X36: 0 | Y36: 0 | Z36: 0 | AA36: 0 | AB36: 0.0041360601 | AD36: 6 | AE36: 0 | AG36: 1982年度 | AH36: 77.6 | AJ36: 63.34693878
B37: 1932 | C37: 7 | K37: =SUM(D37:J37) -> 0 | O37: 1932 | P37: 0.044 | R37: =様式1!B37 -> 1932 | S37: =様式1!C37 -> 7 | T37: 0 | U37: 0 | V37: 0 | W37: 0 | X37: 0 | Y37: 0 | Z37: 0 | AA37: 0 | AB37: 0.004077629382 | AD37: 7 | AE37: 0 | AG37: 1983年度 | AH37: 77.5 | AJ37: 63.26530612 | AL37: 【参考】 デフレーターについて
B38: 1933 | C38: 8 | K38: 0 | O38: 1933 | P38: 0.045 | R38: =様式1!B38 -> 1933 | S38: =様式1!C38 -> 8 | T38: 0 | U38: 0 | V38: 0 | W38: 0 | X38: 0 | Y38: 0 | Z38: 0 | AA38: 0 | AB38: 0.004148580968 | AD38: 8 | AE38: 0 | AG38: 1984年度 | AH38: 78.8 | AJ38: 64.32653061
B39: 1934 | C39: 9 | K39: 0 | O39: 1934 | P39: 0.045 | R39: =様式1!B39 -> 1934 | S39: =様式1!C39 -> 9 | T39: 0 | U39: 0 | V39: 0 | W39: 0 | X39: 0 | Y39: 0 | Z39: 0 | AA39: 0 | AB39: 0.004148580968 | AD39: 9 | AE39: 0 | AG39: 1985年度 | AH39: =初期設定!C8 -> 77.7 | AJ39: 63.42857143 | AL39: 1951年～1984年のデフレーターは国土交通省 建設工事費 「下水道」より設定（AH列5～38行目）
B40: 1935 | C40: 10 | K40: 0 | O40: 1935 | P40: 0.045 | R40: =様式1!B40 -> 1935 | S40: =様式1!C40 -> 10 | T40: 0 | U40: 0 | V40: 0 | W40: 0 | X40: 0 | Y40: 0 | Z40: 0 | AA40: 0 | AB40: 0.004173622705 | AD40: 10 | AE40: 0 | AG40: 1986年度 | AH40: =初期設定!C9 -> 76.8 | AJ40: 62.69387755 | AL40: 1985年～最新年度は国土交通省 建設工事費 「上・工業用水道」より設定（初期設定シートのC列より取得）
B41: 1936 | C41: 11 | K41: 0 | O41: 1936 | P41: 0.046 | R41: =様式1!B41 -> 1936 | S41: =様式1!C41 -> 11 | T41: 0 | U41: 0 | V41: 0 | W41: 0 | X41: 0 | Y41: 0 | Z41: 0 | AA41: 0 | AB41: 0.004198664441 | AD41: 11 | AE41: 0 | AG41: 1987年度 | AH41: =初期設定!C10 -> 77.3 | AJ41: 63.10204082 | AL41: （AH列のデフレーターは最新年度を100としてAJ列に補正値を算定（実際に使用する数値（P列））
B42: 1937 | C42: 12 | K42: 0 | O42: 1937 | P42: 0.054 | R42: =様式1!B42 -> 1937 | S42: =様式1!C42 -> 12 | T42: 0 | U42: 0 | V42: 0 | W42: 0 | X42: 0 | Y42: 0 | Z42: 0 | AA42: 0 | AB42: 0.004970784641 | AD42: 12 | AE42: 0 | AG42: 1988年度 | AH42: =初期設定!C11 -> 78.7 | AJ42: 64.24489796 | AL42: 最新年度以降はすべて100とする。（更新費用＝現在価格とする）
B43: 1938 | C43: 13 | K43: 0 | O43: 1938 | P43: 0.06 | R43: =様式1!B43 -> 1938 | S43: =様式1!C43 -> 13 | T43: 0 | U43: 0 | V43: 0 | W43: 0 | X43: 0 | Y43: 0 | Z43: 0 | AA43: 0 | AB43: 0.005525876461 | AD43: 13 | AE43: 0 | AG43: 1989年度 | AH43: =初期設定!C12 -> 82.4 | AJ43: 67.26530612 | AL43: 1950以前のデフレーターは国土交通省の治水経済調査マニュアル（案）P99～100に記載されている治水事業工事費比率
B44: 1939 | C44: 14 | K44: 0 | O44: 1939 | P44: 0.071 | R44: =様式1!B44 -> 1939 | S44: =様式1!C44 -> 14 | T44: 0 | U44: 0 | V44: 0 | W44: 0 | X44: 0 | Y44: 0 | Z44: 0 | AA44: 0 | AB44: 0.006506677796 | AD44: 14 | AE44: 0 | AG44: 1990年度 | AH44: =初期設定!C13 -> 85.3 | AJ44: 69.63265306 | AL44: を基に補正率を算出し、1951年度のデフレーターに補正率を掛けて算出する。
B45: 1940 | C45: 15 | K45: 0 | O45: 1940 | P45: 0.081 | R45: =様式1!B45 -> 1940 | S45: =様式1!C45 -> 15 | T45: 0 | U45: 0 | V45: 0 | W45: 0 | X45: 0 | Y45: 0 | Z45: 0 | AA45: 0 | AB45: 0.007487479132 | AD45: 15 | AE45: 0 | AG45: 1991年度 | AH45: =初期設定!C14 -> 87.6 | AJ45: 71.51020408
B46: 1941 | C46: 16 | K46: 0 | O46: 1941 | P46: 0.09 | R46: =様式1!B46 -> 1941 | S46: =様式1!C46 -> 16 | T46: 0 | U46: 0 | V46: 0 | W46: 0 | X46: 0 | Y46: 0 | Z46: 0 | AA46: 0 | AB46: 0.008322203673 | AD46: 16 | AE46: 0 | AG46: 1992年度 | AH46: =初期設定!C15 -> 88.6 | AJ46: 72.32653061 | AL46: 明治以降の土木工事費指数（治水事業）
B47: 1942 | C47: 17 | K47: 0 | O47: 1942 | P47: 0.094 | R47: =様式1!B47 -> 1942 | S47: =様式1!C47 -> 17 | T47: 0 | U47: 0 | V47: 0 | W47: 0 | X47: 0 | Y47: 0 | Z47: 0 | AA47: 0 | AB47: 0.008635225376 | AD47: 17 | AE47: 0 | AG47: 1993年度 | AH47: =初期設定!C16 -> 88.4 | AJ47: 72.16326531 | AL47: 年度 | AM47: 和暦 | AN47: 指数 | AO47: 補正率 | AQ47: 補正率の算出（AO列=AB列）
B48: 1943 | C48: 18 | K48: 0 | O48: 1943 | P48: 0.108 | R48: =様式1!B48 -> 1943 | S48: =様式1!C48 -> 18 | T48: 0 | U48: 0 | V48: 0 | W48: 0 | X48: 0 | Y48: 0 | Z48: 0 | AA48: 0 | AB48: 0.00995409015 | AD48: 18 | AE48: 0 | AG48: 1994年度 | AH48: =初期設定!C17 -> 88.6 | AJ48: 72.32653061 | AL48: 1900 | AM48: =C5 -> 33 | AN48: 40.3 | AO48: =$AN48/$AN$99 -> 0.00168196995 | AQ48: 各年度の指数/1951年の指数
B49: 1944 | C49: 19 | K49: 0 | O49: 1944 | P49: 0.148 | R49: =様式1!B49 -> 1944 | S49: =様式1!C49 -> 19 | T49: 0 | U49: 0 | V49: 0 | W49: 0 | X49: 0 | Y49: 0 | Z49: 0 | AA49: 0 | AB49: 0.01364357262 | AD49: 19 | AE49: 0 | AG49: 1995年度 | AH49: =初期設定!C18 -> 88.8 | AJ49: 72.48979592 | AL49: =AL48+1 -> 1901 | AM49: =C6 -> 34 | AN49: 40.3 | AO49: 0.00168196995 | AQ49: デフレータの算出（P列：1950年まで）
B50: 1945 | C50: 20 | K50: 0 | O50: 1945 | P50: 0.552 | R50: =様式1!B50 -> 1945 | S50: =様式1!C50 -> 20 | T50: 0 | U50: 0 | V50: 0 | W50: 0 | X50: 0 | Y50: 0 | Z50: 0 | AA50: 0 | AB50: 0.05087646077 | AD50: 20 | AE50: 0 | AG50: 1996年度 | AH50: =初期設定!C19 -> 88.5 | AJ50: 72.24489796 | AL50: =AL49+1 -> 1902 | AM50: 35 | AN50: 40.3 | AO50: 0.00168196995 | AQ50: 1951年のデフレーター*各年度の補正率
B51: 1946 | C51: 21 | K51: 0 | O51: 1946 | P51: 1.123 | R51: =様式1!B51 -> 1946 | S51: =様式1!C51 -> 21 | T51: 0 | U51: 0 | V51: 0 | W51: 0 | X51: 0 | Y51: 0 | Z51: 0 | AA51: 0 | AB51: 0.1034641068 | AD51: 21 | AE51: 0 | AG51: 1997年度 | AH51: =初期設定!C20 -> 89.4 | AJ51: 72.97959184 | AL51: 1903 | AM51: 36 | AN51: 40.3 | AO51: 0.00168196995
B52: 1947 | C52: 22 | K52: 0 | O52: 1947 | P52: 2.655 | R52: =様式1!B52 -> 1947 | S52: =様式1!C52 -> 22 | T52: 0 | U52: 0 | V52: 0 | W52: 0 | X52: 0 | Y52: 0 | Z52: 0 | AA52: 0 | AB52: 0.2445742905 | AD52: 22 | AE52: 0 | AG52: 1998年度 | AH52: =初期設定!C21 -> 88 | AJ52: 71.83673469 | AL52: 1904 | AM52: 37 | AN52: 39.2 | AO52: 0.0016360601
B53: 1948 | C53: 23 | K53: 0 | O53: 1948 | P53: 0.739 | R53: =様式1!B53 -> 1948 | S53: =様式1!C53 -> 23 | T53: 0 | U53: 0 | V53: 0 | W53: 0 | X53: 0 | Y53: 0 | Z53: 0 | AA53: 0 | AB53: 0.06803005008 | AD53: 23 | AE53: 0 | AG53: 1999年度 | AH53: =初期設定!C22 -> 87 | AJ53: 71.02040816 | AL53: 1905 | AM53: 38 | AN53: 41.3 | AO53: 0.001723706177
B54: 1949 | C54: 24 | K54: 0 | O54: 1949 | P54: 2.773 | R54: =様式1!B54 -> 1949 | S54: =様式1!C54 -> 24 | T54: 0 | U54: 0 | V54: 0 | W54: 0 | X54: 0 | Y54: 0 | Z54: 0 | AA54: 0 | AB54: 0.2554257095 | AD54: 24 | AE54: 0 | AG54: 2000年度 | AH54: =初期設定!C23 -> 87.2 | AJ54: 71.18367347 | AL54: 1906 | AM54: 39 | AN54: 44.3 | AO54: 0.001848914858
B55: 1950 | C55: 25 | J55: 10000 | K55: 10000 | O55: 1950 | P55: 8.415 | R55: =様式1!B55 -> 1950 | S55: =様式1!C55 -> 25 | T55: 0 | U55: 0 | V55: 0 | W55: 0 | X55: 0 | Y55: 0 | Z55: 118835 | AA55: 118835 | AB55: 0.7750417362 | AD55: 25 | AE55: =AA55 -> 118835 | AG55: 2001年度 | AH55: =初期設定!C24 -> 85.6 | AJ55: 69.87755102 | AL55: 1907 | AM55: 40 | AN55: 50 | AO55: 0.002086811352
B56: 1951 | C56: 26 | J56: 20000 | K56: 20000 | O56: 1951 | P56: =IF(AJ5<>0,AJ5,100) -> 10.85714286 | R56: =様式1!B56 -> 1951 | S56: =様式1!C56 -> 26 | T56: 0 | U56: 0 | V56: 0 | W56: 0 | X56: 0 | Y56: 0 | Z56: 184211 | AA56: 184211 | AD56: 26 | AE56: 184211 | AG56: 2002年度 | AH56: =初期設定!C25 -> 85 | AJ56: 69.3877551 | AL56: 1908 | AM56: 41 | AN56: 53.4 | AO56: 0.002228714524
B57: 1952 | C57: 27 | J57: 15000 | K57: 15000 | O57: 1952 | P57: =IF(AJ6<>0,AJ6,100) -> 11.67346939 | R57: =様式1!B57 -> 1952 | S57: =様式1!C57 -> 27 | T57: 0 | U57: 0 | V57: 0 | W57: 0 | X57: 0 | Y57: 0 | Z57: 128497 | AA57: 128497 | AD57: 27 | AE57: 128497 | AG57: 2003年度 | AH57: =初期設定!C26 -> 86 | AJ57: 70.20408163 | AL57: 1909 | AM57: 42 | AN57: 52.2 | AO57: 0.002178631052
B58: 1953 | C58: 28 | J58: 10000 | K58: 10000 | O58: 1953 | P58: =IF(AJ7<>0,AJ7,100) -> 12.48979592 | R58: =様式1!B58 -> 1953 | S58: =様式1!C58 -> 28 | T58: 0 | U58: 0 | V58: 0 | W58: 0 | X58: 0 | Y58: 0 | Z58: 80065 | AA58: 80065 | AD58: 28 | AE58: 80065 | AG58: 2004年度 | AH58: =初期設定!C27 -> 87.5 | AJ58: 71.42857143 | AL58: 1910 | AM58: 43 | AN58: 52.1 | AO58: 0.002174457429
B59: 1954 | C59: 29 | J59: 10000 | K59: 10000 | O59: 1954 | P59: 12.48979592 | R59: =様式1!B59 -> 1954 | S59: =様式1!C59 -> 29 | T59: 0 | U59: 0 | V59: 0 | W59: 0 | X59: 0 | Y59: 0 | Z59: 80065 | AA59: 80065 | AD59: 29 | AE59: 80065 | AG59: 2005年度 | AH59: =初期設定!C28 -> 89 | AJ59: 72.65306122 | AL59: 1911 | AM59: 44 | AN59: 55.1 | AO59: 0.00229966611
B60: 1955 | C60: 30 | J60: 10000 | K60: 10000 | O60: 1955 | P60: 12.57142857 | R60: =様式1!B60 -> 1955 | S60: =様式1!C60 -> 30 | T60: 0 | U60: 0 | V60: 0 | W60: 0 | X60: 0 | Y60: 0 | Z60: 79545 | AA60: 79545 | AD60: 30 | AE60: 79545 | AG60: 2006年度 | AH60: =初期設定!C29 -> 90.6 | AJ60: 73.95918367 | AL60: 1912 | AM60: 1 | AN60: 58.3 | AO60: 0.002433222037
B61: 1956 | C61: 31 | J61: 10000 | K61: 10000 | O61: 1956 | P61: 13.95918367 | R61: =様式1!B61 -> 1956 | S61: =様式1!C61 -> 31 | T61: 0 | U61: 0 | V61: 0 | W61: 0 | X61: 0 | Y61: 0 | Z61: 71637 | AA61: 71637 | AD61: 31 | AE61: 71637 | AG61: 2007年度 | AH61: =初期設定!C30 -> 93.5 | AJ61: 76.32653061 | AL61: 1913 | AM61: 2 | AN61: 58.4 | AO61: 0.002437395659
B62: 1957 | C62: 32 | J62: 10000 | K62: 10000 | O62: 1957 | P62: 14.7755102 | R62: 1957 | S62: 32 | T62: 0 | U62: 0 | V62: 0 | W62: 0 | X62: 0 | Y62: 0 | Z62: 67680 | AA62: 67680 | AD62: =S62 -> 32 | AE62: =AA62 -> 67680 | AG62: 2008年度 | AH62: =初期設定!C31 -> 98.8 | AJ62: 80.65306122 | AL62: 1914 | AM62: 3 | AN62: 58.1 | AO62: 0.002424874791
B63: 1958 | C63: 33 | J63: 10000 | K63: 10000 | O63: 1958 | P63: 14.28571429 | R63: 1958 | S63: 33 | T63: 0 | U63: 0 | V63: 0 | W63: 0 | X63: 0 | Y63: 0 | Z63: 70000 | AA63: 70000 | AD63: 33 | AE63: =AA63 -> 70000 | AG63: 2009年度 | AH63: =初期設定!C32 -> 94 | AJ63: 76.73469388 | AL63: 1915 | AM63: 4 | AN63: 55.8 | AO63: 0.002328881469
B64: 1959 | C64: 34 | J64: 10000 | K64: 10000 | O64: 1959 | P64: 14.6122449 | R64: 1959 | S64: 34 | T64: 0 | U64: 0 | V64: 0 | W64: 0 | X64: 0 | Y64: 0 | Z64: 68436 | AA64: 68436 | AD64: 34 | AE64: 68436 | AG64: 2010年度 | AH64: =初期設定!C33 -> 94.1 | AJ64: 76.81632653 | AL64: 1916 | AM64: 5 | AN64: 58.5 | AO64: 0.002441569282
B65: 1960 | C65: 35 | J65: 10000 | K65: 10000 | O65: 1960 | P65: 15.51020408 | R65: 1960 | S65: 35 | T65: 0 | U65: 0 | V65: 0 | W65: 0 | X65: 0 | Y65: 0 | Z65: 64474 | AA65: 64474 | AD65: 35 | AE65: 64474 | AG65: 2011年度 | AH65: =初期設定!C34 -> 95.3 | AJ65: 77.79591837 | AL65: 1917 | AM65: 6 | AN65: 71.7 | AO65: 0.002992487479
B66: 1961 | C66: 36 | J66: 10000 | K66: 10000 | O66: 1961 | P66: 17.14285714 | R66: 1961 | S66: 36 | T66: 0 | U66: 0 | V66: 0 | W66: 0 | X66: 0 | Y66: 0 | Z66: 58333 | AA66: 58333 | AD66: 36 | AE66: 58333 | AG66: 2012年度 | AH66: =初期設定!C35 -> 94.7 | AJ66: 77.30612245 | AL66: 1918 | AM66: 7 | AN66: 97 | AO66: 0.004048414023
B67: 1962 | C67: 37 | J67: 10000 | K67: 10000 | O67: 1962 | P67: 17.79591837 | R67: 1962 | S67: 37 | T67: 0 | U67: 0 | V67: 0 | W67: 0 | X67: 0 | Y67: 0 | Z67: 56193 | AA67: 56193 | AD67: 37 | AE67: 56193 | AG67: 2013年度 | AH67: =初期設定!C36 -> 96.6 | AJ67: 78.85714286 | AL67: 1919 | AM67: 8 | AN67: 141.5 | AO67: 0.005905676127
B68: 1963 | C68: 38 | J68: 10000 | K68: 10000 | O68: 1963 | P68: 18.12244898 | R68: 1963 | S68: 38 | T68: 0 | U68: 0 | V68: 0 | W68: 0 | X68: 0 | Y68: 0 | Z68: 55180 | AA68: 55180 | AD68: 38 | AE68: 55180 | AG68: 2014年度 | AH68: =初期設定!C37 -> 99.5 | AJ68: 81.2244898 | AL68: 1920 | AM68: 9 | AN68: 188.6 | AO68: 0.007871452421
B69: 1964 | C69: 39 | J69: 10000 | K69: 10000 | O69: 1964 | P69: 18.7755102 | R69: 1964 | S69: 39 | T69: 0 | U69: 0 | V69: 0 | W69: 0 | X69: 0 | Y69: 0 | Z69: 53261 | AA69: 53261 | AD69: 39 | AE69: 53261 | AG69: 2015年度 | AH69: =初期設定!C38 -> 100 | AJ69: 81.63265306 | AL69: 1921 | AM69: 10 | AN69: 156.7 | AO69: 0.006540066778
B70: 1965 | C70: 40 | J70: 10000 | K70: 10000 | O70: =B70 -> 1965 | P70: 19.34693878 | R70: 1965 | S70: 40 | T70: =IF($P70=0,,INT(D70/$P70*100+0.5)) -> 0 | U70: =IF($P70=0,,INT(E70/$P70*100+0.5)) -> 0 | V70: =IF($P70=0,,INT(F70/$P70*100+0.5)) -> 0 | W70: =IF($P70=0,,INT(G70/$P70*100+0.5)) -> 0 | X70: =IF($P70=0,,INT(H70/$P70*100+0.5)) -> 0 | Y70: =IF($P70=0,,INT(I70/$P70*100+0.5)) -> 0 | Z70: =IF($P70=0,,INT(J70/$P70*100+0.5)) -> 51688 | AA70: =SUM(T70:Z70) -> 51688 | AD70: 40 | AE70: 51688 | AG70: 2016年度 | AH70: =初期設定!C39 -> 100.1 | AJ70: =AH70/$AI$106*100 -> 81.71428571 | AL70: 1922 | AM70: 11 | AN70: 168 | AO70: 0.007011686144
B71: 1966 | C71: 41 | J71: 10000 | K71: 10000 | O71: 1966 | P71: 20.65306122 | R71: 1966 | S71: 41 | T71: 0 | U71: 0 | V71: 0 | W71: 0 | X71: 0 | Y71: 0 | Z71: 48419 | AA71: 48419 | AD71: 41 | AE71: 48419 | AG71: 2017年度 | AH71: =初期設定!C40 -> 102 | AI71: =IF(AH72=0,IF(AH71<>0,AH71,""),"") ->  | AJ71: 83.26530612 | AL71: 1923 | AM71: 12 | AN71: 168.5 | AO71: 0.007032554257
B72: 1967 | C72: 42 | J72: 10000 | K72: 10000 | O72: 1967 | P72: 21.79591837 | R72: 1967 | S72: 42 | T72: 0 | U72: 0 | V72: 0 | W72: 0 | X72: 0 | Y72: 0 | Z72: 45880 | AA72: 45880 | AD72: 42 | AE72: 45880 | AG72: 2018年度 | AH72: =初期設定!C41 -> 105.8 | AJ72: 86.36734694 | AL72: 1924 | AM72: 13 | AN72: 160.2 | AO72: 0.006686143573
B73: 1968 | C73: 43 | J73: 10000 | K73: 10000 | O73: 1968 | P73: 22.44897959 | R73: 1968 | S73: 43 | T73: 0 | U73: 0 | V73: 0 | W73: 0 | X73: 0 | Y73: 0 | Z73: 44545 | AA73: 44545 | AD73: 43 | AE73: 44545 | AG73: 2019年度 | AH73: =初期設定!C42 -> 108.9 | AJ73: 88.89795918 | AL73: 1925 | AM73: 14 | AN73: 152.7 | AO73: 0.00637312187
B74: 1969 | C74: 44 | J74: 10000 | K74: 10000 | O74: 1969 | P74: 24.08163265 | R74: 1969 | S74: 44 | T74: 0 | U74: 0 | V74: 0 | W74: 0 | X74: 0 | Y74: 0 | Z74: 41525 | AA74: 41525 | AD74: 44 | AE74: 41525 | AG74: 2020年度 | AH74: =初期設定!C43 -> 108.9 | AJ74: 88.89795918 | AL74: 1926 | AM74: 1 | AN74: 147.4 | AO74: 0.006151919866
B75: 1970 | C75: 45 | J75: 10000 | K75: 10000 | O75: 1970 | P75: 25.87755102 | R75: 1970 | S75: 45 | T75: 0 | U75: 0 | V75: 0 | W75: 0 | X75: 0 | Y75: 0 | Z75: 38644 | AA75: 38644 | AD75: 45 | AE75: 38644 | AG75: 2021年度 | AH75: =初期設定!C44 -> 113.6 | AJ75: 92.73469388 | AL75: 1927 | AM75: 2 | AN75: 140.9 | AO75: 0.005880634391
B76: 1971 | C76: 46 | J76: 10000 | K76: 10000 | O76: 1971 | P76: 26.44897959 | R76: 1971 | S76: 46 | T76: 0 | U76: 0 | V76: 0 | W76: 0 | X76: 0 | Y76: 0 | Z76: 37809 | AA76: 37809 | AD76: 46 | AE76: 37809 | AG76: 2022年度 | AH76: =初期設定!C45 -> 122.5 | AI76: 122.5 | AJ76: 100 | AL76: 1928 | AM76: 3 | AN76: 139.7 | AO76: 0.005830550918
B77: 1972 | C77: 47 | J77: 10000 | K77: 10000 | O77: 1972 | P77: 28 | R77: 1972 | S77: 47 | T77: 0 | U77: 0 | V77: 0 | W77: 0 | X77: 0 | Y77: 0 | Z77: 35714 | AA77: 35714 | AD77: 47 | AE77: 35714 | AG77: 2023年度 | AH77: =初期設定!C46 -> 0 | AJ77: 0 | AL77: 1929 | AM77: 4 | AN77: 135.5 | AO77: 0.005655258765
B78: 1973 | C78: 48 | K78: 0 | O78: 1973 | P78: 35.75510204 | R78: 1973 | S78: 48 | T78: 0 | U78: 0 | V78: 0 | W78: 0 | X78: 0 | Y78: 0 | Z78: 0 | AA78: 0 | AD78: 48 | AE78: 0 | AG78: 2024年度 | AH78: =初期設定!C47 -> 0 | AJ78: 0 | AL78: 1930 | AM78: 5 | AN78: 109.9 | AO78: 0.004586811352
B79: 1974 | C79: 49 | K79: 0 | O79: 1974 | P79: 43.34693878 | R79: 1974 | S79: 49 | T79: 0 | U79: 0 | V79: 0 | W79: 0 | X79: 0 | Y79: 0 | Z79: 0 | AA79: 0 | AD79: 49 | AE79: 0 | AG79: 2025年度 | AH79: =初期設定!C48 -> 0 | AJ79: 0 | AL79: 1931 | AM79: 6 | AN79: 99.1 | AO79: 0.0041360601
B80: 1975 | C80: 50 | K80: 0 | O80: 1975 | P80: 43.83673469 | R80: 1975 | S80: 50 | T80: 0 | U80: 0 | V80: 0 | W80: 0 | X80: 0 | Y80: 0 | Z80: 0 | AA80: 0 | AD80: 50 | AE80: 0 | AG80: 2026年度 | AH80: =初期設定!C49 -> 0 | AJ80: 0 | AL80: 1932 | AM80: 7 | AN80: 97.7 | AO80: 0.004077629382
B81: 1976 | C81: 51 | K81: 0 | O81: 1976 | P81: 47.02040816 | R81: 1976 | S81: 51 | T81: 0 | U81: 0 | V81: 0 | W81: 0 | X81: 0 | Y81: 0 | Z81: 0 | AA81: 0 | AD81: 51 | AE81: 0 | AG81: 2027年度 | AH81: =初期設定!C50 -> 0 | AJ81: 0 | AL81: 1933 | AM81: 8 | AN81: 99.4 | AO81: 0.004148580968
B82: 1977 | C82: 52 | K82: 0 | O82: 1977 | P82: 49.3877551 | R82: 1977 | S82: 52 | T82: 0 | U82: 0 | V82: 0 | W82: 0 | X82: 0 | Y82: 0 | Z82: 0 | AA82: 0 | AD82: 52 | AE82: 0 | AG82: 2028年度 | AH82: =初期設定!C51 -> 0 | AJ82: 0 | AL82: 1934 | AM82: 9 | AN82: 99.4 | AO82: 0.004148580968
B83: 1978 | C83: 53 | K83: 0 | O83: 1978 | P83: 52.73469388 | R83: 1978 | S83: 53 | T83: 0 | U83: 0 | V83: 0 | W83: 0 | X83: 0 | Y83: 0 | Z83: 0 | AA83: 0 | AD83: 53 | AE83: 0 | AG83: 2029年度 | AH83: =初期設定!C52 -> 0 | AJ83: 0 | AL83: 1935 | AM83: 10 | AN83: 100 | AO83: 0.004173622705
B84: 1979 | C84: 54 | K84: 0 | O84: 1979 | P84: 57.30612245 | R84: 1979 | S84: 54 | T84: 0 | U84: 0 | V84: 0 | W84: 0 | X84: 0 | Y84: 0 | Z84: 0 | AA84: 0 | AD84: 54 | AE84: 0 | AG84: 2030年度 | AH84: =初期設定!C53 -> 0 | AJ84: 0 | AL84: 1936 | AM84: 11 | AN84: 100.6 | AO84: 0.004198664441
B85: 1980 | C85: 55 | K85: 0 | O85: 1980 | P85: 62.44897959 | R85: 1980 | S85: 55 | T85: 0 | U85: 0 | V85: 0 | W85: 0 | X85: 0 | Y85: 0 | Z85: 0 | AA85: 0 | AD85: 55 | AE85: 0 | AG85: 2021年度 | AH85: =初期設定!C54 -> 0 | AJ85: 0 | AL85: 1937 | AM85: 12 | AN85: 119.1 | AO85: 0.004970784641
B86: 1981 | C86: 56 | K86: 0 | O86: 1981 | P86: 63.18367347 | R86: 1981 | S86: 56 | T86: 0 | U86: 0 | V86: 0 | W86: 0 | X86: 0 | Y86: 0 | Z86: 0 | AA86: 0 | AD86: 56 | AE86: 0 | AG86: 2022年度 | AH86: =初期設定!C55 -> 0 | AJ86: 0 | AL86: 1938 | AM86: 13 | AN86: 132.4 | AO86: 0.005525876461
B87: 1982 | C87: 57 | K87: 0 | O87: 1982 | P87: 63.34693878 | R87: 1982 | S87: 57 | T87: 0 | U87: 0 | V87: 0 | W87: 0 | X87: 0 | Y87: 0 | Z87: 0 | AA87: 0 | AD87: 57 | AE87: 0 | AG87: 2023年度 | AH87: =初期設定!C56 -> 0 | AJ87: 0 | AL87: 1939 | AM87: 14 | AN87: 155.9 | AO87: 0.006506677796
B88: 1983 | C88: 58 | K88: 0 | O88: 1983 | P88: 63.26530612 | R88: 1983 | S88: 58 | T88: 0 | U88: 0 | V88: 0 | W88: 0 | X88: 0 | Y88: 0 | Z88: 0 | AA88: 0 | AD88: 58 | AE88: 0 | AG88: 2024年度 | AH88: =初期設定!C57 -> 0 | AJ88: 0 | AL88: 1940 | AM88: 15 | AN88: 179.4 | AO88: 0.007487479132
B89: 1984 | C89: 59 | K89: 0 | O89: 1984 | P89: 64.32653061 | R89: 1984 | S89: 59 | T89: 0 | U89: 0 | V89: 0 | W89: 0 | X89: 0 | Y89: 0 | Z89: 0 | AA89: 0 | AD89: 59 | AE89: 0 | AG89: 2025年度 | AH89: =初期設定!C58 -> 0 | AJ89: 0 | AL89: 1941 | AM89: 16 | AN89: 199.4 | AO89: 0.008322203673
B90: 1985 | C90: 60 | K90: 0 | O90: 1985 | P90: 63.42857143 | R90: 1985 | S90: 60 | T90: 0 | U90: 0 | V90: 0 | W90: 0 | X90: 0 | Y90: 0 | Z90: 0 | AA90: 0 | AD90: 60 | AE90: 0 | AG90: 2026年度 | AH90: =初期設定!C59 -> 0 | AJ90: 0 | AL90: 1942 | AM90: 17 | AN90: 206.9 | AO90: 0.008635225376
B91: 1986 | C91: 61 | K91: 0 | O91: 1986 | P91: 62.69387755 | R91: 1986 | S91: 61 | T91: 0 | U91: 0 | V91: 0 | W91: 0 | X91: 0 | Y91: 0 | Z91: 0 | AA91: 0 | AD91: 61 | AE91: 0 | AG91: 2027年度 | AH91: =初期設定!C60 -> 0 | AJ91: 0 | AL91: 1943 | AM91: 18 | AN91: 238.5 | AO91: 0.00995409015
B92: 1987 | C92: 62 | K92: 0 | O92: 1987 | P92: 63.10204082 | R92: 1987 | S92: 62 | T92: 0 | U92: 0 | V92: 0 | W92: 0 | X92: 0 | Y92: 0 | Z92: 0 | AA92: 0 | AD92: 62 | AE92: 0 | AG92: 2028年度 | AH92: =初期設定!C61 -> 0 | AJ92: 0 | AL92: 1944 | AM92: 19 | AN92: 326.9 | AO92: 0.01364357262
B93: 1988 | C93: 63 | K93: 0 | O93: 1988 | P93: 64.24489796 | R93: 1988 | S93: 63 | T93: 0 | U93: 0 | V93: 0 | W93: 0 | X93: 0 | Y93: 0 | Z93: 0 | AA93: 0 | AD93: 63 | AE93: 0 | AG93: 2029年度 | AH93: =初期設定!C62 -> 0 | AJ93: 0 | AL93: 1945 | AM93: 20 | AN93: 1219 | AO93: 0.05087646077
B94: 1989 | C94: 1 | K94: 0 | O94: 1989 | P94: 67.26530612 | R94: 1989 | S94: H1 | T94: 0 | U94: 0 | V94: 0 | W94: 0 | X94: 0 | Y94: 0 | Z94: 0 | AA94: 0 | AD94: =S94 -> H1 | AE94: 0 | AG94: 2030年度 | AH94: =初期設定!C63 -> 0 | AJ94: 0 | AL94: 1946 | AM94: 21 | AN94: 2479 | AO94: 0.1034641068
B95: 1990 | C95: 2 | K95: 0 | O95: 1990 | P95: 69.63265306 | R95: 1990 | S95: H2 | T95: 0 | U95: 0 | V95: 0 | W95: 0 | X95: 0 | Y95: 0 | Z95: 0 | AA95: 0 | AD95: H2 | AE95: 0 | AG95: 2021年度 | AH95: =初期設定!C64 -> 0 | AJ95: 0 | AL95: 1947 | AM95: 22 | AN95: 5860 | AO95: 0.2445742905
B96: 1991 | C96: 3 | K96: 0 | O96: 1991 | P96: 71.51020408 | R96: 1991 | S96: H3 | T96: 0 | U96: 0 | V96: 0 | W96: 0 | X96: 0 | Y96: 0 | Z96: 0 | AA96: 0 | AD96: H3 | AE96: 0 | AG96: 2022年度 | AH96: =初期設定!C65 -> 0 | AJ96: 0 | AL96: 1948 | AM96: 23 | AN96: 1630 | AO96: 0.06803005008
B97: 1992 | C97: 4 | K97: 0 | O97: 1992 | P97: 72.32653061 | R97: 1992 | S97: H4 | T97: 0 | U97: 0 | V97: 0 | W97: 0 | X97: 0 | Y97: 0 | Z97: 0 | AA97: 0 | AD97: H4 | AE97: 0 | AG97: 2023年度 | AH97: =初期設定!C66 -> 0 | AJ97: 0 | AL97: 1949 | AM97: 24 | AN97: 6120 | AO97: 0.2554257095
B98: 1993 | C98: 5 | K98: 0 | O98: 1993 | P98: 72.16326531 | R98: 1993 | S98: H5 | T98: 0 | U98: 0 | V98: 0 | W98: 0 | X98: 0 | Y98: 0 | Z98: 0 | AA98: 0 | AD98: H5 | AE98: 0 | AG98: 2024年度 | AH98: =初期設定!C67 -> 0 | AJ98: 0 | AL98: 1950 | AM98: 25 | AN98: 18570 | AO98: =$AN98/$AN$99 -> 0.7750417362
B99: 1994 | C99: 6 | K99: 0 | O99: 1994 | P99: 72.32653061 | R99: 1994 | S99: H6 | T99: 0 | U99: 0 | V99: 0 | W99: 0 | X99: 0 | Y99: 0 | Z99: 0 | AA99: 0 | AD99: H6 | AE99: 0 | AG99: 2025年度 | AH99: =初期設定!C68 -> 0 | AJ99: 0 | AL99: =AL98+1 -> 1951 | AM99: =C56 -> 26 | AN99: 23960
B100: 1995 | C100: 7 | K100: 0 | O100: 1995 | P100: 72.48979592 | R100: 1995 | S100: H7 | T100: 0 | U100: 0 | V100: 0 | W100: 0 | X100: 0 | Y100: 0 | Z100: 0 | AA100: 0 | AD100: H7 | AE100: 0 | AG100: 2026年度 | AH100: =初期設定!C69 -> 0 | AJ100: 0
B101: 1996 | C101: 8 | K101: =SUM(D101:J101) -> 0 | O101: 1996 | P101: 72.24489796 | R101: 1996 | S101: H8 | T101: 0 | U101: 0 | V101: 0 | W101: 0 | X101: 0 | Y101: 0 | Z101: 0 | AA101: 0 | AD101: H8 | AE101: 0 | AG101: 2027年度 | AH101: =初期設定!C70 -> 0 | AJ101: 0
B102: 1997 | C102: 9 | K102: 0 | O102: 1997 | P102: 72.97959184 | R102: 1997 | S102: H9 | T102: 0 | U102: 0 | V102: 0 | W102: 0 | X102: 0 | Y102: 0 | Z102: 0 | AA102: 0 | AD102: H9 | AE102: 0 | AG102: 2028年度 | AH102: =初期設定!C71 -> 0 | AJ102: 0
B103: 1998 | C103: 10 | K103: 0 | O103: 1998 | P103: 71.83673469 | R103: 1998 | S103: H10 | T103: 0 | U103: 0 | V103: 0 | W103: 0 | X103: 0 | Y103: 0 | Z103: 0 | AA103: 0 | AD103: H10 | AE103: 0 | AG103: 2029年度 | AH103: =初期設定!C72 -> 0 | AJ103: 0
B104: 1999 | C104: 11 | K104: 0 | O104: 1999 | P104: 71.02040816 | R104: 1999 | S104: H11 | T104: 0 | U104: 0 | V104: 0 | W104: 0 | X104: 0 | Y104: 0 | Z104: 0 | AA104: 0 | AD104: H11 | AE104: 0 | AG104: 2030年度 | AH104: =初期設定!C73 -> 0 | AJ104: 0
B105: 2000 | C105: 12 | K105: 0 | O105: 2000 | P105: 71.18367347 | R105: 2000 | S105: H12 | T105: 0 | U105: 0 | V105: 0 | W105: 0 | X105: 0 | Y105: 0 | Z105: 0 | AA105: 0 | AD105: H12 | AE105: 0 | AG105: 2031年度 | AH105: =初期設定!C108 -> 0
B106: 2001 | C106: 13 | K106: 0 | O106: 2001 | P106: 69.87755102 | R106: 2001 | S106: H13 | T106: 0 | U106: 0 | V106: 0 | W106: 0 | X106: 0 | Y106: 0 | Z106: 0 | AA106: 0 | AD106: H13 | AE106: 0 | AH106: 最新年度 | AI106: =SUM(AI40:AI105) -> 122.5
B107: 2002 | C107: 14 | K107: 0 | O107: 2002 | P107: 69.3877551 | R107: 2002 | S107: H14 | T107: 0 | U107: 0 | V107: 0 | W107: 0 | X107: 0 | Y107: 0 | Z107: 0 | AA107: 0 | AD107: H14 | AE107: 0
B108: 2003 | C108: 15 | K108: 0 | O108: 2003 | P108: 70.20408163 | R108: 2003 | S108: H15 | T108: 0 | U108: 0 | V108: 0 | W108: 0 | X108: 0 | Y108: 0 | Z108: 0 | AA108: 0 | AD108: H15 | AE108: 0
B109: 2004 | C109: 16 | K109: 0 | O109: 2004 | P109: 71.42857143 | R109: 2004 | S109: H16 | T109: 0 | U109: 0 | V109: 0 | W109: 0 | X109: 0 | Y109: 0 | Z109: 0 | AA109: 0 | AD109: H16 | AE109: 0
B110: 2005 | C110: 17 | K110: 0 | O110: 2005 | P110: 72.65306122 | R110: 2005 | S110: H17 | T110: 0 | U110: 0 | V110: 0 | W110: 0 | X110: 0 | Y110: 0 | Z110: 0 | AA110: 0 | AD110: H17 | AE110: 0
B111: 2006 | C111: 18 | K111: 0 | O111: 2006 | P111: 73.95918367 | R111: 2006 | S111: H18 | T111: 0 | U111: 0 | V111: 0 | W111: 0 | X111: 0 | Y111: 0 | Z111: 0 | AA111: 0 | AD111: H18 | AE111: 0
B112: 2007 | C112: 19 | K112: 0 | O112: 2007 | P112: 76.32653061 | R112: 2007 | S112: H19 | T112: 0 | U112: 0 | V112: 0 | W112: 0 | X112: 0 | Y112: 0 | Z112: 0 | AA112: 0 | AD112: H19 | AE112: 0
B113: 2008 | C113: 20 | K113: 0 | O113: 2008 | P113: 80.65306122 | R113: 2008 | S113: 20 | T113: 0 | U113: 0 | V113: 0 | W113: 0 | X113: 0 | Y113: 0 | Z113: 0 | AA113: =SUM(T113:Z113) -> 0 | AD113: =S113 -> 20 | AE113: =AA113 -> 0
B114: 2009 | C114: 21 | K114: =SUM(D114:J114) -> 0 | O114: =B114 -> 2009 | P114: 76.73469388 | R114: 2009 | S114: 21 | T114: 0 | U114: 0 | V114: 0 | W114: 0 | X114: 0 | Y114: 0 | Z114: 0 | AA114: 0 | AD114: 21 | AE114: 0
B115: 2010 | C115: 22 | K115: 0 | O115: 2010 | P115: 76.81632653 | R115: 2010 | S115: 22 | T115: 0 | U115: 0 | V115: 0 | W115: 0 | X115: 0 | Y115: 0 | Z115: 0 | AA115: 0 | AD115: 22 | AE115: 0
B116: 2011 | C116: 23 | K116: 0 | O116: 2011 | P116: 77.79591837 | R116: 2011 | S116: 23 | T116: 0 | U116: 0 | V116: 0 | W116: 0 | X116: 0 | Y116: 0 | Z116: 0 | AA116: 0 | AD116: 23 | AE116: 0
B117: 2012 | C117: 24 | K117: 0 | O117: 2012 | P117: 77.30612245 | R117: 2012 | S117: 24 | T117: 0 | U117: 0 | V117: 0 | W117: 0 | X117: 0 | Y117: 0 | Z117: 0 | AA117: 0 | AD117: 24 | AE117: =AA117 -> 0
B118: 2013 | C118: 25 | K118: 0 | O118: 2013 | P118: 78.85714286 | R118: 2013 | S118: 25 | T118: 0 | U118: 0 | V118: 0 | W118: 0 | X118: 0 | Y118: 0 | Z118: 0 | AA118: 0 | AD118: 25 | AE118: 0
B119: 2014 | C119: 26 | K119: 0 | O119: 2014 | P119: 81.2244898 | R119: 2014 | S119: 26 | T119: 0 | U119: 0 | V119: 0 | W119: 0 | X119: 0 | Y119: 0 | Z119: 0 | AA119: 0 | AD119: 26 | AE119: 0
B120: 2015 | C120: 27 | K120: 0 | O120: 2015 | P120: 81.63265306 | R120: 2015 | S120: 27 | T120: 0 | U120: 0 | V120: 0 | W120: 0 | X120: 0 | Y120: 0 | Z120: 0 | AA120: 0 | AD120: 27 | AE120: 0
B121: 2016 | C121: 28 | K121: 0 | O121: 2016 | P121: 81.71428571 | R121: 2016 | S121: 28 | T121: 0 | U121: 0 | V121: 0 | W121: 0 | X121: 0 | Y121: 0 | Z121: 0 | AA121: 0 | AD121: 28 | AE121: 0
B122: 2017 | C122: 29 | K122: 0 | O122: 2017 | P122: =IF(AJ71<>0,AJ71,100) -> 83.26530612 | R122: 2017 | S122: 29 | T122: 0 | U122: 0 | V122: 0 | W122: 0 | X122: 0 | Y122: 0 | Z122: 0 | AA122: 0 | AD122: 29 | AE122: 0
B123: 2018 | C123: 30 | K123: 0 | O123: 2018 | P123: 86.36734694 | R123: 2018 | S123: 30 | T123: 0 | U123: 0 | V123: 0 | W123: 0 | X123: 0 | Y123: 0 | Z123: 0 | AA123: 0 | AD123: 30 | AE123: 0
B124: 2019 | C124: =$B124 - 2018 -> 1 | K124: 0 | O124: 2019 | P124: 88.89795918 | R124: 2019 | S124: 31 | T124: 0 | U124: 0 | V124: 0 | W124: 0 | X124: 0 | Y124: 0 | Z124: 0 | AA124: 0 | AD124: =C124 -> 1 | AE124: 0
B125: 2020 | C125: 2 | K125: 0 | O125: 2020 | P125: 88.89795918 | R125: 2020 | S125: 32 | T125: 0 | U125: 0 | V125: 0 | W125: 0 | X125: 0 | Y125: 0 | Z125: 0 | AA125: 0 | AD125: 2 | AE125: 0
B126: 2021 | C126: 3 | K126: 0 | O126: 2021 | P126: 92.73469388 | R126: 2021 | S126: 33 | T126: 0 | U126: 0 | V126: 0 | W126: 0 | X126: 0 | Y126: 0 | Z126: 0 | AA126: 0 | AD126: 3 | AE126: 0
B127: 2022 | C127: 4 | K127: 0 | O127: 2022 | P127: 100 | R127: 2022 | S127: 34 | T127: 0 | U127: 0 | V127: 0 | W127: 0 | X127: 0 | Y127: 0 | Z127: 0 | AA127: 0 | AD127: 4 | AE127: 0
B128: 2023 | C128: 5 | K128: 0 | O128: 2023 | P128: 100 | R128: 2023 | S128: 35 | T128: 0 | U128: 0 | V128: 0 | W128: 0 | X128: 0 | Y128: 0 | Z128: 0 | AA128: 0 | AD128: 5 | AE128: 0
B129: 2024 | C129: 6 | K129: 0 | O129: 2024 | P129: 100 | R129: 2024 | S129: 36 | T129: 0 | U129: 0 | V129: 0 | W129: 0 | X129: 0 | Y129: 0 | Z129: 0 | AA129: 0 | AD129: 6 | AE129: 0
B130: 2025 | C130: 7 | K130: 0 | O130: 2025 | P130: 100 | R130: 2025 | S130: 37 | T130: 0 | U130: 0 | V130: 0 | W130: 0 | X130: 0 | Y130: 0 | Z130: 0 | AA130: 0 | AD130: 7 | AE130: 0
B131: 2026 | C131: 8 | K131: 0 | O131: 2026 | P131: 100 | R131: 2026 | S131: 38 | T131: 0 | U131: 0 | V131: 0 | W131: 0 | X131: 0 | Y131: 0 | Z131: 0 | AA131: 0 | AD131: 8 | AE131: 0
B132: 2027 | C132: 9 | K132: 0 | O132: 2027 | P132: 100 | R132: 2027 | S132: 39 | T132: 0 | U132: 0 | V132: 0 | W132: 0 | X132: 0 | Y132: 0 | Z132: 0 | AA132: 0 | AD132: 9 | AE132: 0
B133: 2028 | C133: 10 | K133: =SUM(D133:J133) -> 0 | O133: 2028 | P133: 100 | R133: 2028 | S133: 40 | T133: 0 | U133: 0 | V133: 0 | W133: 0 | X133: 0 | Y133: 0 | Z133: 0 | AA133: 0 | AD133: 10 | AE133: 0
B134: 2029 | C134: 11 | K134: 0 | O134: =B134 -> 2029 | P134: 100 | R134: 2029 | S134: 41 | T134: =IF($P134=0,,INT(D134/$P134*100+0.5)) -> 0 | U134: =IF($P134=0,,INT(E134/$P134*100+0.5)) -> 0 | V134: =IF($P134=0,,INT(F134/$P134*100+0.5)) -> 0 | W134: =IF($P134=0,,INT(G134/$P134*100+0.5)) -> 0 | X134: =IF($P134=0,,INT(H134/$P134*100+0.5)) -> 0 | Y134: =IF($P134=0,,INT(I134/$P134*100+0.5)) -> 0 | Z134: =IF($P134=0,,INT(J134/$P134*100+0.5)) -> 0 | AA134: 0 | AD134: 11 | AE134: 0
B135: 2030 | C135: 12 | K135: 0 | O135: 2030 | P135: 100 | R135: 2030 | S135: 42 | T135: 0 | U135: 0 | V135: 0 | W135: 0 | X135: 0 | Y135: 0 | Z135: 0 | AA135: 0 | AD135: 12 | AE135: 0
B136: 2031 | C136: 13 | K136: 0 | O136: 2031 | P136: 100 | R136: 2031 | S136: 43 | T136: =IF($P136=0,,INT(D136/$P136*100+0.5)) -> 0 | U136: 0 | V136: 0 | W136: 0 | X136: 0 | Y136: 0 | Z136: 0 | AA136: 0 | AD136: 13 | AE136: 0
B137: 2032 | C137: 14 | K137: 0 | O137: 2032 | P137: 100 | R137: 2032 | S137: 44 | T137: 0 | U137: 0 | V137: 0 | W137: 0 | X137: 0 | Y137: 0 | Z137: 0 | AA137: 0 | AD137: 14 | AE137: 0
B138: 2033 | C138: 15 | K138: 0 | O138: 2033 | P138: 100 | R138: 2033 | S138: 45 | T138: 0 | U138: 0 | V138: 0 | W138: 0 | X138: 0 | Y138: 0 | Z138: 0 | AA138: 0 | AD138: 15 | AE138: 0
B139: 2034 | C139: 16 | K139: 0 | O139: 2034 | P139: 100 | R139: 2034 | S139: 46 | T139: 0 | U139: 0 | V139: 0 | W139: 0 | X139: 0 | Y139: 0 | Z139: 0 | AA139: 0 | AD139: 16 | AE139: 0
B140: 2035 | C140: 17 | K140: 0 | O140: 2035 | P140: 100 | R140: 2035 | S140: 47 | T140: 0 | U140: 0 | V140: 0 | W140: 0 | X140: 0 | Y140: 0 | Z140: 0 | AA140: 0 | AD140: 17 | AE140: 0
B141: 2036 | C141: 18 | K141: 0 | O141: 2036 | P141: 100 | R141: 2036 | S141: 48 | T141: 0 | U141: 0 | V141: 0 | W141: 0 | X141: 0 | Y141: 0 | Z141: 0 | AA141: 0 | AD141: 18 | AE141: 0
B142: 2037 | C142: 19 | K142: 0 | O142: 2037 | P142: 100 | R142: 2037 | S142: 49 | T142: 0 | U142: 0 | V142: 0 | W142: 0 | X142: 0 | Y142: 0 | Z142: 0 | AA142: 0 | AD142: 19 | AE142: 0
B143: 2038 | C143: 20 | K143: 0 | O143: 2038 | P143: 100 | R143: 2038 | S143: 50 | T143: 0 | U143: 0 | V143: 0 | W143: 0 | X143: 0 | Y143: 0 | Z143: 0 | AA143: 0 | AD143: 20 | AE143: 0
B144: 2039 | C144: 21 | K144: 0 | O144: 2039 | P144: 100 | R144: 2039 | S144: 51 | T144: 0 | U144: 0 | V144: 0 | W144: 0 | X144: 0 | Y144: 0 | Z144: 0 | AA144: 0 | AD144: 21 | AE144: 0
B145: 2040 | C145: 22 | K145: 0 | O145: 2040 | P145: 100 | R145: 2040 | S145: 52 | T145: 0 | U145: 0 | V145: 0 | W145: 0 | X145: 0 | Y145: 0 | Z145: 0 | AA145: 0 | AD145: 22 | AE145: 0
B146: 2041 | C146: 23 | K146: 0 | O146: 2041 | P146: 100 | R146: 2041 | S146: 53 | T146: 0 | U146: 0 | V146: 0 | W146: 0 | X146: 0 | Y146: 0 | Z146: 0 | AA146: 0 | AD146: 23 | AE146: 0
B147: 2042 | C147: 24 | K147: 0 | O147: 2042 | P147: 100 | R147: 2042 | S147: 54 | T147: 0 | U147: 0 | V147: 0 | W147: 0 | X147: 0 | Y147: 0 | Z147: 0 | AA147: 0 | AD147: 24 | AE147: 0
B148: 2043 | C148: 25 | K148: 0 | O148: 2043 | P148: 100 | R148: 2043 | S148: 55 | T148: 0 | U148: 0 | V148: 0 | W148: 0 | X148: 0 | Y148: 0 | Z148: 0 | AA148: 0 | AD148: 25 | AE148: 0
B149: 2044 | C149: 26 | K149: 0 | O149: 2044 | P149: 100 | R149: 2044 | S149: 56 | T149: 0 | U149: 0 | V149: 0 | W149: 0 | X149: 0 | Y149: 0 | Z149: 0 | AA149: 0 | AD149: 26 | AE149: 0
B150: 2045 | C150: 27 | K150: 0 | O150: 2045 | P150: 100 | R150: 2045 | S150: 57 | T150: 0 | U150: 0 | V150: 0 | W150: 0 | X150: 0 | Y150: 0 | Z150: 0 | AA150: 0 | AD150: 27 | AE150: 0
B151: 2046 | C151: 28 | K151: 0 | O151: 2046 | P151: 100 | R151: 2046 | S151: 58 | T151: 0 | U151: 0 | V151: 0 | W151: 0 | X151: 0 | Y151: 0 | Z151: 0 | AA151: 0 | AD151: 28 | AE151: 0
B152: 2047 | C152: 29 | K152: 0 | O152: 2047 | P152: 100 | R152: 2047 | S152: 59 | T152: 0 | U152: 0 | V152: 0 | W152: 0 | X152: 0 | Y152: 0 | Z152: 0 | AA152: 0 | AD152: 29 | AE152: 0
B153: 2048 | C153: 30 | K153: 0 | O153: 2048 | P153: 100 | R153: 2048 | S153: 60 | T153: 0 | U153: 0 | V153: 0 | W153: 0 | X153: 0 | Y153: 0 | Z153: 0 | AA153: 0 | AD153: 30 | AE153: 0
B154: 2049 | C154: 31 | K154: 0 | O154: 2049 | P154: 100 | R154: 2049 | S154: 61 | T154: 0 | U154: 0 | V154: 0 | W154: 0 | X154: 0 | Y154: 0 | Z154: 0 | AA154: 0 | AD154: 31 | AE154: 0
B155: 2050 | C155: 32 | K155: =SUM(D155:J155) -> 0 | O155: 2050 | P155: 100 | R155: 2050 | S155: 62 | T155: =IF($P155=0,,INT(D155/$P155*100+0.5)) -> 0 | U155: =IF($P155=0,,INT(E155/$P155*100+0.5)) -> 0 | V155: =IF($P155=0,,INT(F155/$P155*100+0.5)) -> 0 | W155: =IF($P155=0,,INT(G155/$P155*100+0.5)) -> 0 | X155: =IF($P155=0,,INT(H155/$P155*100+0.5)) -> 0 | Y155: =IF($P155=0,,INT(I155/$P155*100+0.5)) -> 0 | Z155: =IF($P155=0,,INT(J155/$P155*100+0.5)) -> 0 | AA155: =SUM(T155:Z155) -> 0 | AD155: 32 | AE155: 0
B156: 2051 | C156: =$B156 - 2018 -> 33 | K156: 0 | O156: 2051 | P156: 100 | R156: 2051 | S156: 63 | T156: 0 | U156: 0 | V156: 0 | W156: 0 | X156: 0 | Y156: 0 | Z156: 0 | AA156: 0 | AD156: =C156 -> 33 | AE156: 0
B157: 2052 | C157: 34 | K157: 0 | O157: 2052 | P157: 100 | R157: 2052 | S157: 64 | T157: 0 | U157: 0 | V157: 0 | W157: 0 | X157: 0 | Y157: 0 | Z157: 0 | AA157: 0 | AD157: 34 | AE157: 0
B158: 2053 | C158: 35 | K158: 0 | O158: 2053 | P158: 100 | R158: 2053 | S158: 65 | T158: 0 | U158: 0 | V158: 0 | W158: 0 | X158: 0 | Y158: 0 | Z158: 0 | AA158: 0 | AD158: 35 | AE158: 0
B159: 2054 | C159: 36 | K159: 0 | O159: 2054 | P159: 100 | R159: 2054 | S159: 66 | T159: 0 | U159: 0 | V159: 0 | W159: 0 | X159: 0 | Y159: 0 | Z159: 0 | AA159: 0 | AD159: 36 | AE159: 0
B160: 2055 | C160: 37 | K160: 0 | O160: =B160 -> 2055 | P160: 100 | R160: 2055 | S160: 67 | T160: 0 | U160: 0 | V160: 0 | W160: 0 | X160: 0 | Y160: 0 | Z160: 0 | AA160: 0 | AD160: 37 | AE160: =AA160 -> 0
B161: 2056 | C161: 38 | K161: 0 | O161: 2056 | P161: 100 | R161: 2056 | S161: 68 | T161: 0 | U161: 0 | V161: 0 | W161: 0 | X161: 0 | Y161: 0 | Z161: 0 | AA161: 0 | AD161: 38 | AE161: 0
B162: 2057 | C162: 39 | K162: 0 | O162: 2057 | P162: 100 | R162: 2057 | S162: 69 | T162: 0 | U162: 0 | V162: 0 | W162: 0 | X162: 0 | Y162: 0 | Z162: 0 | AA162: 0 | AD162: 39 | AE162: 0
B163: 2058 | C163: 40 | K163: 0 | O163: 2058 | P163: 100 | R163: 2058 | S163: 70 | T163: 0 | U163: 0 | V163: 0 | W163: 0 | X163: 0 | Y163: 0 | Z163: 0 | AA163: 0 | AD163: 40 | AE163: 0
B164: 2059 | C164: 41 | K164: 0 | O164: 2059 | P164: 100 | R164: 2059 | S164: 71 | T164: 0 | U164: 0 | V164: 0 | W164: 0 | X164: 0 | Y164: 0 | Z164: 0 | AA164: 0 | AD164: 41 | AE164: 0
B165: 2060 | C165: 42 | K165: 0 | O165: 2060 | P165: 100 | R165: 2060 | S165: 72 | T165: 0 | U165: 0 | V165: 0 | W165: 0 | X165: 0 | Y165: 0 | Z165: 0 | AA165: 0 | AD165: 42 | AE165: 0
B166: 2061 | C166: 43 | K166: 0 | O166: 2061 | P166: 100 | R166: 2061 | S166: 73 | T166: 0 | U166: 0 | V166: 0 | W166: 0 | X166: 0 | Y166: 0 | Z166: 0 | AA166: 0 | AD166: 43 | AE166: 0
B167: 2062 | C167: 44 | K167: 0 | O167: 2062 | P167: 100 | R167: 2062 | S167: 74 | T167: 0 | U167: 0 | V167: 0 | W167: 0 | X167: 0 | Y167: 0 | Z167: 0 | AA167: 0 | AD167: 44 | AE167: 0
B168: 2063 | C168: 45 | K168: 0 | O168: 2063 | P168: 100 | R168: 2063 | S168: 75 | T168: 0 | U168: 0 | V168: 0 | W168: 0 | X168: 0 | Y168: 0 | Z168: 0 | AA168: 0 | AD168: 45 | AE168: 0
B169: 2064 | C169: 46 | K169: 0 | O169: 2064 | P169: 100 | R169: 2064 | S169: 76 | T169: 0 | U169: 0 | V169: 0 | W169: 0 | X169: 0 | Y169: 0 | Z169: 0 | AA169: 0 | AD169: 46 | AE169: 0
B170: 2065 | C170: 47 | K170: 0 | O170: 2065 | P170: 100 | R170: 2065 | S170: 77 | T170: 0 | U170: 0 | V170: 0 | W170: 0 | X170: 0 | Y170: 0 | Z170: 0 | AA170: 0 | AD170: 47 | AE170: 0
B171: 2066 | C171: 48 | K171: 0 | O171: 2066 | P171: 100 | R171: 2066 | S171: 78 | T171: 0 | U171: 0 | V171: 0 | W171: 0 | X171: 0 | Y171: 0 | Z171: 0 | AA171: 0 | AD171: 48 | AE171: 0
B172: 2067 | C172: 49 | K172: 0 | O172: 2067 | P172: 100 | R172: 2067 | S172: 79 | T172: 0 | U172: 0 | V172: 0 | W172: 0 | X172: 0 | Y172: 0 | Z172: 0 | AA172: 0 | AD172: 49 | AE172: 0
B173: 2068 | C173: 50 | K173: 0 | O173: 2068 | P173: 100 | R173: 2068 | S173: 80 | T173: 0 | U173: 0 | V173: 0 | W173: 0 | X173: 0 | Y173: 0 | Z173: 0 | AA173: 0 | AD173: 50 | AE173: 0
B174: 2069 | C174: 51 | K174: 0 | O174: 2069 | P174: 100 | R174: 2069 | S174: 81 | T174: 0 | U174: 0 | V174: 0 | W174: 0 | X174: 0 | Y174: 0 | Z174: 0 | AA174: 0 | AD174: 51 | AE174: 0
B175: 2070 | C175: 52 | K175: 0 | O175: 2070 | P175: 100 | R175: 2070 | S175: 82 | T175: 0 | U175: 0 | V175: 0 | W175: 0 | X175: 0 | Y175: 0 | Z175: 0 | AA175: 0 | AD175: 52 | AE175: 0
B176: 2071 | C176: 53 | K176: 0 | O176: 2071 | P176: 100 | R176: 2071 | S176: 83 | T176: 0 | U176: 0 | V176: 0 | W176: 0 | X176: 0 | Y176: 0 | Z176: 0 | AA176: 0 | AD176: 53 | AE176: 0
B177: 2072 | C177: 54 | K177: 0 | O177: 2072 | P177: 100 | R177: 2072 | S177: 84 | T177: 0 | U177: 0 | V177: 0 | W177: 0 | X177: 0 | Y177: 0 | Z177: 0 | AA177: 0 | AD177: 54 | AE177: 0
B178: 2073 | C178: 55 | K178: 0 | O178: 2073 | P178: 100 | R178: 2073 | S178: 85 | T178: 0 | U178: 0 | V178: 0 | W178: 0 | X178: 0 | Y178: 0 | Z178: 0 | AA178: 0 | AD178: 55 | AE178: 0
B179: 2074 | C179: 56 | K179: 0 | O179: 2074 | P179: 100 | R179: 2074 | S179: 86 | T179: 0 | U179: 0 | V179: 0 | W179: 0 | X179: 0 | Y179: 0 | Z179: 0 | AA179: 0 | AD179: 56 | AE179: 0
B180: 2075 | C180: 57 | K180: 0 | O180: 2075 | P180: 100 | R180: 2075 | S180: 87 | T180: 0 | U180: 0 | V180: 0 | W180: 0 | X180: 0 | Y180: 0 | Z180: 0 | AA180: 0 | AD180: 57 | AE180: 0
B181: 2076 | C181: 58 | K181: 0 | O181: 2076 | P181: 100 | R181: 2076 | S181: 88 | T181: 0 | U181: 0 | V181: 0 | W181: 0 | X181: 0 | Y181: 0 | Z181: 0 | AA181: 0 | AD181: 58 | AE181: 0
B182: 2077 | C182: 59 | K182: 0 | O182: 2077 | P182: 100 | R182: 2077 | S182: 89 | T182: 0 | U182: 0 | V182: 0 | W182: 0 | X182: 0 | Y182: 0 | Z182: 0 | AA182: 0 | AD182: 59 | AE182: 0
B183: 2078 | C183: 60 | K183: 0 | O183: 2078 | P183: 100 | R183: 2078 | S183: 90 | T183: 0 | U183: 0 | V183: 0 | W183: 0 | X183: 0 | Y183: 0 | Z183: 0 | AA183: 0 | AD183: 60 | AE183: 0
B184: 2079 | C184: 61 | K184: 0 | O184: 2079 | P184: 100 | R184: 2079 | S184: 91 | T184: 0 | U184: 0 | V184: 0 | W184: 0 | X184: 0 | Y184: 0 | Z184: 0 | AA184: 0 | AD184: 61 | AE184: 0
B185: 2080 | C185: 62 | K185: 0 | O185: 2080 | P185: 100 | R185: 2080 | S185: 92 | T185: 0 | U185: 0 | V185: 0 | W185: 0 | X185: 0 | Y185: 0 | Z185: 0 | AA185: 0 | AD185: 62 | AE185: 0
B186: 2081 | C186: 63 | K186: 0 | O186: 2081 | P186: =IF(AJ135<>0,AJ135,100) -> 100 | R186: 2081 | S186: 93 | T186: 0 | U186: 0 | V186: 0 | W186: 0 | X186: 0 | Y186: 0 | Z186: 0 | AA186: 0 | AD186: 63 | AE186: 0
B187: 2082 | C187: 64 | K187: 0 | O187: 2082 | P187: 100 | R187: 2082 | S187: 94 | T187: 0 | U187: 0 | V187: 0 | W187: 0 | X187: 0 | Y187: 0 | Z187: 0 | AA187: 0 | AD187: 64 | AE187: 0
B188: 2083 | C188: =$B188 - 2018 -> 65 | K188: 0 | O188: 2083 | P188: 100 | R188: 2083 | S188: 95 | T188: 0 | U188: 0 | V188: 0 | W188: 0 | X188: 0 | Y188: 0 | Z188: 0 | AA188: 0 | AD188: =C188 -> 65 | AE188: 0
B189: 2084 | C189: 66 | K189: 0 | O189: 2084 | P189: 100 | R189: 2084 | S189: 96 | T189: 0 | U189: 0 | V189: 0 | W189: 0 | X189: 0 | Y189: 0 | Z189: 0 | AA189: 0 | AD189: 66 | AE189: 0
B190: 2085 | C190: 67 | K190: 0 | O190: 2085 | P190: 100 | R190: 2085 | S190: 97 | T190: 0 | U190: 0 | V190: 0 | W190: 0 | X190: 0 | Y190: 0 | Z190: 0 | AA190: 0 | AD190: 67 | AE190: 0
B191: 2086 | C191: 68 | K191: 0 | O191: 2086 | P191: 100 | R191: 2086 | S191: 98 | T191: 0 | U191: 0 | V191: 0 | W191: 0 | X191: 0 | Y191: 0 | Z191: 0 | AA191: 0 | AD191: 68 | AE191: 0
B192: 2087 | C192: 69 | K192: 0 | O192: 2087 | P192: 100 | R192: 2087 | S192: 99 | T192: 0 | U192: 0 | V192: 0 | W192: 0 | X192: 0 | Y192: 0 | Z192: 0 | AA192: 0 | AD192: 69 | AE192: 0
B193: 2088 | C193: 70 | K193: 0 | O193: 2088 | P193: 100 | R193: 2088 | S193: 100 | T193: 0 | U193: 0 | V193: 0 | W193: 0 | X193: 0 | Y193: 0 | Z193: 0 | AA193: 0 | AD193: 70 | AE193: 0
B194: 2089 | C194: 71 | K194: 0 | O194: 2089 | P194: 100 | R194: 2089 | S194: 101 | T194: 0 | U194: 0 | V194: 0 | W194: 0 | X194: 0 | Y194: 0 | Z194: 0 | AA194: 0 | AD194: 71 | AE194: 0
B195: 2090 | C195: 72 | K195: 0 | O195: 2090 | P195: 100 | R195: 2090 | S195: 102 | T195: 0 | U195: 0 | V195: 0 | W195: 0 | X195: 0 | Y195: 0 | Z195: 0 | AA195: 0 | AD195: 72 | AE195: 0
B196: 2091 | C196: 73 | K196: 0 | O196: 2091 | P196: 100 | R196: 2091 | S196: 103 | T196: 0 | U196: 0 | V196: 0 | W196: 0 | X196: 0 | Y196: 0 | Z196: 0 | AA196: 0 | AD196: 73 | AE196: 0
B197: 2092 | C197: 74 | K197: 0 | O197: 2092 | P197: 100 | R197: 2092 | S197: 104 | T197: 0 | U197: 0 | V197: 0 | W197: 0 | X197: 0 | Y197: 0 | Z197: 0 | AA197: 0 | AD197: 74 | AE197: 0
B198: 2093 | C198: 75 | K198: 0 | O198: 2093 | P198: 100 | R198: 2093 | S198: 105 | T198: 0 | U198: 0 | V198: 0 | W198: 0 | X198: 0 | Y198: 0 | Z198: 0 | AA198: 0 | AD198: 75 | AE198: 0
B199: 2094 | C199: 76 | K199: 0 | O199: 2094 | P199: 100 | R199: 2094 | S199: 106 | T199: 0 | U199: 0 | V199: 0 | W199: 0 | X199: 0 | Y199: 0 | Z199: 0 | AA199: 0 | AD199: 76 | AE199: 0
B200: 2095 | C200: 77 | K200: 0 | O200: 2095 | P200: 100 | R200: 2095 | S200: 107 | T200: 0 | U200: 0 | V200: 0 | W200: 0 | X200: 0 | Y200: 0 | Z200: 0 | AA200: 0 | AD200: 77 | AE200: 0
... 21 more rows

Sheet 様式2-1
B1: 様式2-1
B2: ●構造物及び設備の取得年度、現在価格等
F3: ↓帳簿価格を直接入力したい場合はこちらです。 | Q3: デフレーター計算 | AC3: ①プルダウンメニュー
B4: ②系統 | C4: ③区分 | D4: ④工種 | E4: ⑤施設名 | F4: ⑥帳簿価格 （千円） | G4: ⑦取得年度 | H4: ⑧現在価格 （千円, 税込） | I4: ⑨法定 耐用年数 | J4: ⑩再投資価格 （千円,税込） | K4: ダウンサイジング対象 | L4: DS価格 （千円,税込） | M4: ⑪更新基準 （現有施設） | N4: ⑫更新基準 （更新後） | O4: 改定期首償却未済額 | P4: 改定期末償却未済額 | Q4: 計算 区分 | R4: デフレーター | AC4: 区分 | AD4: 工種 | AE4: 施設名
C5: その他１ | D5: 建築 | F5: 708.047 | G5: 1960 | H5: =IF($F5="","",IF($Q5="",ROUND($F5/$R5*100*IF(初期設定!$J$22="税抜",1+初期設定!$J$21/100,1),$F5))) -> 5021.543855 | I5: =IF($D5="","",IF($E5="配水池《SUS》",初期設定!$M$29,VLOOKUP($D5,初期設定!$K$27:$N$33,3,FALSE))) -> 50 | J5: =IF($F5="","",IF($Q5="",ROUND($F5/$R5*100*IF(初期設定!$J$22="税抜",1+初期設定!$J$21/100,1),$F5))) -> 5021.543855 | K5: 1 | L5: =IF(K5=1,ROUNDUP(J5*構造物・設備ダウンサイズ設定!$C$7/100,),J5) -> 4470 | M5: =IF($D5="","",IF($E5="配水池《SUS》",初期設定!$N$29,VLOOKUP($D5,初期設定!$K$27:$N$33,4,FALSE))) -> 70 | N5: =IF($D5="","",IF($E5="配水池《SUS》",初期設定!$N$29,VLOOKUP($D5,初期設定!$K$27:$N$33,4,FALSE))) -> 70 | O5: =IF(F5="","",IFERROR($F5*IF($Y$46="税抜",1,(1+$Y$45/100))*MAX(1-(Y$43-$G5)/$I5,$Y$42),0)) -> 35.40235 | P5: =IF(F5="","",IFERROR($F5*IF($Y$46="税抜",1,(1+$Y$45/100))*MAX(1-($Y$44-$G5)/$I5,$Y$42),0)) -> 35.40235 | R5: =IF(G5="","",VLOOKUP(G5,様式1!$O$5:$P$220,2)) -> 15.51020408 | X5: 基準年度 | Y5: =初期設定!C3 -> 2024 | AC5: 取水 | AD5: 建築 | AE5: 浅井戸
C6: その他１ | D6: 建築 | F6: 672.681 | G6: 1960 | H6: =IF($F6="","",IF($Q6="",ROUND($F6/$R6*100*IF(初期設定!$J$22="税抜",1+初期設定!$J$21/100,1),$F6))) -> 4770.724461 | I6: =IF($D6="","",IF($E6="配水池《SUS》",初期設定!$M$29,VLOOKUP($D6,初期設定!$K$27:$N$33,3,FALSE))) -> 50 | J6: =IF($F6="","",IF($Q6="",ROUND($F6/$R6*100*IF(初期設定!$J$22="税抜",1+初期設定!$J$21/100,1),$F6))) -> 4770.724461 | L6: =IF(K6=1,ROUNDUP(J6*構造物・設備ダウンサイズ設定!$C$7/100,),J6) -> 4770.724461 | M6: =IF($D6="","",IF($E6="配水池《SUS》",初期設定!$N$29,VLOOKUP($D6,初期設定!$K$27:$N$33,4,FALSE))) -> 70 | N6: =IF($D6="","",IF($E6="配水池《SUS》",初期設定!$N$29,VLOOKUP($D6,初期設定!$K$27:$N$33,4,FALSE))) -> 70 | O6: =IF(F6="","",IFERROR($F6*IF($Y$46="税抜",1,(1+$Y$45/100))*MAX(1-(Y$43-$G6)/$I6,$Y$42),0)) -> 33.63405 | P6: =IF(F6="","",IFERROR($F6*IF($Y$46="税抜",1,(1+$Y$45/100))*MAX(1-($Y$44-$G6)/$I6,$Y$42),0)) -> 33.63405 | R6: =IF(G6="","",VLOOKUP(G6,様式1!$O$5:$P$220,2)) -> 15.51020408 | Y6: =Y5-2018 -> 6 | AC6: 導水 | AD6: 土木 | AE6: 深井戸
C7: その他１ | D7: 建築 | F7: 1056.305 | G7: 1965 | H7: =IF($F7="","",IF($Q7="",ROUND($F7/$R7*100*IF(初期設定!$J$22="税抜",1+初期設定!$J$21/100,1),$F7))) -> 6005.784757 | I7: =IF($D7="","",IF($E7="配水池《SUS》",初期設定!$M$29,VLOOKUP($D7,初期設定!$K$27:$N$33,3,FALSE))) -> 50 | J7: =IF($F7="","",IF($Q7="",ROUND($F7/$R7*100*IF(初期設定!$J$22="税抜",1+初期設定!$J$21/100,1),$F7))) -> 6005.784757 | K7: 1 | L7: =IF(K7=1,ROUNDUP(J7*構造物・設備ダウンサイズ設定!$C$7/100,),J7) -> 5346 | M7: =IF($D7="","",IF($E7="配水池《SUS》",初期設定!$N$29,VLOOKUP($D7,初期設定!$K$27:$N$33,4,FALSE))) -> 70 | N7: =IF($D7="","",IF($E7="配水池《SUS》",初期設定!$N$29,VLOOKUP($D7,初期設定!$K$27:$N$33,4,FALSE))) -> 70 | O7: 52.81525 | P7: 52.81525 | R7: =IF(G7="","",VLOOKUP(G7,様式1!$O$5:$P$220,2)) -> 19.34693878 | AC7: 浄水 | AD7: 電気 | AE7: 取水口
C8: その他１ | D8: 建築 | F8: 208.744 | G8: 1970 | H8: =IF($F8="","",IF($Q8="",ROUND($F8/$R8*100*IF(初期設定!$J$22="税抜",1+初期設定!$J$21/100,1),$F8))) -> 887.3266246 | I8: =IF($D8="","",IF($E8="配水池《SUS》",初期設定!$M$29,VLOOKUP($D8,初期設定!$K$27:$N$33,3,FALSE))) -> 50 | J8: =IF($F8="","",IF($Q8="",ROUND($F8/$R8*100*IF(初期設定!$J$22="税抜",1+初期設定!$J$21/100,1),$F8))) -> 887.3266246 | L8: =IF(K8=1,ROUNDUP(J8*構造物・設備ダウンサイズ設定!$C$7/100,),J8) -> 887.3266246 | M8: =IF($D8="","",IF($E8="配水池《SUS》",初期設定!$N$29,VLOOKUP($D8,初期設定!$K$27:$N$33,4,FALSE))) -> 70 | N8: =IF($D8="","",IF($E8="配水池《SUS》",初期設定!$N$29,VLOOKUP($D8,初期設定!$K$27:$N$33,4,FALSE))) -> 70 | O8: 10.4372 | P8: 10.4372 | R8: =IF(G8="","",VLOOKUP(G8,様式1!$O$5:$P$220,2)) -> 25.87755102 | X8: 健全度の判断基準 | AC8: 送水 | AD8: 機械 | AE8: 沈砂池
C9: その他１ | D9: 建築 | F9: 18000.792 | G9: 1971 | H9: =IF($F9="","",IF($Q9="",ROUND($F9/$R9*100*IF(初期設定!$J$22="税抜",1+初期設定!$J$21/100,1),$F9))) -> 74864.405 | I9: =IF($D9="","",IF($E9="配水池《SUS》",初期設定!$M$29,VLOOKUP($D9,初期設定!$K$27:$N$33,3,FALSE))) -> 50 | J9: =IF($F9="","",IF($Q9="",ROUND($F9/$R9*100*IF(初期設定!$J$22="税抜",1+初期設定!$J$21/100,1),$F9))) -> 74864.405 | L9: =IF(K9=1,ROUNDUP(J9*構造物・設備ダウンサイズ設定!$C$7/100,),J9) -> 74864.405 | M9: =IF($D9="","",IF($E9="配水池《SUS》",初期設定!$N$29,VLOOKUP($D9,初期設定!$K$27:$N$33,4,FALSE))) -> 70 | N9: =IF($D9="","",IF($E9="配水池《SUS》",初期設定!$N$29,VLOOKUP($D9,初期設定!$K$27:$N$33,4,FALSE))) -> 70 | O9: 900.0396 | P9: 900.0396 | R9: =IF(G9="","",VLOOKUP(G9,様式1!$O$5:$P$220,2)) -> 26.44897959 | Y9: 超 | Z9: 以下 | AC9: 配水 | AD9: 計装 | AE9: 着水井
C10: その他１ | D10: 建築 | F10: 692.472 | G10: 1968 | H10: =IF($F10="","",IF($Q10="",ROUND($F10/$R10*100*IF(初期設定!$J$22="税抜",1+初期設定!$J$21/100,1),$F10))) -> 3393.1128 | I10: =IF($D10="","",IF($E10="配水池《SUS》",初期設定!$M$29,VLOOKUP($D10,初期設定!$K$27:$N$33,3,FALSE))) -> 50 | J10: =IF($F10="","",IF($Q10="",ROUND($F10/$R10*100*IF(初期設定!$J$22="税抜",1+初期設定!$J$21/100,1),$F10))) -> 3393.1128 | L10: =IF(K10=1,ROUNDUP(J10*構造物・設備ダウンサイズ設定!$C$7/100,),J10) -> 3393.1128 | M10: =IF($D10="","",IF($E10="配水池《SUS》",初期設定!$N$29,VLOOKUP($D10,初期設定!$K$27:$N$33,4,FALSE))) -> 70 | N10: =IF($D10="","",IF($E10="配水池《SUS》",初期設定!$N$29,VLOOKUP($D10,初期設定!$K$27:$N$33,4,FALSE))) -> 70 | O10: 34.6236 | P10: 34.6236 | R10: =IF(G10="","",VLOOKUP(G10,様式1!$O$5:$P$220,2)) -> 22.44897959 | X10: 健全資産 | Y10: =初期設定!F15 -> 0 | Z10: =初期設定!G15 -> 1 | AC10: その他１ | AD10: その他１ | AE10: 急速攪拌池
C11: その他１ | D11: 建築 | F11: 2506.547 | G11: 1970 | H11: =IF($F11="","",IF($Q11="",ROUND($F11/$R11*100*IF(初期設定!$J$22="税抜",1+初期設定!$J$21/100,1),$F11))) -> 10654.80152 | I11: =IF($D11="","",IF($E11="配水池《SUS》",初期設定!$M$29,VLOOKUP($D11,初期設定!$K$27:$N$33,3,FALSE))) -> 50 | J11: =IF($F11="","",IF($Q11="",ROUND($F11/$R11*100*IF(初期設定!$J$22="税抜",1+初期設定!$J$21/100,1),$F11))) -> 10654.80152 | K11: 1 | L11: =IF(K11=1,ROUNDUP(J11*構造物・設備ダウンサイズ設定!$C$7/100,),J11) -> 9483 | M11: =IF($D11="","",IF($E11="配水池《SUS》",初期設定!$N$29,VLOOKUP($D11,初期設定!$K$27:$N$33,4,FALSE))) -> 70 | N11: =IF($D11="","",IF($E11="配水池《SUS》",初期設定!$N$29,VLOOKUP($D11,初期設定!$K$27:$N$33,4,FALSE))) -> 70 | O11: 125.32735 | P11: 125.32735 | R11: =IF(G11="","",VLOOKUP(G11,様式1!$O$5:$P$220,2)) -> 25.87755102 | X11: 経年化資産 | Y11: =初期設定!F16 -> 1 | Z11: =初期設定!G16 -> 1.5 | AC11: その他２ | AD11: その他２ | AE11: フロック形成池
C12: その他１ | D12: 建築 | F12: 27876.067 | G12: 1974 | H12: =IF($F12="","",IF($Q12="",ROUND($F12/$R12*100*IF(初期設定!$J$22="税抜",1+初期設定!$J$21/100,1),$F12))) -> 70740.11353 | I12: =IF($D12="","",IF($E12="配水池《SUS》",初期設定!$M$29,VLOOKUP($D12,初期設定!$K$27:$N$33,3,FALSE))) -> 50 | J12: =IF($F12="","",IF($Q12="",ROUND($F12/$R12*100*IF(初期設定!$J$22="税抜",1+初期設定!$J$21/100,1),$F12))) -> 70740.11353 | L12: =IF(K12=1,ROUNDUP(J12*構造物・設備ダウンサイズ設定!$C$7/100,),J12) -> 70740.11353 | M12: =IF($D12="","",IF($E12="配水池《SUS》",初期設定!$N$29,VLOOKUP($D12,初期設定!$K$27:$N$33,4,FALSE))) -> 70 | N12: =IF($D12="","",IF($E12="配水池《SUS》",初期設定!$N$29,VLOOKUP($D12,初期設定!$K$27:$N$33,4,FALSE))) -> 70 | O12: 1393.80335 | P12: 1393.80335 | R12: =IF(G12="","",VLOOKUP(G12,様式1!$O$5:$P$220,2)) -> 43.34693878 | X12: 老朽化資産 | Y12: =初期設定!F17 -> 1.5 | Z12: =初期設定!G17 -> 3 | AC12: その他３ | AD12: その他３ | AE12: 沈澱池（横流式「傾斜板式」）
C13: その他１ | D13: 建築 | F13: 3242.335 | G13: 1974 | H13: =IF($F13="","",IF($Q13="",ROUND($F13/$R13*100*IF(初期設定!$J$22="税抜",1+初期設定!$J$21/100,1),$F13))) -> 8227.959346 | I13: =IF($D13="","",IF($E13="配水池《SUS》",初期設定!$M$29,VLOOKUP($D13,初期設定!$K$27:$N$33,3,FALSE))) -> 50 | J13: =IF($F13="","",IF($Q13="",ROUND($F13/$R13*100*IF(初期設定!$J$22="税抜",1+初期設定!$J$21/100,1),$F13))) -> 8227.959346 | L13: =IF(K13=1,ROUNDUP(J13*構造物・設備ダウンサイズ設定!$C$7/100,),J13) -> 8227.959346 | M13: =IF($D13="","",IF($E13="配水池《SUS》",初期設定!$N$29,VLOOKUP($D13,初期設定!$K$27:$N$33,4,FALSE))) -> 70 | N13: =IF($D13="","",IF($E13="配水池《SUS》",初期設定!$N$29,VLOOKUP($D13,初期設定!$K$27:$N$33,4,FALSE))) -> 70 | O13: 162.11675 | P13: 162.11675 | R13: =IF(G13="","",VLOOKUP(G13,様式1!$O$5:$P$220,2)) -> 43.34693878 | AE13: 急速ろ過池
C14: その他１ | D14: 建築 | F14: 2470 | G14: 1977 | H14: =IF($F14="","",IF($Q14="",ROUND($F14/$R14*100*IF(初期設定!$J$22="税抜",1+初期設定!$J$21/100,1),$F14))) -> 5501.363636 | I14: =IF($D14="","",IF($E14="配水池《SUS》",初期設定!$M$29,VLOOKUP($D14,初期設定!$K$27:$N$33,3,FALSE))) -> 50 | J14: =IF($F14="","",IF($Q14="",ROUND($F14/$R14*100*IF(初期設定!$J$22="税抜",1+初期設定!$J$21/100,1),$F14))) -> 5501.363636 | L14: =IF(K14=1,ROUNDUP(J14*構造物・設備ダウンサイズ設定!$C$7/100,),J14) -> 5501.363636 | M14: =IF($D14="","",IF($E14="配水池《SUS》",初期設定!$N$29,VLOOKUP($D14,初期設定!$K$27:$N$33,4,FALSE))) -> 70 | N14: =IF($D14="","",IF($E14="配水池《SUS》",初期設定!$N$29,VLOOKUP($D14,初期設定!$K$27:$N$33,4,FALSE))) -> 70 | O14: 123.5 | P14: 123.5 | R14: =IF(G14="","",VLOOKUP(G14,様式1!$O$5:$P$220,2)) -> 49.3877551 | X14: 【集計表】 | Y14: ⑥現在価格 | Z14: ⑧改築費 | AA14: ⑩再改築費 | AE14: 緩速ろ過池
C15: その他１ | D15: 建築 | F15: 800 | G15: 1977 | H15: =IF($F15="","",IF($Q15="",ROUND($F15/$R15*100*IF(初期設定!$J$22="税抜",1+初期設定!$J$21/100,1),$F15))) -> 1781.818182 | I15: =IF($D15="","",IF($E15="配水池《SUS》",初期設定!$M$29,VLOOKUP($D15,初期設定!$K$27:$N$33,3,FALSE))) -> 50 | J15: =IF($F15="","",IF($Q15="",ROUND($F15/$R15*100*IF(初期設定!$J$22="税抜",1+初期設定!$J$21/100,1),$F15))) -> 1781.818182 | L15: =IF(K15=1,ROUNDUP(J15*構造物・設備ダウンサイズ設定!$C$7/100,),J15) -> 1781.818182 | M15: =IF($D15="","",IF($E15="配水池《SUS》",初期設定!$N$29,VLOOKUP($D15,初期設定!$K$27:$N$33,4,FALSE))) -> 70 | N15: =IF($D15="","",IF($E15="配水池《SUS》",初期設定!$N$29,VLOOKUP($D15,初期設定!$K$27:$N$33,4,FALSE))) -> 70 | O15: 40 | P15: 40 | R15: =IF(G15="","",VLOOKUP(G15,様式1!$O$5:$P$220,2)) -> 49.3877551 | Y15: （千円） | Z15: （千円） | AA15: （千円） | AE15: 急速攪拌池
C16: その他１ | D16: 建築 | F16: 13589.583 | G16: 1975 | H16: =IF($F16="","",IF($Q16="",ROUND($F16/$R16*100*IF(初期設定!$J$22="税抜",1+初期設定!$J$21/100,1),$F16))) -> 34100.48993 | I16: =IF($D16="","",IF($E16="配水池《SUS》",初期設定!$M$29,VLOOKUP($D16,初期設定!$K$27:$N$33,3,FALSE))) -> 50 | J16: =IF($F16="","",IF($Q16="",ROUND($F16/$R16*100*IF(初期設定!$J$22="税抜",1+初期設定!$J$21/100,1),$F16))) -> 34100.48993 | K16: 1 | L16: =IF(K16=1,ROUNDUP(J16*構造物・設備ダウンサイズ設定!$C$7/100,),J16) -> 30350 | M16: =IF($D16="","",IF($E16="配水池《SUS》",初期設定!$N$29,VLOOKUP($D16,初期設定!$K$27:$N$33,4,FALSE))) -> 70 | N16: =IF($D16="","",IF($E16="配水池《SUS》",初期設定!$N$29,VLOOKUP($D16,初期設定!$K$27:$N$33,4,FALSE))) -> 70 | O16: 679.47915 | P16: 679.47915 | R16: =IF(G16="","",VLOOKUP(G16,様式1!$O$5:$P$220,2)) -> 43.83673469 | X16: =$AD5 -> 建築 | Y16: =SUMIF($D:$D,$X16,$F:$F) -> 1359231.17 | Z16: =SUMIF($D:$D,$X16,$H:$H) -> 2332255.21 | AA16: =SUMIF($D:$D,$X16,$J:$J) -> 2332255.21 | AE16: 塩素混和池
C17: その他１ | D17: 建築 | F17: 1504.856 | G17: 1978 | H17: =IF($F17="","",IF($Q17="",ROUND($F17/$R17*100*IF(初期設定!$J$22="税抜",1+初期設定!$J$21/100,1),$F17))) -> 3138.999164 | I17: =IF($D17="","",IF($E17="配水池《SUS》",初期設定!$M$29,VLOOKUP($D17,初期設定!$K$27:$N$33,3,FALSE))) -> 50 | J17: =IF($F17="","",IF($Q17="",ROUND($F17/$R17*100*IF(初期設定!$J$22="税抜",1+初期設定!$J$21/100,1),$F17))) -> 3138.999164 | L17: =IF(K17=1,ROUNDUP(J17*構造物・設備ダウンサイズ設定!$C$7/100,),J17) -> 3138.999164 | M17: =IF($D17="","",IF($E17="配水池《SUS》",初期設定!$N$29,VLOOKUP($D17,初期設定!$K$27:$N$33,4,FALSE))) -> 70 | N17: =IF($D17="","",IF($E17="配水池《SUS》",初期設定!$N$29,VLOOKUP($D17,初期設定!$K$27:$N$33,4,FALSE))) -> 70 | O17: 75.2428 | P17: 75.2428 | R17: =IF(G17="","",VLOOKUP(G17,様式1!$O$5:$P$220,2)) -> 52.73469388 | X17: 土木 | Y17: 2354373.073 | Z17: 4007488.731 | AA17: 4007488.731 | AE17: 浄水池・ポンプ井《直接基礎》
C18: その他１ | D18: 建築 | F18: 1218.068 | G18: 1979 | H18: =IF($F18="","",IF($Q18="",ROUND($F18/$R18*100*IF(初期設定!$J$22="税抜",1+初期設定!$J$21/100,1),$F18))) -> 2338.100613 | I18: =IF($D18="","",IF($E18="配水池《SUS》",初期設定!$M$29,VLOOKUP($D18,初期設定!$K$27:$N$33,3,FALSE))) -> 50 | J18: =IF($F18="","",IF($Q18="",ROUND($F18/$R18*100*IF(初期設定!$J$22="税抜",1+初期設定!$J$21/100,1),$F18))) -> 2338.100613 | L18: =IF(K18=1,ROUNDUP(J18*構造物・設備ダウンサイズ設定!$C$7/100,),J18) -> 2338.100613 | M18: =IF($D18="","",IF($E18="配水池《SUS》",初期設定!$N$29,VLOOKUP($D18,初期設定!$K$27:$N$33,4,FALSE))) -> 70 | N18: =IF($D18="","",IF($E18="配水池《SUS》",初期設定!$N$29,VLOOKUP($D18,初期設定!$K$27:$N$33,4,FALSE))) -> 70 | O18: 73.08408 | P18: 60.9034 | R18: =IF(G18="","",VLOOKUP(G18,様式1!$O$5:$P$220,2)) -> 57.30612245 | X18: 電気 | Y18: 2944977.404 | Z18: 4351007.126 | AA18: 4351007.126 | AE18: 送水ポンプ施設《場内》
C19: その他１ | D19: 建築 | F19: 5314.142 | G19: 1981 | H19: =IF($F19="","",IF($Q19="",ROUND($F19/$R19*100*IF(初期設定!$J$22="税抜",1+初期設定!$J$21/100,1),$F19))) -> 9251.687784 | I19: =IF($D19="","",IF($E19="配水池《SUS》",初期設定!$M$29,VLOOKUP($D19,初期設定!$K$27:$N$33,3,FALSE))) -> 50 | J19: =IF($F19="","",IF($Q19="",ROUND($F19/$R19*100*IF(初期設定!$J$22="税抜",1+初期設定!$J$21/100,1),$F19))) -> 9251.687784 | L19: =IF(K19=1,ROUNDUP(J19*構造物・設備ダウンサイズ設定!$C$7/100,),J19) -> 9251.687784 | M19: =IF($D19="","",IF($E19="配水池《SUS》",初期設定!$N$29,VLOOKUP($D19,初期設定!$K$27:$N$33,4,FALSE))) -> 70 | N19: =IF($D19="","",IF($E19="配水池《SUS》",初期設定!$N$29,VLOOKUP($D19,初期設定!$K$27:$N$33,4,FALSE))) -> 70 | O19: 531.4142 | P19: 265.7071 | R19: =IF(G19="","",VLOOKUP(G19,様式1!$O$5:$P$220,2)) -> 63.18367347 | X19: 機械 | Y19: 1833648.171 | Z19: 3074011.706 | AA19: 3074011.706 | AE19: 配水ポンプ施設《場内》
C20: その他１ | D20: 建築 | F20: 119693.358 | G20: 1981 | H20: =IF($F20="","",IF($Q20="",ROUND($F20/$R20*100*IF(初期設定!$J$22="税抜",1+初期設定!$J$21/100,1),$F20))) -> 208380.8784 | I20: =IF($D20="","",IF($E20="配水池《SUS》",初期設定!$M$29,VLOOKUP($D20,初期設定!$K$27:$N$33,3,FALSE))) -> 50 | J20: =IF($F20="","",IF($Q20="",ROUND($F20/$R20*100*IF(初期設定!$J$22="税抜",1+初期設定!$J$21/100,1),$F20))) -> 208380.8784 | K20: 1 | L20: =IF(K20=1,ROUNDUP(J20*構造物・設備ダウンサイズ設定!$C$7/100,),J20) -> 185459 | M20: =IF($D20="","",IF($E20="配水池《SUS》",初期設定!$N$29,VLOOKUP($D20,初期設定!$K$27:$N$33,4,FALSE))) -> 70 | N20: =IF($D20="","",IF($E20="配水池《SUS》",初期設定!$N$29,VLOOKUP($D20,初期設定!$K$27:$N$33,4,FALSE))) -> 70 | O20: 11969.3358 | P20: 5984.6679 | R20: =IF(G20="","",VLOOKUP(G20,様式1!$O$5:$P$220,2)) -> 63.18367347 | X20: 計装 | Y20: 1157701.514 | Z20: 1796730.548 | AA20: 1796730.548 | AE20: 送水ポンプ施設《場外》
C21: その他１ | D21: 建築 | F21: 760 | G21: 1985 | H21: =IF($F21="","",IF($Q21="",ROUND($F21/$R21*100*IF(初期設定!$J$22="税抜",1+初期設定!$J$21/100,1),$F21))) -> 1318.018018 | I21: =IF($D21="","",IF($E21="配水池《SUS》",初期設定!$M$29,VLOOKUP($D21,初期設定!$K$27:$N$33,3,FALSE))) -> 50 | J21: =IF($F21="","",IF($Q21="",ROUND($F21/$R21*100*IF(初期設定!$J$22="税抜",1+初期設定!$J$21/100,1),$F21))) -> 1318.018018 | K21: 1 | L21: =IF(K21=1,ROUNDUP(J21*構造物・設備ダウンサイズ設定!$C$7/100,),J21) -> 1174 | M21: =IF($D21="","",IF($E21="配水池《SUS》",初期設定!$N$29,VLOOKUP($D21,初期設定!$K$27:$N$33,4,FALSE))) -> 70 | N21: =IF($D21="","",IF($E21="配水池《SUS》",初期設定!$N$29,VLOOKUP($D21,初期設定!$K$27:$N$33,4,FALSE))) -> 70 | O21: 136.8 | P21: 76 | R21: =IF(G21="","",VLOOKUP(G21,様式1!$O$5:$P$220,2)) -> 63.42857143 | X21: その他１ | Y21: 294218.255 | Z21: 487342.6965 | AA21: 487342.6965 | AE21: 配水ポンプ施設《場外》
C22: その他１ | D22: 建築 | F22: 8782.7 | G22: 1989 | H22: =IF($F22="","",IF($Q22="",ROUND($F22/$R22*100*IF(初期設定!$J$22="税抜",1+初期設定!$J$21/100,1),$F22))) -> 14362.48574 | I22: =IF($D22="","",IF($E22="配水池《SUS》",初期設定!$M$29,VLOOKUP($D22,初期設定!$K$27:$N$33,3,FALSE))) -> 50 | J22: =IF($F22="","",IF($Q22="",ROUND($F22/$R22*100*IF(初期設定!$J$22="税抜",1+初期設定!$J$21/100,1),$F22))) -> 14362.48574 | L22: =IF(K22=1,ROUNDUP(J22*構造物・設備ダウンサイズ設定!$C$7/100,),J22) -> 14362.48574 | M22: =IF($D22="","",IF($E22="配水池《SUS》",初期設定!$N$29,VLOOKUP($D22,初期設定!$K$27:$N$33,4,FALSE))) -> 70 | N22: =IF($D22="","",IF($E22="配水池《SUS》",初期設定!$N$29,VLOOKUP($D22,初期設定!$K$27:$N$33,4,FALSE))) -> 70 | O22: 2283.502 | P22: 1580.886 | R22: =IF(G22="","",VLOOKUP(G22,様式1!$O$5:$P$220,2)) -> 67.26530612 | X22: その他２ | Y22: 0 | Z22: 0 | AA22: 0 | AE22: 排水池・排泥池
C23: その他１ | D23: 建築 | F23: 24073.598 | G23: 1991 | H23: =IF($F23="","",IF($Q23="",ROUND($F23/$R23*100*IF(初期設定!$J$22="税抜",1+初期設定!$J$21/100,1),$F23))) -> 37031.01975 | I23: =IF($D23="","",IF($E23="配水池《SUS》",初期設定!$M$29,VLOOKUP($D23,初期設定!$K$27:$N$33,3,FALSE))) -> 50 | J23: =IF($F23="","",IF($Q23="",ROUND($F23/$R23*100*IF(初期設定!$J$22="税抜",1+初期設定!$J$21/100,1),$F23))) -> 37031.01975 | L23: =IF(K23=1,ROUNDUP(J23*構造物・設備ダウンサイズ設定!$C$7/100,),J23) -> 37031.01975 | M23: =IF($D23="","",IF($E23="配水池《SUS》",初期設定!$N$29,VLOOKUP($D23,初期設定!$K$27:$N$33,4,FALSE))) -> 70 | N23: =IF($D23="","",IF($E23="配水池《SUS》",初期設定!$N$29,VLOOKUP($D23,初期設定!$K$27:$N$33,4,FALSE))) -> 70 | O23: 7222.0794 | P23: 5296.19156 | R23: =IF(G23="","",VLOOKUP(G23,様式1!$O$5:$P$220,2)) -> 71.51020408 | X23: その他３ | Y23: 0 | Z23: 0 | AA23: 0 | AE23: 配水池《RC》
C24: その他１ | D24: 建築 | F24: 3172.028 | G24: 1997 | H24: =IF($F24="","",IF($Q24="",ROUND($F24/$R24*100*IF(初期設定!$J$22="税抜",1+初期設定!$J$21/100,1),$F24))) -> 4781.104843 | I24: =IF($D24="","",IF($E24="配水池《SUS》",初期設定!$M$29,VLOOKUP($D24,初期設定!$K$27:$N$33,3,FALSE))) -> 50 | J24: =IF($F24="","",IF($Q24="",ROUND($F24/$R24*100*IF(初期設定!$J$22="税抜",1+初期設定!$J$21/100,1),$F24))) -> 4781.104843 | L24: =IF(K24=1,ROUNDUP(J24*構造物・設備ダウンサイズ設定!$C$7/100,),J24) -> 4781.104843 | M24: =IF($D24="","",IF($E24="配水池《SUS》",初期設定!$N$29,VLOOKUP($D24,初期設定!$K$27:$N$33,4,FALSE))) -> 70 | N24: =IF($D24="","",IF($E24="配水池《SUS》",初期設定!$N$29,VLOOKUP($D24,初期設定!$K$27:$N$33,4,FALSE))) -> 70 | O24: 1332.25176 | P24: 1078.48952 | R24: =IF(G24="","",VLOOKUP(G24,様式1!$O$5:$P$220,2)) -> 72.97959184 | X24: 計 | Y24: =SUM(Y16:Y23) -> 9944149.587 | Z24: =SUM(Z16:Z23) -> 16048836.02 | AA24: =SUM(AA16:AA23) -> 16048836.02 | AE24: 配水池《PC》
C25: その他１ | D25: 建築 | F25: 45574.461 | G25: 1997 | H25: =IF($F25="","",IF($Q25="",ROUND($F25/$R25*100*IF(初期設定!$J$22="税抜",1+初期設定!$J$21/100,1),$F25))) -> 68693.04944 | I25: =IF($D25="","",IF($E25="配水池《SUS》",初期設定!$M$29,VLOOKUP($D25,初期設定!$K$27:$N$33,3,FALSE))) -> 50 | J25: =IF($F25="","",IF($Q25="",ROUND($F25/$R25*100*IF(初期設定!$J$22="税抜",1+初期設定!$J$21/100,1),$F25))) -> 68693.04944 | L25: =IF(K25=1,ROUNDUP(J25*構造物・設備ダウンサイズ設定!$C$7/100,),J25) -> 68693.04944 | M25: =IF($D25="","",IF($E25="配水池《SUS》",初期設定!$N$29,VLOOKUP($D25,初期設定!$K$27:$N$33,4,FALSE))) -> 70 | N25: =IF($D25="","",IF($E25="配水池《SUS》",初期設定!$N$29,VLOOKUP($D25,初期設定!$K$27:$N$33,4,FALSE))) -> 70 | O25: 19141.27362 | P25: 15495.31674 | R25: =IF(G25="","",VLOOKUP(G25,様式1!$O$5:$P$220,2)) -> 72.97959184 | AE25: 配水池《SUS》
C26: その他１ | D26: 機械 | F26: 2697.896 | G26: 1965 | H26: =IF($F26="","",IF($Q26="",ROUND($F26/$R26*100*IF(初期設定!$J$22="税抜",1+初期設定!$J$21/100,1),$F26))) -> 15339.30321 | I26: =IF($D26="","",IF($E26="配水池《SUS》",初期設定!$M$29,VLOOKUP($D26,初期設定!$K$27:$N$33,3,FALSE))) -> 15 | J26: =IF($F26="","",IF($Q26="",ROUND($F26/$R26*100*IF(初期設定!$J$22="税抜",1+初期設定!$J$21/100,1),$F26))) -> 15339.30321 | L26: =IF(K26=1,ROUNDUP(J26*構造物・設備ダウンサイズ設定!$C$7/100,),J26) -> 15339.30321 | M26: =IF($D26="","",IF($E26="配水池《SUS》",初期設定!$N$29,VLOOKUP($D26,初期設定!$K$27:$N$33,4,FALSE))) -> 24 | N26: =IF($D26="","",IF($E26="配水池《SUS》",初期設定!$N$29,VLOOKUP($D26,初期設定!$K$27:$N$33,4,FALSE))) -> 24 | O26: 134.8948 | P26: 134.8948 | R26: =IF(G26="","",VLOOKUP(G26,様式1!$O$5:$P$220,2)) -> 19.34693878 | AE26: 濃縮槽
C27: その他１ | D27: 土木 | F27: 3272.685 | G27: 1965 | H27: =IF($F27="","",IF($Q27="",ROUND($F27/$R27*100*IF(初期設定!$J$22="税抜",1+初期設定!$J$21/100,1),$F27))) -> 18607.35459 | I27: =IF($D27="","",IF($E27="配水池《SUS》",初期設定!$M$29,VLOOKUP($D27,初期設定!$K$27:$N$33,3,FALSE))) -> 60 | J27: =IF($F27="","",IF($Q27="",ROUND($F27/$R27*100*IF(初期設定!$J$22="税抜",1+初期設定!$J$21/100,1),$F27))) -> 18607.35459 | K27: 1 | L27: =IF(K27=1,ROUNDUP(J27*構造物・設備ダウンサイズ設定!$C$7/100,),J27) -> 16561 | M27: =IF($D27="","",IF($E27="配水池《SUS》",初期設定!$N$29,VLOOKUP($D27,初期設定!$K$27:$N$33,4,FALSE))) -> 73 | N27: =IF($D27="","",IF($E27="配水池《SUS》",初期設定!$N$29,VLOOKUP($D27,初期設定!$K$27:$N$33,4,FALSE))) -> 73 | O27: 163.63425 | P27: 163.63425 | R27: =IF(G27="","",VLOOKUP(G27,様式1!$O$5:$P$220,2)) -> 19.34693878 | AE27: 天日乾燥床
C28: その他１ | D28: 土木 | F28: 15129.936 | G28: 1970 | H28: =IF($F28="","",IF($Q28="",ROUND($F28/$R28*100*IF(初期設定!$J$22="税抜",1+初期設定!$J$21/100,1),$F28))) -> 64314.16013 | I28: =IF($D28="","",IF($E28="配水池《SUS》",初期設定!$M$29,VLOOKUP($D28,初期設定!$K$27:$N$33,3,FALSE))) -> 60 | J28: =IF($F28="","",IF($Q28="",ROUND($F28/$R28*100*IF(初期設定!$J$22="税抜",1+初期設定!$J$21/100,1),$F28))) -> 64314.16013 | L28: =IF(K28=1,ROUNDUP(J28*構造物・設備ダウンサイズ設定!$C$7/100,),J28) -> 64314.16013 | M28: =IF($D28="","",IF($E28="配水池《SUS》",初期設定!$N$29,VLOOKUP($D28,初期設定!$K$27:$N$33,4,FALSE))) -> 73 | N28: =IF($D28="","",IF($E28="配水池《SUS》",初期設定!$N$29,VLOOKUP($D28,初期設定!$K$27:$N$33,4,FALSE))) -> 73 | O28: 1008.6624 | P28: 756.4968 | R28: =IF(G28="","",VLOOKUP(G28,様式1!$O$5:$P$220,2)) -> 25.87755102 | AE28: 管理本館
C29: その他１ | D29: 土木 | F29: 396.317 | G29: 1968 | H29: =IF($F29="","",IF($Q29="",ROUND($F29/$R29*100*IF(初期設定!$J$22="税抜",1+初期設定!$J$21/100,1),$F29))) -> 1941.9533 | I29: =IF($D29="","",IF($E29="配水池《SUS》",初期設定!$M$29,VLOOKUP($D29,初期設定!$K$27:$N$33,3,FALSE))) -> 60 | J29: =IF($F29="","",IF($Q29="",ROUND($F29/$R29*100*IF(初期設定!$J$22="税抜",1+初期設定!$J$21/100,1),$F29))) -> 1941.9533 | K29: 1 | L29: =IF(K29=1,ROUNDUP(J29*構造物・設備ダウンサイズ設定!$C$7/100,),J29) -> 1729 | M29: =IF($D29="","",IF($E29="配水池《SUS》",初期設定!$N$29,VLOOKUP($D29,初期設定!$K$27:$N$33,4,FALSE))) -> 73 | N29: =IF($D29="","",IF($E29="配水池《SUS》",初期設定!$N$29,VLOOKUP($D29,初期設定!$K$27:$N$33,4,FALSE))) -> 73 | O29: 19.81585 | P29: 19.81585 | R29: =IF(G29="","",VLOOKUP(G29,様式1!$O$5:$P$220,2)) -> 22.44897959 | X29: DS検討 | AE29: 薬品注入施設
C30: その他１ | D30: 土木 | F30: 1452.16 | G30: 1968 | H30: =IF($F30="","",IF($Q30="",ROUND($F30/$R30*100*IF(初期設定!$J$22="税抜",1+初期設定!$J$21/100,1),$F30))) -> 7115.584 | I30: =IF($D30="","",IF($E30="配水池《SUS》",初期設定!$M$29,VLOOKUP($D30,初期設定!$K$27:$N$33,3,FALSE))) -> 60 | J30: =IF($F30="","",IF($Q30="",ROUND($F30/$R30*100*IF(初期設定!$J$22="税抜",1+初期設定!$J$21/100,1),$F30))) -> 7115.584 | L30: =IF(K30=1,ROUNDUP(J30*構造物・設備ダウンサイズ設定!$C$7/100,),J30) -> 7115.584 | M30: =IF($D30="","",IF($E30="配水池《SUS》",初期設定!$N$29,VLOOKUP($D30,初期設定!$K$27:$N$33,4,FALSE))) -> 73 | N30: =IF($D30="","",IF($E30="配水池《SUS》",初期設定!$N$29,VLOOKUP($D30,初期設定!$K$27:$N$33,4,FALSE))) -> 73 | O30: 72.608 | P30: 72.608 | R30: =IF(G30="","",VLOOKUP(G30,様式1!$O$5:$P$220,2)) -> 22.44897959 | X30: 基準年度 | Y30: =構造物・設備ダウンサイズ設定!B3 -> 2035 | AE30: 中央監視操作施設
C31: その他１ | D31: 土木 | F31: 266.766 | G31: 1968 | H31: =IF($F31="","",IF($Q31="",ROUND($F31/$R31*100*IF(初期設定!$J$22="税抜",1+初期設定!$J$21/100,1),$F31))) -> 1307.1534 | I31: =IF($D31="","",IF($E31="配水池《SUS》",初期設定!$M$29,VLOOKUP($D31,初期設定!$K$27:$N$33,3,FALSE))) -> 60 | J31: =IF($F31="","",IF($Q31="",ROUND($F31/$R31*100*IF(初期設定!$J$22="税抜",1+初期設定!$J$21/100,1),$F31))) -> 1307.1534 | K31: 1 | L31: =IF(K31=1,ROUNDUP(J31*構造物・設備ダウンサイズ設定!$C$7/100,),J31) -> 1164 | M31: =IF($D31="","",IF($E31="配水池《SUS》",初期設定!$N$29,VLOOKUP($D31,初期設定!$K$27:$N$33,4,FALSE))) -> 73 | N31: =IF($D31="","",IF($E31="配水池《SUS》",初期設定!$N$29,VLOOKUP($D31,初期設定!$K$27:$N$33,4,FALSE))) -> 73 | O31: 13.3383 | P31: 13.3383 | R31: =IF(G31="","",VLOOKUP(G31,様式1!$O$5:$P$220,2)) -> 22.44897959 | AE31: 自家発電施設
C32: その他１ | D32: 土木 | F32: 2228.777 | G32: 1968 | H32: =IF($F32="","",IF($Q32="",ROUND($F32/$R32*100*IF(初期設定!$J$22="税抜",1+初期設定!$J$21/100,1),$F32))) -> 10921.0073 | I32: =IF($D32="","",IF($E32="配水池《SUS》",初期設定!$M$29,VLOOKUP($D32,初期設定!$K$27:$N$33,3,FALSE))) -> 60 | J32: =IF($F32="","",IF($Q32="",ROUND($F32/$R32*100*IF(初期設定!$J$22="税抜",1+初期設定!$J$21/100,1),$F32))) -> 10921.0073 | L32: =IF(K32=1,ROUNDUP(J32*構造物・設備ダウンサイズ設定!$C$7/100,),J32) -> 10921.0073 | M32: =IF($D32="","",IF($E32="配水池《SUS》",初期設定!$N$29,VLOOKUP($D32,初期設定!$K$27:$N$33,4,FALSE))) -> 73 | N32: =IF($D32="","",IF($E32="配水池《SUS》",初期設定!$N$29,VLOOKUP($D32,初期設定!$K$27:$N$33,4,FALSE))) -> 73 | O32: 111.43885 | P32: 111.43885 | R32: =IF(G32="","",VLOOKUP(G32,様式1!$O$5:$P$220,2)) -> 22.44897959 | X32: 撤去費 | Y32: =初期設定!J19 -> 算出する | Z32: ←初期設定シートで設定 | AE32: 受配電施設《高圧》
C33: その他１ | D33: 土木 | F33: 542.355 | G33: 1968 | H33: =IF($F33="","",IF($Q33="",ROUND($F33/$R33*100*IF(初期設定!$J$22="税抜",1+初期設定!$J$21/100,1),$F33))) -> 2657.5395 | I33: =IF($D33="","",IF($E33="配水池《SUS》",初期設定!$M$29,VLOOKUP($D33,初期設定!$K$27:$N$33,3,FALSE))) -> 60 | J33: =IF($F33="","",IF($Q33="",ROUND($F33/$R33*100*IF(初期設定!$J$22="税抜",1+初期設定!$J$21/100,1),$F33))) -> 2657.5395 | L33: =IF(K33=1,ROUNDUP(J33*構造物・設備ダウンサイズ設定!$C$7/100,),J33) -> 2657.5395 | M33: =IF($D33="","",IF($E33="配水池《SUS》",初期設定!$N$29,VLOOKUP($D33,初期設定!$K$27:$N$33,4,FALSE))) -> 73 | N33: =IF($D33="","",IF($E33="配水池《SUS》",初期設定!$N$29,VLOOKUP($D33,初期設定!$K$27:$N$33,4,FALSE))) -> 73 | O33: 27.11775 | P33: 27.11775 | R33: =IF(G33="","",VLOOKUP(G33,様式1!$O$5:$P$220,2)) -> 22.44897959 | X33: 工種 | Y33: 撤去費率 | AE33: 受配電施設《特高》
C34: その他１ | D34: 土木 | F34: 24494.906 | G34: 1974 | H34: =IF($F34="","",IF($Q34="",ROUND($F34/$R34*100*IF(初期設定!$J$22="税抜",1+初期設定!$J$21/100,1),$F34))) -> 62159.86033 | I34: =IF($D34="","",IF($E34="配水池《SUS》",初期設定!$M$29,VLOOKUP($D34,初期設定!$K$27:$N$33,3,FALSE))) -> 60 | J34: =IF($F34="","",IF($Q34="",ROUND($F34/$R34*100*IF(初期設定!$J$22="税抜",1+初期設定!$J$21/100,1),$F34))) -> 62159.86033 | L34: =IF(K34=1,ROUNDUP(J34*構造物・設備ダウンサイズ設定!$C$7/100,),J34) -> 62159.86033 | M34: =IF($D34="","",IF($E34="配水池《SUS》",初期設定!$N$29,VLOOKUP($D34,初期設定!$K$27:$N$33,4,FALSE))) -> 73 | N34: =IF($D34="","",IF($E34="配水池《SUS》",初期設定!$N$29,VLOOKUP($D34,初期設定!$K$27:$N$33,4,FALSE))) -> 73 | O34: 3265.987467 | P34: 1632.993733 | R34: =IF(G34="","",VLOOKUP(G34,様式1!$O$5:$P$220,2)) -> 43.34693878 | X34: 建築 | Y34: =TRANSPOSE(初期設定!K20:Q20) -> 0.4 | AE34: 場内整備・場内配管
C35: その他１ | D35: 土木 | F35: 6510.38 | G35: 1972 | H35: =IF($F35="","",IF($Q35="",ROUND($F35/$R35*100*IF(初期設定!$J$22="税抜",1+初期設定!$J$21/100,1),$F35))) -> 25576.49286 | I35: =IF($D35="","",IF($E35="配水池《SUS》",初期設定!$M$29,VLOOKUP($D35,初期設定!$K$27:$N$33,3,FALSE))) -> 60 | J35: =IF($F35="","",IF($Q35="",ROUND($F35/$R35*100*IF(初期設定!$J$22="税抜",1+初期設定!$J$21/100,1),$F35))) -> 25576.49286 | L35: =IF(K35=1,ROUNDUP(J35*構造物・設備ダウンサイズ設定!$C$7/100,),J35) -> 25576.49286 | M35: =IF($D35="","",IF($E35="配水池《SUS》",初期設定!$N$29,VLOOKUP($D35,初期設定!$K$27:$N$33,4,FALSE))) -> 73 | N35: =IF($D35="","",IF($E35="配水池《SUS》",初期設定!$N$29,VLOOKUP($D35,初期設定!$K$27:$N$33,4,FALSE))) -> 73 | O35: 651.038 | P35: 325.519 | R35: =IF(G35="","",VLOOKUP(G35,様式1!$O$5:$P$220,2)) -> 28 | X35: 土木 | Y35: 0.4 | AE35: 膜処理施設
C36: その他１ | D36: 土木 | F36: 79928.65 | G36: 1976 | H36: =IF($F36="","",IF($Q36="",ROUND($F36/$R36*100*IF(初期設定!$J$22="税抜",1+初期設定!$J$21/100,1),$F36))) -> 186985.8609 | I36: =IF($D36="","",IF($E36="配水池《SUS》",初期設定!$M$29,VLOOKUP($D36,初期設定!$K$27:$N$33,3,FALSE))) -> 60 | J36: =IF($F36="","",IF($Q36="",ROUND($F36/$R36*100*IF(初期設定!$J$22="税抜",1+初期設定!$J$21/100,1),$F36))) -> 186985.8609 | L36: =IF(K36=1,ROUNDUP(J36*構造物・設備ダウンサイズ設定!$C$7/100,),J36) -> 186985.8609 | M36: =IF($D36="","",IF($E36="配水池《SUS》",初期設定!$N$29,VLOOKUP($D36,初期設定!$K$27:$N$33,4,FALSE))) -> 73 | N36: =IF($D36="","",IF($E36="配水池《SUS》",初期設定!$N$29,VLOOKUP($D36,初期設定!$K$27:$N$33,4,FALSE))) -> 73 | O36: 13321.44167 | P36: 7992.865 | R36: =IF(G36="","",VLOOKUP(G36,様式1!$O$5:$P$220,2)) -> 47.02040816 | X36: 電気 | Y36: 0.4 | AE36: 紫外線処理施設
C37: その他１ | D37: 土木 | F37: 80047.499 | G37: 1976 | H37: =IF($F37="","",IF($Q37="",ROUND($F37/$R37*100*IF(初期設定!$J$22="税抜",1+初期設定!$J$21/100,1),$F37))) -> 187263.8974 | I37: =IF($D37="","",IF($E37="配水池《SUS》",初期設定!$M$29,VLOOKUP($D37,初期設定!$K$27:$N$33,3,FALSE))) -> 60 | J37: =IF($F37="","",IF($Q37="",ROUND($F37/$R37*100*IF(初期設定!$J$22="税抜",1+初期設定!$J$21/100,1),$F37))) -> 187263.8974 | L37: =IF(K37=1,ROUNDUP(J37*構造物・設備ダウンサイズ設定!$C$7/100,),J37) -> 187263.8974 | M37: =IF($D37="","",IF($E37="配水池《SUS》",初期設定!$N$29,VLOOKUP($D37,初期設定!$K$27:$N$33,4,FALSE))) -> 73 | N37: =IF($D37="","",IF($E37="配水池《SUS》",初期設定!$N$29,VLOOKUP($D37,初期設定!$K$27:$N$33,4,FALSE))) -> 73 | O37: 13341.24983 | P37: 8004.7499 | R37: =IF(G37="","",VLOOKUP(G37,様式1!$O$5:$P$220,2)) -> 47.02040816 | X37: 機械 | Y37: 0.4 | AE37: ろ過機
C38: その他１ | D38: 土木 | F38: 11520.916 | G38: 1976 | H38: =IF($F38="","",IF($Q38="",ROUND($F38/$R38*100*IF(初期設定!$J$22="税抜",1+初期設定!$J$21/100,1),$F38))) -> 26952.1429 | I38: =IF($D38="","",IF($E38="配水池《SUS》",初期設定!$M$29,VLOOKUP($D38,初期設定!$K$27:$N$33,3,FALSE))) -> 60 | J38: =IF($F38="","",IF($Q38="",ROUND($F38/$R38*100*IF(初期設定!$J$22="税抜",1+初期設定!$J$21/100,1),$F38))) -> 26952.1429 | L38: =IF(K38=1,ROUNDUP(J38*構造物・設備ダウンサイズ設定!$C$7/100,),J38) -> 26952.1429 | M38: =IF($D38="","",IF($E38="配水池《SUS》",初期設定!$N$29,VLOOKUP($D38,初期設定!$K$27:$N$33,4,FALSE))) -> 73 | N38: =IF($D38="","",IF($E38="配水池《SUS》",初期設定!$N$29,VLOOKUP($D38,初期設定!$K$27:$N$33,4,FALSE))) -> 73 | O38: 1920.152667 | P38: 1152.0916 | R38: =IF(G38="","",VLOOKUP(G38,様式1!$O$5:$P$220,2)) -> 47.02040816 | X38: 計装 | Y38: 0.4 | AE38: オゾン処理施設
C39: その他１ | D39: 土木 | F39: 11704.435 | G39: 1976 | H39: =IF($F39="","",IF($Q39="",ROUND($F39/$R39*100*IF(初期設定!$J$22="税抜",1+初期設定!$J$21/100,1),$F39))) -> 27381.46903 | I39: =IF($D39="","",IF($E39="配水池《SUS》",初期設定!$M$29,VLOOKUP($D39,初期設定!$K$27:$N$33,3,FALSE))) -> 60 | J39: =IF($F39="","",IF($Q39="",ROUND($F39/$R39*100*IF(初期設定!$J$22="税抜",1+初期設定!$J$21/100,1),$F39))) -> 27381.46903 | L39: =IF(K39=1,ROUNDUP(J39*構造物・設備ダウンサイズ設定!$C$7/100,),J39) -> 27381.46903 | M39: =IF($D39="","",IF($E39="配水池《SUS》",初期設定!$N$29,VLOOKUP($D39,初期設定!$K$27:$N$33,4,FALSE))) -> 73 | N39: =IF($D39="","",IF($E39="配水池《SUS》",初期設定!$N$29,VLOOKUP($D39,初期設定!$K$27:$N$33,4,FALSE))) -> 73 | O39: 1950.739167 | P39: 1170.4435 | R39: =IF(G39="","",VLOOKUP(G39,様式1!$O$5:$P$220,2)) -> 47.02040816 | X39: その他 | Y39: 0.4 | AE39: 活性炭処理施設《粉末》
C40: その他１ | D40: 土木 | F40: 93849.236 | G40: 1977 | H40: =IF($F40="","",IF($Q40="",ROUND($F40/$R40*100*IF(初期設定!$J$22="税抜",1+初期設定!$J$21/100,1),$F40))) -> 209027.8438 | I40: =IF($D40="","",IF($E40="配水池《SUS》",初期設定!$M$29,VLOOKUP($D40,初期設定!$K$27:$N$33,3,FALSE))) -> 60 | J40: =IF($F40="","",IF($Q40="",ROUND($F40/$R40*100*IF(初期設定!$J$22="税抜",1+初期設定!$J$21/100,1),$F40))) -> 209027.8438 | L40: =IF(K40=1,ROUNDUP(J40*構造物・設備ダウンサイズ設定!$C$7/100,),J40) -> 209027.8438 | M40: =IF($D40="","",IF($E40="配水池《SUS》",初期設定!$N$29,VLOOKUP($D40,初期設定!$K$27:$N$33,4,FALSE))) -> 73 | N40: =IF($D40="","",IF($E40="配水池《SUS》",初期設定!$N$29,VLOOKUP($D40,初期設定!$K$27:$N$33,4,FALSE))) -> 73 | O40: 17205.69327 | P40: 10949.07753 | R40: =IF(G40="","",VLOOKUP(G40,様式1!$O$5:$P$220,2)) -> 49.3877551 | AE40: 活性炭処理施設《粒状》
C41: その他１ | D41: 土木 | F41: 13254.151 | G41: 1978 | H41: =IF($F41="","",IF($Q41="",ROUND($F41/$R41*100*IF(初期設定!$J$22="税抜",1+初期設定!$J$21/100,1),$F41))) -> 27647.01002 | I41: =IF($D41="","",IF($E41="配水池《SUS》",初期設定!$M$29,VLOOKUP($D41,初期設定!$K$27:$N$33,3,FALSE))) -> 60 | J41: =IF($F41="","",IF($Q41="",ROUND($F41/$R41*100*IF(初期設定!$J$22="税抜",1+初期設定!$J$21/100,1),$F41))) -> 27647.01002 | L41: =IF(K41=1,ROUNDUP(J41*構造物・設備ダウンサイズ設定!$C$7/100,),J41) -> 27647.01002 | M41: =IF($D41="","",IF($E41="配水池《SUS》",初期設定!$N$29,VLOOKUP($D41,初期設定!$K$27:$N$33,4,FALSE))) -> 73 | N41: =IF($D41="","",IF($E41="配水池《SUS》",初期設定!$N$29,VLOOKUP($D41,初期設定!$K$27:$N$33,4,FALSE))) -> 73 | O41: 2650.8302 | P41: 1767.220133 | R41: =IF(G41="","",VLOOKUP(G41,様式1!$O$5:$P$220,2)) -> 52.73469388 | X41: 資産維持費算出関連項目
C42: その他１ | D42: 土木 | F42: 15387.669 | G42: 1979 | H42: =IF($F42="","",IF($Q42="",ROUND($F42/$R42*100*IF(初期設定!$J$22="税抜",1+初期設定!$J$21/100,1),$F42))) -> 29536.87176 | I42: =IF($D42="","",IF($E42="配水池《SUS》",初期設定!$M$29,VLOOKUP($D42,初期設定!$K$27:$N$33,3,FALSE))) -> 60 | J42: =IF($F42="","",IF($Q42="",ROUND($F42/$R42*100*IF(初期設定!$J$22="税抜",1+初期設定!$J$21/100,1),$F42))) -> 29536.87176 | L42: =IF(K42=1,ROUNDUP(J42*構造物・設備ダウンサイズ設定!$C$7/100,),J42) -> 29536.87176 | M42: =IF($D42="","",IF($E42="配水池《SUS》",初期設定!$N$29,VLOOKUP($D42,初期設定!$K$27:$N$33,4,FALSE))) -> 73 | N42: =IF($D42="","",IF($E42="配水池《SUS》",初期設定!$N$29,VLOOKUP($D42,初期設定!$K$27:$N$33,4,FALSE))) -> 73 | O42: 3333.99495 | P42: 2308.15035 | R42: =IF(G42="","",VLOOKUP(G42,様式1!$O$5:$P$220,2)) -> 57.30612245 | X42: 償却限度割合 | Y42: =財政初期設定シート!C24/100 -> 0.05 | Z42: ←財政初期設定シートで設定
C43: その他１ | D43: 土木 | F43: 1403.436 | G43: 1979 | H43: =IF($F43="","",IF($Q43="",ROUND($F43/$R43*100*IF(初期設定!$J$22="税抜",1+初期設定!$J$21/100,1),$F43))) -> 2693.917393 | I43: =IF($D43="","",IF($E43="配水池《SUS》",初期設定!$M$29,VLOOKUP($D43,初期設定!$K$27:$N$33,3,FALSE))) -> 60 | J43: =IF($F43="","",IF($Q43="",ROUND($F43/$R43*100*IF(初期設定!$J$22="税抜",1+初期設定!$J$21/100,1),$F43))) -> 2693.917393 | L43: =IF(K43=1,ROUNDUP(J43*構造物・設備ダウンサイズ設定!$C$7/100,),J43) -> 2693.917393 | M43: =IF($D43="","",IF($E43="配水池《SUS》",初期設定!$N$29,VLOOKUP($D43,初期設定!$K$27:$N$33,4,FALSE))) -> 73 | N43: =IF($D43="","",IF($E43="配水池《SUS》",初期設定!$N$29,VLOOKUP($D43,初期設定!$K$27:$N$33,4,FALSE))) -> 73 | O43: 304.0778 | P43: 210.5154 | R43: =IF(G43="","",VLOOKUP(G43,様式1!$O$5:$P$220,2)) -> 57.30612245 | X43: 料金改定年度 | Y43: =財政初期設定シート!C4 -> 2026
C44: その他１ | D44: 土木 | F44: 3591.6 | G44: 1981 | H44: =IF($F44="","",IF($Q44="",ROUND($F44/$R44*100*IF(初期設定!$J$22="税抜",1+初期設定!$J$21/100,1),$F44))) -> 6252.817829 | I44: =IF($D44="","",IF($E44="配水池《SUS》",初期設定!$M$29,VLOOKUP($D44,初期設定!$K$27:$N$33,3,FALSE))) -> 60 | J44: =IF($F44="","",IF($Q44="",ROUND($F44/$R44*100*IF(初期設定!$J$22="税抜",1+初期設定!$J$21/100,1),$F44))) -> 6252.817829 | L44: =IF(K44=1,ROUNDUP(J44*構造物・設備ダウンサイズ設定!$C$7/100,),J44) -> 6252.817829 | M44: =IF($D44="","",IF($E44="配水池《SUS》",初期設定!$N$29,VLOOKUP($D44,初期設定!$K$27:$N$33,4,FALSE))) -> 73 | N44: =IF($D44="","",IF($E44="配水池《SUS》",初期設定!$N$29,VLOOKUP($D44,初期設定!$K$27:$N$33,4,FALSE))) -> 73 | O44: 897.9 | P44: 658.46 | R44: =IF(G44="","",VLOOKUP(G44,様式1!$O$5:$P$220,2)) -> 63.18367347 | X44: 算定期間末 | Y44: =Y43+財政初期設定シート!C3-1 -> 2030
C45: その他１ | D45: 土木 | F45: 18982.334 | G45: 1981 | H45: =IF($F45="","",IF($Q45="",ROUND($F45/$R45*100*IF(初期設定!$J$22="税抜",1+初期設定!$J$21/100,1),$F45))) -> 33047.40964 | I45: =IF($D45="","",IF($E45="配水池《SUS》",初期設定!$M$29,VLOOKUP($D45,初期設定!$K$27:$N$33,3,FALSE))) -> 60 | J45: =IF($F45="","",IF($Q45="",ROUND($F45/$R45*100*IF(初期設定!$J$22="税抜",1+初期設定!$J$21/100,1),$F45))) -> 33047.40964 | L45: =IF(K45=1,ROUNDUP(J45*構造物・設備ダウンサイズ設定!$C$7/100,),J45) -> 33047.40964 | M45: =IF($D45="","",IF($E45="配水池《SUS》",初期設定!$N$29,VLOOKUP($D45,初期設定!$K$27:$N$33,4,FALSE))) -> 73 | N45: =IF($D45="","",IF($E45="配水池《SUS》",初期設定!$N$29,VLOOKUP($D45,初期設定!$K$27:$N$33,4,FALSE))) -> 73 | O45: 4745.5835 | P45: 3480.094567 | R45: =IF(G45="","",VLOOKUP(G45,様式1!$O$5:$P$220,2)) -> 63.18367347 | X45: 消費税率 | Y45: =初期設定!J21 -> 10 | Z45: ％
C46: その他１ | D46: 土木 | F46: 501.685 | G46: 1981 | H46: =IF($F46="","",IF($Q46="",ROUND($F46/$R46*100*IF(初期設定!$J$22="税抜",1+初期設定!$J$21/100,1),$F46))) -> 873.4115472 | I46: =IF($D46="","",IF($E46="配水池《SUS》",初期設定!$M$29,VLOOKUP($D46,初期設定!$K$27:$N$33,3,FALSE))) -> 60 | J46: =IF($F46="","",IF($Q46="",ROUND($F46/$R46*100*IF(初期設定!$J$22="税抜",1+初期設定!$J$21/100,1),$F46))) -> 873.4115472 | L46: =IF(K46=1,ROUNDUP(J46*構造物・設備ダウンサイズ設定!$C$7/100,),J46) -> 873.4115472 | M46: =IF($D46="","",IF($E46="配水池《SUS》",初期設定!$N$29,VLOOKUP($D46,初期設定!$K$27:$N$33,4,FALSE))) -> 73 | N46: =IF($D46="","",IF($E46="配水池《SUS》",初期設定!$N$29,VLOOKUP($D46,初期設定!$K$27:$N$33,4,FALSE))) -> 73 | O46: 125.42125 | P46: 91.97558333 | R46: =IF(G46="","",VLOOKUP(G46,様式1!$O$5:$P$220,2)) -> 63.18367347 | X46: 固定資産台帳の 帳簿価格 | Y46: =初期設定!J22 -> 税抜
C47: その他１ | D47: 土木 | F47: 15128.212 | G47: 1981 | H47: =IF($F47="","",IF($Q47="",ROUND($F47/$R47*100*IF(初期設定!$J$22="税抜",1+初期設定!$J$21/100,1),$F47))) -> 26337.55255 | I47: =IF($D47="","",IF($E47="配水池《SUS》",初期設定!$M$29,VLOOKUP($D47,初期設定!$K$27:$N$33,3,FALSE))) -> 60 | J47: =IF($F47="","",IF($Q47="",ROUND($F47/$R47*100*IF(初期設定!$J$22="税抜",1+初期設定!$J$21/100,1),$F47))) -> 26337.55255 | L47: =IF(K47=1,ROUNDUP(J47*構造物・設備ダウンサイズ設定!$C$7/100,),J47) -> 26337.55255 | M47: =IF($D47="","",IF($E47="配水池《SUS》",初期設定!$N$29,VLOOKUP($D47,初期設定!$K$27:$N$33,4,FALSE))) -> 73 | N47: =IF($D47="","",IF($E47="配水池《SUS》",初期設定!$N$29,VLOOKUP($D47,初期設定!$K$27:$N$33,4,FALSE))) -> 73 | O47: 3782.053 | P47: 2773.505533 | R47: =IF(G47="","",VLOOKUP(G47,様式1!$O$5:$P$220,2)) -> 63.18367347
C48: その他１ | D48: 土木 | F48: 19145.602 | G48: 1980 | H48: =IF($F48="","",IF($Q48="",ROUND($F48/$R48*100*IF(初期設定!$J$22="税抜",1+初期設定!$J$21/100,1),$F48))) -> 33723.78914 | I48: =IF($D48="","",IF($E48="配水池《SUS》",初期設定!$M$29,VLOOKUP($D48,初期設定!$K$27:$N$33,3,FALSE))) -> 60 | J48: =IF($F48="","",IF($Q48="",ROUND($F48/$R48*100*IF(初期設定!$J$22="税抜",1+初期設定!$J$21/100,1),$F48))) -> 33723.78914 | L48: =IF(K48=1,ROUNDUP(J48*構造物・設備ダウンサイズ設定!$C$7/100,),J48) -> 33723.78914 | M48: =IF($D48="","",IF($E48="配水池《SUS》",初期設定!$N$29,VLOOKUP($D48,初期設定!$K$27:$N$33,4,FALSE))) -> 73 | N48: =IF($D48="","",IF($E48="配水池《SUS》",初期設定!$N$29,VLOOKUP($D48,初期設定!$K$27:$N$33,4,FALSE))) -> 73 | O48: 4467.307133 | P48: 3190.933667 | R48: =IF(G48="","",VLOOKUP(G48,様式1!$O$5:$P$220,2)) -> 62.44897959
C49: その他１ | D49: 土木 | F49: 20651.436 | G49: 1981 | H49: =IF($F49="","",IF($Q49="",ROUND($F49/$R49*100*IF(初期設定!$J$22="税抜",1+初期設定!$J$21/100,1),$F49))) -> 35953.24291 | I49: =IF($D49="","",IF($E49="配水池《SUS》",初期設定!$M$29,VLOOKUP($D49,初期設定!$K$27:$N$33,3,FALSE))) -> 60 | J49: =IF($F49="","",IF($Q49="",ROUND($F49/$R49*100*IF(初期設定!$J$22="税抜",1+初期設定!$J$21/100,1),$F49))) -> 35953.24291 | L49: =IF(K49=1,ROUNDUP(J49*構造物・設備ダウンサイズ設定!$C$7/100,),J49) -> 35953.24291 | M49: =IF($D49="","",IF($E49="配水池《SUS》",初期設定!$N$29,VLOOKUP($D49,初期設定!$K$27:$N$33,4,FALSE))) -> 73 | N49: =IF($D49="","",IF($E49="配水池《SUS》",初期設定!$N$29,VLOOKUP($D49,初期設定!$K$27:$N$33,4,FALSE))) -> 73 | O49: 5162.859 | P49: 3786.0966 | R49: =IF(G49="","",VLOOKUP(G49,様式1!$O$5:$P$220,2)) -> 63.18367347
C50: その他１ | D50: 土木 | F50: 144218.015 | G50: 1981 | H50: =IF($F50="","",IF($Q50="",ROUND($F50/$R50*100*IF(初期設定!$J$22="税抜",1+初期設定!$J$21/100,1),$F50))) -> 251077.229 | I50: =IF($D50="","",IF($E50="配水池《SUS》",初期設定!$M$29,VLOOKUP($D50,初期設定!$K$27:$N$33,3,FALSE))) -> 60 | J50: =IF($F50="","",IF($Q50="",ROUND($F50/$R50*100*IF(初期設定!$J$22="税抜",1+初期設定!$J$21/100,1),$F50))) -> 251077.229 | K50: 1 | L50: =IF(K50=1,ROUNDUP(J50*構造物・設備ダウンサイズ設定!$C$7/100,),J50) -> 223459 | M50: =IF($D50="","",IF($E50="配水池《SUS》",初期設定!$N$29,VLOOKUP($D50,初期設定!$K$27:$N$33,4,FALSE))) -> 73 | N50: =IF($D50="","",IF($E50="配水池《SUS》",初期設定!$N$29,VLOOKUP($D50,初期設定!$K$27:$N$33,4,FALSE))) -> 73 | O50: 36054.50375 | P50: 26439.96942 | R50: =IF(G50="","",VLOOKUP(G50,様式1!$O$5:$P$220,2)) -> 63.18367347
C51: その他１ | D51: 土木 | F51: 152366.095 | G51: 1989 | H51: =IF($F51="","",IF($Q51="",ROUND($F51/$R51*100*IF(初期設定!$J$22="税抜",1+初期設定!$J$21/100,1),$F51))) -> 249166.642 | I51: =IF($D51="","",IF($E51="配水池《SUS》",初期設定!$M$29,VLOOKUP($D51,初期設定!$K$27:$N$33,3,FALSE))) -> 60 | J51: =IF($F51="","",IF($Q51="",ROUND($F51/$R51*100*IF(初期設定!$J$22="税抜",1+初期設定!$J$21/100,1),$F51))) -> 249166.642 | K51: 1 | L51: =IF(K51=1,ROUNDUP(J51*構造物・設備ダウンサイズ設定!$C$7/100,),J51) -> 221759 | M51: =IF($D51="","",IF($E51="配水池《SUS》",初期設定!$N$29,VLOOKUP($D51,初期設定!$K$27:$N$33,4,FALSE))) -> 73 | N51: =IF($D51="","",IF($E51="配水池《SUS》",初期設定!$N$29,VLOOKUP($D51,初期設定!$K$27:$N$33,4,FALSE))) -> 73 | O51: 58407.00308 | P51: 48249.26342 | R51: =IF(G51="","",VLOOKUP(G51,様式1!$O$5:$P$220,2)) -> 67.26530612
C52: その他１ | D52: 土木 | F52: 11509.6 | G52: 1989 | H52: =IF($F52="","",IF($Q52="",ROUND($F52/$R52*100*IF(初期設定!$J$22="税抜",1+初期設定!$J$21/100,1),$F52))) -> 18821.82767 | I52: =IF($D52="","",IF($E52="配水池《SUS》",初期設定!$M$29,VLOOKUP($D52,初期設定!$K$27:$N$33,3,FALSE))) -> 60 | J52: =IF($F52="","",IF($Q52="",ROUND($F52/$R52*100*IF(初期設定!$J$22="税抜",1+初期設定!$J$21/100,1),$F52))) -> 18821.82767 | K52: 1 | L52: =IF(K52=1,ROUNDUP(J52*構造物・設備ダウンサイズ設定!$C$7/100,),J52) -> 16752 | M52: =IF($D52="","",IF($E52="配水池《SUS》",初期設定!$N$29,VLOOKUP($D52,初期設定!$K$27:$N$33,4,FALSE))) -> 73 | N52: =IF($D52="","",IF($E52="配水池《SUS》",初期設定!$N$29,VLOOKUP($D52,初期設定!$K$27:$N$33,4,FALSE))) -> 73 | O52: 4412.013333 | P52: 3644.706667 | R52: =IF(G52="","",VLOOKUP(G52,様式1!$O$5:$P$220,2)) -> 67.26530612
C53: その他１ | D53: 土木 | F53: 68034.08 | G53: 1991 | H53: =IF($F53="","",IF($Q53="",ROUND($F53/$R53*100*IF(初期設定!$J$22="税抜",1+初期設定!$J$21/100,1),$F53))) -> 104652.8799 | I53: =IF($D53="","",IF($E53="配水池《SUS》",初期設定!$M$29,VLOOKUP($D53,初期設定!$K$27:$N$33,3,FALSE))) -> 60 | J53: =IF($F53="","",IF($Q53="",ROUND($F53/$R53*100*IF(初期設定!$J$22="税抜",1+初期設定!$J$21/100,1),$F53))) -> 104652.8799 | K53: 1 | L53: =IF(K53=1,ROUNDUP(J53*構造物・設備ダウンサイズ設定!$C$7/100,),J53) -> 93142 | M53: =IF($D53="","",IF($E53="配水池《SUS》",初期設定!$N$29,VLOOKUP($D53,初期設定!$K$27:$N$33,4,FALSE))) -> 73 | N53: =IF($D53="","",IF($E53="配水池《SUS》",初期設定!$N$29,VLOOKUP($D53,初期設定!$K$27:$N$33,4,FALSE))) -> 73 | O53: 28347.53333 | P53: 23811.928 | R53: =IF(G53="","",VLOOKUP(G53,様式1!$O$5:$P$220,2)) -> 71.51020408
C54: その他１ | D54: 土木 | F54: 9420.104 | G54: 1991 | H54: =IF($F54="","",IF($Q54="",ROUND($F54/$R54*100*IF(初期設定!$J$22="税抜",1+初期設定!$J$21/100,1),$F54))) -> 14490.3997 | I54: =IF($D54="","",IF($E54="配水池《SUS》",初期設定!$M$29,VLOOKUP($D54,初期設定!$K$27:$N$33,3,FALSE))) -> 60 | J54: =IF($F54="","",IF($Q54="",ROUND($F54/$R54*100*IF(初期設定!$J$22="税抜",1+初期設定!$J$21/100,1),$F54))) -> 14490.3997 | K54: 1 | L54: =IF(K54=1,ROUNDUP(J54*構造物・設備ダウンサイズ設定!$C$7/100,),J54) -> 12897 | M54: =IF($D54="","",IF($E54="配水池《SUS》",初期設定!$N$29,VLOOKUP($D54,初期設定!$K$27:$N$33,4,FALSE))) -> 73 | N54: =IF($D54="","",IF($E54="配水池《SUS》",初期設定!$N$29,VLOOKUP($D54,初期設定!$K$27:$N$33,4,FALSE))) -> 73 | O54: 3925.043333 | P54: 3297.0364 | R54: =IF(G54="","",VLOOKUP(G54,様式1!$O$5:$P$220,2)) -> 71.51020408
C55: その他１ | D55: 土木 | F55: 11744 | G55: 1992 | H55: =IF($F55="","",IF($Q55="",ROUND($F55/$R55*100*IF(初期設定!$J$22="税抜",1+初期設定!$J$21/100,1),$F55))) -> 17861.21896 | I55: =IF($D55="","",IF($E55="配水池《SUS》",初期設定!$M$29,VLOOKUP($D55,初期設定!$K$27:$N$33,3,FALSE))) -> 60 | J55: =IF($F55="","",IF($Q55="",ROUND($F55/$R55*100*IF(初期設定!$J$22="税抜",1+初期設定!$J$21/100,1),$F55))) -> 17861.21896 | K55: 1 | L55: =IF(K55=1,ROUNDUP(J55*構造物・設備ダウンサイズ設定!$C$7/100,),J55) -> 15897 | M55: =IF($D55="","",IF($E55="配水池《SUS》",初期設定!$N$29,VLOOKUP($D55,初期設定!$K$27:$N$33,4,FALSE))) -> 73 | N55: =IF($D55="","",IF($E55="配水池《SUS》",初期設定!$N$29,VLOOKUP($D55,初期設定!$K$27:$N$33,4,FALSE))) -> 73 | O55: 5089.066667 | P55: 4306.133333 | R55: =IF(G55="","",VLOOKUP(G55,様式1!$O$5:$P$220,2)) -> 72.32653061
C56: その他１ | D56: 土木 | F56: 32823 | G56: 1992 | H56: =IF($F56="","",IF($Q56="",ROUND($F56/$R56*100*IF(初期設定!$J$22="税抜",1+初期設定!$J$21/100,1),$F56))) -> 49919.85609 | I56: =IF($D56="","",IF($E56="配水池《SUS》",初期設定!$M$29,VLOOKUP($D56,初期設定!$K$27:$N$33,3,FALSE))) -> 60 | J56: =IF($F56="","",IF($Q56="",ROUND($F56/$R56*100*IF(初期設定!$J$22="税抜",1+初期設定!$J$21/100,1),$F56))) -> 49919.85609 | K56: 1 | L56: =IF(K56=1,ROUNDUP(J56*構造物・設備ダウンサイズ設定!$C$7/100,),J56) -> 44429 | M56: =IF($D56="","",IF($E56="配水池《SUS》",初期設定!$N$29,VLOOKUP($D56,初期設定!$K$27:$N$33,4,FALSE))) -> 73 | N56: =IF($D56="","",IF($E56="配水池《SUS》",初期設定!$N$29,VLOOKUP($D56,初期設定!$K$27:$N$33,4,FALSE))) -> 73 | O56: 14223.3 | P56: 12035.1 | R56: =IF(G56="","",VLOOKUP(G56,様式1!$O$5:$P$220,2)) -> 72.32653061
C57: その他１ | D57: 土木 | F57: 16350 | G57: 1992 | H57: =IF($F57="","",IF($Q57="",ROUND($F57/$R57*100*IF(初期設定!$J$22="税抜",1+初期設定!$J$21/100,1),$F57))) -> 24866.39391 | I57: =IF($D57="","",IF($E57="配水池《SUS》",初期設定!$M$29,VLOOKUP($D57,初期設定!$K$27:$N$33,3,FALSE))) -> 60 | J57: =IF($F57="","",IF($Q57="",ROUND($F57/$R57*100*IF(初期設定!$J$22="税抜",1+初期設定!$J$21/100,1),$F57))) -> 24866.39391 | K57: 1 | L57: =IF(K57=1,ROUNDUP(J57*構造物・設備ダウンサイズ設定!$C$7/100,),J57) -> 22132 | M57: =IF($D57="","",IF($E57="配水池《SUS》",初期設定!$N$29,VLOOKUP($D57,初期設定!$K$27:$N$33,4,FALSE))) -> 73 | N57: =IF($D57="","",IF($E57="配水池《SUS》",初期設定!$N$29,VLOOKUP($D57,初期設定!$K$27:$N$33,4,FALSE))) -> 73 | O57: 7085 | P57: 5995 | R57: =IF(G57="","",VLOOKUP(G57,様式1!$O$5:$P$220,2)) -> 72.32653061
C58: その他１ | D58: 土木 | F58: 60395.502 | G58: 1993 | H58: =IF($F58="","",IF($Q58="",ROUND($F58/$R58*100*IF(初期設定!$J$22="税抜",1+初期設定!$J$21/100,1),$F58))) -> 92062.14813 | I58: =IF($D58="","",IF($E58="配水池《SUS》",初期設定!$M$29,VLOOKUP($D58,初期設定!$K$27:$N$33,3,FALSE))) -> 60 | J58: =IF($F58="","",IF($Q58="",ROUND($F58/$R58*100*IF(初期設定!$J$22="税抜",1+初期設定!$J$21/100,1),$F58))) -> 92062.14813 | K58: 1 | L58: =IF(K58=1,ROUNDUP(J58*構造物・設備ダウンサイズ設定!$C$7/100,),J58) -> 81936 | M58: =IF($D58="","",IF($E58="配水池《SUS》",初期設定!$N$29,VLOOKUP($D58,初期設定!$K$27:$N$33,4,FALSE))) -> 73 | N58: =IF($D58="","",IF($E58="配水池《SUS》",初期設定!$N$29,VLOOKUP($D58,初期設定!$K$27:$N$33,4,FALSE))) -> 73 | O58: 27177.9759 | P58: 23151.6091 | R58: =IF(G58="","",VLOOKUP(G58,様式1!$O$5:$P$220,2)) -> 72.16326531
C59: その他１ | D59: 土木 | F59: 18428.468 | G59: 1995 | H59: =IF($F59="","",IF($Q59="",ROUND($F59/$R59*100*IF(初期設定!$J$22="税抜",1+初期設定!$J$21/100,1),$F59))) -> 27964.37008 | I59: =IF($D59="","",IF($E59="配水池《SUS》",初期設定!$M$29,VLOOKUP($D59,初期設定!$K$27:$N$33,3,FALSE))) -> 60 | J59: =IF($F59="","",IF($Q59="",ROUND($F59/$R59*100*IF(初期設定!$J$22="税抜",1+初期設定!$J$21/100,1),$F59))) -> 27964.37008 | K59: 1 | L59: =IF(K59=1,ROUNDUP(J59*構造物・設備ダウンサイズ設定!$C$7/100,),J59) -> 24889 | M59: =IF($D59="","",IF($E59="配水池《SUS》",初期設定!$N$29,VLOOKUP($D59,初期設定!$K$27:$N$33,4,FALSE))) -> 73 | N59: =IF($D59="","",IF($E59="配水池《SUS》",初期設定!$N$29,VLOOKUP($D59,初期設定!$K$27:$N$33,4,FALSE))) -> 73 | O59: 8907.092867 | P59: 7678.528333 | R59: =IF(G59="","",VLOOKUP(G59,様式1!$O$5:$P$220,2)) -> 72.48979592
C60: その他１ | D60: 土木 | F60: 1489.681 | G60: 1997 | H60: =IF($F60="","",IF($Q60="",ROUND($F60/$R60*100*IF(初期設定!$J$22="税抜",1+初期設定!$J$21/100,1),$F60))) -> 2245.352514 | I60: =IF($D60="","",IF($E60="配水池《SUS》",初期設定!$M$29,VLOOKUP($D60,初期設定!$K$27:$N$33,3,FALSE))) -> 60 | J60: =IF($F60="","",IF($Q60="",ROUND($F60/$R60*100*IF(初期設定!$J$22="税抜",1+初期設定!$J$21/100,1),$F60))) -> 2245.352514 | K60: 1 | L60: =IF(K60=1,ROUNDUP(J60*構造物・設備ダウンサイズ設定!$C$7/100,),J60) -> 1999 | M60: =IF($D60="","",IF($E60="配水池《SUS》",初期設定!$N$29,VLOOKUP($D60,初期設定!$K$27:$N$33,4,FALSE))) -> 73 | N60: =IF($D60="","",IF($E60="配水池《SUS》",初期設定!$N$29,VLOOKUP($D60,初期設定!$K$27:$N$33,4,FALSE))) -> 73 | O60: 769.6685167 | P60: 670.35645 | R60: =IF(G60="","",VLOOKUP(G60,様式1!$O$5:$P$220,2)) -> 72.97959184
C61: その他１ | D61: 土木 | F61: 3053.846 | G61: 1997 | H61: =IF($F61="","",IF($Q61="",ROUND($F61/$R61*100*IF(初期設定!$J$22="税抜",1+初期設定!$J$21/100,1),$F61))) -> 4602.972578 | I61: =IF($D61="","",IF($E61="配水池《SUS》",初期設定!$M$29,VLOOKUP($D61,初期設定!$K$27:$N$33,3,FALSE))) -> 60 | J61: =IF($F61="","",IF($Q61="",ROUND($F61/$R61*100*IF(初期設定!$J$22="税抜",1+初期設定!$J$21/100,1),$F61))) -> 4602.972578 | K61: 1 | L61: =IF(K61=1,ROUNDUP(J61*構造物・設備ダウンサイズ設定!$C$7/100,),J61) -> 4097 | M61: =IF($D61="","",IF($E61="配水池《SUS》",初期設定!$N$29,VLOOKUP($D61,初期設定!$K$27:$N$33,4,FALSE))) -> 73 | N61: =IF($D61="","",IF($E61="配水池《SUS》",初期設定!$N$29,VLOOKUP($D61,初期設定!$K$27:$N$33,4,FALSE))) -> 73 | O61: 1577.820433 | P61: 1374.2307 | R61: =IF(G61="","",VLOOKUP(G61,様式1!$O$5:$P$220,2)) -> 72.97959184
C62: その他１ | D62: 土木 | F62: 18898.095 | G62: 1997 | H62: =IF($F62="","",IF($Q62="",ROUND($F62/$R62*100*IF(初期設定!$J$22="税抜",1+初期設定!$J$21/100,1),$F62))) -> 28484.54476 | I62: =IF($D62="","",IF($E62="配水池《SUS》",初期設定!$M$29,VLOOKUP($D62,初期設定!$K$27:$N$33,3,FALSE))) -> 60 | J62: =IF($F62="","",IF($Q62="",ROUND($F62/$R62*100*IF(初期設定!$J$22="税抜",1+初期設定!$J$21/100,1),$F62))) -> 28484.54476 | K62: 1 | L62: =IF(K62=1,ROUNDUP(J62*構造物・設備ダウンサイズ設定!$C$7/100,),J62) -> 25352 | M62: =IF($D62="","",IF($E62="配水池《SUS》",初期設定!$N$29,VLOOKUP($D62,初期設定!$K$27:$N$33,4,FALSE))) -> 73 | N62: =IF($D62="","",IF($E62="配水池《SUS》",初期設定!$N$29,VLOOKUP($D62,初期設定!$K$27:$N$33,4,FALSE))) -> 73 | O62: 9764.01575 | P62: 8504.14275 | R62: =IF(G62="","",VLOOKUP(G62,様式1!$O$5:$P$220,2)) -> 72.97959184
C63: その他１ | D63: 土木 | F63: 27524.34 | G63: 1997 | H63: =IF($F63="","",IF($Q63="",ROUND($F63/$R63*100*IF(初期設定!$J$22="税抜",1+初期設定!$J$21/100,1),$F63))) -> 41486.63104 | I63: =IF($D63="","",IF($E63="配水池《SUS》",初期設定!$M$29,VLOOKUP($D63,初期設定!$K$27:$N$33,3,FALSE))) -> 60 | J63: =IF($F63="","",IF($Q63="",ROUND($F63/$R63*100*IF(初期設定!$J$22="税抜",1+初期設定!$J$21/100,1),$F63))) -> 41486.63104 | K63: 1 | L63: =IF(K63=1,ROUNDUP(J63*構造物・設備ダウンサイズ設定!$C$7/100,),J63) -> 36924 | M63: =IF($D63="","",IF($E63="配水池《SUS》",初期設定!$N$29,VLOOKUP($D63,初期設定!$K$27:$N$33,4,FALSE))) -> 73 | N63: =IF($D63="","",IF($E63="配水池《SUS》",初期設定!$N$29,VLOOKUP($D63,初期設定!$K$27:$N$33,4,FALSE))) -> 73 | O63: 14220.909 | P63: 12385.953 | R63: =IF(G63="","",VLOOKUP(G63,様式1!$O$5:$P$220,2)) -> 72.97959184
C64: その他１ | D64: 土木 | F64: 101693.348 | G64: 1999 | H64: =IF($F64="","",IF($Q64="",ROUND($F64/$R64*100*IF(初期設定!$J$22="税抜",1+初期設定!$J$21/100,1),$F64))) -> 157507.8005 | I64: =IF($D64="","",IF($E64="配水池《SUS》",初期設定!$M$29,VLOOKUP($D64,初期設定!$K$27:$N$33,3,FALSE))) -> 60 | J64: =IF($F64="","",IF($Q64="",ROUND($F64/$R64*100*IF(初期設定!$J$22="税抜",1+初期設定!$J$21/100,1),$F64))) -> 157507.8005 | K64: 1 | L64: =IF(K64=1,ROUNDUP(J64*構造物・設備ダウンサイズ設定!$C$7/100,),J64) -> 140182 | M64: =IF($D64="","",IF($E64="配水池《SUS》",初期設定!$N$29,VLOOKUP($D64,初期設定!$K$27:$N$33,4,FALSE))) -> 73 | N64: =IF($D64="","",IF($E64="配水池《SUS》",初期設定!$N$29,VLOOKUP($D64,初期設定!$K$27:$N$33,4,FALSE))) -> 73 | O64: 55931.3414 | P64: 49151.78487 | R64: =IF(G64="","",VLOOKUP(G64,様式1!$O$5:$P$220,2)) -> 71.02040816
C65: その他１ | D65: 土木 | F65: 195922.581 | G65: 2001 | H65: =IF($F65="","",IF($Q65="",ROUND($F65/$R65*100*IF(初期設定!$J$22="税抜",1+初期設定!$J$21/100,1),$F65))) -> 308417.848 | I65: =IF($D65="","",IF($E65="配水池《SUS》",初期設定!$M$29,VLOOKUP($D65,初期設定!$K$27:$N$33,3,FALSE))) -> 60 | J65: =IF($F65="","",IF($Q65="",ROUND($F65/$R65*100*IF(初期設定!$J$22="税抜",1+初期設定!$J$21/100,1),$F65))) -> 308417.848 | K65: 1 | L65: =IF(K65=1,ROUNDUP(J65*構造物・設備ダウンサイズ設定!$C$7/100,),J65) -> 274492 | M65: =IF($D65="","",IF($E65="配水池《SUS》",初期設定!$N$29,VLOOKUP($D65,初期設定!$K$27:$N$33,4,FALSE))) -> 73 | N65: =IF($D65="","",IF($E65="配水池《SUS》",初期設定!$N$29,VLOOKUP($D65,初期設定!$K$27:$N$33,4,FALSE))) -> 73 | O65: 114288.1722 | P65: 101226.6668 | R65: =IF(G65="","",VLOOKUP(G65,様式1!$O$5:$P$220,2)) -> 69.87755102
C66: その他１ | D66: 土木 | F66: 40812.965 | G66: 2001 | H66: =IF($F66="","",IF($Q66="",ROUND($F66/$R66*100*IF(初期設定!$J$22="税抜",1+初期設定!$J$21/100,1),$F66))) -> 64247.04479 | I66: =IF($D66="","",IF($E66="配水池《SUS》",初期設定!$M$29,VLOOKUP($D66,初期設定!$K$27:$N$33,3,FALSE))) -> 60 | J66: =IF($F66="","",IF($Q66="",ROUND($F66/$R66*100*IF(初期設定!$J$22="税抜",1+初期設定!$J$21/100,1),$F66))) -> 64247.04479 | K66: 1 | L66: =IF(K66=1,ROUNDUP(J66*構造物・設備ダウンサイズ設定!$C$7/100,),J66) -> 57180 | M66: =IF($D66="","",IF($E66="配水池《SUS》",初期設定!$N$29,VLOOKUP($D66,初期設定!$K$27:$N$33,4,FALSE))) -> 73 | N66: =IF($D66="","",IF($E66="配水池《SUS》",初期設定!$N$29,VLOOKUP($D66,初期設定!$K$27:$N$33,4,FALSE))) -> 73 | O66: 23807.56292 | P66: 21086.69858 | R66: =IF(G66="","",VLOOKUP(G66,様式1!$O$5:$P$220,2)) -> 69.87755102
C67: その他１ | D67: 土木 | F67: 15204.83 | G67: 2001 | H67: =IF($F67="","",IF($Q67="",ROUND($F67/$R67*100*IF(初期設定!$J$22="税抜",1+初期設定!$J$21/100,1),$F67))) -> 23935.17339 | I67: =IF($D67="","",IF($E67="配水池《SUS》",初期設定!$M$29,VLOOKUP($D67,初期設定!$K$27:$N$33,3,FALSE))) -> 60 | J67: =IF($F67="","",IF($Q67="",ROUND($F67/$R67*100*IF(初期設定!$J$22="税抜",1+初期設定!$J$21/100,1),$F67))) -> 23935.17339 | K67: 1 | L67: =IF(K67=1,ROUNDUP(J67*構造物・設備ダウンサイズ設定!$C$7/100,),J67) -> 21303 | M67: =IF($D67="","",IF($E67="配水池《SUS》",初期設定!$N$29,VLOOKUP($D67,初期設定!$K$27:$N$33,4,FALSE))) -> 73 | N67: =IF($D67="","",IF($E67="配水池《SUS》",初期設定!$N$29,VLOOKUP($D67,初期設定!$K$27:$N$33,4,FALSE))) -> 73 | O67: 8869.484167 | P67: 7855.828833 | R67: =IF(G67="","",VLOOKUP(G67,様式1!$O$5:$P$220,2)) -> 69.87755102
C68: その他１ | D68: 土木 | F68: 73237.523 | G68: 2002 | H68: =IF($F68="","",IF($Q68="",ROUND($F68/$R68*100*IF(初期設定!$J$22="税抜",1+初期設定!$J$21/100,1),$F68))) -> 116103.0144 | I68: =IF($D68="","",IF($E68="配水池《SUS》",初期設定!$M$29,VLOOKUP($D68,初期設定!$K$27:$N$33,3,FALSE))) -> 60 | J68: =IF($F68="","",IF($Q68="",ROUND($F68/$R68*100*IF(初期設定!$J$22="税抜",1+初期設定!$J$21/100,1),$F68))) -> 116103.0144 | L68: =IF(K68=1,ROUNDUP(J68*構造物・設備ダウンサイズ設定!$C$7/100,),J68) -> 116103.0144 | M68: =IF($D68="","",IF($E68="配水池《SUS》",初期設定!$N$29,VLOOKUP($D68,初期設定!$K$27:$N$33,4,FALSE))) -> 73 | N68: =IF($D68="","",IF($E68="配水池《SUS》",初期設定!$N$29,VLOOKUP($D68,初期設定!$K$27:$N$33,4,FALSE))) -> 73 | O68: 43942.5138 | P68: 39060.01227 | R68: =IF(G68="","",VLOOKUP(G68,様式1!$O$5:$P$220,2)) -> 69.3877551
C69: その他１ | D69: その他１ | F69: 395.912 | G69: 1960 | H69: =IF($F69="","",IF($Q69="",ROUND($F69/$R69*100*IF(初期設定!$J$22="税抜",1+初期設定!$J$21/100,1),$F69))) -> 2807.849579 | I69: =IF($D69="","",IF($E69="配水池《SUS》",初期設定!$M$29,VLOOKUP($D69,初期設定!$K$27:$N$33,3,FALSE))) -> 40 | J69: =IF($F69="","",IF($Q69="",ROUND($F69/$R69*100*IF(初期設定!$J$22="税抜",1+初期設定!$J$21/100,1),$F69))) -> 2807.849579 | L69: =IF(K69=1,ROUNDUP(J69*構造物・設備ダウンサイズ設定!$C$7/100,),J69) -> 2807.849579 | M69: =IF($D69="","",IF($E69="配水池《SUS》",初期設定!$N$29,VLOOKUP($D69,初期設定!$K$27:$N$33,4,FALSE))) -> 60 | N69: =IF($D69="","",IF($E69="配水池《SUS》",初期設定!$N$29,VLOOKUP($D69,初期設定!$K$27:$N$33,4,FALSE))) -> 60 | O69: 19.7956 | P69: 19.7956 | R69: =IF(G69="","",VLOOKUP(G69,様式1!$O$5:$P$220,2)) -> 15.51020408
C70: その他１ | D70: その他１ | F70: 481.69 | G70: 1961 | H70: =IF($F70="","",IF($Q70="",ROUND($F70/$R70*100*IF(初期設定!$J$22="税抜",1+初期設定!$J$21/100,1),$F70))) -> 3090.844167 | I70: =IF($D70="","",IF($E70="配水池《SUS》",初期設定!$M$29,VLOOKUP($D70,初期設定!$K$27:$N$33,3,FALSE))) -> 40 | J70: =IF($F70="","",IF($Q70="",ROUND($F70/$R70*100*IF(初期設定!$J$22="税抜",1+初期設定!$J$21/100,1),$F70))) -> 3090.844167 | L70: =IF(K70=1,ROUNDUP(J70*構造物・設備ダウンサイズ設定!$C$7/100,),J70) -> 3090.844167 | M70: =IF($D70="","",IF($E70="配水池《SUS》",初期設定!$N$29,VLOOKUP($D70,初期設定!$K$27:$N$33,4,FALSE))) -> 60 | N70: =IF($D70="","",IF($E70="配水池《SUS》",初期設定!$N$29,VLOOKUP($D70,初期設定!$K$27:$N$33,4,FALSE))) -> 60 | O70: =IF(F70="","",IFERROR($F70*IF($Y$46="税抜",1,(1+$Y$45/100))*MAX(1-(Y$43-$G70)/$I70,$Y$42),0)) -> 24.0845 | P70: =IF(F70="","",IFERROR($F70*IF($Y$46="税抜",1,(1+$Y$45/100))*MAX(1-($Y$44-$G70)/$I70,$Y$42),0)) -> 24.0845 | R70: =IF(G70="","",VLOOKUP(G70,様式1!$O$5:$P$220,2)) -> 17.14285714
C71: その他１ | D71: その他１ | F71: 228.148 | G71: 1965 | H71: =IF($F71="","",IF($Q71="",ROUND($F71/$R71*100*IF(初期設定!$J$22="税抜",1+初期設定!$J$21/100,1),$F71))) -> 1297.170591 | I71: =IF($D71="","",IF($E71="配水池《SUS》",初期設定!$M$29,VLOOKUP($D71,初期設定!$K$27:$N$33,3,FALSE))) -> 40 | J71: =IF($F71="","",IF($Q71="",ROUND($F71/$R71*100*IF(初期設定!$J$22="税抜",1+初期設定!$J$21/100,1),$F71))) -> 1297.170591 | L71: =IF(K71=1,ROUNDUP(J71*構造物・設備ダウンサイズ設定!$C$7/100,),J71) -> 1297.170591 | M71: =IF($D71="","",IF($E71="配水池《SUS》",初期設定!$N$29,VLOOKUP($D71,初期設定!$K$27:$N$33,4,FALSE))) -> 60 | N71: =IF($D71="","",IF($E71="配水池《SUS》",初期設定!$N$29,VLOOKUP($D71,初期設定!$K$27:$N$33,4,FALSE))) -> 60 | O71: 11.4074 | P71: 11.4074 | R71: =IF(G71="","",VLOOKUP(G71,様式1!$O$5:$P$220,2)) -> 19.34693878
C72: その他１ | D72: その他１ | F72: 88.86 | G72: 1962 | H72: =IF($F72="","",IF($Q72="",ROUND($F72/$R72*100*IF(初期設定!$J$22="税抜",1+初期設定!$J$21/100,1),$F72))) -> 549.2607798 | I72: =IF($D72="","",IF($E72="配水池《SUS》",初期設定!$M$29,VLOOKUP($D72,初期設定!$K$27:$N$33,3,FALSE))) -> 40 | J72: =IF($F72="","",IF($Q72="",ROUND($F72/$R72*100*IF(初期設定!$J$22="税抜",1+初期設定!$J$21/100,1),$F72))) -> 549.2607798 | L72: =IF(K72=1,ROUNDUP(J72*構造物・設備ダウンサイズ設定!$C$7/100,),J72) -> 549.2607798 | M72: =IF($D72="","",IF($E72="配水池《SUS》",初期設定!$N$29,VLOOKUP($D72,初期設定!$K$27:$N$33,4,FALSE))) -> 60 | N72: =IF($D72="","",IF($E72="配水池《SUS》",初期設定!$N$29,VLOOKUP($D72,初期設定!$K$27:$N$33,4,FALSE))) -> 60 | O72: 4.443 | P72: 4.443 | R72: =IF(G72="","",VLOOKUP(G72,様式1!$O$5:$P$220,2)) -> 17.79591837
C73: その他１ | D73: その他１ | F73: 39.165 | G73: 1964 | H73: =IF($F73="","",IF($Q73="",ROUND($F73/$R73*100*IF(初期設定!$J$22="税抜",1+初期設定!$J$21/100,1),$F73))) -> 229.4558152 | I73: =IF($D73="","",IF($E73="配水池《SUS》",初期設定!$M$29,VLOOKUP($D73,初期設定!$K$27:$N$33,3,FALSE))) -> 40 | J73: =IF($F73="","",IF($Q73="",ROUND($F73/$R73*100*IF(初期設定!$J$22="税抜",1+初期設定!$J$21/100,1),$F73))) -> 229.4558152 | L73: =IF(K73=1,ROUNDUP(J73*構造物・設備ダウンサイズ設定!$C$7/100,),J73) -> 229.4558152 | M73: =IF($D73="","",IF($E73="配水池《SUS》",初期設定!$N$29,VLOOKUP($D73,初期設定!$K$27:$N$33,4,FALSE))) -> 60 | N73: =IF($D73="","",IF($E73="配水池《SUS》",初期設定!$N$29,VLOOKUP($D73,初期設定!$K$27:$N$33,4,FALSE))) -> 60 | O73: 1.95825 | P73: 1.95825 | R73: =IF(G73="","",VLOOKUP(G73,様式1!$O$5:$P$220,2)) -> 18.7755102
C74: その他１ | D74: その他１ | F74: 452 | G74: 1970 | H74: =IF($F74="","",IF($Q74="",ROUND($F74/$R74*100*IF(初期設定!$J$22="税抜",1+初期設定!$J$21/100,1),$F74))) -> 1921.356467 | I74: =IF($D74="","",IF($E74="配水池《SUS》",初期設定!$M$29,VLOOKUP($D74,初期設定!$K$27:$N$33,3,FALSE))) -> 40 | J74: =IF($F74="","",IF($Q74="",ROUND($F74/$R74*100*IF(初期設定!$J$22="税抜",1+初期設定!$J$21/100,1),$F74))) -> 1921.356467 | L74: =IF(K74=1,ROUNDUP(J74*構造物・設備ダウンサイズ設定!$C$7/100,),J74) -> 1921.356467 | M74: =IF($D74="","",IF($E74="配水池《SUS》",初期設定!$N$29,VLOOKUP($D74,初期設定!$K$27:$N$33,4,FALSE))) -> 60 | N74: =IF($D74="","",IF($E74="配水池《SUS》",初期設定!$N$29,VLOOKUP($D74,初期設定!$K$27:$N$33,4,FALSE))) -> 60 | O74: 22.6 | P74: 22.6 | R74: =IF(G74="","",VLOOKUP(G74,様式1!$O$5:$P$220,2)) -> 25.87755102
C75: その他１ | D75: その他１ | F75: 1877.224 | G75: 1968 | H75: =IF($F75="","",IF($Q75="",ROUND($F75/$R75*100*IF(初期設定!$J$22="税抜",1+初期設定!$J$21/100,1),$F75))) -> 9198.3976 | I75: =IF($D75="","",IF($E75="配水池《SUS》",初期設定!$M$29,VLOOKUP($D75,初期設定!$K$27:$N$33,3,FALSE))) -> 40 | J75: =IF($F75="","",IF($Q75="",ROUND($F75/$R75*100*IF(初期設定!$J$22="税抜",1+初期設定!$J$21/100,1),$F75))) -> 9198.3976 | L75: =IF(K75=1,ROUNDUP(J75*構造物・設備ダウンサイズ設定!$C$7/100,),J75) -> 9198.3976 | M75: =IF($D75="","",IF($E75="配水池《SUS》",初期設定!$N$29,VLOOKUP($D75,初期設定!$K$27:$N$33,4,FALSE))) -> 60 | N75: =IF($D75="","",IF($E75="配水池《SUS》",初期設定!$N$29,VLOOKUP($D75,初期設定!$K$27:$N$33,4,FALSE))) -> 60 | O75: 93.8612 | P75: 93.8612 | R75: =IF(G75="","",VLOOKUP(G75,様式1!$O$5:$P$220,2)) -> 22.44897959
C76: その他１ | D76: その他１ | F76: 3972.452 | G76: 1972 | H76: =IF($F76="","",IF($Q76="",ROUND($F76/$R76*100*IF(初期設定!$J$22="税抜",1+初期設定!$J$21/100,1),$F76))) -> 15606.06143 | I76: =IF($D76="","",IF($E76="配水池《SUS》",初期設定!$M$29,VLOOKUP($D76,初期設定!$K$27:$N$33,3,FALSE))) -> 40 | J76: =IF($F76="","",IF($Q76="",ROUND($F76/$R76*100*IF(初期設定!$J$22="税抜",1+初期設定!$J$21/100,1),$F76))) -> 15606.06143 | L76: =IF(K76=1,ROUNDUP(J76*構造物・設備ダウンサイズ設定!$C$7/100,),J76) -> 15606.06143 | M76: =IF($D76="","",IF($E76="配水池《SUS》",初期設定!$N$29,VLOOKUP($D76,初期設定!$K$27:$N$33,4,FALSE))) -> 60 | N76: =IF($D76="","",IF($E76="配水池《SUS》",初期設定!$N$29,VLOOKUP($D76,初期設定!$K$27:$N$33,4,FALSE))) -> 60 | O76: 198.6226 | P76: 198.6226 | R76: =IF(G76="","",VLOOKUP(G76,様式1!$O$5:$P$220,2)) -> 28
C77: その他１ | D77: その他１ | F77: 4481.477 | G77: 1974 | H77: =IF($F77="","",IF($Q77="",ROUND($F77/$R77*100*IF(初期設定!$J$22="税抜",1+初期設定!$J$21/100,1),$F77))) -> 11372.48636 | I77: =IF($D77="","",IF($E77="配水池《SUS》",初期設定!$M$29,VLOOKUP($D77,初期設定!$K$27:$N$33,3,FALSE))) -> 40 | J77: =IF($F77="","",IF($Q77="",ROUND($F77/$R77*100*IF(初期設定!$J$22="税抜",1+初期設定!$J$21/100,1),$F77))) -> 11372.48636 | L77: =IF(K77=1,ROUNDUP(J77*構造物・設備ダウンサイズ設定!$C$7/100,),J77) -> 11372.48636 | M77: =IF($D77="","",IF($E77="配水池《SUS》",初期設定!$N$29,VLOOKUP($D77,初期設定!$K$27:$N$33,4,FALSE))) -> 60 | N77: =IF($D77="","",IF($E77="配水池《SUS》",初期設定!$N$29,VLOOKUP($D77,初期設定!$K$27:$N$33,4,FALSE))) -> 60 | O77: 224.07385 | P77: 224.07385 | R77: =IF(G77="","",VLOOKUP(G77,様式1!$O$5:$P$220,2)) -> 43.34693878
C78: その他１ | D78: その他１ | F78: 1500 | G78: 1978 | H78: =IF($F78="","",IF($Q78="",ROUND($F78/$R78*100*IF(初期設定!$J$22="税抜",1+初期設定!$J$21/100,1),$F78))) -> 3128.869969 | I78: =IF($D78="","",IF($E78="配水池《SUS》",初期設定!$M$29,VLOOKUP($D78,初期設定!$K$27:$N$33,3,FALSE))) -> 40 | J78: =IF($F78="","",IF($Q78="",ROUND($F78/$R78*100*IF(初期設定!$J$22="税抜",1+初期設定!$J$21/100,1),$F78))) -> 3128.869969 | L78: =IF(K78=1,ROUNDUP(J78*構造物・設備ダウンサイズ設定!$C$7/100,),J78) -> 3128.869969 | M78: =IF($D78="","",IF($E78="配水池《SUS》",初期設定!$N$29,VLOOKUP($D78,初期設定!$K$27:$N$33,4,FALSE))) -> 60 | N78: =IF($D78="","",IF($E78="配水池《SUS》",初期設定!$N$29,VLOOKUP($D78,初期設定!$K$27:$N$33,4,FALSE))) -> 60 | O78: 75 | P78: 75 | R78: =IF(G78="","",VLOOKUP(G78,様式1!$O$5:$P$220,2)) -> 52.73469388
C79: その他１ | D79: その他１ | F79: 12232.562 | G79: 1978 | H79: =IF($F79="","",IF($Q79="",ROUND($F79/$R79*100*IF(初期設定!$J$22="税抜",1+初期設定!$J$21/100,1),$F79))) -> 25516.06392 | I79: =IF($D79="","",IF($E79="配水池《SUS》",初期設定!$M$29,VLOOKUP($D79,初期設定!$K$27:$N$33,3,FALSE))) -> 40 | J79: =IF($F79="","",IF($Q79="",ROUND($F79/$R79*100*IF(初期設定!$J$22="税抜",1+初期設定!$J$21/100,1),$F79))) -> 25516.06392 | L79: =IF(K79=1,ROUNDUP(J79*構造物・設備ダウンサイズ設定!$C$7/100,),J79) -> 25516.06392 | M79: =IF($D79="","",IF($E79="配水池《SUS》",初期設定!$N$29,VLOOKUP($D79,初期設定!$K$27:$N$33,4,FALSE))) -> 60 | N79: =IF($D79="","",IF($E79="配水池《SUS》",初期設定!$N$29,VLOOKUP($D79,初期設定!$K$27:$N$33,4,FALSE))) -> 60 | O79: 611.6281 | P79: 611.6281 | R79: =IF(G79="","",VLOOKUP(G79,様式1!$O$5:$P$220,2)) -> 52.73469388
C80: その他１ | D80: その他１ | F80: 1700 | G80: 1979 | H80: =IF($F80="","",IF($Q80="",ROUND($F80/$R80*100*IF(初期設定!$J$22="税抜",1+初期設定!$J$21/100,1),$F80))) -> 3263.176638 | I80: =IF($D80="","",IF($E80="配水池《SUS》",初期設定!$M$29,VLOOKUP($D80,初期設定!$K$27:$N$33,3,FALSE))) -> 40 | J80: =IF($F80="","",IF($Q80="",ROUND($F80/$R80*100*IF(初期設定!$J$22="税抜",1+初期設定!$J$21/100,1),$F80))) -> 3263.176638 | L80: =IF(K80=1,ROUNDUP(J80*構造物・設備ダウンサイズ設定!$C$7/100,),J80) -> 3263.176638 | M80: =IF($D80="","",IF($E80="配水池《SUS》",初期設定!$N$29,VLOOKUP($D80,初期設定!$K$27:$N$33,4,FALSE))) -> 60 | N80: =IF($D80="","",IF($E80="配水池《SUS》",初期設定!$N$29,VLOOKUP($D80,初期設定!$K$27:$N$33,4,FALSE))) -> 60 | O80: 85 | P80: 85 | R80: =IF(G80="","",VLOOKUP(G80,様式1!$O$5:$P$220,2)) -> 57.30612245
C81: その他１ | D81: その他１ | F81: 3900 | G81: 1980 | H81: =IF($F81="","",IF($Q81="",ROUND($F81/$R81*100*IF(初期設定!$J$22="税抜",1+初期設定!$J$21/100,1),$F81))) -> 6869.607843 | I81: =IF($D81="","",IF($E81="配水池《SUS》",初期設定!$M$29,VLOOKUP($D81,初期設定!$K$27:$N$33,3,FALSE))) -> 40 | J81: =IF($F81="","",IF($Q81="",ROUND($F81/$R81*100*IF(初期設定!$J$22="税抜",1+初期設定!$J$21/100,1),$F81))) -> 6869.607843 | L81: =IF(K81=1,ROUNDUP(J81*構造物・設備ダウンサイズ設定!$C$7/100,),J81) -> 6869.607843 | M81: =IF($D81="","",IF($E81="配水池《SUS》",初期設定!$N$29,VLOOKUP($D81,初期設定!$K$27:$N$33,4,FALSE))) -> 60 | N81: =IF($D81="","",IF($E81="配水池《SUS》",初期設定!$N$29,VLOOKUP($D81,初期設定!$K$27:$N$33,4,FALSE))) -> 60 | O81: 195 | P81: 195 | R81: =IF(G81="","",VLOOKUP(G81,様式1!$O$5:$P$220,2)) -> 62.44897959
C82: その他１ | D82: その他１ | F82: 3874.84 | G82: 1981 | H82: =IF($F82="","",IF($Q82="",ROUND($F82/$R82*100*IF(初期設定!$J$22="税抜",1+初期設定!$J$21/100,1),$F82))) -> 6745.926227 | I82: =IF($D82="","",IF($E82="配水池《SUS》",初期設定!$M$29,VLOOKUP($D82,初期設定!$K$27:$N$33,3,FALSE))) -> 40 | J82: =IF($F82="","",IF($Q82="",ROUND($F82/$R82*100*IF(初期設定!$J$22="税抜",1+初期設定!$J$21/100,1),$F82))) -> 6745.926227 | L82: =IF(K82=1,ROUNDUP(J82*構造物・設備ダウンサイズ設定!$C$7/100,),J82) -> 6745.926227 | M82: =IF($D82="","",IF($E82="配水池《SUS》",初期設定!$N$29,VLOOKUP($D82,初期設定!$K$27:$N$33,4,FALSE))) -> 60 | N82: =IF($D82="","",IF($E82="配水池《SUS》",初期設定!$N$29,VLOOKUP($D82,初期設定!$K$27:$N$33,4,FALSE))) -> 60 | O82: 193.742 | P82: 193.742 | R82: =IF(G82="","",VLOOKUP(G82,様式1!$O$5:$P$220,2)) -> 63.18367347
C83: その他１ | D83: 土木 | F83: 6662.239 | G83: 1981 | H83: =IF($F83="","",IF($Q83="",ROUND($F83/$R83*100*IF(初期設定!$J$22="税抜",1+初期設定!$J$21/100,1),$F83))) -> 11598.66544 | I83: =IF($D83="","",IF($E83="配水池《SUS》",初期設定!$M$29,VLOOKUP($D83,初期設定!$K$27:$N$33,3,FALSE))) -> 60 | J83: =IF($F83="","",IF($Q83="",ROUND($F83/$R83*100*IF(初期設定!$J$22="税抜",1+初期設定!$J$21/100,1),$F83))) -> 11598.66544 | L83: =IF(K83=1,ROUNDUP(J83*構造物・設備ダウンサイズ設定!$C$7/100,),J83) -> 11598.66544 | M83: =IF($D83="","",IF($E83="配水池《SUS》",初期設定!$N$29,VLOOKUP($D83,初期設定!$K$27:$N$33,4,FALSE))) -> 73 | N83: =IF($D83="","",IF($E83="配水池《SUS》",初期設定!$N$29,VLOOKUP($D83,初期設定!$K$27:$N$33,4,FALSE))) -> 73 | O83: 1665.55975 | P83: 1221.410483 | R83: =IF(G83="","",VLOOKUP(G83,様式1!$O$5:$P$220,2)) -> 63.18367347
C84: その他１ | D84: その他１ | F84: 7318.353 | G84: 1982 | H84: =IF($F84="","",IF($Q84="",ROUND($F84/$R84*100*IF(初期設定!$J$22="税抜",1+初期設定!$J$21/100,1),$F84))) -> 12708.09364 | I84: =IF($D84="","",IF($E84="配水池《SUS》",初期設定!$M$29,VLOOKUP($D84,初期設定!$K$27:$N$33,3,FALSE))) -> 40 | J84: =IF($F84="","",IF($Q84="",ROUND($F84/$R84*100*IF(初期設定!$J$22="税抜",1+初期設定!$J$21/100,1),$F84))) -> 12708.09364 | L84: =IF(K84=1,ROUNDUP(J84*構造物・設備ダウンサイズ設定!$C$7/100,),J84) -> 12708.09364 | M84: =IF($D84="","",IF($E84="配水池《SUS》",初期設定!$N$29,VLOOKUP($D84,初期設定!$K$27:$N$33,4,FALSE))) -> 60 | N84: =IF($D84="","",IF($E84="配水池《SUS》",初期設定!$N$29,VLOOKUP($D84,初期設定!$K$27:$N$33,4,FALSE))) -> 60 | O84: 365.91765 | P84: 365.91765 | R84: =IF(G84="","",VLOOKUP(G84,様式1!$O$5:$P$220,2)) -> 63.34693878
C85: その他１ | D85: その他１ | F85: 4407.791 | G85: 1982 | H85: =IF($F85="","",IF($Q85="",ROUND($F85/$R85*100*IF(初期設定!$J$22="税抜",1+初期設定!$J$21/100,1),$F85))) -> 7653.992748 | I85: =IF($D85="","",IF($E85="配水池《SUS》",初期設定!$M$29,VLOOKUP($D85,初期設定!$K$27:$N$33,3,FALSE))) -> 40 | J85: =IF($F85="","",IF($Q85="",ROUND($F85/$R85*100*IF(初期設定!$J$22="税抜",1+初期設定!$J$21/100,1),$F85))) -> 7653.992748 | K85: 1 | L85: =IF(K85=1,ROUNDUP(J85*構造物・設備ダウンサイズ設定!$C$7/100,),J85) -> 6813 | M85: =IF($D85="","",IF($E85="配水池《SUS》",初期設定!$N$29,VLOOKUP($D85,初期設定!$K$27:$N$33,4,FALSE))) -> 60 | N85: =IF($D85="","",IF($E85="配水池《SUS》",初期設定!$N$29,VLOOKUP($D85,初期設定!$K$27:$N$33,4,FALSE))) -> 60 | O85: 220.38955 | P85: 220.38955 | R85: =IF(G85="","",VLOOKUP(G85,様式1!$O$5:$P$220,2)) -> 63.34693878
C86: その他１ | D86: その他１ | F86: 6369.68 | G86: 1990 | H86: =IF($F86="","",IF($Q86="",ROUND($F86/$R86*100*IF(初期設定!$J$22="税抜",1+初期設定!$J$21/100,1),$F86))) -> 10062.30223 | I86: =IF($D86="","",IF($E86="配水池《SUS》",初期設定!$M$29,VLOOKUP($D86,初期設定!$K$27:$N$33,3,FALSE))) -> 40 | J86: =IF($F86="","",IF($Q86="",ROUND($F86/$R86*100*IF(初期設定!$J$22="税抜",1+初期設定!$J$21/100,1),$F86))) -> 10062.30223 | K86: 1 | L86: =IF(K86=1,ROUNDUP(J86*構造物・設備ダウンサイズ設定!$C$7/100,),J86) -> 8956 | M86: =IF($D86="","",IF($E86="配水池《SUS》",初期設定!$N$29,VLOOKUP($D86,初期設定!$K$27:$N$33,4,FALSE))) -> 60 | N86: =IF($D86="","",IF($E86="配水池《SUS》",初期設定!$N$29,VLOOKUP($D86,初期設定!$K$27:$N$33,4,FALSE))) -> 60 | O86: 636.968 | P86: 318.484 | R86: =IF(G86="","",VLOOKUP(G86,様式1!$O$5:$P$220,2)) -> 69.63265306
C87: その他１ | D87: その他１ | F87: 4929.898 | G87: 1991 | H87: =IF($F87="","",IF($Q87="",ROUND($F87/$R87*100*IF(初期設定!$J$22="税抜",1+初期設定!$J$21/100,1),$F87))) -> 7583.376204 | I87: =IF($D87="","",IF($E87="配水池《SUS》",初期設定!$M$29,VLOOKUP($D87,初期設定!$K$27:$N$33,3,FALSE))) -> 40 | J87: =IF($F87="","",IF($Q87="",ROUND($F87/$R87*100*IF(初期設定!$J$22="税抜",1+初期設定!$J$21/100,1),$F87))) -> 7583.376204 | K87: 1 | L87: =IF(K87=1,ROUNDUP(J87*構造物・設備ダウンサイズ設定!$C$7/100,),J87) -> 6750 | M87: =IF($D87="","",IF($E87="配水池《SUS》",初期設定!$N$29,VLOOKUP($D87,初期設定!$K$27:$N$33,4,FALSE))) -> 60 | N87: =IF($D87="","",IF($E87="配水池《SUS》",初期設定!$N$29,VLOOKUP($D87,初期設定!$K$27:$N$33,4,FALSE))) -> 60 | O87: 616.23725 | P87: 246.4949 | R87: =IF(G87="","",VLOOKUP(G87,様式1!$O$5:$P$220,2)) -> 71.51020408
C88: その他１ | D88: その他１ | F88: 12910.989 | G88: 1997 | H88: =IF($F88="","",IF($Q88="",ROUND($F88/$R88*100*IF(初期設定!$J$22="税抜",1+初期設定!$J$21/100,1),$F88))) -> 19460.35534 | I88: =IF($D88="","",IF($E88="配水池《SUS》",初期設定!$M$29,VLOOKUP($D88,初期設定!$K$27:$N$33,3,FALSE))) -> 40 | J88: =IF($F88="","",IF($Q88="",ROUND($F88/$R88*100*IF(初期設定!$J$22="税抜",1+初期設定!$J$21/100,1),$F88))) -> 19460.35534 | K88: 1 | L88: =IF(K88=1,ROUNDUP(J88*構造物・設備ダウンサイズ設定!$C$7/100,),J88) -> 17320 | M88: =IF($D88="","",IF($E88="配水池《SUS》",初期設定!$N$29,VLOOKUP($D88,初期設定!$K$27:$N$33,4,FALSE))) -> 60 | N88: =IF($D88="","",IF($E88="配水池《SUS》",初期設定!$N$29,VLOOKUP($D88,初期設定!$K$27:$N$33,4,FALSE))) -> 60 | O88: 3550.521975 | P88: 2259.423075 | R88: =IF(G88="","",VLOOKUP(G88,様式1!$O$5:$P$220,2)) -> 72.97959184
C89: その他１ | D89: その他１ | F89: 9812.383 | G89: 1997 | H89: =IF($F89="","",IF($Q89="",ROUND($F89/$R89*100*IF(初期設定!$J$22="税抜",1+初期設定!$J$21/100,1),$F89))) -> 14789.91733 | I89: =IF($D89="","",IF($E89="配水池《SUS》",初期設定!$M$29,VLOOKUP($D89,初期設定!$K$27:$N$33,3,FALSE))) -> 40 | J89: =IF($F89="","",IF($Q89="",ROUND($F89/$R89*100*IF(初期設定!$J$22="税抜",1+初期設定!$J$21/100,1),$F89))) -> 14789.91733 | K89: 1 | L89: =IF(K89=1,ROUNDUP(J89*構造物・設備ダウンサイズ設定!$C$7/100,),J89) -> 13164 | M89: =IF($D89="","",IF($E89="配水池《SUS》",初期設定!$N$29,VLOOKUP($D89,初期設定!$K$27:$N$33,4,FALSE))) -> 60 | N89: =IF($D89="","",IF($E89="配水池《SUS》",初期設定!$N$29,VLOOKUP($D89,初期設定!$K$27:$N$33,4,FALSE))) -> 60 | O89: 2698.405325 | P89: 1717.167025 | R89: =IF(G89="","",VLOOKUP(G89,様式1!$O$5:$P$220,2)) -> 72.97959184
C90: その他１ | D90: その他１ | F90: 34017.556 | G90: 2000 | H90: =IF($F90="","",IF($Q90="",ROUND($F90/$R90*100*IF(初期設定!$J$22="税抜",1+初期設定!$J$21/100,1),$F90))) -> 52567.26687 | I90: =IF($D90="","",IF($E90="配水池《SUS》",初期設定!$M$29,VLOOKUP($D90,初期設定!$K$27:$N$33,3,FALSE))) -> 40 | J90: =IF($F90="","",IF($Q90="",ROUND($F90/$R90*100*IF(初期設定!$J$22="税抜",1+初期設定!$J$21/100,1),$F90))) -> 52567.26687 | K90: 1 | L90: =IF(K90=1,ROUNDUP(J90*構造物・設備ダウンサイズ設定!$C$7/100,),J90) -> 46785 | M90: =IF($D90="","",IF($E90="配水池《SUS》",初期設定!$N$29,VLOOKUP($D90,初期設定!$K$27:$N$33,4,FALSE))) -> 60 | N90: =IF($D90="","",IF($E90="配水池《SUS》",初期設定!$N$29,VLOOKUP($D90,初期設定!$K$27:$N$33,4,FALSE))) -> 60 | O90: 11906.1446 | P90: 8504.389 | R90: =IF(G90="","",VLOOKUP(G90,様式1!$O$5:$P$220,2)) -> 71.18367347
C91: その他１ | D91: その他１ | F91: 44942.881 | G91: 2002 | H91: =IF($F91="","",IF($Q91="",ROUND($F91/$R91*100*IF(初期設定!$J$22="税抜",1+初期設定!$J$21/100,1),$F91))) -> 71247.68488 | I91: =IF($D91="","",IF($E91="配水池《SUS》",初期設定!$M$29,VLOOKUP($D91,初期設定!$K$27:$N$33,3,FALSE))) -> 40 | J91: =IF($F91="","",IF($Q91="",ROUND($F91/$R91*100*IF(初期設定!$J$22="税抜",1+初期設定!$J$21/100,1),$F91))) -> 71247.68488 | K91: 1 | L91: =IF(K91=1,ROUNDUP(J91*構造物・設備ダウンサイズ設定!$C$7/100,),J91) -> 63411 | M91: =IF($D91="","",IF($E91="配水池《SUS》",初期設定!$N$29,VLOOKUP($D91,初期設定!$K$27:$N$33,4,FALSE))) -> 60 | N91: =IF($D91="","",IF($E91="配水池《SUS》",初期設定!$N$29,VLOOKUP($D91,初期設定!$K$27:$N$33,4,FALSE))) -> 60 | O91: 17977.1524 | P91: 13482.8643 | R91: =IF(G91="","",VLOOKUP(G91,様式1!$O$5:$P$220,2)) -> 69.3877551
C92: その他１ | D92: 機械 | F92: 747.787 | G92: 1970 | H92: =IF($F92="","",IF($Q92="",ROUND($F92/$R92*100*IF(初期設定!$J$22="税抜",1+初期設定!$J$21/100,1),$F92))) -> 3178.684487 | I92: =IF($D92="","",IF($E92="配水池《SUS》",初期設定!$M$29,VLOOKUP($D92,初期設定!$K$27:$N$33,3,FALSE))) -> 15 | J92: =IF($F92="","",IF($Q92="",ROUND($F92/$R92*100*IF(初期設定!$J$22="税抜",1+初期設定!$J$21/100,1),$F92))) -> 3178.684487 | K92: 1 | L92: =IF(K92=1,ROUNDUP(J92*構造物・設備ダウンサイズ設定!$C$7/100,),J92) -> 2830 | M92: =IF($D92="","",IF($E92="配水池《SUS》",初期設定!$N$29,VLOOKUP($D92,初期設定!$K$27:$N$33,4,FALSE))) -> 24 | N92: =IF($D92="","",IF($E92="配水池《SUS》",初期設定!$N$29,VLOOKUP($D92,初期設定!$K$27:$N$33,4,FALSE))) -> 24 | O92: 37.38935 | P92: 37.38935 | R92: =IF(G92="","",VLOOKUP(G92,様式1!$O$5:$P$220,2)) -> 25.87755102
C93: その他１ | D93: 電気 | F93: 585.077 | G93: 1970 | H93: =IF($F93="","",IF($Q93="",ROUND($F93/$R93*100*IF(初期設定!$J$22="税抜",1+初期設定!$J$21/100,1),$F93))) -> 2487.038667 | I93: =IF($D93="","",IF($E93="配水池《SUS》",初期設定!$M$29,VLOOKUP($D93,初期設定!$K$27:$N$33,3,FALSE))) -> 15 | J93: =IF($F93="","",IF($Q93="",ROUND($F93/$R93*100*IF(初期設定!$J$22="税抜",1+初期設定!$J$21/100,1),$F93))) -> 2487.038667 | K93: 1 | L93: =IF(K93=1,ROUNDUP(J93*構造物・設備ダウンサイズ設定!$C$7/100,),J93) -> 2214 | M93: =IF($D93="","",IF($E93="配水池《SUS》",初期設定!$N$29,VLOOKUP($D93,初期設定!$K$27:$N$33,4,FALSE))) -> 25 | N93: =IF($D93="","",IF($E93="配水池《SUS》",初期設定!$N$29,VLOOKUP($D93,初期設定!$K$27:$N$33,4,FALSE))) -> 25 | O93: 29.25385 | P93: 29.25385 | R93: =IF(G93="","",VLOOKUP(G93,様式1!$O$5:$P$220,2)) -> 25.87755102
C94: その他１ | D94: 機械 | F94: 2291.696 | G94: 1971 | H94: =IF($F94="","",IF($Q94="",ROUND($F94/$R94*100*IF(初期設定!$J$22="税抜",1+初期設定!$J$21/100,1),$F94))) -> 9531.050494 | I94: =IF($D94="","",IF($E94="配水池《SUS》",初期設定!$M$29,VLOOKUP($D94,初期設定!$K$27:$N$33,3,FALSE))) -> 15 | J94: =IF($F94="","",IF($Q94="",ROUND($F94/$R94*100*IF(初期設定!$J$22="税抜",1+初期設定!$J$21/100,1),$F94))) -> 9531.050494 | K94: 1 | L94: =IF(K94=1,ROUNDUP(J94*構造物・設備ダウンサイズ設定!$C$7/100,),J94) -> 8483 | M94: =IF($D94="","",IF($E94="配水池《SUS》",初期設定!$N$29,VLOOKUP($D94,初期設定!$K$27:$N$33,4,FALSE))) -> 24 | N94: =IF($D94="","",IF($E94="配水池《SUS》",初期設定!$N$29,VLOOKUP($D94,初期設定!$K$27:$N$33,4,FALSE))) -> 24 | O94: 114.5848 | P94: 114.5848 | R94: =IF(G94="","",VLOOKUP(G94,様式1!$O$5:$P$220,2)) -> 26.44897959
C95: その他１ | D95: 機械 | F95: 5073.353 | G95: 1971 | H95: =IF($F95="","",IF($Q95="",ROUND($F95/$R95*100*IF(初期設定!$J$22="税抜",1+初期設定!$J$21/100,1),$F95))) -> 21099.82459 | I95: =IF($D95="","",IF($E95="配水池《SUS》",初期設定!$M$29,VLOOKUP($D95,初期設定!$K$27:$N$33,3,FALSE))) -> 15 | J95: =IF($F95="","",IF($Q95="",ROUND($F95/$R95*100*IF(初期設定!$J$22="税抜",1+初期設定!$J$21/100,1),$F95))) -> 21099.82459 | K95: 1 | L95: =IF(K95=1,ROUNDUP(J95*構造物・設備ダウンサイズ設定!$C$7/100,),J95) -> 18779 | M95: =IF($D95="","",IF($E95="配水池《SUS》",初期設定!$N$29,VLOOKUP($D95,初期設定!$K$27:$N$33,4,FALSE))) -> 24 | N95: =IF($D95="","",IF($E95="配水池《SUS》",初期設定!$N$29,VLOOKUP($D95,初期設定!$K$27:$N$33,4,FALSE))) -> 24 | O95: 253.66765 | P95: 253.66765 | R95: =IF(G95="","",VLOOKUP(G95,様式1!$O$5:$P$220,2)) -> 26.44897959
C96: その他１ | D96: 電気 | F96: 6938.786 | G96: 1971 | H96: =IF($F96="","",IF($Q96="",ROUND($F96/$R96*100*IF(初期設定!$J$22="税抜",1+初期設定!$J$21/100,1),$F96))) -> 28858.06832 | I96: =IF($D96="","",IF($E96="配水池《SUS》",初期設定!$M$29,VLOOKUP($D96,初期設定!$K$27:$N$33,3,FALSE))) -> 15 | J96: =IF($F96="","",IF($Q96="",ROUND($F96/$R96*100*IF(初期設定!$J$22="税抜",1+初期設定!$J$21/100,1),$F96))) -> 28858.06832 | K96: 1 | L96: =IF(K96=1,ROUNDUP(J96*構造物・設備ダウンサイズ設定!$C$7/100,),J96) -> 25684 | M96: =IF($D96="","",IF($E96="配水池《SUS》",初期設定!$N$29,VLOOKUP($D96,初期設定!$K$27:$N$33,4,FALSE))) -> 25 | N96: =IF($D96="","",IF($E96="配水池《SUS》",初期設定!$N$29,VLOOKUP($D96,初期設定!$K$27:$N$33,4,FALSE))) -> 25 | O96: 346.9393 | P96: 346.9393 | R96: =IF(G96="","",VLOOKUP(G96,様式1!$O$5:$P$220,2)) -> 26.44897959
C97: その他１ | D97: 機械 | F97: 446.66 | G97: 1968 | H97: =IF($F97="","",IF($Q97="",ROUND($F97/$R97*100*IF(初期設定!$J$22="税抜",1+初期設定!$J$21/100,1),$F97))) -> 2188.634 | I97: =IF($D97="","",IF($E97="配水池《SUS》",初期設定!$M$29,VLOOKUP($D97,初期設定!$K$27:$N$33,3,FALSE))) -> 15 | J97: =IF($F97="","",IF($Q97="",ROUND($F97/$R97*100*IF(初期設定!$J$22="税抜",1+初期設定!$J$21/100,1),$F97))) -> 2188.634 | K97: 1 | L97: =IF(K97=1,ROUNDUP(J97*構造物・設備ダウンサイズ設定!$C$7/100,),J97) -> 1948 | M97: =IF($D97="","",IF($E97="配水池《SUS》",初期設定!$N$29,VLOOKUP($D97,初期設定!$K$27:$N$33,4,FALSE))) -> 24 | N97: =IF($D97="","",IF($E97="配水池《SUS》",初期設定!$N$29,VLOOKUP($D97,初期設定!$K$27:$N$33,4,FALSE))) -> 24 | O97: 22.333 | P97: 22.333 | R97: =IF(G97="","",VLOOKUP(G97,様式1!$O$5:$P$220,2)) -> 22.44897959
C98: その他１ | D98: 機械 | F98: 7374.18 | G98: 1972 | H98: =IF($F98="","",IF($Q98="",ROUND($F98/$R98*100*IF(初期設定!$J$22="税抜",1+初期設定!$J$21/100,1),$F98))) -> 28969.99286 | I98: =IF($D98="","",IF($E98="配水池《SUS》",初期設定!$M$29,VLOOKUP($D98,初期設定!$K$27:$N$33,3,FALSE))) -> 15 | J98: =IF($F98="","",IF($Q98="",ROUND($F98/$R98*100*IF(初期設定!$J$22="税抜",1+初期設定!$J$21/100,1),$F98))) -> 28969.99286 | K98: 1 | L98: =IF(K98=1,ROUNDUP(J98*構造物・設備ダウンサイズ設定!$C$7/100,),J98) -> 25784 | M98: =IF($D98="","",IF($E98="配水池《SUS》",初期設定!$N$29,VLOOKUP($D98,初期設定!$K$27:$N$33,4,FALSE))) -> 24 | N98: =IF($D98="","",IF($E98="配水池《SUS》",初期設定!$N$29,VLOOKUP($D98,初期設定!$K$27:$N$33,4,FALSE))) -> 24 | O98: 368.709 | P98: 368.709 | R98: =IF(G98="","",VLOOKUP(G98,様式1!$O$5:$P$220,2)) -> 28
C99: その他１ | D99: 機械 | F99: 48037.579 | G99: 1972 | H99: =IF($F99="","",IF($Q99="",ROUND($F99/$R99*100*IF(初期設定!$J$22="税抜",1+初期設定!$J$21/100,1),$F99))) -> 188719.0604 | I99: =IF($D99="","",IF($E99="配水池《SUS》",初期設定!$M$29,VLOOKUP($D99,初期設定!$K$27:$N$33,3,FALSE))) -> 15 | J99: =IF($F99="","",IF($Q99="",ROUND($F99/$R99*100*IF(初期設定!$J$22="税抜",1+初期設定!$J$21/100,1),$F99))) -> 188719.0604 | K99: 1 | L99: =IF(K99=1,ROUNDUP(J99*構造物・設備ダウンサイズ設定!$C$7/100,),J99) -> 167960 | M99: =IF($D99="","",IF($E99="配水池《SUS》",初期設定!$N$29,VLOOKUP($D99,初期設定!$K$27:$N$33,4,FALSE))) -> 24 | N99: =IF($D99="","",IF($E99="配水池《SUS》",初期設定!$N$29,VLOOKUP($D99,初期設定!$K$27:$N$33,4,FALSE))) -> 24 | O99: 2401.87895 | P99: 2401.87895 | R99: =IF(G99="","",VLOOKUP(G99,様式1!$O$5:$P$220,2)) -> 28
C100: その他１ | D100: 土木 | F100: 35963.755 | G100: 2003 | H100: =IF($F100="","",IF($Q100="",ROUND($F100/$R100*100*IF(初期設定!$J$22="税抜",1+初期設定!$J$21/100,1),$F100))) -> 56350.18589 | I100: =IF($D100="","",IF($E100="配水池《SUS》",初期設定!$M$29,VLOOKUP($D100,初期設定!$K$27:$N$33,3,FALSE))) -> 60 | J100: =IF($F100="","",IF($Q100="",ROUND($F100/$R100*100*IF(初期設定!$J$22="税抜",1+初期設定!$J$21/100,1),$F100))) -> 56350.18589 | K100: 1 | L100: =IF(K100=1,ROUNDUP(J100*構造物・設備ダウンサイズ設定!$C$7/100,),J100) -> 50152 | M100: =IF($D100="","",IF($E100="配水池《SUS》",初期設定!$N$29,VLOOKUP($D100,初期設定!$K$27:$N$33,4,FALSE))) -> 73 | N100: =IF($D100="","",IF($E100="配水池《SUS》",初期設定!$N$29,VLOOKUP($D100,初期設定!$K$27:$N$33,4,FALSE))) -> 73 | O100: 22177.64892 | P100: 19780.06525 | R100: =IF(G100="","",VLOOKUP(G100,様式1!$O$5:$P$220,2)) -> 70.20408163
C101: その他１ | D101: 土木 | F101: 35924.55 | G101: 2004 | H101: =IF($F101="","",IF($Q101="",ROUND($F101/$R101*100*IF(初期設定!$J$22="税抜",1+初期設定!$J$21/100,1),$F101))) -> 55323.807 | I101: =IF($D101="","",IF($E101="配水池《SUS》",初期設定!$M$29,VLOOKUP($D101,初期設定!$K$27:$N$33,3,FALSE))) -> 60 | J101: =IF($F101="","",IF($Q101="",ROUND($F101/$R101*100*IF(初期設定!$J$22="税抜",1+初期設定!$J$21/100,1),$F101))) -> 55323.807 | K101: 1 | L101: =IF(K101=1,ROUNDUP(J101*構造物・設備ダウンサイズ設定!$C$7/100,),J101) -> 49239 | M101: =IF($D101="","",IF($E101="配水池《SUS》",初期設定!$N$29,VLOOKUP($D101,初期設定!$K$27:$N$33,4,FALSE))) -> 73 | N101: =IF($D101="","",IF($E101="配水池《SUS》",初期設定!$N$29,VLOOKUP($D101,初期設定!$K$27:$N$33,4,FALSE))) -> 73 | O101: 22752.215 | P101: 20357.245 | R101: =IF(G101="","",VLOOKUP(G101,様式1!$O$5:$P$220,2)) -> 71.42857143
C102: その他１ | D102: 電気 | F102: 96090.464 | G102: 2005 | H102: =IF($F102="","",IF($Q102="",ROUND($F102/$R102*100*IF(初期設定!$J$22="税抜",1+初期設定!$J$21/100,1),$F102))) -> 145485.2812 | I102: =IF($D102="","",IF($E102="配水池《SUS》",初期設定!$M$29,VLOOKUP($D102,初期設定!$K$27:$N$33,3,FALSE))) -> 15 | J102: =IF($F102="","",IF($Q102="",ROUND($F102/$R102*100*IF(初期設定!$J$22="税抜",1+初期設定!$J$21/100,1),$F102))) -> 145485.2812 | K102: 1 | L102: =IF(K102=1,ROUNDUP(J102*構造物・設備ダウンサイズ設定!$C$7/100,),J102) -> 129482 | M102: =IF($D102="","",IF($E102="配水池《SUS》",初期設定!$N$29,VLOOKUP($D102,初期設定!$K$27:$N$33,4,FALSE))) -> 25 | N102: =IF($D102="","",IF($E102="配水池《SUS》",初期設定!$N$29,VLOOKUP($D102,初期設定!$K$27:$N$33,4,FALSE))) -> 25 | O102: 4804.5232 | P102: 4804.5232 | R102: =IF(G102="","",VLOOKUP(G102,様式1!$O$5:$P$220,2)) -> 72.65306122
C103: その他１ | D103: 機械 | F103: 4202.799 | G103: 1972 | H103: =IF($F103="","",IF($Q103="",ROUND($F103/$R103*100*IF(初期設定!$J$22="税抜",1+初期設定!$J$21/100,1),$F103))) -> 16510.99607 | I103: =IF($D103="","",IF($E103="配水池《SUS》",初期設定!$M$29,VLOOKUP($D103,初期設定!$K$27:$N$33,3,FALSE))) -> 15 | J103: =IF($F103="","",IF($Q103="",ROUND($F103/$R103*100*IF(初期設定!$J$22="税抜",1+初期設定!$J$21/100,1),$F103))) -> 16510.99607 | K103: 1 | L103: =IF(K103=1,ROUNDUP(J103*構造物・設備ダウンサイズ設定!$C$7/100,),J103) -> 14695 | M103: =IF($D103="","",IF($E103="配水池《SUS》",初期設定!$N$29,VLOOKUP($D103,初期設定!$K$27:$N$33,4,FALSE))) -> 24 | N103: =IF($D103="","",IF($E103="配水池《SUS》",初期設定!$N$29,VLOOKUP($D103,初期設定!$K$27:$N$33,4,FALSE))) -> 24 | O103: 210.13995 | P103: 210.13995 | R103: =IF(G103="","",VLOOKUP(G103,様式1!$O$5:$P$220,2)) -> 28
C104: その他１ | D104: 計装 | F104: 0 | G104: 1972 | H104: =IF($F104="","",IF($Q104="",ROUND($F104/$R104*100*IF(初期設定!$J$22="税抜",1+初期設定!$J$21/100,1),$F104))) -> 0 | I104: =IF($D104="","",IF($E104="配水池《SUS》",初期設定!$M$29,VLOOKUP($D104,初期設定!$K$27:$N$33,3,FALSE))) -> 15 | J104: =IF($F104="","",IF($Q104="",ROUND($F104/$R104*100*IF(初期設定!$J$22="税抜",1+初期設定!$J$21/100,1),$F104))) -> 0 | K104: 1 | L104: =IF(K104=1,ROUNDUP(J104*構造物・設備ダウンサイズ設定!$C$7/100,),J104) -> 0 | M104: =IF($D104="","",IF($E104="配水池《SUS》",初期設定!$N$29,VLOOKUP($D104,初期設定!$K$27:$N$33,4,FALSE))) -> 21 | N104: =IF($D104="","",IF($E104="配水池《SUS》",初期設定!$N$29,VLOOKUP($D104,初期設定!$K$27:$N$33,4,FALSE))) -> 21 | O104: 0 | P104: 0 | R104: =IF(G104="","",VLOOKUP(G104,様式1!$O$5:$P$220,2)) -> 28
C105: その他１ | D105: 機械 | F105: 4020.784 | G105: 1974 | H105: =IF($F105="","",IF($Q105="",ROUND($F105/$R105*100*IF(初期設定!$J$22="税抜",1+初期設定!$J$21/100,1),$F105))) -> 10203.40196 | I105: =IF($D105="","",IF($E105="配水池《SUS》",初期設定!$M$29,VLOOKUP($D105,初期設定!$K$27:$N$33,3,FALSE))) -> 15 | J105: =IF($F105="","",IF($Q105="",ROUND($F105/$R105*100*IF(初期設定!$J$22="税抜",1+初期設定!$J$21/100,1),$F105))) -> 10203.40196 | L105: =IF(K105=1,ROUNDUP(J105*構造物・設備ダウンサイズ設定!$C$7/100,),J105) -> 10203.40196 | M105: =IF($D105="","",IF($E105="配水池《SUS》",初期設定!$N$29,VLOOKUP($D105,初期設定!$K$27:$N$33,4,FALSE))) -> 24 | N105: =IF($D105="","",IF($E105="配水池《SUS》",初期設定!$N$29,VLOOKUP($D105,初期設定!$K$27:$N$33,4,FALSE))) -> 24 | O105: 201.0392 | P105: 201.0392 | R105: =IF(G105="","",VLOOKUP(G105,様式1!$O$5:$P$220,2)) -> 43.34693878
C106: その他１ | D106: 電気 | F106: 29447.36 | G106: 1974 | H106: =IF($F106="","",IF($Q106="",ROUND($F106/$R106*100*IF(初期設定!$J$22="税抜",1+初期設定!$J$21/100,1),$F106))) -> 74727.52844 | I106: =IF($D106="","",IF($E106="配水池《SUS》",初期設定!$M$29,VLOOKUP($D106,初期設定!$K$27:$N$33,3,FALSE))) -> 15 | J106: =IF($F106="","",IF($Q106="",ROUND($F106/$R106*100*IF(初期設定!$J$22="税抜",1+初期設定!$J$21/100,1),$F106))) -> 74727.52844 | L106: =IF(K106=1,ROUNDUP(J106*構造物・設備ダウンサイズ設定!$C$7/100,),J106) -> 74727.52844 | M106: =IF($D106="","",IF($E106="配水池《SUS》",初期設定!$N$29,VLOOKUP($D106,初期設定!$K$27:$N$33,4,FALSE))) -> 25 | N106: =IF($D106="","",IF($E106="配水池《SUS》",初期設定!$N$29,VLOOKUP($D106,初期設定!$K$27:$N$33,4,FALSE))) -> 25 | O106: 1472.368 | P106: 1472.368 | R106: =IF(G106="","",VLOOKUP(G106,様式1!$O$5:$P$220,2)) -> 43.34693878
C107: その他１ | D107: 機械 | F107: 54230.741 | G107: 1974 | H107: =IF($F107="","",IF($Q107="",ROUND($F107/$R107*100*IF(初期設定!$J$22="税抜",1+初期設定!$J$21/100,1),$F107))) -> 137619.4416 | I107: =IF($D107="","",IF($E107="配水池《SUS》",初期設定!$M$29,VLOOKUP($D107,初期設定!$K$27:$N$33,3,FALSE))) -> 15 | J107: =IF($F107="","",IF($Q107="",ROUND($F107/$R107*100*IF(初期設定!$J$22="税抜",1+初期設定!$J$21/100,1),$F107))) -> 137619.4416 | L107: =IF(K107=1,ROUNDUP(J107*構造物・設備ダウンサイズ設定!$C$7/100,),J107) -> 137619.4416 | M107: =IF($D107="","",IF($E107="配水池《SUS》",初期設定!$N$29,VLOOKUP($D107,初期設定!$K$27:$N$33,4,FALSE))) -> 24 | N107: =IF($D107="","",IF($E107="配水池《SUS》",初期設定!$N$29,VLOOKUP($D107,初期設定!$K$27:$N$33,4,FALSE))) -> 24 | O107: 2711.53705 | P107: 2711.53705 | R107: =IF(G107="","",VLOOKUP(G107,様式1!$O$5:$P$220,2)) -> 43.34693878
C108: その他１ | D108: 機械 | F108: 14639.72 | G108: 1976 | H108: =IF($F108="","",IF($Q108="",ROUND($F108/$R108*100*IF(初期設定!$J$22="税抜",1+初期設定!$J$21/100,1),$F108))) -> 34248.3033 | I108: =IF($D108="","",IF($E108="配水池《SUS》",初期設定!$M$29,VLOOKUP($D108,初期設定!$K$27:$N$33,3,FALSE))) -> 15 | J108: =IF($F108="","",IF($Q108="",ROUND($F108/$R108*100*IF(初期設定!$J$22="税抜",1+初期設定!$J$21/100,1),$F108))) -> 34248.3033 | L108: =IF(K108=1,ROUNDUP(J108*構造物・設備ダウンサイズ設定!$C$7/100,),J108) -> 34248.3033 | M108: =IF($D108="","",IF($E108="配水池《SUS》",初期設定!$N$29,VLOOKUP($D108,初期設定!$K$27:$N$33,4,FALSE))) -> 24 | N108: =IF($D108="","",IF($E108="配水池《SUS》",初期設定!$N$29,VLOOKUP($D108,初期設定!$K$27:$N$33,4,FALSE))) -> 24 | O108: 731.986 | P108: 731.986 | R108: =IF(G108="","",VLOOKUP(G108,様式1!$O$5:$P$220,2)) -> 47.02040816
C109: その他１ | D109: 電気 | F109: 29631.185 | G109: 1976 | H109: =IF($F109="","",IF($Q109="",ROUND($F109/$R109*100*IF(初期設定!$J$22="税抜",1+初期設定!$J$21/100,1),$F109))) -> 69319.48227 | I109: =IF($D109="","",IF($E109="配水池《SUS》",初期設定!$M$29,VLOOKUP($D109,初期設定!$K$27:$N$33,3,FALSE))) -> 15 | J109: =IF($F109="","",IF($Q109="",ROUND($F109/$R109*100*IF(初期設定!$J$22="税抜",1+初期設定!$J$21/100,1),$F109))) -> 69319.48227 | L109: =IF(K109=1,ROUNDUP(J109*構造物・設備ダウンサイズ設定!$C$7/100,),J109) -> 69319.48227 | M109: =IF($D109="","",IF($E109="配水池《SUS》",初期設定!$N$29,VLOOKUP($D109,初期設定!$K$27:$N$33,4,FALSE))) -> 25 | N109: =IF($D109="","",IF($E109="配水池《SUS》",初期設定!$N$29,VLOOKUP($D109,初期設定!$K$27:$N$33,4,FALSE))) -> 25 | O109: 1481.55925 | P109: 1481.55925 | R109: =IF(G109="","",VLOOKUP(G109,様式1!$O$5:$P$220,2)) -> 47.02040816
C110: その他１ | D110: 機械 | F110: 3223.817 | G110: 1978 | H110: =IF($F110="","",IF($Q110="",ROUND($F110/$R110*100*IF(初期設定!$J$22="税抜",1+初期設定!$J$21/100,1),$F110))) -> 6724.602798 | I110: =IF($D110="","",IF($E110="配水池《SUS》",初期設定!$M$29,VLOOKUP($D110,初期設定!$K$27:$N$33,3,FALSE))) -> 15 | J110: =IF($F110="","",IF($Q110="",ROUND($F110/$R110*100*IF(初期設定!$J$22="税抜",1+初期設定!$J$21/100,1),$F110))) -> 6724.602798 | L110: =IF(K110=1,ROUNDUP(J110*構造物・設備ダウンサイズ設定!$C$7/100,),J110) -> 6724.602798 | M110: =IF($D110="","",IF($E110="配水池《SUS》",初期設定!$N$29,VLOOKUP($D110,初期設定!$K$27:$N$33,4,FALSE))) -> 24 | N110: =IF($D110="","",IF($E110="配水池《SUS》",初期設定!$N$29,VLOOKUP($D110,初期設定!$K$27:$N$33,4,FALSE))) -> 24 | O110: 161.19085 | P110: 161.19085 | R110: =IF(G110="","",VLOOKUP(G110,様式1!$O$5:$P$220,2)) -> 52.73469388
C111: その他１ | D111: 電気 | F111: 5384.244 | G111: 1978 | H111: =IF($F111="","",IF($Q111="",ROUND($F111/$R111*100*IF(初期設定!$J$22="税抜",1+初期設定!$J$21/100,1),$F111))) -> 11231.06624 | I111: =IF($D111="","",IF($E111="配水池《SUS》",初期設定!$M$29,VLOOKUP($D111,初期設定!$K$27:$N$33,3,FALSE))) -> 15 | J111: =IF($F111="","",IF($Q111="",ROUND($F111/$R111*100*IF(初期設定!$J$22="税抜",1+初期設定!$J$21/100,1),$F111))) -> 11231.06624 | L111: =IF(K111=1,ROUNDUP(J111*構造物・設備ダウンサイズ設定!$C$7/100,),J111) -> 11231.06624 | M111: =IF($D111="","",IF($E111="配水池《SUS》",初期設定!$N$29,VLOOKUP($D111,初期設定!$K$27:$N$33,4,FALSE))) -> 25 | N111: =IF($D111="","",IF($E111="配水池《SUS》",初期設定!$N$29,VLOOKUP($D111,初期設定!$K$27:$N$33,4,FALSE))) -> 25 | O111: 269.2122 | P111: 269.2122 | R111: =IF(G111="","",VLOOKUP(G111,様式1!$O$5:$P$220,2)) -> 52.73469388
C112: その他１ | D112: 機械 | F112: 7618.078 | G112: 1978 | H112: =IF($F112="","",IF($Q112="",ROUND($F112/$R112*100*IF(初期設定!$J$22="税抜",1+初期設定!$J$21/100,1),$F112))) -> 15890.65032 | I112: =IF($D112="","",IF($E112="配水池《SUS》",初期設定!$M$29,VLOOKUP($D112,初期設定!$K$27:$N$33,3,FALSE))) -> 15 | J112: =IF($F112="","",IF($Q112="",ROUND($F112/$R112*100*IF(初期設定!$J$22="税抜",1+初期設定!$J$21/100,1),$F112))) -> 15890.65032 | L112: =IF(K112=1,ROUNDUP(J112*構造物・設備ダウンサイズ設定!$C$7/100,),J112) -> 15890.65032 | M112: =IF($D112="","",IF($E112="配水池《SUS》",初期設定!$N$29,VLOOKUP($D112,初期設定!$K$27:$N$33,4,FALSE))) -> 24 | N112: =IF($D112="","",IF($E112="配水池《SUS》",初期設定!$N$29,VLOOKUP($D112,初期設定!$K$27:$N$33,4,FALSE))) -> 24 | O112: 380.9039 | P112: 380.9039 | R112: =IF(G112="","",VLOOKUP(G112,様式1!$O$5:$P$220,2)) -> 52.73469388
C113: その他１ | D113: 計装 | F113: 8956.748 | G113: 1978 | H113: =IF($F113="","",IF($Q113="",ROUND($F113/$R113*100*IF(初期設定!$J$22="税抜",1+初期設定!$J$21/100,1),$F113))) -> 18682.99989 | I113: =IF($D113="","",IF($E113="配水池《SUS》",初期設定!$M$29,VLOOKUP($D113,初期設定!$K$27:$N$33,3,FALSE))) -> 15 | J113: =IF($F113="","",IF($Q113="",ROUND($F113/$R113*100*IF(初期設定!$J$22="税抜",1+初期設定!$J$21/100,1),$F113))) -> 18682.99989 | L113: =IF(K113=1,ROUNDUP(J113*構造物・設備ダウンサイズ設定!$C$7/100,),J113) -> 18682.99989 | M113: =IF($D113="","",IF($E113="配水池《SUS》",初期設定!$N$29,VLOOKUP($D113,初期設定!$K$27:$N$33,4,FALSE))) -> 21 | N113: =IF($D113="","",IF($E113="配水池《SUS》",初期設定!$N$29,VLOOKUP($D113,初期設定!$K$27:$N$33,4,FALSE))) -> 21 | O113: 447.8374 | P113: 447.8374 | R113: =IF(G113="","",VLOOKUP(G113,様式1!$O$5:$P$220,2)) -> 52.73469388
C114: その他１ | D114: 機械 | F114: 3792.789 | G114: 1979 | H114: =IF($F114="","",IF($Q114="",ROUND($F114/$R114*100*IF(初期設定!$J$22="税抜",1+初期設定!$J$21/100,1),$F114))) -> 7280.317917 | I114: =IF($D114="","",IF($E114="配水池《SUS》",初期設定!$M$29,VLOOKUP($D114,初期設定!$K$27:$N$33,3,FALSE))) -> 15 | J114: =IF($F114="","",IF($Q114="",ROUND($F114/$R114*100*IF(初期設定!$J$22="税抜",1+初期設定!$J$21/100,1),$F114))) -> 7280.317917 | L114: =IF(K114=1,ROUNDUP(J114*構造物・設備ダウンサイズ設定!$C$7/100,),J114) -> 7280.317917 | M114: =IF($D114="","",IF($E114="配水池《SUS》",初期設定!$N$29,VLOOKUP($D114,初期設定!$K$27:$N$33,4,FALSE))) -> 24 | N114: =IF($D114="","",IF($E114="配水池《SUS》",初期設定!$N$29,VLOOKUP($D114,初期設定!$K$27:$N$33,4,FALSE))) -> 24 | O114: 189.63945 | P114: 189.63945 | R114: =IF(G114="","",VLOOKUP(G114,様式1!$O$5:$P$220,2)) -> 57.30612245
C115: その他１ | D115: 電気 | F115: 5013.684 | G115: 1979 | H115: =IF($F115="","",IF($Q115="",ROUND($F115/$R115*100*IF(初期設定!$J$22="税抜",1+初期設定!$J$21/100,1),$F115))) -> 9623.845 | I115: =IF($D115="","",IF($E115="配水池《SUS》",初期設定!$M$29,VLOOKUP($D115,初期設定!$K$27:$N$33,3,FALSE))) -> 15 | J115: =IF($F115="","",IF($Q115="",ROUND($F115/$R115*100*IF(初期設定!$J$22="税抜",1+初期設定!$J$21/100,1),$F115))) -> 9623.845 | L115: =IF(K115=1,ROUNDUP(J115*構造物・設備ダウンサイズ設定!$C$7/100,),J115) -> 9623.845 | M115: =IF($D115="","",IF($E115="配水池《SUS》",初期設定!$N$29,VLOOKUP($D115,初期設定!$K$27:$N$33,4,FALSE))) -> 25 | N115: =IF($D115="","",IF($E115="配水池《SUS》",初期設定!$N$29,VLOOKUP($D115,初期設定!$K$27:$N$33,4,FALSE))) -> 25 | O115: 250.6842 | P115: 250.6842 | R115: =IF(G115="","",VLOOKUP(G115,様式1!$O$5:$P$220,2)) -> 57.30612245
C116: その他１ | D116: 機械 | F116: 1901.644 | G116: 1981 | H116: =IF($F116="","",IF($Q116="",ROUND($F116/$R116*100*IF(初期設定!$J$22="税抜",1+初期設定!$J$21/100,1),$F116))) -> 3310.678669 | I116: =IF($D116="","",IF($E116="配水池《SUS》",初期設定!$M$29,VLOOKUP($D116,初期設定!$K$27:$N$33,3,FALSE))) -> 15 | J116: =IF($F116="","",IF($Q116="",ROUND($F116/$R116*100*IF(初期設定!$J$22="税抜",1+初期設定!$J$21/100,1),$F116))) -> 3310.678669 | L116: =IF(K116=1,ROUNDUP(J116*構造物・設備ダウンサイズ設定!$C$7/100,),J116) -> 3310.678669 | M116: =IF($D116="","",IF($E116="配水池《SUS》",初期設定!$N$29,VLOOKUP($D116,初期設定!$K$27:$N$33,4,FALSE))) -> 24 | N116: =IF($D116="","",IF($E116="配水池《SUS》",初期設定!$N$29,VLOOKUP($D116,初期設定!$K$27:$N$33,4,FALSE))) -> 24 | O116: 95.0822 | P116: 95.0822 | R116: =IF(G116="","",VLOOKUP(G116,様式1!$O$5:$P$220,2)) -> 63.18367347
C117: その他１ | D117: 機械 | F117: 2705.365 | G117: 1981 | H117: =IF($F117="","",IF($Q117="",ROUND($F117/$R117*100*IF(初期設定!$J$22="税抜",1+初期設定!$J$21/100,1),$F117))) -> 4709.921625 | I117: =IF($D117="","",IF($E117="配水池《SUS》",初期設定!$M$29,VLOOKUP($D117,初期設定!$K$27:$N$33,3,FALSE))) -> 15 | J117: =IF($F117="","",IF($Q117="",ROUND($F117/$R117*100*IF(初期設定!$J$22="税抜",1+初期設定!$J$21/100,1),$F117))) -> 4709.921625 | L117: =IF(K117=1,ROUNDUP(J117*構造物・設備ダウンサイズ設定!$C$7/100,),J117) -> 4709.921625 | M117: =IF($D117="","",IF($E117="配水池《SUS》",初期設定!$N$29,VLOOKUP($D117,初期設定!$K$27:$N$33,4,FALSE))) -> 24 | N117: =IF($D117="","",IF($E117="配水池《SUS》",初期設定!$N$29,VLOOKUP($D117,初期設定!$K$27:$N$33,4,FALSE))) -> 24 | O117: 135.26825 | P117: 135.26825 | R117: =IF(G117="","",VLOOKUP(G117,様式1!$O$5:$P$220,2)) -> 63.18367347
C118: その他１ | D118: 機械 | F118: 6764.421 | G118: 1980 | H118: =IF($F118="","",IF($Q118="",ROUND($F118/$R118*100*IF(初期設定!$J$22="税抜",1+初期設定!$J$21/100,1),$F118))) -> 11915.10758 | I118: =IF($D118="","",IF($E118="配水池《SUS》",初期設定!$M$29,VLOOKUP($D118,初期設定!$K$27:$N$33,3,FALSE))) -> 15 | J118: =IF($F118="","",IF($Q118="",ROUND($F118/$R118*100*IF(初期設定!$J$22="税抜",1+初期設定!$J$21/100,1),$F118))) -> 11915.10758 | L118: =IF(K118=1,ROUNDUP(J118*構造物・設備ダウンサイズ設定!$C$7/100,),J118) -> 11915.10758 | M118: =IF($D118="","",IF($E118="配水池《SUS》",初期設定!$N$29,VLOOKUP($D118,初期設定!$K$27:$N$33,4,FALSE))) -> 24 | N118: =IF($D118="","",IF($E118="配水池《SUS》",初期設定!$N$29,VLOOKUP($D118,初期設定!$K$27:$N$33,4,FALSE))) -> 24 | O118: 338.22105 | P118: 338.22105 | R118: =IF(G118="","",VLOOKUP(G118,様式1!$O$5:$P$220,2)) -> 62.44897959
C119: その他１ | D119: 電気 | F119: 4636.893 | G119: 1980 | H119: =IF($F119="","",IF($Q119="",ROUND($F119/$R119*100*IF(初期設定!$J$22="税抜",1+初期設定!$J$21/100,1),$F119))) -> 8167.599108 | I119: =IF($D119="","",IF($E119="配水池《SUS》",初期設定!$M$29,VLOOKUP($D119,初期設定!$K$27:$N$33,3,FALSE))) -> 15 | J119: =IF($F119="","",IF($Q119="",ROUND($F119/$R119*100*IF(初期設定!$J$22="税抜",1+初期設定!$J$21/100,1),$F119))) -> 8167.599108 | L119: =IF(K119=1,ROUNDUP(J119*構造物・設備ダウンサイズ設定!$C$7/100,),J119) -> 8167.599108 | M119: =IF($D119="","",IF($E119="配水池《SUS》",初期設定!$N$29,VLOOKUP($D119,初期設定!$K$27:$N$33,4,FALSE))) -> 25 | N119: =IF($D119="","",IF($E119="配水池《SUS》",初期設定!$N$29,VLOOKUP($D119,初期設定!$K$27:$N$33,4,FALSE))) -> 25 | O119: 231.84465 | P119: 231.84465 | R119: =IF(G119="","",VLOOKUP(G119,様式1!$O$5:$P$220,2)) -> 62.44897959
C120: その他１ | D120: 機械 | F120: 6169.617 | G120: 1981 | H120: =IF($F120="","",IF($Q120="",ROUND($F120/$R120*100*IF(初期設定!$J$22="税抜",1+初期設定!$J$21/100,1),$F120))) -> 10741.03218 | I120: =IF($D120="","",IF($E120="配水池《SUS》",初期設定!$M$29,VLOOKUP($D120,初期設定!$K$27:$N$33,3,FALSE))) -> 15 | J120: =IF($F120="","",IF($Q120="",ROUND($F120/$R120*100*IF(初期設定!$J$22="税抜",1+初期設定!$J$21/100,1),$F120))) -> 10741.03218 | L120: =IF(K120=1,ROUNDUP(J120*構造物・設備ダウンサイズ設定!$C$7/100,),J120) -> 10741.03218 | M120: =IF($D120="","",IF($E120="配水池《SUS》",初期設定!$N$29,VLOOKUP($D120,初期設定!$K$27:$N$33,4,FALSE))) -> 24 | N120: =IF($D120="","",IF($E120="配水池《SUS》",初期設定!$N$29,VLOOKUP($D120,初期設定!$K$27:$N$33,4,FALSE))) -> 24 | O120: 308.48085 | P120: 308.48085 | R120: =IF(G120="","",VLOOKUP(G120,様式1!$O$5:$P$220,2)) -> 63.18367347
C121: その他１ | D121: 機械 | F121: 28546.308 | G121: 1981 | H121: =IF($F121="","",IF($Q121="",ROUND($F121/$R121*100*IF(初期設定!$J$22="税抜",1+初期設定!$J$21/100,1),$F121))) -> 49697.86826 | I121: =IF($D121="","",IF($E121="配水池《SUS》",初期設定!$M$29,VLOOKUP($D121,初期設定!$K$27:$N$33,3,FALSE))) -> 15 | J121: =IF($F121="","",IF($Q121="",ROUND($F121/$R121*100*IF(初期設定!$J$22="税抜",1+初期設定!$J$21/100,1),$F121))) -> 49697.86826 | L121: =IF(K121=1,ROUNDUP(J121*構造物・設備ダウンサイズ設定!$C$7/100,),J121) -> 49697.86826 | M121: =IF($D121="","",IF($E121="配水池《SUS》",初期設定!$N$29,VLOOKUP($D121,初期設定!$K$27:$N$33,4,FALSE))) -> 24 | N121: =IF($D121="","",IF($E121="配水池《SUS》",初期設定!$N$29,VLOOKUP($D121,初期設定!$K$27:$N$33,4,FALSE))) -> 24 | O121: 1427.3154 | P121: 1427.3154 | R121: =IF(G121="","",VLOOKUP(G121,様式1!$O$5:$P$220,2)) -> 63.18367347
C122: その他１ | D122: 機械 | F122: 25183.996 | G122: 1981 | H122: =IF($F122="","",IF($Q122="",ROUND($F122/$R122*100*IF(初期設定!$J$22="税抜",1+初期設定!$J$21/100,1),$F122))) -> 43844.23076 | I122: =IF($D122="","",IF($E122="配水池《SUS》",初期設定!$M$29,VLOOKUP($D122,初期設定!$K$27:$N$33,3,FALSE))) -> 15 | J122: =IF($F122="","",IF($Q122="",ROUND($F122/$R122*100*IF(初期設定!$J$22="税抜",1+初期設定!$J$21/100,1),$F122))) -> 43844.23076 | K122: 1 | L122: =IF(K122=1,ROUNDUP(J122*構造物・設備ダウンサイズ設定!$C$7/100,),J122) -> 39022 | M122: =IF($D122="","",IF($E122="配水池《SUS》",初期設定!$N$29,VLOOKUP($D122,初期設定!$K$27:$N$33,4,FALSE))) -> 24 | N122: =IF($D122="","",IF($E122="配水池《SUS》",初期設定!$N$29,VLOOKUP($D122,初期設定!$K$27:$N$33,4,FALSE))) -> 24 | O122: 1259.1998 | P122: 1259.1998 | R122: =IF(G122="","",VLOOKUP(G122,様式1!$O$5:$P$220,2)) -> 63.18367347
C123: その他１ | D123: 計装 | F123: 151437.413 | G123: 1981 | H123: =IF($F123="","",IF($Q123="",ROUND($F123/$R123*100*IF(初期設定!$J$22="税抜",1+初期設定!$J$21/100,1),$F123))) -> 263645.8837 | I123: =IF($D123="","",IF($E123="配水池《SUS》",初期設定!$M$29,VLOOKUP($D123,初期設定!$K$27:$N$33,3,FALSE))) -> 15 | J123: =IF($F123="","",IF($Q123="",ROUND($F123/$R123*100*IF(初期設定!$J$22="税抜",1+初期設定!$J$21/100,1),$F123))) -> 263645.8837 | K123: 1 | L123: =IF(K123=1,ROUNDUP(J123*構造物・設備ダウンサイズ設定!$C$7/100,),J123) -> 234645 | M123: =IF($D123="","",IF($E123="配水池《SUS》",初期設定!$N$29,VLOOKUP($D123,初期設定!$K$27:$N$33,4,FALSE))) -> 21 | N123: =IF($D123="","",IF($E123="配水池《SUS》",初期設定!$N$29,VLOOKUP($D123,初期設定!$K$27:$N$33,4,FALSE))) -> 21 | O123: 7571.87065 | P123: 7571.87065 | R123: =IF(G123="","",VLOOKUP(G123,様式1!$O$5:$P$220,2)) -> 63.18367347
C124: その他１ | D124: 計装 | F124: 22095.961 | G124: 1982 | H124: =IF($F124="","",IF($Q124="",ROUND($F124/$R124*100*IF(初期設定!$J$22="税抜",1+初期設定!$J$21/100,1),$F124))) -> 38368.9529 | I124: =IF($D124="","",IF($E124="配水池《SUS》",初期設定!$M$29,VLOOKUP($D124,初期設定!$K$27:$N$33,3,FALSE))) -> 15 | J124: =IF($F124="","",IF($Q124="",ROUND($F124/$R124*100*IF(初期設定!$J$22="税抜",1+初期設定!$J$21/100,1),$F124))) -> 38368.9529 | K124: 1 | L124: =IF(K124=1,ROUNDUP(J124*構造物・設備ダウンサイズ設定!$C$7/100,),J124) -> 34149 | M124: =IF($D124="","",IF($E124="配水池《SUS》",初期設定!$N$29,VLOOKUP($D124,初期設定!$K$27:$N$33,4,FALSE))) -> 21 | N124: =IF($D124="","",IF($E124="配水池《SUS》",初期設定!$N$29,VLOOKUP($D124,初期設定!$K$27:$N$33,4,FALSE))) -> 21 | O124: 1104.79805 | P124: 1104.79805 | R124: =IF(G124="","",VLOOKUP(G124,様式1!$O$5:$P$220,2)) -> 63.34693878
C125: その他１ | D125: 機械 | F125: 32981.364 | G125: 1984 | H125: =IF($F125="","",IF($Q125="",ROUND($F125/$R125*100*IF(初期設定!$J$22="税抜",1+初期設定!$J$21/100,1),$F125))) -> 56398.96953 | I125: =IF($D125="","",IF($E125="配水池《SUS》",初期設定!$M$29,VLOOKUP($D125,初期設定!$K$27:$N$33,3,FALSE))) -> 15 | J125: =IF($F125="","",IF($Q125="",ROUND($F125/$R125*100*IF(初期設定!$J$22="税抜",1+初期設定!$J$21/100,1),$F125))) -> 56398.96953 | K125: 1 | L125: =IF(K125=1,ROUNDUP(J125*構造物・設備ダウンサイズ設定!$C$7/100,),J125) -> 50196 | M125: =IF($D125="","",IF($E125="配水池《SUS》",初期設定!$N$29,VLOOKUP($D125,初期設定!$K$27:$N$33,4,FALSE))) -> 24 | N125: =IF($D125="","",IF($E125="配水池《SUS》",初期設定!$N$29,VLOOKUP($D125,初期設定!$K$27:$N$33,4,FALSE))) -> 24 | O125: 1649.0682 | P125: 1649.0682 | R125: =IF(G125="","",VLOOKUP(G125,様式1!$O$5:$P$220,2)) -> 64.32653061
C126: その他１ | D126: 電気 | F126: 48343.34 | G126: 1984 | H126: =IF($F126="","",IF($Q126="",ROUND($F126/$R126*100*IF(初期設定!$J$22="税抜",1+初期設定!$J$21/100,1),$F126))) -> 82668.33839 | I126: =IF($D126="","",IF($E126="配水池《SUS》",初期設定!$M$29,VLOOKUP($D126,初期設定!$K$27:$N$33,3,FALSE))) -> 15 | J126: =IF($F126="","",IF($Q126="",ROUND($F126/$R126*100*IF(初期設定!$J$22="税抜",1+初期設定!$J$21/100,1),$F126))) -> 82668.33839 | K126: 1 | L126: =IF(K126=1,ROUNDUP(J126*構造物・設備ダウンサイズ設定!$C$7/100,),J126) -> 73575 | M126: =IF($D126="","",IF($E126="配水池《SUS》",初期設定!$N$29,VLOOKUP($D126,初期設定!$K$27:$N$33,4,FALSE))) -> 25 | N126: =IF($D126="","",IF($E126="配水池《SUS》",初期設定!$N$29,VLOOKUP($D126,初期設定!$K$27:$N$33,4,FALSE))) -> 25 | O126: 2417.167 | P126: 2417.167 | R126: =IF(G126="","",VLOOKUP(G126,様式1!$O$5:$P$220,2)) -> 64.32653061
C127: その他１ | D127: 計装 | F127: 311273.793 | G127: 1984 | H127: =IF($F127="","",IF($Q127="",ROUND($F127/$R127*100*IF(初期設定!$J$22="税抜",1+初期設定!$J$21/100,1),$F127))) -> 532286.0864 | I127: =IF($D127="","",IF($E127="配水池《SUS》",初期設定!$M$29,VLOOKUP($D127,初期設定!$K$27:$N$33,3,FALSE))) -> 15 | J127: =IF($F127="","",IF($Q127="",ROUND($F127/$R127*100*IF(初期設定!$J$22="税抜",1+初期設定!$J$21/100,1),$F127))) -> 532286.0864 | K127: 1 | L127: =IF(K127=1,ROUNDUP(J127*構造物・設備ダウンサイズ設定!$C$7/100,),J127) -> 473735 | M127: =IF($D127="","",IF($E127="配水池《SUS》",初期設定!$N$29,VLOOKUP($D127,初期設定!$K$27:$N$33,4,FALSE))) -> 21 | N127: =IF($D127="","",IF($E127="配水池《SUS》",初期設定!$N$29,VLOOKUP($D127,初期設定!$K$27:$N$33,4,FALSE))) -> 21 | O127: 15563.68965 | P127: 15563.68965 | R127: =IF(G127="","",VLOOKUP(G127,様式1!$O$5:$P$220,2)) -> 64.32653061
C128: その他１ | D128: 電気 | F128: 29296.6 | G128: 1989 | H128: =IF($F128="","",IF($Q128="",ROUND($F128/$R128*100*IF(初期設定!$J$22="税抜",1+初期設定!$J$21/100,1),$F128))) -> 47909.18507 | I128: =IF($D128="","",IF($E128="配水池《SUS》",初期設定!$M$29,VLOOKUP($D128,初期設定!$K$27:$N$33,3,FALSE))) -> 15 | J128: =IF($F128="","",IF($Q128="",ROUND($F128/$R128*100*IF(初期設定!$J$22="税抜",1+初期設定!$J$21/100,1),$F128))) -> 47909.18507 | K128: 1 | L128: =IF(K128=1,ROUNDUP(J128*構造物・設備ダウンサイズ設定!$C$7/100,),J128) -> 42640 | M128: =IF($D128="","",IF($E128="配水池《SUS》",初期設定!$N$29,VLOOKUP($D128,初期設定!$K$27:$N$33,4,FALSE))) -> 25 | N128: =IF($D128="","",IF($E128="配水池《SUS》",初期設定!$N$29,VLOOKUP($D128,初期設定!$K$27:$N$33,4,FALSE))) -> 25 | O128: 1464.83 | P128: 1464.83 | R128: =IF(G128="","",VLOOKUP(G128,様式1!$O$5:$P$220,2)) -> 67.26530612
C129: その他１ | D129: 機械 | F129: 3490.2 | G129: 1989 | H129: =IF($F129="","",IF($Q129="",ROUND($F129/$R129*100*IF(初期設定!$J$22="税抜",1+初期設定!$J$21/100,1),$F129))) -> 5707.578277 | I129: =IF($D129="","",IF($E129="配水池《SUS》",初期設定!$M$29,VLOOKUP($D129,初期設定!$K$27:$N$33,3,FALSE))) -> 15 | J129: =IF($F129="","",IF($Q129="",ROUND($F129/$R129*100*IF(初期設定!$J$22="税抜",1+初期設定!$J$21/100,1),$F129))) -> 5707.578277 | K129: 1 | L129: =IF(K129=1,ROUNDUP(J129*構造物・設備ダウンサイズ設定!$C$7/100,),J129) -> 5080 | M129: =IF($D129="","",IF($E129="配水池《SUS》",初期設定!$N$29,VLOOKUP($D129,初期設定!$K$27:$N$33,4,FALSE))) -> 24 | N129: =IF($D129="","",IF($E129="配水池《SUS》",初期設定!$N$29,VLOOKUP($D129,初期設定!$K$27:$N$33,4,FALSE))) -> 24 | O129: 174.51 | P129: 174.51 | R129: =IF(G129="","",VLOOKUP(G129,様式1!$O$5:$P$220,2)) -> 67.26530612
C130: その他１ | D130: 機械 | F130: 24704.7 | G130: 1990 | H130: =IF($F130="","",IF($Q130="",ROUND($F130/$R130*100*IF(初期設定!$J$22="税抜",1+初期設定!$J$21/100,1),$F130))) -> 39026.47509 | I130: =IF($D130="","",IF($E130="配水池《SUS》",初期設定!$M$29,VLOOKUP($D130,初期設定!$K$27:$N$33,3,FALSE))) -> 15 | J130: =IF($F130="","",IF($Q130="",ROUND($F130/$R130*100*IF(初期設定!$J$22="税抜",1+初期設定!$J$21/100,1),$F130))) -> 39026.47509 | K130: 1 | L130: =IF(K130=1,ROUNDUP(J130*構造物・設備ダウンサイズ設定!$C$7/100,),J130) -> 34734 | M130: =IF($D130="","",IF($E130="配水池《SUS》",初期設定!$N$29,VLOOKUP($D130,初期設定!$K$27:$N$33,4,FALSE))) -> 24 | N130: =IF($D130="","",IF($E130="配水池《SUS》",初期設定!$N$29,VLOOKUP($D130,初期設定!$K$27:$N$33,4,FALSE))) -> 24 | O130: 1235.235 | P130: 1235.235 | R130: =IF(G130="","",VLOOKUP(G130,様式1!$O$5:$P$220,2)) -> 69.63265306
C131: その他１ | D131: 機械 | F131: 17793.529 | G131: 1991 | H131: =IF($F131="","",IF($Q131="",ROUND($F131/$R131*100*IF(初期設定!$J$22="税抜",1+初期設定!$J$21/100,1),$F131))) -> 27370.7538 | I131: =IF($D131="","",IF($E131="配水池《SUS》",初期設定!$M$29,VLOOKUP($D131,初期設定!$K$27:$N$33,3,FALSE))) -> 15 | J131: =IF($F131="","",IF($Q131="",ROUND($F131/$R131*100*IF(初期設定!$J$22="税抜",1+初期設定!$J$21/100,1),$F131))) -> 27370.7538 | K131: 1 | L131: =IF(K131=1,ROUNDUP(J131*構造物・設備ダウンサイズ設定!$C$7/100,),J131) -> 24360 | M131: =IF($D131="","",IF($E131="配水池《SUS》",初期設定!$N$29,VLOOKUP($D131,初期設定!$K$27:$N$33,4,FALSE))) -> 24 | N131: =IF($D131="","",IF($E131="配水池《SUS》",初期設定!$N$29,VLOOKUP($D131,初期設定!$K$27:$N$33,4,FALSE))) -> 24 | O131: 889.67645 | P131: 889.67645 | R131: =IF(G131="","",VLOOKUP(G131,様式1!$O$5:$P$220,2)) -> 71.51020408
C132: その他１ | D132: 電気 | F132: 49193.874 | G132: 1991 | H132: =IF($F132="","",IF($Q132="",ROUND($F132/$R132*100*IF(初期設定!$J$22="税抜",1+初期設定!$J$21/100,1),$F132))) -> 75672.08358 | I132: =IF($D132="","",IF($E132="配水池《SUS》",初期設定!$M$29,VLOOKUP($D132,初期設定!$K$27:$N$33,3,FALSE))) -> 15 | J132: =IF($F132="","",IF($Q132="",ROUND($F132/$R132*100*IF(初期設定!$J$22="税抜",1+初期設定!$J$21/100,1),$F132))) -> 75672.08358 | K132: 1 | L132: =IF(K132=1,ROUNDUP(J132*構造物・設備ダウンサイズ設定!$C$7/100,),J132) -> 67349 | M132: =IF($D132="","",IF($E132="配水池《SUS》",初期設定!$N$29,VLOOKUP($D132,初期設定!$K$27:$N$33,4,FALSE))) -> 25 | N132: =IF($D132="","",IF($E132="配水池《SUS》",初期設定!$N$29,VLOOKUP($D132,初期設定!$K$27:$N$33,4,FALSE))) -> 25 | O132: 2459.6937 | P132: 2459.6937 | R132: =IF(G132="","",VLOOKUP(G132,様式1!$O$5:$P$220,2)) -> 71.51020408
C133: その他１ | D133: 機械 | F133: 25295 | G133: 1992 | H133: =IF($F133="","",IF($Q133="",ROUND($F133/$R133*100*IF(初期設定!$J$22="税抜",1+初期設定!$J$21/100,1),$F133))) -> 38470.66874 | I133: =IF($D133="","",IF($E133="配水池《SUS》",初期設定!$M$29,VLOOKUP($D133,初期設定!$K$27:$N$33,3,FALSE))) -> 15 | J133: =IF($F133="","",IF($Q133="",ROUND($F133/$R133*100*IF(初期設定!$J$22="税抜",1+初期設定!$J$21/100,1),$F133))) -> 38470.66874 | K133: 1 | L133: =IF(K133=1,ROUNDUP(J133*構造物・設備ダウンサイズ設定!$C$7/100,),J133) -> 34239 | M133: =IF($D133="","",IF($E133="配水池《SUS》",初期設定!$N$29,VLOOKUP($D133,初期設定!$K$27:$N$33,4,FALSE))) -> 24 | N133: =IF($D133="","",IF($E133="配水池《SUS》",初期設定!$N$29,VLOOKUP($D133,初期設定!$K$27:$N$33,4,FALSE))) -> 24 | O133: 1264.75 | P133: 1264.75 | R133: =IF(G133="","",VLOOKUP(G133,様式1!$O$5:$P$220,2)) -> 72.32653061
C134: その他１ | D134: 電気 | F134: 49855.765 | G134: 1993 | H134: =IF($F134="","",IF($Q134="",ROUND($F134/$R134*100*IF(初期設定!$J$22="税抜",1+初期設定!$J$21/100,1),$F134))) -> 75996.20287 | I134: =IF($D134="","",IF($E134="配水池《SUS》",初期設定!$M$29,VLOOKUP($D134,初期設定!$K$27:$N$33,3,FALSE))) -> 15 | J134: =IF($F134="","",IF($Q134="",ROUND($F134/$R134*100*IF(初期設定!$J$22="税抜",1+初期設定!$J$21/100,1),$F134))) -> 75996.20287 | K134: 1 | L134: =IF(K134=1,ROUNDUP(J134*構造物・設備ダウンサイズ設定!$C$7/100,),J134) -> 67637 | M134: =IF($D134="","",IF($E134="配水池《SUS》",初期設定!$N$29,VLOOKUP($D134,初期設定!$K$27:$N$33,4,FALSE))) -> 25 | N134: =IF($D134="","",IF($E134="配水池《SUS》",初期設定!$N$29,VLOOKUP($D134,初期設定!$K$27:$N$33,4,FALSE))) -> 25 | O134: =IF(F134="","",IFERROR($F134*IF($Y$46="税抜",1,(1+$Y$45/100))*MAX(1-(Y$43-$G134)/$I134,$Y$42),0)) -> 2492.78825 | P134: =IF(F134="","",IFERROR($F134*IF($Y$46="税抜",1,(1+$Y$45/100))*MAX(1-($Y$44-$G134)/$I134,$Y$42),0)) -> 2492.78825 | R134: =IF(G134="","",VLOOKUP(G134,様式1!$O$5:$P$220,2)) -> 72.16326531
C135: その他１ | D135: 電気 | F135: 66395.412 | G135: 1994 | H135: =IF($F135="","",IF($Q135="",ROUND($F135/$R135*100*IF(初期設定!$J$22="税抜",1+初期設定!$J$21/100,1),$F135))) -> 100979.4782 | I135: =IF($D135="","",IF($E135="配水池《SUS》",初期設定!$M$29,VLOOKUP($D135,初期設定!$K$27:$N$33,3,FALSE))) -> 15 | J135: =IF($F135="","",IF($Q135="",ROUND($F135/$R135*100*IF(初期設定!$J$22="税抜",1+初期設定!$J$21/100,1),$F135))) -> 100979.4782 | K135: 1 | L135: =IF(K135=1,ROUNDUP(J135*構造物・設備ダウンサイズ設定!$C$7/100,),J135) -> 89872 | M135: =IF($D135="","",IF($E135="配水池《SUS》",初期設定!$N$29,VLOOKUP($D135,初期設定!$K$27:$N$33,4,FALSE))) -> 25 | N135: =IF($D135="","",IF($E135="配水池《SUS》",初期設定!$N$29,VLOOKUP($D135,初期設定!$K$27:$N$33,4,FALSE))) -> 25 | O135: 3319.7706 | P135: 3319.7706 | R135: =IF(G135="","",VLOOKUP(G135,様式1!$O$5:$P$220,2)) -> 72.32653061
C136: その他１ | D136: 電気 | F136: 143183.487 | G136: 1994 | H136: =IF($F136="","",IF($Q136="",ROUND($F136/$R136*100*IF(初期設定!$J$22="税抜",1+初期設定!$J$21/100,1),$F136))) -> 217764.9534 | I136: =IF($D136="","",IF($E136="配水池《SUS》",初期設定!$M$29,VLOOKUP($D136,初期設定!$K$27:$N$33,3,FALSE))) -> 15 | J136: =IF($F136="","",IF($Q136="",ROUND($F136/$R136*100*IF(初期設定!$J$22="税抜",1+初期設定!$J$21/100,1),$F136))) -> 217764.9534 | K136: 1 | L136: =IF(K136=1,ROUNDUP(J136*構造物・設備ダウンサイズ設定!$C$7/100,),J136) -> 193811 | M136: =IF($D136="","",IF($E136="配水池《SUS》",初期設定!$N$29,VLOOKUP($D136,初期設定!$K$27:$N$33,4,FALSE))) -> 25 | N136: =IF($D136="","",IF($E136="配水池《SUS》",初期設定!$N$29,VLOOKUP($D136,初期設定!$K$27:$N$33,4,FALSE))) -> 25 | O136: 7159.17435 | P136: 7159.17435 | R136: =IF(G136="","",VLOOKUP(G136,様式1!$O$5:$P$220,2)) -> 72.32653061
C137: その他１ | D137: 電気 | F137: 75010.624 | G137: 1995 | H137: =IF($F137="","",IF($Q137="",ROUND($F137/$R137*100*IF(初期設定!$J$22="税抜",1+初期設定!$J$21/100,1),$F137))) -> 113825.2431 | I137: =IF($D137="","",IF($E137="配水池《SUS》",初期設定!$M$29,VLOOKUP($D137,初期設定!$K$27:$N$33,3,FALSE))) -> 15 | J137: =IF($F137="","",IF($Q137="",ROUND($F137/$R137*100*IF(初期設定!$J$22="税抜",1+初期設定!$J$21/100,1),$F137))) -> 113825.2431 | K137: 1 | L137: =IF(K137=1,ROUNDUP(J137*構造物・設備ダウンサイズ設定!$C$7/100,),J137) -> 101305 | M137: =IF($D137="","",IF($E137="配水池《SUS》",初期設定!$N$29,VLOOKUP($D137,初期設定!$K$27:$N$33,4,FALSE))) -> 25 | N137: =IF($D137="","",IF($E137="配水池《SUS》",初期設定!$N$29,VLOOKUP($D137,初期設定!$K$27:$N$33,4,FALSE))) -> 25 | O137: 3750.5312 | P137: 3750.5312 | R137: =IF(G137="","",VLOOKUP(G137,様式1!$O$5:$P$220,2)) -> 72.48979592
C138: その他１ | D138: 電気 | F138: 127557.362 | G138: 1996 | H138: =IF($F138="","",IF($Q138="",ROUND($F138/$R138*100*IF(初期設定!$J$22="税抜",1+初期設定!$J$21/100,1),$F138))) -> 194218.6952 | I138: =IF($D138="","",IF($E138="配水池《SUS》",初期設定!$M$29,VLOOKUP($D138,初期設定!$K$27:$N$33,3,FALSE))) -> 15 | J138: =IF($F138="","",IF($Q138="",ROUND($F138/$R138*100*IF(初期設定!$J$22="税抜",1+初期設定!$J$21/100,1),$F138))) -> 194218.6952 | L138: =IF(K138=1,ROUNDUP(J138*構造物・設備ダウンサイズ設定!$C$7/100,),J138) -> 194218.6952 | M138: =IF($D138="","",IF($E138="配水池《SUS》",初期設定!$N$29,VLOOKUP($D138,初期設定!$K$27:$N$33,4,FALSE))) -> 25 | N138: =IF($D138="","",IF($E138="配水池《SUS》",初期設定!$N$29,VLOOKUP($D138,初期設定!$K$27:$N$33,4,FALSE))) -> 25 | O138: 6377.8681 | P138: 6377.8681 | R138: =IF(G138="","",VLOOKUP(G138,様式1!$O$5:$P$220,2)) -> 72.24489796
C139: その他１ | D139: 電気 | F139: 68102.159 | G139: 1997 | H139: =IF($F139="","",IF($Q139="",ROUND($F139/$R139*100*IF(初期設定!$J$22="税抜",1+初期設定!$J$21/100,1),$F139))) -> 102648.3884 | I139: =IF($D139="","",IF($E139="配水池《SUS》",初期設定!$M$29,VLOOKUP($D139,初期設定!$K$27:$N$33,3,FALSE))) -> 15 | J139: =IF($F139="","",IF($Q139="",ROUND($F139/$R139*100*IF(初期設定!$J$22="税抜",1+初期設定!$J$21/100,1),$F139))) -> 102648.3884 | L139: =IF(K139=1,ROUNDUP(J139*構造物・設備ダウンサイズ設定!$C$7/100,),J139) -> 102648.3884 | M139: =IF($D139="","",IF($E139="配水池《SUS》",初期設定!$N$29,VLOOKUP($D139,初期設定!$K$27:$N$33,4,FALSE))) -> 25 | N139: =IF($D139="","",IF($E139="配水池《SUS》",初期設定!$N$29,VLOOKUP($D139,初期設定!$K$27:$N$33,4,FALSE))) -> 25 | O139: 3405.10795 | P139: 3405.10795 | R139: =IF(G139="","",VLOOKUP(G139,様式1!$O$5:$P$220,2)) -> 72.97959184
C140: その他１ | D140: 計装 | F140: 4749.103 | G140: 1997 | H140: =IF($F140="","",IF($Q140="",ROUND($F140/$R140*100*IF(初期設定!$J$22="税抜",1+初期設定!$J$21/100,1),$F140))) -> 7158.183772 | I140: =IF($D140="","",IF($E140="配水池《SUS》",初期設定!$M$29,VLOOKUP($D140,初期設定!$K$27:$N$33,3,FALSE))) -> 15 | J140: =IF($F140="","",IF($Q140="",ROUND($F140/$R140*100*IF(初期設定!$J$22="税抜",1+初期設定!$J$21/100,1),$F140))) -> 7158.183772 | L140: =IF(K140=1,ROUNDUP(J140*構造物・設備ダウンサイズ設定!$C$7/100,),J140) -> 7158.183772 | M140: =IF($D140="","",IF($E140="配水池《SUS》",初期設定!$N$29,VLOOKUP($D140,初期設定!$K$27:$N$33,4,FALSE))) -> 21 | N140: =IF($D140="","",IF($E140="配水池《SUS》",初期設定!$N$29,VLOOKUP($D140,初期設定!$K$27:$N$33,4,FALSE))) -> 21 | O140: 237.45515 | P140: 237.45515 | R140: =IF(G140="","",VLOOKUP(G140,様式1!$O$5:$P$220,2)) -> 72.97959184
C141: その他１ | D141: 電気 | F141: 128070.717 | G141: 1998 | H141: =IF($F141="","",IF($Q141="",ROUND($F141/$R141*100*IF(初期設定!$J$22="税抜",1+初期設定!$J$21/100,1),$F141))) -> 196108.2854 | I141: =IF($D141="","",IF($E141="配水池《SUS》",初期設定!$M$29,VLOOKUP($D141,初期設定!$K$27:$N$33,3,FALSE))) -> 15 | J141: =IF($F141="","",IF($Q141="",ROUND($F141/$R141*100*IF(初期設定!$J$22="税抜",1+初期設定!$J$21/100,1),$F141))) -> 196108.2854 | L141: =IF(K141=1,ROUNDUP(J141*構造物・設備ダウンサイズ設定!$C$7/100,),J141) -> 196108.2854 | M141: =IF($D141="","",IF($E141="配水池《SUS》",初期設定!$N$29,VLOOKUP($D141,初期設定!$K$27:$N$33,4,FALSE))) -> 25 | N141: =IF($D141="","",IF($E141="配水池《SUS》",初期設定!$N$29,VLOOKUP($D141,初期設定!$K$27:$N$33,4,FALSE))) -> 25 | O141: 6403.53585 | P141: 6403.53585 | R141: =IF(G141="","",VLOOKUP(G141,様式1!$O$5:$P$220,2)) -> 71.83673469
C142: その他１ | D142: 電気 | F142: 13317.273 | G142: 1998 | H142: =IF($F142="","",IF($Q142="",ROUND($F142/$R142*100*IF(初期設定!$J$22="税抜",1+初期設定!$J$21/100,1),$F142))) -> 20392.07428 | I142: =IF($D142="","",IF($E142="配水池《SUS》",初期設定!$M$29,VLOOKUP($D142,初期設定!$K$27:$N$33,3,FALSE))) -> 15 | J142: =IF($F142="","",IF($Q142="",ROUND($F142/$R142*100*IF(初期設定!$J$22="税抜",1+初期設定!$J$21/100,1),$F142))) -> 20392.07428 | L142: =IF(K142=1,ROUNDUP(J142*構造物・設備ダウンサイズ設定!$C$7/100,),J142) -> 20392.07428 | M142: =IF($D142="","",IF($E142="配水池《SUS》",初期設定!$N$29,VLOOKUP($D142,初期設定!$K$27:$N$33,4,FALSE))) -> 25 | N142: =IF($D142="","",IF($E142="配水池《SUS》",初期設定!$N$29,VLOOKUP($D142,初期設定!$K$27:$N$33,4,FALSE))) -> 25 | O142: 665.86365 | P142: 665.86365 | R142: =IF(G142="","",VLOOKUP(G142,様式1!$O$5:$P$220,2)) -> 71.83673469
C143: その他１ | D143: 機械 | F143: 7017.859 | G143: 1998 | H143: =IF($F143="","",IF($Q143="",ROUND($F143/$R143*100*IF(初期設定!$J$22="税抜",1+初期設定!$J$21/100,1),$F143))) -> 10746.09659 | I143: =IF($D143="","",IF($E143="配水池《SUS》",初期設定!$M$29,VLOOKUP($D143,初期設定!$K$27:$N$33,3,FALSE))) -> 15 | J143: =IF($F143="","",IF($Q143="",ROUND($F143/$R143*100*IF(初期設定!$J$22="税抜",1+初期設定!$J$21/100,1),$F143))) -> 10746.09659 | L143: =IF(K143=1,ROUNDUP(J143*構造物・設備ダウンサイズ設定!$C$7/100,),J143) -> 10746.09659 | M143: =IF($D143="","",IF($E143="配水池《SUS》",初期設定!$N$29,VLOOKUP($D143,初期設定!$K$27:$N$33,4,FALSE))) -> 24 | N143: =IF($D143="","",IF($E143="配水池《SUS》",初期設定!$N$29,VLOOKUP($D143,初期設定!$K$27:$N$33,4,FALSE))) -> 24 | O143: 350.89295 | P143: 350.89295 | R143: =IF(G143="","",VLOOKUP(G143,様式1!$O$5:$P$220,2)) -> 71.83673469
C144: その他１ | D144: 電気 | F144: 27582.061 | G144: 1998 | H144: =IF($F144="","",IF($Q144="",ROUND($F144/$R144*100*IF(初期設定!$J$22="税抜",1+初期設定!$J$21/100,1),$F144))) -> 42235.03091 | I144: =IF($D144="","",IF($E144="配水池《SUS》",初期設定!$M$29,VLOOKUP($D144,初期設定!$K$27:$N$33,3,FALSE))) -> 15 | J144: =IF($F144="","",IF($Q144="",ROUND($F144/$R144*100*IF(初期設定!$J$22="税抜",1+初期設定!$J$21/100,1),$F144))) -> 42235.03091 | L144: =IF(K144=1,ROUNDUP(J144*構造物・設備ダウンサイズ設定!$C$7/100,),J144) -> 42235.03091 | M144: =IF($D144="","",IF($E144="配水池《SUS》",初期設定!$N$29,VLOOKUP($D144,初期設定!$K$27:$N$33,4,FALSE))) -> 25 | N144: =IF($D144="","",IF($E144="配水池《SUS》",初期設定!$N$29,VLOOKUP($D144,初期設定!$K$27:$N$33,4,FALSE))) -> 25 | O144: 1379.10305 | P144: 1379.10305 | R144: =IF(G144="","",VLOOKUP(G144,様式1!$O$5:$P$220,2)) -> 71.83673469
C145: その他１ | D145: 機械 | F145: 8059.084 | G145: 1998 | H145: =IF($F145="","",IF($Q145="",ROUND($F145/$R145*100*IF(初期設定!$J$22="税抜",1+初期設定!$J$21/100,1),$F145))) -> 12340.47237 | I145: =IF($D145="","",IF($E145="配水池《SUS》",初期設定!$M$29,VLOOKUP($D145,初期設定!$K$27:$N$33,3,FALSE))) -> 15 | J145: =IF($F145="","",IF($Q145="",ROUND($F145/$R145*100*IF(初期設定!$J$22="税抜",1+初期設定!$J$21/100,1),$F145))) -> 12340.47237 | L145: =IF(K145=1,ROUNDUP(J145*構造物・設備ダウンサイズ設定!$C$7/100,),J145) -> 12340.47237 | M145: =IF($D145="","",IF($E145="配水池《SUS》",初期設定!$N$29,VLOOKUP($D145,初期設定!$K$27:$N$33,4,FALSE))) -> 24 | N145: =IF($D145="","",IF($E145="配水池《SUS》",初期設定!$N$29,VLOOKUP($D145,初期設定!$K$27:$N$33,4,FALSE))) -> 24 | O145: 402.9542 | P145: 402.9542 | R145: =IF(G145="","",VLOOKUP(G145,様式1!$O$5:$P$220,2)) -> 71.83673469
C146: その他１ | D146: 機械 | F146: 8059.084 | G146: 1998 | H146: =IF($F146="","",IF($Q146="",ROUND($F146/$R146*100*IF(初期設定!$J$22="税抜",1+初期設定!$J$21/100,1),$F146))) -> 12340.47237 | I146: =IF($D146="","",IF($E146="配水池《SUS》",初期設定!$M$29,VLOOKUP($D146,初期設定!$K$27:$N$33,3,FALSE))) -> 15 | J146: =IF($F146="","",IF($Q146="",ROUND($F146/$R146*100*IF(初期設定!$J$22="税抜",1+初期設定!$J$21/100,1),$F146))) -> 12340.47237 | L146: =IF(K146=1,ROUNDUP(J146*構造物・設備ダウンサイズ設定!$C$7/100,),J146) -> 12340.47237 | M146: =IF($D146="","",IF($E146="配水池《SUS》",初期設定!$N$29,VLOOKUP($D146,初期設定!$K$27:$N$33,4,FALSE))) -> 24 | N146: =IF($D146="","",IF($E146="配水池《SUS》",初期設定!$N$29,VLOOKUP($D146,初期設定!$K$27:$N$33,4,FALSE))) -> 24 | O146: 402.9542 | P146: 402.9542 | R146: =IF(G146="","",VLOOKUP(G146,様式1!$O$5:$P$220,2)) -> 71.83673469
C147: その他１ | D147: 計装 | F147: 43582.864 | G147: 1999 | H147: =IF($F147="","",IF($Q147="",ROUND($F147/$R147*100*IF(初期設定!$J$22="税抜",1+初期設定!$J$21/100,1),$F147))) -> 67503.34395 | I147: =IF($D147="","",IF($E147="配水池《SUS》",初期設定!$M$29,VLOOKUP($D147,初期設定!$K$27:$N$33,3,FALSE))) -> 15 | J147: =IF($F147="","",IF($Q147="",ROUND($F147/$R147*100*IF(初期設定!$J$22="税抜",1+初期設定!$J$21/100,1),$F147))) -> 67503.34395 | L147: =IF(K147=1,ROUNDUP(J147*構造物・設備ダウンサイズ設定!$C$7/100,),J147) -> 67503.34395 | M147: =IF($D147="","",IF($E147="配水池《SUS》",初期設定!$N$29,VLOOKUP($D147,初期設定!$K$27:$N$33,4,FALSE))) -> 21 | N147: =IF($D147="","",IF($E147="配水池《SUS》",初期設定!$N$29,VLOOKUP($D147,初期設定!$K$27:$N$33,4,FALSE))) -> 21 | O147: 2179.1432 | P147: 2179.1432 | R147: =IF(G147="","",VLOOKUP(G147,様式1!$O$5:$P$220,2)) -> 71.02040816
C148: その他１ | D148: 電気 | F148: 3490 | G148: 1999 | H148: =IF($F148="","",IF($Q148="",ROUND($F148/$R148*100*IF(初期設定!$J$22="税抜",1+初期設定!$J$21/100,1),$F148))) -> 5405.488506 | I148: =IF($D148="","",IF($E148="配水池《SUS》",初期設定!$M$29,VLOOKUP($D148,初期設定!$K$27:$N$33,3,FALSE))) -> 15 | J148: =IF($F148="","",IF($Q148="",ROUND($F148/$R148*100*IF(初期設定!$J$22="税抜",1+初期設定!$J$21/100,1),$F148))) -> 5405.488506 | L148: =IF(K148=1,ROUNDUP(J148*構造物・設備ダウンサイズ設定!$C$7/100,),J148) -> 5405.488506 | M148: =IF($D148="","",IF($E148="配水池《SUS》",初期設定!$N$29,VLOOKUP($D148,初期設定!$K$27:$N$33,4,FALSE))) -> 25 | N148: =IF($D148="","",IF($E148="配水池《SUS》",初期設定!$N$29,VLOOKUP($D148,初期設定!$K$27:$N$33,4,FALSE))) -> 25 | O148: 174.5 | P148: 174.5 | R148: =IF(G148="","",VLOOKUP(G148,様式1!$O$5:$P$220,2)) -> 71.02040816
C149: その他１ | D149: 機械 | F149: 9120.928 | G149: 2003 | H149: =IF($F149="","",IF($Q149="",ROUND($F149/$R149*100*IF(初期設定!$J$22="税抜",1+初期設定!$J$21/100,1),$F149))) -> 14291.22149 | I149: =IF($D149="","",IF($E149="配水池《SUS》",初期設定!$M$29,VLOOKUP($D149,初期設定!$K$27:$N$33,3,FALSE))) -> 15 | J149: =IF($F149="","",IF($Q149="",ROUND($F149/$R149*100*IF(初期設定!$J$22="税抜",1+初期設定!$J$21/100,1),$F149))) -> 14291.22149 | K149: 1 | L149: =IF(K149=1,ROUNDUP(J149*構造物・設備ダウンサイズ設定!$C$7/100,),J149) -> 12720 | M149: =IF($D149="","",IF($E149="配水池《SUS》",初期設定!$N$29,VLOOKUP($D149,初期設定!$K$27:$N$33,4,FALSE))) -> 24 | N149: =IF($D149="","",IF($E149="配水池《SUS》",初期設定!$N$29,VLOOKUP($D149,初期設定!$K$27:$N$33,4,FALSE))) -> 24 | O149: 456.0464 | P149: 456.0464 | R149: =IF(G149="","",VLOOKUP(G149,様式1!$O$5:$P$220,2)) -> 70.20408163
C150: その他１ | D150: 計装 | F150: 33240.532 | G150: 2004 | H150: =IF($F150="","",IF($Q150="",ROUND($F150/$R150*100*IF(初期設定!$J$22="税抜",1+初期設定!$J$21/100,1),$F150))) -> 51190.41928 | I150: =IF($D150="","",IF($E150="配水池《SUS》",初期設定!$M$29,VLOOKUP($D150,初期設定!$K$27:$N$33,3,FALSE))) -> 15 | J150: =IF($F150="","",IF($Q150="",ROUND($F150/$R150*100*IF(初期設定!$J$22="税抜",1+初期設定!$J$21/100,1),$F150))) -> 51190.41928 | K150: 1 | L150: =IF(K150=1,ROUNDUP(J150*構造物・設備ダウンサイズ設定!$C$7/100,),J150) -> 45560 | M150: =IF($D150="","",IF($E150="配水池《SUS》",初期設定!$N$29,VLOOKUP($D150,初期設定!$K$27:$N$33,4,FALSE))) -> 21 | N150: =IF($D150="","",IF($E150="配水池《SUS》",初期設定!$N$29,VLOOKUP($D150,初期設定!$K$27:$N$33,4,FALSE))) -> 21 | O150: 1662.0266 | P150: 1662.0266 | R150: =IF(G150="","",VLOOKUP(G150,様式1!$O$5:$P$220,2)) -> 71.42857143
C151: その他１ | D151: その他１ | F151: 1149.45 | G151: 1994 | H151: =IF($F151="","",IF($Q151="",ROUND($F151/$R151*100*IF(初期設定!$J$22="税抜",1+初期設定!$J$21/100,1),$F151))) -> 1748.175931 | I151: =IF($D151="","",IF($E151="配水池《SUS》",初期設定!$M$29,VLOOKUP($D151,初期設定!$K$27:$N$33,3,FALSE))) -> 40 | J151: =IF($F151="","",IF($Q151="",ROUND($F151/$R151*100*IF(初期設定!$J$22="税抜",1+初期設定!$J$21/100,1),$F151))) -> 1748.175931 | K151: 1 | L151: =IF(K151=1,ROUNDUP(J151*構造物・設備ダウンサイズ設定!$C$7/100,),J151) -> 1556 | M151: =IF($D151="","",IF($E151="配水池《SUS》",初期設定!$N$29,VLOOKUP($D151,初期設定!$K$27:$N$33,4,FALSE))) -> 60 | N151: =IF($D151="","",IF($E151="配水池《SUS》",初期設定!$N$29,VLOOKUP($D151,初期設定!$K$27:$N$33,4,FALSE))) -> 60 | O151: 229.89 | P151: 114.945 | R151: =IF(G151="","",VLOOKUP(G151,様式1!$O$5:$P$220,2)) -> 72.32653061
C152: その他１ | D152: その他１ | F152: 324.4 | G152: 2003 | H152: =IF($F152="","",IF($Q152="",ROUND($F152/$R152*100*IF(初期設定!$J$22="税抜",1+初期設定!$J$21/100,1),$F152))) -> 508.2895349 | I152: =IF($D152="","",IF($E152="配水池《SUS》",初期設定!$M$29,VLOOKUP($D152,初期設定!$K$27:$N$33,3,FALSE))) -> 40 | J152: =IF($F152="","",IF($Q152="",ROUND($F152/$R152*100*IF(初期設定!$J$22="税抜",1+初期設定!$J$21/100,1),$F152))) -> 508.2895349 | K152: 1 | L152: =IF(K152=1,ROUNDUP(J152*構造物・設備ダウンサイズ設定!$C$7/100,),J152) -> 453 | M152: =IF($D152="","",IF($E152="配水池《SUS》",初期設定!$N$29,VLOOKUP($D152,初期設定!$K$27:$N$33,4,FALSE))) -> 60 | N152: =IF($D152="","",IF($E152="配水池《SUS》",初期設定!$N$29,VLOOKUP($D152,初期設定!$K$27:$N$33,4,FALSE))) -> 60 | O152: 137.87 | P152: 105.43 | R152: =IF(G152="","",VLOOKUP(G152,様式1!$O$5:$P$220,2)) -> 70.20408163
C153: その他１ | D153: その他１ | F153: 120 | G153: 1975 | H153: =IF($F153="","",IF($Q153="",ROUND($F153/$R153*100*IF(初期設定!$J$22="税抜",1+初期設定!$J$21/100,1),$F153))) -> 301.1173184 | I153: =IF($D153="","",IF($E153="配水池《SUS》",初期設定!$M$29,VLOOKUP($D153,初期設定!$K$27:$N$33,3,FALSE))) -> 40 | J153: =IF($F153="","",IF($Q153="",ROUND($F153/$R153*100*IF(初期設定!$J$22="税抜",1+初期設定!$J$21/100,1),$F153))) -> 301.1173184 | K153: 1 | L153: =IF(K153=1,ROUNDUP(J153*構造物・設備ダウンサイズ設定!$C$7/100,),J153) -> 268 | M153: =IF($D153="","",IF($E153="配水池《SUS》",初期設定!$N$29,VLOOKUP($D153,初期設定!$K$27:$N$33,4,FALSE))) -> 60 | N153: =IF($D153="","",IF($E153="配水池《SUS》",初期設定!$N$29,VLOOKUP($D153,初期設定!$K$27:$N$33,4,FALSE))) -> 60 | O153: 6 | P153: 6 | R153: =IF(G153="","",VLOOKUP(G153,様式1!$O$5:$P$220,2)) -> 43.83673469
C154: その他１ | D154: その他１ | F154: 82.5 | G154: 1979 | H154: =IF($F154="","",IF($Q154="",ROUND($F154/$R154*100*IF(初期設定!$J$22="税抜",1+初期設定!$J$21/100,1),$F154))) -> 158.3600427 | I154: =IF($D154="","",IF($E154="配水池《SUS》",初期設定!$M$29,VLOOKUP($D154,初期設定!$K$27:$N$33,3,FALSE))) -> 40 | J154: =IF($F154="","",IF($Q154="",ROUND($F154/$R154*100*IF(初期設定!$J$22="税抜",1+初期設定!$J$21/100,1),$F154))) -> 158.3600427 | K154: 1 | L154: =IF(K154=1,ROUNDUP(J154*構造物・設備ダウンサイズ設定!$C$7/100,),J154) -> 141 | M154: =IF($D154="","",IF($E154="配水池《SUS》",初期設定!$N$29,VLOOKUP($D154,初期設定!$K$27:$N$33,4,FALSE))) -> 60 | N154: =IF($D154="","",IF($E154="配水池《SUS》",初期設定!$N$29,VLOOKUP($D154,初期設定!$K$27:$N$33,4,FALSE))) -> 60 | O154: 4.125 | P154: 4.125 | R154: =IF(G154="","",VLOOKUP(G154,様式1!$O$5:$P$220,2)) -> 57.30612245
C155: その他１ | D155: その他１ | F155: 390 | G155: 1981 | H155: =IF($F155="","",IF($Q155="",ROUND($F155/$R155*100*IF(初期設定!$J$22="税抜",1+初期設定!$J$21/100,1),$F155))) -> 678.9728682 | I155: =IF($D155="","",IF($E155="配水池《SUS》",初期設定!$M$29,VLOOKUP($D155,初期設定!$K$27:$N$33,3,FALSE))) -> 40 | J155: =IF($F155="","",IF($Q155="",ROUND($F155/$R155*100*IF(初期設定!$J$22="税抜",1+初期設定!$J$21/100,1),$F155))) -> 678.9728682 | K155: 1 | L155: =IF(K155=1,ROUNDUP(J155*構造物・設備ダウンサイズ設定!$C$7/100,),J155) -> 605 | M155: =IF($D155="","",IF($E155="配水池《SUS》",初期設定!$N$29,VLOOKUP($D155,初期設定!$K$27:$N$33,4,FALSE))) -> 60 | N155: =IF($D155="","",IF($E155="配水池《SUS》",初期設定!$N$29,VLOOKUP($D155,初期設定!$K$27:$N$33,4,FALSE))) -> 60 | O155: 19.5 | P155: 19.5 | R155: =IF(G155="","",VLOOKUP(G155,様式1!$O$5:$P$220,2)) -> 63.18367347
C156: その他１ | D156: その他１ | F156: 83 | G156: 1982 | H156: =IF($F156="","",IF($Q156="",ROUND($F156/$R156*100*IF(初期設定!$J$22="税抜",1+初期設定!$J$21/100,1),$F156))) -> 144.126933 | I156: =IF($D156="","",IF($E156="配水池《SUS》",初期設定!$M$29,VLOOKUP($D156,初期設定!$K$27:$N$33,3,FALSE))) -> 40 | J156: =IF($F156="","",IF($Q156="",ROUND($F156/$R156*100*IF(初期設定!$J$22="税抜",1+初期設定!$J$21/100,1),$F156))) -> 144.126933 | K156: 1 | L156: =IF(K156=1,ROUNDUP(J156*構造物・設備ダウンサイズ設定!$C$7/100,),J156) -> 129 | M156: =IF($D156="","",IF($E156="配水池《SUS》",初期設定!$N$29,VLOOKUP($D156,初期設定!$K$27:$N$33,4,FALSE))) -> 60 | N156: =IF($D156="","",IF($E156="配水池《SUS》",初期設定!$N$29,VLOOKUP($D156,初期設定!$K$27:$N$33,4,FALSE))) -> 60 | O156: 4.15 | P156: 4.15 | R156: =IF(G156="","",VLOOKUP(G156,様式1!$O$5:$P$220,2)) -> 63.34693878
C157: その他１ | D157: 計装 | F157: 1300 | G157: 1988 | H157: =IF($F157="","",IF($Q157="",ROUND($F157/$R157*100*IF(初期設定!$J$22="税抜",1+初期設定!$J$21/100,1),$F157))) -> 2225.857687 | I157: =IF($D157="","",IF($E157="配水池《SUS》",初期設定!$M$29,VLOOKUP($D157,初期設定!$K$27:$N$33,3,FALSE))) -> 15 | J157: =IF($F157="","",IF($Q157="",ROUND($F157/$R157*100*IF(初期設定!$J$22="税抜",1+初期設定!$J$21/100,1),$F157))) -> 2225.857687 | K157: 1 | L157: =IF(K157=1,ROUNDUP(J157*構造物・設備ダウンサイズ設定!$C$7/100,),J157) -> 1982 | M157: =IF($D157="","",IF($E157="配水池《SUS》",初期設定!$N$29,VLOOKUP($D157,初期設定!$K$27:$N$33,4,FALSE))) -> 21 | N157: =IF($D157="","",IF($E157="配水池《SUS》",初期設定!$N$29,VLOOKUP($D157,初期設定!$K$27:$N$33,4,FALSE))) -> 21 | O157: 65 | P157: 65 | R157: =IF(G157="","",VLOOKUP(G157,様式1!$O$5:$P$220,2)) -> 64.24489796
C158: その他１ | D158: 計装 | F158: 85 | G158: 1991 | H158: =IF($F158="","",IF($Q158="",ROUND($F158/$R158*100*IF(初期設定!$J$22="税抜",1+初期設定!$J$21/100,1),$F158))) -> 130.7505708 | I158: =IF($D158="","",IF($E158="配水池《SUS》",初期設定!$M$29,VLOOKUP($D158,初期設定!$K$27:$N$33,3,FALSE))) -> 15 | J158: =IF($F158="","",IF($Q158="",ROUND($F158/$R158*100*IF(初期設定!$J$22="税抜",1+初期設定!$J$21/100,1),$F158))) -> 130.7505708 | K158: 1 | L158: =IF(K158=1,ROUNDUP(J158*構造物・設備ダウンサイズ設定!$C$7/100,),J158) -> 117 | M158: =IF($D158="","",IF($E158="配水池《SUS》",初期設定!$N$29,VLOOKUP($D158,初期設定!$K$27:$N$33,4,FALSE))) -> 21 | N158: =IF($D158="","",IF($E158="配水池《SUS》",初期設定!$N$29,VLOOKUP($D158,初期設定!$K$27:$N$33,4,FALSE))) -> 21 | O158: 4.25 | P158: 4.25 | R158: =IF(G158="","",VLOOKUP(G158,様式1!$O$5:$P$220,2)) -> 71.51020408
C159: その他１ | D159: 計装 | F159: 338 | G159: 1994 | H159: =IF($F159="","",IF($Q159="",ROUND($F159/$R159*100*IF(初期設定!$J$22="税抜",1+初期設定!$J$21/100,1),$F159))) -> 514.0575621 | I159: =IF($D159="","",IF($E159="配水池《SUS》",初期設定!$M$29,VLOOKUP($D159,初期設定!$K$27:$N$33,3,FALSE))) -> 15 | J159: =IF($F159="","",IF($Q159="",ROUND($F159/$R159*100*IF(初期設定!$J$22="税抜",1+初期設定!$J$21/100,1),$F159))) -> 514.0575621 | K159: 1 | L159: =IF(K159=1,ROUNDUP(J159*構造物・設備ダウンサイズ設定!$C$7/100,),J159) -> 458 | M159: =IF($D159="","",IF($E159="配水池《SUS》",初期設定!$N$29,VLOOKUP($D159,初期設定!$K$27:$N$33,4,FALSE))) -> 21 | N159: =IF($D159="","",IF($E159="配水池《SUS》",初期設定!$N$29,VLOOKUP($D159,初期設定!$K$27:$N$33,4,FALSE))) -> 21 | O159: 16.9 | P159: 16.9 | R159: =IF(G159="","",VLOOKUP(G159,様式1!$O$5:$P$220,2)) -> 72.32653061
C160: その他１ | D160: その他１ | F160: 60.39 | G160: 1996 | H160: =IF($F160="","",IF($Q160="",ROUND($F160/$R160*100*IF(初期設定!$J$22="税抜",1+初期設定!$J$21/100,1),$F160))) -> 91.94974576 | I160: =IF($D160="","",IF($E160="配水池《SUS》",初期設定!$M$29,VLOOKUP($D160,初期設定!$K$27:$N$33,3,FALSE))) -> 40 | J160: =IF($F160="","",IF($Q160="",ROUND($F160/$R160*100*IF(初期設定!$J$22="税抜",1+初期設定!$J$21/100,1),$F160))) -> 91.94974576 | K160: 1 | L160: =IF(K160=1,ROUNDUP(J160*構造物・設備ダウンサイズ設定!$C$7/100,),J160) -> 82 | M160: =IF($D160="","",IF($E160="配水池《SUS》",初期設定!$N$29,VLOOKUP($D160,初期設定!$K$27:$N$33,4,FALSE))) -> 60 | N160: =IF($D160="","",IF($E160="配水池《SUS》",初期設定!$N$29,VLOOKUP($D160,初期設定!$K$27:$N$33,4,FALSE))) -> 60 | O160: 15.0975 | P160: 9.0585 | R160: =IF(G160="","",VLOOKUP(G160,様式1!$O$5:$P$220,2)) -> 72.24489796
C161: その他１ | D161: その他１ | F161: 63.53 | G161: 1996 | H161: =IF($F161="","",IF($Q161="",ROUND($F161/$R161*100*IF(初期設定!$J$22="税抜",1+初期設定!$J$21/100,1),$F161))) -> 96.73070621 | I161: =IF($D161="","",IF($E161="配水池《SUS》",初期設定!$M$29,VLOOKUP($D161,初期設定!$K$27:$N$33,3,FALSE))) -> 40 | J161: =IF($F161="","",IF($Q161="",ROUND($F161/$R161*100*IF(初期設定!$J$22="税抜",1+初期設定!$J$21/100,1),$F161))) -> 96.73070621 | K161: 1 | L161: =IF(K161=1,ROUNDUP(J161*構造物・設備ダウンサイズ設定!$C$7/100,),J161) -> 87 | M161: =IF($D161="","",IF($E161="配水池《SUS》",初期設定!$N$29,VLOOKUP($D161,初期設定!$K$27:$N$33,4,FALSE))) -> 60 | N161: =IF($D161="","",IF($E161="配水池《SUS》",初期設定!$N$29,VLOOKUP($D161,初期設定!$K$27:$N$33,4,FALSE))) -> 60 | O161: 15.8825 | P161: 9.5295 | R161: =IF(G161="","",VLOOKUP(G161,様式1!$O$5:$P$220,2)) -> 72.24489796
C162: その他１ | D162: その他１ | F162: 165 | G162: 2002 | H162: =IF($F162="","",IF($Q162="",ROUND($F162/$R162*100*IF(初期設定!$J$22="税抜",1+初期設定!$J$21/100,1),$F162))) -> 261.5735294 | I162: =IF($D162="","",IF($E162="配水池《SUS》",初期設定!$M$29,VLOOKUP($D162,初期設定!$K$27:$N$33,3,FALSE))) -> 40 | J162: =IF($F162="","",IF($Q162="",ROUND($F162/$R162*100*IF(初期設定!$J$22="税抜",1+初期設定!$J$21/100,1),$F162))) -> 261.5735294 | K162: 1 | L162: =IF(K162=1,ROUNDUP(J162*構造物・設備ダウンサイズ設定!$C$7/100,),J162) -> 233 | M162: =IF($D162="","",IF($E162="配水池《SUS》",初期設定!$N$29,VLOOKUP($D162,初期設定!$K$27:$N$33,4,FALSE))) -> 60 | N162: =IF($D162="","",IF($E162="配水池《SUS》",初期設定!$N$29,VLOOKUP($D162,初期設定!$K$27:$N$33,4,FALSE))) -> 60 | O162: 66 | P162: 49.5 | R162: =IF(G162="","",VLOOKUP(G162,様式1!$O$5:$P$220,2)) -> 69.3877551
C163: その他１ | D163: 電気 | F163: 104938.793 | G163: 2006 | H163: =IF($F163="","",IF($Q163="",ROUND($F163/$R163*100*IF(初期設定!$J$22="税抜",1+初期設定!$J$21/100,1),$F163))) -> 156076.185 | I163: =IF($D163="","",IF($E163="配水池《SUS》",初期設定!$M$29,VLOOKUP($D163,初期設定!$K$27:$N$33,3,FALSE))) -> 15 | J163: =IF($F163="","",IF($Q163="",ROUND($F163/$R163*100*IF(初期設定!$J$22="税抜",1+初期設定!$J$21/100,1),$F163))) -> 156076.185 | K163: 1 | L163: =IF(K163=1,ROUNDUP(J163*構造物・設備ダウンサイズ設定!$C$7/100,),J163) -> 138908 | M163: =IF($D163="","",IF($E163="配水池《SUS》",初期設定!$N$29,VLOOKUP($D163,初期設定!$K$27:$N$33,4,FALSE))) -> 25 | N163: =IF($D163="","",IF($E163="配水池《SUS》",初期設定!$N$29,VLOOKUP($D163,初期設定!$K$27:$N$33,4,FALSE))) -> 25 | O163: 5246.93965 | P163: 5246.93965 | R163: =IF(G163="","",VLOOKUP(G163,様式1!$O$5:$P$220,2)) -> 73.95918367
C164: その他１ | D164: 電気 | F164: 15526.658 | G164: 2006 | H164: =IF($F164="","",IF($Q164="",ROUND($F164/$R164*100*IF(初期設定!$J$22="税抜",1+初期設定!$J$21/100,1),$F164))) -> 23092.9047 | I164: =IF($D164="","",IF($E164="配水池《SUS》",初期設定!$M$29,VLOOKUP($D164,初期設定!$K$27:$N$33,3,FALSE))) -> 15 | J164: =IF($F164="","",IF($Q164="",ROUND($F164/$R164*100*IF(初期設定!$J$22="税抜",1+初期設定!$J$21/100,1),$F164))) -> 23092.9047 | K164: 1 | L164: =IF(K164=1,ROUNDUP(J164*構造物・設備ダウンサイズ設定!$C$7/100,),J164) -> 20553 | M164: =IF($D164="","",IF($E164="配水池《SUS》",初期設定!$N$29,VLOOKUP($D164,初期設定!$K$27:$N$33,4,FALSE))) -> 25 | N164: =IF($D164="","",IF($E164="配水池《SUS》",初期設定!$N$29,VLOOKUP($D164,初期設定!$K$27:$N$33,4,FALSE))) -> 25 | O164: 776.3329 | P164: 776.3329 | R164: =IF(G164="","",VLOOKUP(G164,様式1!$O$5:$P$220,2)) -> 73.95918367
C165: その他１ | D165: その他１ | F165: 300 | G165: 2006 | H165: =IF($F165="","",IF($Q165="",ROUND($F165/$R165*100*IF(初期設定!$J$22="税抜",1+初期設定!$J$21/100,1),$F165))) -> 446.192053 | I165: =IF($D165="","",IF($E165="配水池《SUS》",初期設定!$M$29,VLOOKUP($D165,初期設定!$K$27:$N$33,3,FALSE))) -> 40 | J165: =IF($F165="","",IF($Q165="",ROUND($F165/$R165*100*IF(初期設定!$J$22="税抜",1+初期設定!$J$21/100,1),$F165))) -> 446.192053 | K165: 1 | L165: =IF(K165=1,ROUNDUP(J165*構造物・設備ダウンサイズ設定!$C$7/100,),J165) -> 398 | M165: =IF($D165="","",IF($E165="配水池《SUS》",初期設定!$N$29,VLOOKUP($D165,初期設定!$K$27:$N$33,4,FALSE))) -> 60 | N165: =IF($D165="","",IF($E165="配水池《SUS》",初期設定!$N$29,VLOOKUP($D165,初期設定!$K$27:$N$33,4,FALSE))) -> 60 | O165: 150 | P165: 120 | R165: =IF(G165="","",VLOOKUP(G165,様式1!$O$5:$P$220,2)) -> 73.95918367
C166: その他１ | D166: 土木 | F166: 59462.731 | G166: 2007 | H166: =IF($F166="","",IF($Q166="",ROUND($F166/$R166*100*IF(初期設定!$J$22="税抜",1+初期設定!$J$21/100,1),$F166))) -> 85696.28879 | I166: =IF($D166="","",IF($E166="配水池《SUS》",初期設定!$M$29,VLOOKUP($D166,初期設定!$K$27:$N$33,3,FALSE))) -> 60 | J166: =IF($F166="","",IF($Q166="",ROUND($F166/$R166*100*IF(初期設定!$J$22="税抜",1+初期設定!$J$21/100,1),$F166))) -> 85696.28879 | K166: 1 | L166: =IF(K166=1,ROUNDUP(J166*構造物・設備ダウンサイズ設定!$C$7/100,),J166) -> 76270 | M166: =IF($D166="","",IF($E166="配水池《SUS》",初期設定!$N$29,VLOOKUP($D166,初期設定!$K$27:$N$33,4,FALSE))) -> 73 | N166: =IF($D166="","",IF($E166="配水池《SUS》",初期設定!$N$29,VLOOKUP($D166,初期設定!$K$27:$N$33,4,FALSE))) -> 73 | O166: 40632.86618 | P166: 36668.68412 | R166: =IF(G166="","",VLOOKUP(G166,様式1!$O$5:$P$220,2)) -> 76.32653061
C167: その他１ | D167: 電気 | F167: 13964.959 | G167: 2008 | H167: =IF($F167="","",IF($Q167="",ROUND($F167/$R167*100*IF(初期設定!$J$22="税抜",1+初期設定!$J$21/100,1),$F167))) -> 19046.33831 | I167: =IF($D167="","",IF($E167="配水池《SUS》",初期設定!$M$29,VLOOKUP($D167,初期設定!$K$27:$N$33,3,FALSE))) -> 15 | J167: =IF($F167="","",IF($Q167="",ROUND($F167/$R167*100*IF(初期設定!$J$22="税抜",1+初期設定!$J$21/100,1),$F167))) -> 19046.33831 | K167: 1 | L167: =IF(K167=1,ROUNDUP(J167*構造物・設備ダウンサイズ設定!$C$7/100,),J167) -> 16952 | M167: =IF($D167="","",IF($E167="配水池《SUS》",初期設定!$N$29,VLOOKUP($D167,初期設定!$K$27:$N$33,4,FALSE))) -> 25 | N167: =IF($D167="","",IF($E167="配水池《SUS》",初期設定!$N$29,VLOOKUP($D167,初期設定!$K$27:$N$33,4,FALSE))) -> 25 | O167: 698.24795 | P167: 698.24795 | R167: =IF(G167="","",VLOOKUP(G167,様式1!$O$5:$P$220,2)) -> 80.65306122
C168: その他１ | D168: 機械 | F168: 55440.952 | G168: 2008 | H168: =IF($F168="","",IF($Q168="",ROUND($F168/$R168*100*IF(初期設定!$J$22="税抜",1+初期設定!$J$21/100,1),$F168))) -> 75614.05144 | I168: =IF($D168="","",IF($E168="配水池《SUS》",初期設定!$M$29,VLOOKUP($D168,初期設定!$K$27:$N$33,3,FALSE))) -> 15 | J168: =IF($F168="","",IF($Q168="",ROUND($F168/$R168*100*IF(初期設定!$J$22="税抜",1+初期設定!$J$21/100,1),$F168))) -> 75614.05144 | K168: 1 | L168: =IF(K168=1,ROUNDUP(J168*構造物・設備ダウンサイズ設定!$C$7/100,),J168) -> 67297 | M168: =IF($D168="","",IF($E168="配水池《SUS》",初期設定!$N$29,VLOOKUP($D168,初期設定!$K$27:$N$33,4,FALSE))) -> 24 | N168: =IF($D168="","",IF($E168="配水池《SUS》",初期設定!$N$29,VLOOKUP($D168,初期設定!$K$27:$N$33,4,FALSE))) -> 24 | O168: 2772.0476 | P168: 2772.0476 | R168: =IF(G168="","",VLOOKUP(G168,様式1!$O$5:$P$220,2)) -> 80.65306122
C169: その他１ | D169: 建築 | F169: 21128.011 | G169: 2009 | H169: =IF($F169="","",IF($Q169="",ROUND($F169/$R169*100*IF(初期設定!$J$22="税抜",1+初期設定!$J$21/100,1),$F169))) -> 30287.22853 | I169: =IF($D169="","",IF($E169="配水池《SUS》",初期設定!$M$29,VLOOKUP($D169,初期設定!$K$27:$N$33,3,FALSE))) -> 50 | J169: =IF($F169="","",IF($Q169="",ROUND($F169/$R169*100*IF(初期設定!$J$22="税抜",1+初期設定!$J$21/100,1),$F169))) -> 30287.22853 | K169: 1 | L169: =IF(K169=1,ROUNDUP(J169*構造物・設備ダウンサイズ設定!$C$7/100,),J169) -> 26956 | M169: =IF($D169="","",IF($E169="配水池《SUS》",初期設定!$N$29,VLOOKUP($D169,初期設定!$K$27:$N$33,4,FALSE))) -> 70 | N169: =IF($D169="","",IF($E169="配水池《SUS》",初期設定!$N$29,VLOOKUP($D169,初期設定!$K$27:$N$33,4,FALSE))) -> 70 | O169: 13944.48726 | P169: 12254.24638 | R169: =IF(G169="","",VLOOKUP(G169,様式1!$O$5:$P$220,2)) -> 76.73469388
C170: その他１ | D170: 電気 | F170: 115501.555 | G170: 2009 | H170: =IF($F170="","",IF($Q170="",ROUND($F170/$R170*100*IF(初期設定!$J$22="税抜",1+初期設定!$J$21/100,1),$F170))) -> 165572.7078 | I170: =IF($D170="","",IF($E170="配水池《SUS》",初期設定!$M$29,VLOOKUP($D170,初期設定!$K$27:$N$33,3,FALSE))) -> 15 | J170: =IF($F170="","",IF($Q170="",ROUND($F170/$R170*100*IF(初期設定!$J$22="税抜",1+初期設定!$J$21/100,1),$F170))) -> 165572.7078 | K170: 1 | L170: =IF(K170=1,ROUNDUP(J170*構造物・設備ダウンサイズ設定!$C$7/100,),J170) -> 147360 | M170: =IF($D170="","",IF($E170="配水池《SUS》",初期設定!$N$29,VLOOKUP($D170,初期設定!$K$27:$N$33,4,FALSE))) -> 25 | N170: =IF($D170="","",IF($E170="配水池《SUS》",初期設定!$N$29,VLOOKUP($D170,初期設定!$K$27:$N$33,4,FALSE))) -> 25 | O170: 5775.07775 | P170: 5775.07775 | R170: =IF(G170="","",VLOOKUP(G170,様式1!$O$5:$P$220,2)) -> 76.73469388
C171: その他１ | D171: 土木 | F171: 22131.592 | G171: 2009 | H171: =IF($F171="","",IF($Q171="",ROUND($F171/$R171*100*IF(初期設定!$J$22="税抜",1+初期設定!$J$21/100,1),$F171))) -> 31725.87257 | I171: =IF($D171="","",IF($E171="配水池《SUS》",初期設定!$M$29,VLOOKUP($D171,初期設定!$K$27:$N$33,3,FALSE))) -> 60 | J171: =IF($F171="","",IF($Q171="",ROUND($F171/$R171*100*IF(初期設定!$J$22="税抜",1+初期設定!$J$21/100,1),$F171))) -> 31725.87257 | K171: 1 | L171: =IF(K171=1,ROUNDUP(J171*構造物・設備ダウンサイズ設定!$C$7/100,),J171) -> 28237 | M171: =IF($D171="","",IF($E171="配水池《SUS》",初期設定!$N$29,VLOOKUP($D171,初期設定!$K$27:$N$33,4,FALSE))) -> 73 | N171: =IF($D171="","",IF($E171="配水池《SUS》",初期設定!$N$29,VLOOKUP($D171,初期設定!$K$27:$N$33,4,FALSE))) -> 73 | O171: 15860.97427 | P171: 14385.5348 | R171: =IF(G171="","",VLOOKUP(G171,様式1!$O$5:$P$220,2)) -> 76.73469388
C172: その他１ | D172: 土木 | F172: 20500 | G172: 2009 | H172: =IF($F172="","",IF($Q172="",ROUND($F172/$R172*100*IF(初期設定!$J$22="税抜",1+初期設定!$J$21/100,1),$F172))) -> 29386.96809 | I172: =IF($D172="","",IF($E172="配水池《SUS》",初期設定!$M$29,VLOOKUP($D172,初期設定!$K$27:$N$33,3,FALSE))) -> 60 | J172: =IF($F172="","",IF($Q172="",ROUND($F172/$R172*100*IF(初期設定!$J$22="税抜",1+初期設定!$J$21/100,1),$F172))) -> 29386.96809 | K172: 1 | L172: =IF(K172=1,ROUNDUP(J172*構造物・設備ダウンサイズ設定!$C$7/100,),J172) -> 26155 | M172: =IF($D172="","",IF($E172="配水池《SUS》",初期設定!$N$29,VLOOKUP($D172,初期設定!$K$27:$N$33,4,FALSE))) -> 73 | N172: =IF($D172="","",IF($E172="配水池《SUS》",初期設定!$N$29,VLOOKUP($D172,初期設定!$K$27:$N$33,4,FALSE))) -> 73 | O172: 14691.66667 | P172: 13325 | R172: =IF(G172="","",VLOOKUP(G172,様式1!$O$5:$P$220,2)) -> 76.73469388
C173: その他１ | D173: 計装 | F173: 8943.404 | G173: 2010 | H173: =IF($F173="","",IF($Q173="",ROUND($F173/$R173*100*IF(初期設定!$J$22="税抜",1+初期設定!$J$21/100,1),$F173))) -> 12806.84048 | I173: =IF($D173="","",IF($E173="配水池《SUS》",初期設定!$M$29,VLOOKUP($D173,初期設定!$K$27:$N$33,3,FALSE))) -> 15 | J173: =IF($F173="","",IF($Q173="",ROUND($F173/$R173*100*IF(初期設定!$J$22="税抜",1+初期設定!$J$21/100,1),$F173))) -> 12806.84048 | K173: 1 | L173: =IF(K173=1,ROUNDUP(J173*構造物・設備ダウンサイズ設定!$C$7/100,),J173) -> 11399 | M173: =IF($D173="","",IF($E173="配水池《SUS》",初期設定!$N$29,VLOOKUP($D173,初期設定!$K$27:$N$33,4,FALSE))) -> 21 | N173: =IF($D173="","",IF($E173="配水池《SUS》",初期設定!$N$29,VLOOKUP($D173,初期設定!$K$27:$N$33,4,FALSE))) -> 21 | O173: 447.1702 | P173: 447.1702 | R173: =IF(G173="","",VLOOKUP(G173,様式1!$O$5:$P$220,2)) -> 76.81632653
C174: その他１ | D174: 電気 | F174: 40064.526 | G174: 2010 | H174: =IF($F174="","",IF($Q174="",ROUND($F174/$R174*100*IF(初期設定!$J$22="税抜",1+初期設定!$J$21/100,1),$F174))) -> 57371.89031 | I174: =IF($D174="","",IF($E174="配水池《SUS》",初期設定!$M$29,VLOOKUP($D174,初期設定!$K$27:$N$33,3,FALSE))) -> 15 | J174: =IF($F174="","",IF($Q174="",ROUND($F174/$R174*100*IF(初期設定!$J$22="税抜",1+初期設定!$J$21/100,1),$F174))) -> 57371.89031 | K174: 1 | L174: =IF(K174=1,ROUNDUP(J174*構造物・設備ダウンサイズ設定!$C$7/100,),J174) -> 51061 | M174: =IF($D174="","",IF($E174="配水池《SUS》",初期設定!$N$29,VLOOKUP($D174,初期設定!$K$27:$N$33,4,FALSE))) -> 25 | N174: =IF($D174="","",IF($E174="配水池《SUS》",初期設定!$N$29,VLOOKUP($D174,初期設定!$K$27:$N$33,4,FALSE))) -> 25 | O174: 2003.2263 | P174: 2003.2263 | R174: =IF(G174="","",VLOOKUP(G174,様式1!$O$5:$P$220,2)) -> 76.81632653
C175: その他１ | D175: 計装 | F175: 47143.789 | G175: 2010 | H175: =IF($F175="","",IF($Q175="",ROUND($F175/$R175*100*IF(初期設定!$J$22="税抜",1+初期設定!$J$21/100,1),$F175))) -> 67509.30465 | I175: =IF($D175="","",IF($E175="配水池《SUS》",初期設定!$M$29,VLOOKUP($D175,初期設定!$K$27:$N$33,3,FALSE))) -> 15 | J175: =IF($F175="","",IF($Q175="",ROUND($F175/$R175*100*IF(初期設定!$J$22="税抜",1+初期設定!$J$21/100,1),$F175))) -> 67509.30465 | K175: 1 | L175: =IF(K175=1,ROUNDUP(J175*構造物・設備ダウンサイズ設定!$C$7/100,),J175) -> 60084 | M175: =IF($D175="","",IF($E175="配水池《SUS》",初期設定!$N$29,VLOOKUP($D175,初期設定!$K$27:$N$33,4,FALSE))) -> 21 | N175: =IF($D175="","",IF($E175="配水池《SUS》",初期設定!$N$29,VLOOKUP($D175,初期設定!$K$27:$N$33,4,FALSE))) -> 21 | O175: 2357.18945 | P175: 2357.18945 | R175: =IF(G175="","",VLOOKUP(G175,様式1!$O$5:$P$220,2)) -> 76.81632653
C176: その他１ | D176: 機械 | F176: 50744.084 | G176: 2011 | H176: =IF($F176="","",IF($Q176="",ROUND($F176/$R176*100*IF(初期設定!$J$22="税抜",1+初期設定!$J$21/100,1),$F176))) -> 71749.89842 | I176: =IF($D176="","",IF($E176="配水池《SUS》",初期設定!$M$29,VLOOKUP($D176,初期設定!$K$27:$N$33,3,FALSE))) -> 15 | J176: =IF($F176="","",IF($Q176="",ROUND($F176/$R176*100*IF(初期設定!$J$22="税抜",1+初期設定!$J$21/100,1),$F176))) -> 71749.89842 | K176: 1 | L176: =IF(K176=1,ROUNDUP(J176*構造物・設備ダウンサイズ設定!$C$7/100,),J176) -> 63858 | M176: =IF($D176="","",IF($E176="配水池《SUS》",初期設定!$N$29,VLOOKUP($D176,初期設定!$K$27:$N$33,4,FALSE))) -> 24 | N176: =IF($D176="","",IF($E176="配水池《SUS》",初期設定!$N$29,VLOOKUP($D176,初期設定!$K$27:$N$33,4,FALSE))) -> 24 | O176: 2537.2042 | P176: 2537.2042 | R176: =IF(G176="","",VLOOKUP(G176,様式1!$O$5:$P$220,2)) -> 77.79591837
C177: その他１ | D177: 機械 | F177: 18012.054 | G177: 2011 | H177: =IF($F177="","",IF($Q177="",ROUND($F177/$R177*100*IF(初期設定!$J$22="税抜",1+初期設定!$J$21/100,1),$F177))) -> 25468.25054 | I177: =IF($D177="","",IF($E177="配水池《SUS》",初期設定!$M$29,VLOOKUP($D177,初期設定!$K$27:$N$33,3,FALSE))) -> 15 | J177: =IF($F177="","",IF($Q177="",ROUND($F177/$R177*100*IF(初期設定!$J$22="税抜",1+初期設定!$J$21/100,1),$F177))) -> 25468.25054 | K177: 1 | L177: =IF(K177=1,ROUNDUP(J177*構造物・設備ダウンサイズ設定!$C$7/100,),J177) -> 22667 | M177: =IF($D177="","",IF($E177="配水池《SUS》",初期設定!$N$29,VLOOKUP($D177,初期設定!$K$27:$N$33,4,FALSE))) -> 24 | N177: =IF($D177="","",IF($E177="配水池《SUS》",初期設定!$N$29,VLOOKUP($D177,初期設定!$K$27:$N$33,4,FALSE))) -> 24 | O177: 900.6027 | P177: 900.6027 | R177: =IF(G177="","",VLOOKUP(G177,様式1!$O$5:$P$220,2)) -> 77.79591837
C178: その他１ | D178: その他１ | F178: 17664 | G178: 2011 | H178: =IF($F178="","",IF($Q178="",ROUND($F178/$R178*100*IF(初期設定!$J$22="税抜",1+初期設定!$J$21/100,1),$F178))) -> 24976.11752 | I178: =IF($D178="","",IF($E178="配水池《SUS》",初期設定!$M$29,VLOOKUP($D178,初期設定!$K$27:$N$33,3,FALSE))) -> 40 | J178: =IF($F178="","",IF($Q178="",ROUND($F178/$R178*100*IF(初期設定!$J$22="税抜",1+初期設定!$J$21/100,1),$F178))) -> 24976.11752 | K178: 1 | L178: =IF(K178=1,ROUNDUP(J178*構造物・設備ダウンサイズ設定!$C$7/100,),J178) -> 22229 | M178: =IF($D178="","",IF($E178="配水池《SUS》",初期設定!$N$29,VLOOKUP($D178,初期設定!$K$27:$N$33,4,FALSE))) -> 60 | N178: =IF($D178="","",IF($E178="配水池《SUS》",初期設定!$N$29,VLOOKUP($D178,初期設定!$K$27:$N$33,4,FALSE))) -> 60 | O178: 11040 | P178: 9273.6 | R178: =IF(G178="","",VLOOKUP(G178,様式1!$O$5:$P$220,2)) -> 77.79591837
C179: その他１ | D179: その他１ | F179: 8625 | G179: 2011 | H179: =IF($F179="","",IF($Q179="",ROUND($F179/$R179*100*IF(初期設定!$J$22="税抜",1+初期設定!$J$21/100,1),$F179))) -> 12195.36988 | I179: =IF($D179="","",IF($E179="配水池《SUS》",初期設定!$M$29,VLOOKUP($D179,初期設定!$K$27:$N$33,3,FALSE))) -> 40 | J179: =IF($F179="","",IF($Q179="",ROUND($F179/$R179*100*IF(初期設定!$J$22="税抜",1+初期設定!$J$21/100,1),$F179))) -> 12195.36988 | K179: 1 | L179: =IF(K179=1,ROUNDUP(J179*構造物・設備ダウンサイズ設定!$C$7/100,),J179) -> 10854 | M179: =IF($D179="","",IF($E179="配水池《SUS》",初期設定!$N$29,VLOOKUP($D179,初期設定!$K$27:$N$33,4,FALSE))) -> 60 | N179: =IF($D179="","",IF($E179="配水池《SUS》",初期設定!$N$29,VLOOKUP($D179,初期設定!$K$27:$N$33,4,FALSE))) -> 60 | O179: 5390.625 | P179: 4528.125 | R179: =IF(G179="","",VLOOKUP(G179,様式1!$O$5:$P$220,2)) -> 77.79591837
C180: その他１ | D180: その他１ | F180: 1141.58 | G180: 2012 | H180: =IF($F180="","",IF($Q180="",ROUND($F180/$R180*100*IF(初期設定!$J$22="税抜",1+初期設定!$J$21/100,1),$F180))) -> 1624.370697 | I180: =IF($D180="","",IF($E180="配水池《SUS》",初期設定!$M$29,VLOOKUP($D180,初期設定!$K$27:$N$33,3,FALSE))) -> 40 | J180: =IF($F180="","",IF($Q180="",ROUND($F180/$R180*100*IF(初期設定!$J$22="税抜",1+初期設定!$J$21/100,1),$F180))) -> 1624.370697 | K180: 1 | L180: =IF(K180=1,ROUNDUP(J180*構造物・設備ダウンサイズ設定!$C$7/100,),J180) -> 1446 | M180: =IF($D180="","",IF($E180="配水池《SUS》",初期設定!$N$29,VLOOKUP($D180,初期設定!$K$27:$N$33,4,FALSE))) -> 60 | N180: =IF($D180="","",IF($E180="配水池《SUS》",初期設定!$N$29,VLOOKUP($D180,初期設定!$K$27:$N$33,4,FALSE))) -> 60 | O180: 742.027 | P180: 627.869 | R180: =IF(G180="","",VLOOKUP(G180,様式1!$O$5:$P$220,2)) -> 77.30612245
C181: その他１ | D181: 電気 | F181: 1748.572 | G181: 2012 | H181: =IF($F181="","",IF($Q181="",ROUND($F181/$R181*100*IF(初期設定!$J$22="税抜",1+初期設定!$J$21/100,1),$F181))) -> 2488.068395 | I181: =IF($D181="","",IF($E181="配水池《SUS》",初期設定!$M$29,VLOOKUP($D181,初期設定!$K$27:$N$33,3,FALSE))) -> 15 | J181: =IF($F181="","",IF($Q181="",ROUND($F181/$R181*100*IF(初期設定!$J$22="税抜",1+初期設定!$J$21/100,1),$F181))) -> 2488.068395 | K181: 1 | L181: =IF(K181=1,ROUNDUP(J181*構造物・設備ダウンサイズ設定!$C$7/100,),J181) -> 2215 | M181: =IF($D181="","",IF($E181="配水池《SUS》",初期設定!$N$29,VLOOKUP($D181,初期設定!$K$27:$N$33,4,FALSE))) -> 25 | N181: =IF($D181="","",IF($E181="配水池《SUS》",初期設定!$N$29,VLOOKUP($D181,初期設定!$K$27:$N$33,4,FALSE))) -> 25 | O181: 116.5714667 | P181: 87.4286 | R181: =IF(G181="","",VLOOKUP(G181,様式1!$O$5:$P$220,2)) -> 77.30612245
C182: その他１ | D182: 電気 | F182: 48000 | G182: 2012 | H182: =IF($F182="","",IF($Q182="",ROUND($F182/$R182*100*IF(初期設定!$J$22="税抜",1+初期設定!$J$21/100,1),$F182))) -> 68299.8944 | I182: =IF($D182="","",IF($E182="配水池《SUS》",初期設定!$M$29,VLOOKUP($D182,初期設定!$K$27:$N$33,3,FALSE))) -> 15 | J182: =IF($F182="","",IF($Q182="",ROUND($F182/$R182*100*IF(初期設定!$J$22="税抜",1+初期設定!$J$21/100,1),$F182))) -> 68299.8944 | K182: 1 | L182: =IF(K182=1,ROUNDUP(J182*構造物・設備ダウンサイズ設定!$C$7/100,),J182) -> 60787 | M182: =IF($D182="","",IF($E182="配水池《SUS》",初期設定!$N$29,VLOOKUP($D182,初期設定!$K$27:$N$33,4,FALSE))) -> 25 | N182: =IF($D182="","",IF($E182="配水池《SUS》",初期設定!$N$29,VLOOKUP($D182,初期設定!$K$27:$N$33,4,FALSE))) -> 25 | O182: 3200 | P182: 2400 | R182: =IF(G182="","",VLOOKUP(G182,様式1!$O$5:$P$220,2)) -> 77.30612245
C183: その他１ | D183: 電気 | F183: 92537.216 | G183: 2013 | H183: =IF($F183="","",IF($Q183="",ROUND($F183/$R183*100*IF(初期設定!$J$22="税抜",1+初期設定!$J$21/100,1),$F183))) -> 129082.7107 | I183: =IF($D183="","",IF($E183="配水池《SUS》",初期設定!$M$29,VLOOKUP($D183,初期設定!$K$27:$N$33,3,FALSE))) -> 15 | J183: =IF($F183="","",IF($Q183="",ROUND($F183/$R183*100*IF(初期設定!$J$22="税抜",1+初期設定!$J$21/100,1),$F183))) -> 129082.7107 | K183: 1 | L183: =IF(K183=1,ROUNDUP(J183*構造物・設備ダウンサイズ設定!$C$7/100,),J183) -> 114884 | M183: =IF($D183="","",IF($E183="配水池《SUS》",初期設定!$N$29,VLOOKUP($D183,初期設定!$K$27:$N$33,4,FALSE))) -> 25 | N183: =IF($D183="","",IF($E183="配水池《SUS》",初期設定!$N$29,VLOOKUP($D183,初期設定!$K$27:$N$33,4,FALSE))) -> 25 | O183: 12338.29547 | P183: 4626.8608 | R183: =IF(G183="","",VLOOKUP(G183,様式1!$O$5:$P$220,2)) -> 78.85714286
C184: その他１ | D184: 電気 | F184: 51862.594 | G184: 2014 | H184: =IF($F184="","",IF($Q184="",ROUND($F184/$R184*100*IF(初期設定!$J$22="税抜",1+初期設定!$J$21/100,1),$F184))) -> 70236.02554 | I184: =IF($D184="","",IF($E184="配水池《SUS》",初期設定!$M$29,VLOOKUP($D184,初期設定!$K$27:$N$33,3,FALSE))) -> 15 | J184: =IF($F184="","",IF($Q184="",ROUND($F184/$R184*100*IF(初期設定!$J$22="税抜",1+初期設定!$J$21/100,1),$F184))) -> 70236.02554 | K184: 1 | L184: =IF(K184=1,ROUNDUP(J184*構造物・設備ダウンサイズ設定!$C$7/100,),J184) -> 62511 | M184: =IF($D184="","",IF($E184="配水池《SUS》",初期設定!$N$29,VLOOKUP($D184,初期設定!$K$27:$N$33,4,FALSE))) -> 25 | N184: =IF($D184="","",IF($E184="配水池《SUS》",初期設定!$N$29,VLOOKUP($D184,初期設定!$K$27:$N$33,4,FALSE))) -> 25 | O184: 10372.5188 | P184: 2593.1297 | R184: =IF(G184="","",VLOOKUP(G184,様式1!$O$5:$P$220,2)) -> 81.2244898
C185: その他１ | D185: その他１ | F185: 1073.889 | G185: 2014 | H185: =IF($F185="","",IF($Q185="",ROUND($F185/$R185*100*IF(初期設定!$J$22="税抜",1+初期設定!$J$21/100,1),$F185))) -> 1454.337113 | I185: =IF($D185="","",IF($E185="配水池《SUS》",初期設定!$M$29,VLOOKUP($D185,初期設定!$K$27:$N$33,3,FALSE))) -> 40 | J185: =IF($F185="","",IF($Q185="",ROUND($F185/$R185*100*IF(初期設定!$J$22="税抜",1+初期設定!$J$21/100,1),$F185))) -> 1454.337113 | K185: 1 | L185: =IF(K185=1,ROUNDUP(J185*構造物・設備ダウンサイズ設定!$C$7/100,),J185) -> 1295 | M185: =IF($D185="","",IF($E185="配水池《SUS》",初期設定!$N$29,VLOOKUP($D185,初期設定!$K$27:$N$33,4,FALSE))) -> 60 | N185: =IF($D185="","",IF($E185="配水池《SUS》",初期設定!$N$29,VLOOKUP($D185,初期設定!$K$27:$N$33,4,FALSE))) -> 60 | O185: 751.7223 | P185: 644.3334 | R185: =IF(G185="","",VLOOKUP(G185,様式1!$O$5:$P$220,2)) -> 81.2244898
C186: その他１ | D186: その他１ | F186: 1117.593 | G186: 2014 | H186: =IF($F186="","",IF($Q186="",ROUND($F186/$R186*100*IF(初期設定!$J$22="税抜",1+初期設定!$J$21/100,1),$F186))) -> 1513.524188 | I186: =IF($D186="","",IF($E186="配水池《SUS》",初期設定!$M$29,VLOOKUP($D186,初期設定!$K$27:$N$33,3,FALSE))) -> 40 | J186: =IF($F186="","",IF($Q186="",ROUND($F186/$R186*100*IF(初期設定!$J$22="税抜",1+初期設定!$J$21/100,1),$F186))) -> 1513.524188 | K186: 1 | L186: =IF(K186=1,ROUNDUP(J186*構造物・設備ダウンサイズ設定!$C$7/100,),J186) -> 1348 | M186: =IF($D186="","",IF($E186="配水池《SUS》",初期設定!$N$29,VLOOKUP($D186,初期設定!$K$27:$N$33,4,FALSE))) -> 60 | N186: =IF($D186="","",IF($E186="配水池《SUS》",初期設定!$N$29,VLOOKUP($D186,初期設定!$K$27:$N$33,4,FALSE))) -> 60 | O186: 782.3151 | P186: 670.5558 | R186: =IF(G186="","",VLOOKUP(G186,様式1!$O$5:$P$220,2)) -> 81.2244898
C187: その他１ | D187: 機械 | F187: 190 | G187: 2014 | H187: =IF($F187="","",IF($Q187="",ROUND($F187/$R187*100*IF(初期設定!$J$22="税抜",1+初期設定!$J$21/100,1),$F187))) -> 257.3115578 | I187: =IF($D187="","",IF($E187="配水池《SUS》",初期設定!$M$29,VLOOKUP($D187,初期設定!$K$27:$N$33,3,FALSE))) -> 15 | J187: =IF($F187="","",IF($Q187="",ROUND($F187/$R187*100*IF(初期設定!$J$22="税抜",1+初期設定!$J$21/100,1),$F187))) -> 257.3115578 | K187: 1 | L187: =IF(K187=1,ROUNDUP(J187*構造物・設備ダウンサイズ設定!$C$7/100,),J187) -> 230 | M187: =IF($D187="","",IF($E187="配水池《SUS》",初期設定!$N$29,VLOOKUP($D187,初期設定!$K$27:$N$33,4,FALSE))) -> 24 | N187: =IF($D187="","",IF($E187="配水池《SUS》",初期設定!$N$29,VLOOKUP($D187,初期設定!$K$27:$N$33,4,FALSE))) -> 24 | O187: 38 | P187: 9.5 | R187: =IF(G187="","",VLOOKUP(G187,様式1!$O$5:$P$220,2)) -> 81.2244898
C188: その他１ | D188: その他１ | F188: 650 | G188: 2016 | H188: =IF($F188="","",IF($Q188="",ROUND($F188/$R188*100*IF(初期設定!$J$22="税抜",1+初期設定!$J$21/100,1),$F188))) -> 875 | I188: =IF($D188="","",IF($E188="配水池《SUS》",初期設定!$M$29,VLOOKUP($D188,初期設定!$K$27:$N$33,3,FALSE))) -> 40 | J188: =IF($F188="","",IF($Q188="",ROUND($F188/$R188*100*IF(初期設定!$J$22="税抜",1+初期設定!$J$21/100,1),$F188))) -> 875 | K188: 1 | L188: =IF(K188=1,ROUNDUP(J188*構造物・設備ダウンサイズ設定!$C$7/100,),J188) -> 779 | M188: =IF($D188="","",IF($E188="配水池《SUS》",初期設定!$N$29,VLOOKUP($D188,初期設定!$K$27:$N$33,4,FALSE))) -> 60 | N188: =IF($D188="","",IF($E188="配水池《SUS》",初期設定!$N$29,VLOOKUP($D188,初期設定!$K$27:$N$33,4,FALSE))) -> 60 | O188: 487.5 | P188: 422.5 | R188: =IF(G188="","",VLOOKUP(G188,様式1!$O$5:$P$220,2)) -> 81.71428571
C189: その他１ | D189: 機械 | F189: 176888.952 | G189: 2017 | H189: =IF($F189="","",IF($Q189="",ROUND($F189/$R189*100*IF(初期設定!$J$22="税抜",1+初期設定!$J$21/100,1),$F189))) -> 233684.1792 | I189: =IF($D189="","",IF($E189="配水池《SUS》",初期設定!$M$29,VLOOKUP($D189,初期設定!$K$27:$N$33,3,FALSE))) -> 15 | J189: =IF($F189="","",IF($Q189="",ROUND($F189/$R189*100*IF(初期設定!$J$22="税抜",1+初期設定!$J$21/100,1),$F189))) -> 233684.1792 | K189: 1 | L189: =IF(K189=1,ROUNDUP(J189*構造物・設備ダウンサイズ設定!$C$7/100,),J189) -> 207979 | M189: =IF($D189="","",IF($E189="配水池《SUS》",初期設定!$N$29,VLOOKUP($D189,初期設定!$K$27:$N$33,4,FALSE))) -> 24 | N189: =IF($D189="","",IF($E189="配水池《SUS》",初期設定!$N$29,VLOOKUP($D189,初期設定!$K$27:$N$33,4,FALSE))) -> 24 | O189: 70755.5808 | P189: 23585.1936 | R189: =IF(G189="","",VLOOKUP(G189,様式1!$O$5:$P$220,2)) -> 83.26530612
C190: その他１ | D190: 建築 | F190: 28080.27 | G190: 2017 | H190: =IF($F190="","",IF($Q190="",ROUND($F190/$R190*100*IF(初期設定!$J$22="税抜",1+初期設定!$J$21/100,1),$F190))) -> 37096.23904 | I190: =IF($D190="","",IF($E190="配水池《SUS》",初期設定!$M$29,VLOOKUP($D190,初期設定!$K$27:$N$33,3,FALSE))) -> 50 | J190: =IF($F190="","",IF($Q190="",ROUND($F190/$R190*100*IF(初期設定!$J$22="税抜",1+初期設定!$J$21/100,1),$F190))) -> 37096.23904 | K190: 1 | L190: =IF(K190=1,ROUNDUP(J190*構造物・設備ダウンサイズ設定!$C$7/100,),J190) -> 33016 | M190: =IF($D190="","",IF($E190="配水池《SUS》",初期設定!$N$29,VLOOKUP($D190,初期設定!$K$27:$N$33,4,FALSE))) -> 70 | N190: =IF($D190="","",IF($E190="配水池《SUS》",初期設定!$N$29,VLOOKUP($D190,初期設定!$K$27:$N$33,4,FALSE))) -> 70 | O190: 23025.8214 | P190: 20779.3998 | R190: =IF(G190="","",VLOOKUP(G190,様式1!$O$5:$P$220,2)) -> 83.26530612
C191: その他１ | D191: その他１ | F191: 3518.519 | G191: 2017 | H191: =IF($F191="","",IF($Q191="",ROUND($F191/$R191*100*IF(初期設定!$J$22="税抜",1+初期設定!$J$21/100,1),$F191))) -> 4648.239561 | I191: =IF($D191="","",IF($E191="配水池《SUS》",初期設定!$M$29,VLOOKUP($D191,初期設定!$K$27:$N$33,3,FALSE))) -> 40 | J191: =IF($F191="","",IF($Q191="",ROUND($F191/$R191*100*IF(初期設定!$J$22="税抜",1+初期設定!$J$21/100,1),$F191))) -> 4648.239561 | K191: 1 | L191: =IF(K191=1,ROUNDUP(J191*構造物・設備ダウンサイズ設定!$C$7/100,),J191) -> 4137 | M191: =IF($D191="","",IF($E191="配水池《SUS》",初期設定!$N$29,VLOOKUP($D191,初期設定!$K$27:$N$33,4,FALSE))) -> 60 | N191: =IF($D191="","",IF($E191="配水池《SUS》",初期設定!$N$29,VLOOKUP($D191,初期設定!$K$27:$N$33,4,FALSE))) -> 60 | O191: 2726.852225 | P191: 2375.000325 | R191: =IF(G191="","",VLOOKUP(G191,様式1!$O$5:$P$220,2)) -> 83.26530612
C192: その他１ | D192: 電気 | F192: 215000 | G192: 2018 | H192: =IF($F192="","",IF($Q192="",ROUND($F192/$R192*100*IF(初期設定!$J$22="税抜",1+初期設定!$J$21/100,1),$F192))) -> 273830.3403 | I192: =IF($D192="","",IF($E192="配水池《SUS》",初期設定!$M$29,VLOOKUP($D192,初期設定!$K$27:$N$33,3,FALSE))) -> 15 | J192: =IF($F192="","",IF($Q192="",ROUND($F192/$R192*100*IF(初期設定!$J$22="税抜",1+初期設定!$J$21/100,1),$F192))) -> 273830.3403 | K192: 1 | L192: =IF(K192=1,ROUNDUP(J192*構造物・設備ダウンサイズ設定!$C$7/100,),J192) -> 243710 | M192: =IF($D192="","",IF($E192="配水池《SUS》",初期設定!$N$29,VLOOKUP($D192,初期設定!$K$27:$N$33,4,FALSE))) -> 25 | N192: =IF($D192="","",IF($E192="配水池《SUS》",初期設定!$N$29,VLOOKUP($D192,初期設定!$K$27:$N$33,4,FALSE))) -> 25 | O192: 100333.3333 | P192: 43000 | R192: =IF(G192="","",VLOOKUP(G192,様式1!$O$5:$P$220,2)) -> 86.36734694
C193: その他１ | D193: 計装 | F193: 149.7 | G193: 2018 | H193: =IF($F193="","",IF($Q193="",ROUND($F193/$R193*100*IF(初期設定!$J$22="税抜",1+初期設定!$J$21/100,1),$F193))) -> 190.6623346 | I193: =IF($D193="","",IF($E193="配水池《SUS》",初期設定!$M$29,VLOOKUP($D193,初期設定!$K$27:$N$33,3,FALSE))) -> 15 | J193: =IF($F193="","",IF($Q193="",ROUND($F193/$R193*100*IF(初期設定!$J$22="税抜",1+初期設定!$J$21/100,1),$F193))) -> 190.6623346 | K193: 1 | L193: =IF(K193=1,ROUNDUP(J193*構造物・設備ダウンサイズ設定!$C$7/100,),J193) -> 170 | M193: =IF($D193="","",IF($E193="配水池《SUS》",初期設定!$N$29,VLOOKUP($D193,初期設定!$K$27:$N$33,4,FALSE))) -> 21 | N193: =IF($D193="","",IF($E193="配水池《SUS》",初期設定!$N$29,VLOOKUP($D193,初期設定!$K$27:$N$33,4,FALSE))) -> 21 | O193: 69.86 | P193: 29.94 | R193: =IF(G193="","",VLOOKUP(G193,様式1!$O$5:$P$220,2)) -> 86.36734694
C194: その他１ | D194: 計装 | F194: 65 | G194: 2018 | H194: =IF($F194="","",IF($Q194="",ROUND($F194/$R194*100*IF(初期設定!$J$22="税抜",1+初期設定!$J$21/100,1),$F194))) -> 82.78591682 | I194: =IF($D194="","",IF($E194="配水池《SUS》",初期設定!$M$29,VLOOKUP($D194,初期設定!$K$27:$N$33,3,FALSE))) -> 15 | J194: =IF($F194="","",IF($Q194="",ROUND($F194/$R194*100*IF(初期設定!$J$22="税抜",1+初期設定!$J$21/100,1),$F194))) -> 82.78591682 | K194: 1 | L194: =IF(K194=1,ROUNDUP(J194*構造物・設備ダウンサイズ設定!$C$7/100,),J194) -> 74 | M194: =IF($D194="","",IF($E194="配水池《SUS》",初期設定!$N$29,VLOOKUP($D194,初期設定!$K$27:$N$33,4,FALSE))) -> 21 | N194: =IF($D194="","",IF($E194="配水池《SUS》",初期設定!$N$29,VLOOKUP($D194,初期設定!$K$27:$N$33,4,FALSE))) -> 21 | O194: 30.33333333 | P194: 13 | R194: =IF(G194="","",VLOOKUP(G194,様式1!$O$5:$P$220,2)) -> 86.36734694
C195: その他１ | D195: その他１ | F195: 1547.445 | G195: 2018 | H195: =IF($F195="","",IF($Q195="",ROUND($F195/$R195*100*IF(初期設定!$J$22="税抜",1+初期設定!$J$21/100,1),$F195))) -> 1970.871586 | I195: =IF($D195="","",IF($E195="配水池《SUS》",初期設定!$M$29,VLOOKUP($D195,初期設定!$K$27:$N$33,3,FALSE))) -> 40 | J195: =IF($F195="","",IF($Q195="",ROUND($F195/$R195*100*IF(初期設定!$J$22="税抜",1+初期設定!$J$21/100,1),$F195))) -> 1970.871586 | K195: 1 | L195: =IF(K195=1,ROUNDUP(J195*構造物・設備ダウンサイズ設定!$C$7/100,),J195) -> 1755 | M195: =IF($D195="","",IF($E195="配水池《SUS》",初期設定!$N$29,VLOOKUP($D195,初期設定!$K$27:$N$33,4,FALSE))) -> 60 | N195: =IF($D195="","",IF($E195="配水池《SUS》",初期設定!$N$29,VLOOKUP($D195,初期設定!$K$27:$N$33,4,FALSE))) -> 60 | O195: 1237.956 | P195: 1083.2115 | R195: =IF(G195="","",VLOOKUP(G195,様式1!$O$5:$P$220,2)) -> 86.36734694
C196: その他１ | D196: その他１ | F196: 55.2 | G196: 2018 | H196: =IF($F196="","",IF($Q196="",ROUND($F196/$R196*100*IF(初期設定!$J$22="税抜",1+初期設定!$J$21/100,1),$F196))) -> 70.30434783 | I196: =IF($D196="","",IF($E196="配水池《SUS》",初期設定!$M$29,VLOOKUP($D196,初期設定!$K$27:$N$33,3,FALSE))) -> 40 | J196: =IF($F196="","",IF($Q196="",ROUND($F196/$R196*100*IF(初期設定!$J$22="税抜",1+初期設定!$J$21/100,1),$F196))) -> 70.30434783 | K196: 1 | L196: =IF(K196=1,ROUNDUP(J196*構造物・設備ダウンサイズ設定!$C$7/100,),J196) -> 63 | M196: =IF($D196="","",IF($E196="配水池《SUS》",初期設定!$N$29,VLOOKUP($D196,初期設定!$K$27:$N$33,4,FALSE))) -> 60 | N196: =IF($D196="","",IF($E196="配水池《SUS》",初期設定!$N$29,VLOOKUP($D196,初期設定!$K$27:$N$33,4,FALSE))) -> 60 | O196: 44.16 | P196: 38.64 | R196: =IF(G196="","",VLOOKUP(G196,様式1!$O$5:$P$220,2)) -> 86.36734694
C197: その他１ | D197: 電気 | F197: 302031.305 | G197: 2019 | H197: =IF($F197="","",IF($Q197="",ROUND($F197/$R197*100*IF(初期設定!$J$22="税抜",1+初期設定!$J$21/100,1),$F197))) -> 373725.6047 | I197: =IF($D197="","",IF($E197="配水池《SUS》",初期設定!$M$29,VLOOKUP($D197,初期設定!$K$27:$N$33,3,FALSE))) -> 15 | J197: =IF($F197="","",IF($Q197="",ROUND($F197/$R197*100*IF(初期設定!$J$22="税抜",1+初期設定!$J$21/100,1),$F197))) -> 373725.6047 | K197: 1 | L197: =IF(K197=1,ROUNDUP(J197*構造物・設備ダウンサイズ設定!$C$7/100,),J197) -> 332616 | M197: =IF($D197="","",IF($E197="配水池《SUS》",初期設定!$N$29,VLOOKUP($D197,初期設定!$K$27:$N$33,4,FALSE))) -> 25 | N197: =IF($D197="","",IF($E197="配水池《SUS》",初期設定!$N$29,VLOOKUP($D197,初期設定!$K$27:$N$33,4,FALSE))) -> 25 | O197: 161083.3627 | P197: 80541.68133 | R197: =IF(G197="","",VLOOKUP(G197,様式1!$O$5:$P$220,2)) -> 88.89795918
C198: その他１ | D198: その他１ | F198: 1478.695 | G198: 2019 | H198: =IF($F198="","",IF($Q198="",ROUND($F198/$R198*100*IF(初期設定!$J$22="税抜",1+初期設定!$J$21/100,1),$F198))) -> 1829.698359 | I198: =IF($D198="","",IF($E198="配水池《SUS》",初期設定!$M$29,VLOOKUP($D198,初期設定!$K$27:$N$33,3,FALSE))) -> 40 | J198: =IF($F198="","",IF($Q198="",ROUND($F198/$R198*100*IF(初期設定!$J$22="税抜",1+初期設定!$J$21/100,1),$F198))) -> 1829.698359 | K198: 1 | L198: =IF(K198=1,ROUNDUP(J198*構造物・設備ダウンサイズ設定!$C$7/100,),J198) -> 1629 | M198: =IF($D198="","",IF($E198="配水池《SUS》",初期設定!$N$29,VLOOKUP($D198,初期設定!$K$27:$N$33,4,FALSE))) -> 60 | N198: =IF($D198="","",IF($E198="配水池《SUS》",初期設定!$N$29,VLOOKUP($D198,初期設定!$K$27:$N$33,4,FALSE))) -> 60 | O198: =IF(F198="","",IFERROR($F198*IF($Y$46="税抜",1,(1+$Y$45/100))*MAX(1-(Y$43-$G198)/$I198,$Y$42),0)) -> 1219.923375 | P198: =IF(F198="","",IFERROR($F198*IF($Y$46="税抜",1,(1+$Y$45/100))*MAX(1-($Y$44-$G198)/$I198,$Y$42),0)) -> 1072.053875 | R198: =IF(G198="","",VLOOKUP(G198,様式1!$O$5:$P$220,2)) -> 88.89795918
C199: その他１ | D199: その他１ | F199: 250 | G199: 2019 | H199: =IF($F199="","",IF($Q199="",ROUND($F199/$R199*100*IF(初期設定!$J$22="税抜",1+初期設定!$J$21/100,1),$F199))) -> 309.3434343 | I199: =IF($D199="","",IF($E199="配水池《SUS》",初期設定!$M$29,VLOOKUP($D199,初期設定!$K$27:$N$33,3,FALSE))) -> 40 | J199: =IF($F199="","",IF($Q199="",ROUND($F199/$R199*100*IF(初期設定!$J$22="税抜",1+初期設定!$J$21/100,1),$F199))) -> 309.3434343 | K199: 1 | L199: =IF(K199=1,ROUNDUP(J199*構造物・設備ダウンサイズ設定!$C$7/100,),J199) -> 276 | M199: =IF($D199="","",IF($E199="配水池《SUS》",初期設定!$N$29,VLOOKUP($D199,初期設定!$K$27:$N$33,4,FALSE))) -> 60 | N199: =IF($D199="","",IF($E199="配水池《SUS》",初期設定!$N$29,VLOOKUP($D199,初期設定!$K$27:$N$33,4,FALSE))) -> 60 | O199: 206.25 | P199: 181.25 | R199: =IF(G199="","",VLOOKUP(G199,様式1!$O$5:$P$220,2)) -> 88.89795918
C200: その他１ | D200: その他１ | F200: 260 | G200: 2019 | H200: =IF($F200="","",IF($Q200="",ROUND($F200/$R200*100*IF(初期設定!$J$22="税抜",1+初期設定!$J$21/100,1),$F200))) -> 321.7171717 | I200: =IF($D200="","",IF($E200="配水池《SUS》",初期設定!$M$29,VLOOKUP($D200,初期設定!$K$27:$N$33,3,FALSE))) -> 40 | J200: =IF($F200="","",IF($Q200="",ROUND($F200/$R200*100*IF(初期設定!$J$22="税抜",1+初期設定!$J$21/100,1),$F200))) -> 321.7171717 | K200: 1 | L200: =IF(K200=1,ROUNDUP(J200*構造物・設備ダウンサイズ設定!$C$7/100,),J200) -> 287 | M200: =IF($D200="","",IF($E200="配水池《SUS》",初期設定!$N$29,VLOOKUP($D200,初期設定!$K$27:$N$33,4,FALSE))) -> 60 | N200: =IF($D200="","",IF($E200="配水池《SUS》",初期設定!$N$29,VLOOKUP($D200,初期設定!$K$27:$N$33,4,FALSE))) -> 60 | O200: 214.5 | P200: 188.5 | R200: =IF(G200="","",VLOOKUP(G200,様式1!$O$5:$P$220,2)) -> 88.89795918
... 463 more rows

Sheet 様式2-1（グラフ）
D1: 様式2-1
D2: ●構造物及び設備の取得年度、帳簿原価等（グラフ）
B4: 年度 | C4: 現在価値
B5: 1900 | C5: =SUMIF('様式2-1'!$G$5:$G$663,B5,'様式2-1'!$F$5:$F$663) -> 0
B6: =B5+1 -> 1901 | C6: =SUMIF('様式2-1'!$G$5:$G$663,B6,'様式2-1'!$F$5:$F$663) -> 0
B7: =B6+1 -> 1902 | C7: =SUMIF('様式2-1'!$G$5:$G$663,B7,'様式2-1'!$F$5:$F$663) -> 0
B8: 1903 | C8: =SUMIF('様式2-1'!$G$5:$G$663,B8,'様式2-1'!$F$5:$F$663) -> 0
B9: 1904 | C9: =SUMIF('様式2-1'!$G$5:$G$663,B9,'様式2-1'!$F$5:$F$663) -> 0
B10: 1905 | C10: =SUMIF('様式2-1'!$G$5:$G$663,B10,'様式2-1'!$F$5:$F$663) -> 0
B11: 1906 | C11: =SUMIF('様式2-1'!$G$5:$G$663,B11,'様式2-1'!$F$5:$F$663) -> 0
B12: 1907 | C12: =SUMIF('様式2-1'!$G$5:$G$663,B12,'様式2-1'!$F$5:$F$663) -> 0
B13: 1908 | C13: =SUMIF('様式2-1'!$G$5:$G$663,B13,'様式2-1'!$F$5:$F$663) -> 0
B14: 1909 | C14: =SUMIF('様式2-1'!$G$5:$G$663,B14,'様式2-1'!$F$5:$F$663) -> 0
B15: 1910 | C15: =SUMIF('様式2-1'!$G$5:$G$663,B15,'様式2-1'!$F$5:$F$663) -> 0
B16: 1911 | C16: =SUMIF('様式2-1'!$G$5:$G$663,B16,'様式2-1'!$F$5:$F$663) -> 0
B17: 1912 | C17: =SUMIF('様式2-1'!$G$5:$G$663,B17,'様式2-1'!$F$5:$F$663) -> 0
B18: 1913 | C18: =SUMIF('様式2-1'!$G$5:$G$663,B18,'様式2-1'!$F$5:$F$663) -> 0
B19: 1914 | C19: =SUMIF('様式2-1'!$G$5:$G$663,B19,'様式2-1'!$F$5:$F$663) -> 0
B20: 1915 | C20: =SUMIF('様式2-1'!$G$5:$G$663,B20,'様式2-1'!$F$5:$F$663) -> 0
B21: 1916 | C21: =SUMIF('様式2-1'!$G$5:$G$663,B21,'様式2-1'!$F$5:$F$663) -> 0
B22: 1917 | C22: =SUMIF('様式2-1'!$G$5:$G$663,B22,'様式2-1'!$F$5:$F$663) -> 0
B23: 1918 | C23: =SUMIF('様式2-1'!$G$5:$G$663,B23,'様式2-1'!$F$5:$F$663) -> 0
B24: 1919 | C24: =SUMIF('様式2-1'!$G$5:$G$663,B24,'様式2-1'!$F$5:$F$663) -> 0
B25: 1920 | C25: =SUMIF('様式2-1'!$G$5:$G$663,B25,'様式2-1'!$F$5:$F$663) -> 0
B26: 1921 | C26: =SUMIF('様式2-1'!$G$5:$G$663,B26,'様式2-1'!$F$5:$F$663) -> 0
B27: 1922 | C27: =SUMIF('様式2-1'!$G$5:$G$663,B27,'様式2-1'!$F$5:$F$663) -> 0
B28: 1923 | C28: =SUMIF('様式2-1'!$G$5:$G$663,B28,'様式2-1'!$F$5:$F$663) -> 0
B29: 1924 | C29: =SUMIF('様式2-1'!$G$5:$G$663,B29,'様式2-1'!$F$5:$F$663) -> 0
B30: 1925 | C30: =SUMIF('様式2-1'!$G$5:$G$663,B30,'様式2-1'!$F$5:$F$663) -> 0
B31: 1926 | C31: =SUMIF('様式2-1'!$G$5:$G$663,B31,'様式2-1'!$F$5:$F$663) -> 0
B32: 1927 | C32: =SUMIF('様式2-1'!$G$5:$G$663,B32,'様式2-1'!$F$5:$F$663) -> 0
B33: 1928 | C33: =SUMIF('様式2-1'!$G$5:$G$663,B33,'様式2-1'!$F$5:$F$663) -> 0
B34: 1929 | C34: =SUMIF('様式2-1'!$G$5:$G$663,B34,'様式2-1'!$F$5:$F$663) -> 0
B35: 1930 | C35: =SUMIF('様式2-1'!$G$5:$G$663,B35,'様式2-1'!$F$5:$F$663) -> 0
B36: 1931 | C36: =SUMIF('様式2-1'!$G$5:$G$663,B36,'様式2-1'!$F$5:$F$663) -> 0
B37: 1932 | C37: =SUMIF('様式2-1'!$G$5:$G$663,B37,'様式2-1'!$F$5:$F$663) -> 0
B38: 1933 | C38: =SUMIF('様式2-1'!$G$5:$G$663,B38,'様式2-1'!$F$5:$F$663) -> 0
B39: 1934 | C39: =SUMIF('様式2-1'!$G$5:$G$663,B39,'様式2-1'!$F$5:$F$663) -> 0
B40: 1935 | C40: =SUMIF('様式2-1'!$G$5:$G$663,B40,'様式2-1'!$F$5:$F$663) -> 0
B41: 1936 | C41: =SUMIF('様式2-1'!$G$5:$G$663,B41,'様式2-1'!$F$5:$F$663) -> 0
B42: 1937 | C42: =SUMIF('様式2-1'!$G$5:$G$663,B42,'様式2-1'!$F$5:$F$663) -> 0
B43: 1938 | C43: =SUMIF('様式2-1'!$G$5:$G$663,B43,'様式2-1'!$F$5:$F$663) -> 0
B44: 1939 | C44: =SUMIF('様式2-1'!$G$5:$G$663,B44,'様式2-1'!$F$5:$F$663) -> 0
B45: 1940 | C45: =SUMIF('様式2-1'!$G$5:$G$663,B45,'様式2-1'!$F$5:$F$663) -> 0
B46: 1941 | C46: =SUMIF('様式2-1'!$G$5:$G$663,B46,'様式2-1'!$F$5:$F$663) -> 0
B47: 1942 | C47: =SUMIF('様式2-1'!$G$5:$G$663,B47,'様式2-1'!$F$5:$F$663) -> 0
B48: 1943 | C48: =SUMIF('様式2-1'!$G$5:$G$663,B48,'様式2-1'!$F$5:$F$663) -> 0
B49: 1944 | C49: =SUMIF('様式2-1'!$G$5:$G$663,B49,'様式2-1'!$F$5:$F$663) -> 0
B50: 1945 | C50: =SUMIF('様式2-1'!$G$5:$G$663,B50,'様式2-1'!$F$5:$F$663) -> 0
B51: 1946 | C51: =SUMIF('様式2-1'!$G$5:$G$663,B51,'様式2-1'!$F$5:$F$663) -> 0
B52: 1947 | C52: =SUMIF('様式2-1'!$G$5:$G$663,B52,'様式2-1'!$F$5:$F$663) -> 0
B53: 1948 | C53: =SUMIF('様式2-1'!$G$5:$G$663,B53,'様式2-1'!$F$5:$F$663) -> 0
B54: 1949 | C54: =SUMIF('様式2-1'!$G$5:$G$663,B54,'様式2-1'!$F$5:$F$663) -> 0
B55: 1950 | C55: =SUMIF('様式2-1'!$G$5:$G$663,B55,'様式2-1'!$F$5:$F$663) -> 0
B56: 1951 | C56: =SUMIF('様式2-1'!$G$5:$G$663,B56,'様式2-1'!$F$5:$F$663) -> 0
B57: 1952 | C57: =SUMIF('様式2-1'!$G$5:$G$663,B57,'様式2-1'!$F$5:$F$663) -> 0
B58: 1953 | C58: =SUMIF('様式2-1'!$G$5:$G$663,B58,'様式2-1'!$F$5:$F$663) -> 0
B59: 1954 | C59: =SUMIF('様式2-1'!$G$5:$G$663,B59,'様式2-1'!$F$5:$F$663) -> 0
B60: 1955 | C60: =SUMIF('様式2-1'!$G$5:$G$663,B60,'様式2-1'!$F$5:$F$663) -> 0
B61: 1956 | C61: =SUMIF('様式2-1'!$G$5:$G$663,B61,'様式2-1'!$F$5:$F$663) -> 0
B62: 1957 | C62: =SUMIF('様式2-1'!$G$5:$G$663,B62,'様式2-1'!$F$5:$F$663) -> 0
B63: 1958 | C63: =SUMIF('様式2-1'!$G$5:$G$663,B63,'様式2-1'!$F$5:$F$663) -> 0
B64: 1959 | C64: =SUMIF('様式2-1'!$G$5:$G$663,B64,'様式2-1'!$F$5:$F$663) -> 0
B65: 1960 | C65: =SUMIF('様式2-1'!$G$5:$G$663,B65,'様式2-1'!$F$5:$F$663) -> 1776.64
B66: 1961 | C66: =SUMIF('様式2-1'!$G$5:$G$663,B66,'様式2-1'!$F$5:$F$663) -> 481.69
B67: 1962 | C67: =SUMIF('様式2-1'!$G$5:$G$663,B67,'様式2-1'!$F$5:$F$663) -> 88.86
B68: 1963 | C68: =SUMIF('様式2-1'!$G$5:$G$663,B68,'様式2-1'!$F$5:$F$663) -> 0
B69: 1964 | C69: =SUMIF('様式2-1'!$G$5:$G$663,B69,'様式2-1'!$F$5:$F$663) -> 39.165
B70: 1965 | C70: =SUMIF('様式2-1'!$G$5:$G$663,B70,'様式2-1'!$F$5:$F$663) -> 7255.034
B71: =B70+1 -> 1966 | C71: =SUMIF('様式2-1'!$G$5:$G$663,B71,'様式2-1'!$F$5:$F$663) -> 0
B72: 1967 | C72: =SUMIF('様式2-1'!$G$5:$G$663,B72,'様式2-1'!$F$5:$F$663) -> 0
B73: 1968 | C73: =SUMIF('様式2-1'!$G$5:$G$663,B73,'様式2-1'!$F$5:$F$663) -> 8151.411
B74: 1969 | C74: =SUMIF('様式2-1'!$G$5:$G$663,B74,'様式2-1'!$F$5:$F$663) -> 0
B75: 1970 | C75: =SUMIF('様式2-1'!$G$5:$G$663,B75,'様式2-1'!$F$5:$F$663) -> 19630.091
B76: 1971 | C76: =SUMIF('様式2-1'!$G$5:$G$663,B76,'様式2-1'!$F$5:$F$663) -> 32304.627
B77: 1972 | C77: =SUMIF('様式2-1'!$G$5:$G$663,B77,'様式2-1'!$F$5:$F$663) -> 70097.39
B78: 1973 | C78: =SUMIF('様式2-1'!$G$5:$G$663,B78,'様式2-1'!$F$5:$F$663) -> 0
B79: 1974 | C79: =SUMIF('様式2-1'!$G$5:$G$663,B79,'様式2-1'!$F$5:$F$663) -> 147793.67
B80: 1975 | C80: =SUMIF('様式2-1'!$G$5:$G$663,B80,'様式2-1'!$F$5:$F$663) -> 13709.583
B81: 1976 | C81: =SUMIF('様式2-1'!$G$5:$G$663,B81,'様式2-1'!$F$5:$F$663) -> 227472.405
B82: 1977 | C82: =SUMIF('様式2-1'!$G$5:$G$663,B82,'様式2-1'!$F$5:$F$663) -> 97119.236
B83: 1978 | C83: =SUMIF('様式2-1'!$G$5:$G$663,B83,'様式2-1'!$F$5:$F$663) -> 53674.456
B84: 1979 | C84: =SUMIF('様式2-1'!$G$5:$G$663,B84,'様式2-1'!$F$5:$F$663) -> 37640.746
B85: 1980 | C85: =SUMIF('様式2-1'!$G$5:$G$663,B85,'様式2-1'!$F$5:$F$663) -> 39105.466
B86: 1981 | C86: =SUMIF('様式2-1'!$G$5:$G$663,B86,'様式2-1'!$F$5:$F$663) -> 573511.654
B87: 1982 | C87: =SUMIF('様式2-1'!$G$5:$G$663,B87,'様式2-1'!$F$5:$F$663) -> 33905.105
B88: 1983 | C88: =SUMIF('様式2-1'!$G$5:$G$663,B88,'様式2-1'!$F$5:$F$663) -> 0
B89: 1984 | C89: =SUMIF('様式2-1'!$G$5:$G$663,B89,'様式2-1'!$F$5:$F$663) -> 392598.497
B90: 1985 | C90: =SUMIF('様式2-1'!$G$5:$G$663,B90,'様式2-1'!$F$5:$F$663) -> 760
B91: 1986 | C91: =SUMIF('様式2-1'!$G$5:$G$663,B91,'様式2-1'!$F$5:$F$663) -> 0
B92: 1987 | C92: =SUMIF('様式2-1'!$G$5:$G$663,B92,'様式2-1'!$F$5:$F$663) -> 648990.673
B93: 1988 | C93: =SUMIF('様式2-1'!$G$5:$G$663,B93,'様式2-1'!$F$5:$F$663) -> 533285.467
B94: 1989 | C94: =SUMIF('様式2-1'!$G$5:$G$663,B94,'様式2-1'!$F$5:$F$663) -> 205445.195
B95: 1990 | C95: =SUMIF('様式2-1'!$G$5:$G$663,B95,'様式2-1'!$F$5:$F$663) -> 34690.823
B96: 1991 | C96: =SUMIF('様式2-1'!$G$5:$G$663,B96,'様式2-1'!$F$5:$F$663) -> 985658.153
B97: 1992 | C97: =SUMIF('様式2-1'!$G$5:$G$663,B97,'様式2-1'!$F$5:$F$663) -> 994926.648
B98: 1993 | C98: =SUMIF('様式2-1'!$G$5:$G$663,B98,'様式2-1'!$F$5:$F$663) -> 351908.237
B99: 1994 | C99: =SUMIF('様式2-1'!$G$5:$G$663,B99,'様式2-1'!$F$5:$F$663) -> 246987.14
B100: 1995 | C100: =SUMIF('様式2-1'!$G$5:$G$663,B100,'様式2-1'!$F$5:$F$663) -> 111719.128
B101: 1996 | C101: =SUMIF('様式2-1'!$G$5:$G$663,B101,'様式2-1'!$F$5:$F$663) -> 164930.548
B102: 1997 | C102: =SUMIF('様式2-1'!$G$5:$G$663,B102,'様式2-1'!$F$5:$F$663) -> 199166.36
B103: 1998 | C103: =SUMIF('様式2-1'!$G$5:$G$663,B103,'様式2-1'!$F$5:$F$663) -> 295970.586
B104: 1999 | C104: =SUMIF('様式2-1'!$G$5:$G$663,B104,'様式2-1'!$F$5:$F$663) -> 159366.212
B105: 2000 | C105: =SUMIF('様式2-1'!$G$5:$G$663,B105,'様式2-1'!$F$5:$F$663) -> 43917.556
B106: 2001 | C106: =SUMIF('様式2-1'!$G$5:$G$663,B106,'様式2-1'!$F$5:$F$663) -> 254240.376
B107: 2002 | C107: =SUMIF('様式2-1'!$G$5:$G$663,B107,'様式2-1'!$F$5:$F$663) -> 268740.807
B108: 2003 | C108: =SUMIF('様式2-1'!$G$5:$G$663,B108,'様式2-1'!$F$5:$F$663) -> 45409.083
B109: 2004 | C109: =SUMIF('様式2-1'!$G$5:$G$663,B109,'様式2-1'!$F$5:$F$663) -> 216784.082
B110: 2005 | C110: =SUMIF('様式2-1'!$G$5:$G$663,B110,'様式2-1'!$F$5:$F$663) -> 169166.464
B111: 2006 | C111: =SUMIF('様式2-1'!$G$5:$G$663,B111,'様式2-1'!$F$5:$F$663) -> 120765.451
B112: 2007 | C112: =SUMIF('様式2-1'!$G$5:$G$663,B112,'様式2-1'!$F$5:$F$663) -> 59462.731
B113: 2008 | C113: =SUMIF('様式2-1'!$G$5:$G$663,B113,'様式2-1'!$F$5:$F$663) -> 69405.911
B114: 2009 | C114: =SUMIF('様式2-1'!$G$5:$G$663,B114,'様式2-1'!$F$5:$F$663) -> 179261.158
B115: 2010 | C115: =SUMIF('様式2-1'!$G$5:$G$663,B115,'様式2-1'!$F$5:$F$663) -> 104338.373
B116: 2011 | C116: =SUMIF('様式2-1'!$G$5:$G$663,B116,'様式2-1'!$F$5:$F$663) -> 120505.86
B117: 2012 | C117: =SUMIF('様式2-1'!$G$5:$G$663,B117,'様式2-1'!$F$5:$F$663) -> 94384.527
B118: 2013 | C118: =SUMIF('様式2-1'!$G$5:$G$663,B118,'様式2-1'!$F$5:$F$663) -> 92537.216
B119: 2014 | C119: =SUMIF('様式2-1'!$G$5:$G$663,B119,'様式2-1'!$F$5:$F$663) -> 55636.233
B120: 2015 | C120: =SUMIF('様式2-1'!$G$5:$G$663,B120,'様式2-1'!$F$5:$F$663) -> 0
B121: 2016 | C121: =SUMIF('様式2-1'!$G$5:$G$663,B121,'様式2-1'!$F$5:$F$663) -> 650
B122: 2017 | C122: =SUMIF('様式2-1'!$G$5:$G$663,B122,'様式2-1'!$F$5:$F$663) -> 208487.741
B123: 2018 | C123: =SUMIF('様式2-1'!$G$5:$G$663,B123,'様式2-1'!$F$5:$F$663) -> 216817.345
B124: 2019 | C124: =SUMIF('様式2-1'!$G$5:$G$663,B124,'様式2-1'!$F$5:$F$663) -> 304020
B125: 2020 | C125: =SUMIF('様式2-1'!$G$5:$G$663,B125,'様式2-1'!$F$5:$F$663) -> 263682.712
B126: 2021 | C126: =SUMIF('様式2-1'!$G$5:$G$663,B126,'様式2-1'!$F$5:$F$663) -> 365775.065
B127: 2022 | C127: =SUMIF('様式2-1'!$G$5:$G$663,B127,'様式2-1'!$F$5:$F$663) -> 0
B128: 2023 | C128: =SUMIF('様式2-1'!$G$5:$G$663,B128,'様式2-1'!$F$5:$F$663) -> 0
B129: 2024 | C129: =SUMIF('様式2-1'!$G$5:$G$663,B129,'様式2-1'!$F$5:$F$663) -> 0
B130: 2025 | C130: =SUMIF('様式2-1'!$G$5:$G$663,B130,'様式2-1'!$F$5:$F$663) -> 0
B131: 2026 | C131: =SUMIF('様式2-1'!$G$5:$G$663,B131,'様式2-1'!$F$5:$F$663) -> 0
B132: 2027 | C132: =SUMIF('様式2-1'!$G$5:$G$663,B132,'様式2-1'!$F$5:$F$663) -> 0
B133: 2028 | C133: =SUMIF('様式2-1'!$G$5:$G$663,B133,'様式2-1'!$F$5:$F$663) -> 0
B134: 2029 | C134: =SUMIF('様式2-1'!$G$5:$G$663,B134,'様式2-1'!$F$5:$F$663) -> 0
B135: =B134+1 -> 2030 | C135: =SUMIF('様式2-1'!$G$5:$G$663,B135,'様式2-1'!$F$5:$F$663) -> 0
B136: 2031 | C136: =SUMIF('様式2-1'!$G$5:$G$663,B136,'様式2-1'!$F$5:$F$663) -> 0
B137: 2032 | C137: =SUMIF('様式2-1'!$G$5:$G$663,B137,'様式2-1'!$F$5:$F$663) -> 0
B138: 2033 | C138: =SUMIF('様式2-1'!$G$5:$G$663,B138,'様式2-1'!$F$5:$F$663) -> 0
B139: 2034 | C139: =SUMIF('様式2-1'!$G$5:$G$663,B139,'様式2-1'!$F$5:$F$663) -> 0
B140: 2035 | C140: =SUMIF('様式2-1'!$G$5:$G$663,B140,'様式2-1'!$F$5:$F$663) -> 0
B141: 2036 | C141: =SUMIF('様式2-1'!$G$5:$G$663,B141,'様式2-1'!$F$5:$F$663) -> 0
B142: 2037 | C142: =SUMIF('様式2-1'!$G$5:$G$663,B142,'様式2-1'!$F$5:$F$663) -> 0
B143: 2038 | C143: =SUMIF('様式2-1'!$G$5:$G$663,B143,'様式2-1'!$F$5:$F$663) -> 0
B144: 2039 | C144: =SUMIF('様式2-1'!$G$5:$G$663,B144,'様式2-1'!$F$5:$F$663) -> 0
B145: 2040 | C145: =SUMIF('様式2-1'!$G$5:$G$663,B145,'様式2-1'!$F$5:$F$663) -> 0
B146: 2041 | C146: =SUMIF('様式2-1'!$G$5:$G$663,B146,'様式2-1'!$F$5:$F$663) -> 0
B147: 2042 | C147: =SUMIF('様式2-1'!$G$5:$G$663,B147,'様式2-1'!$F$5:$F$663) -> 0
B148: 2043 | C148: =SUMIF('様式2-1'!$G$5:$G$663,B148,'様式2-1'!$F$5:$F$663) -> 0
B149: 2044 | C149: =SUMIF('様式2-1'!$G$5:$G$663,B149,'様式2-1'!$F$5:$F$663) -> 0
B150: 2045 | C150: =SUMIF('様式2-1'!$G$5:$G$663,B150,'様式2-1'!$F$5:$F$663) -> 0
B151: 2046 | C151: =SUMIF('様式2-1'!$G$5:$G$663,B151,'様式2-1'!$F$5:$F$663) -> 0
B152: 2047 | C152: =SUMIF('様式2-1'!$G$5:$G$663,B152,'様式2-1'!$F$5:$F$663) -> 0
B153: 2048 | C153: =SUMIF('様式2-1'!$G$5:$G$663,B153,'様式2-1'!$F$5:$F$663) -> 0
B154: 2049 | C154: =SUMIF('様式2-1'!$G$5:$G$663,B154,'様式2-1'!$F$5:$F$663) -> 0
B155: 2050 | C155: =SUMIF('様式2-1'!$G$5:$G$663,B155,'様式2-1'!$F$5:$F$663) -> 0

Sheet 構造物・設備ダウンサイズ設定
B1: ●構造物・設備のダウンサイズ設定シート
B2: ダウンサイジング検討対象年度
B3: 2035
B4: ※指定年度以降の更新時にダウンサイジングを反映
B6: 採用する計算方法 | C6: ① | D6: プルダウンで選択
B7: 採用するダウンサイジング後の 費用割合 | C7: =IF(C6="①",C22,IF(C6="②",C30,IF(C6="③",C33))) -> 89
A11: ① | B11: 国立社会保障・人口問題研究所ホームページ 令和5年度推計値（令和2年国勢調査ベース）
B12: 日本の地域別将来推計人口（令和５（2023）年推計）｜国立社会保障・人口問題研究所
B13: 年度 | C13: 2020 | D13: 2025 | E13: 2030 | F13: 2035 | G13: 2040 | H13: 2045 | I13: 2050
B14: 総人口 | C14: 100000 | D14: 97000 | E14: 93000 | F14: 89000 | G14: 82000 | H14: 79000 | I14: 76000
B16: 年度 | C16: 2020 | D16: =C16+1 -> 2021 | E16: =D16+1 -> 2022 | F16: 2023 | G16: 2024 | H16: 2025 | I16: 2026 | J16: 2027 | K16: 2028 | L16: 2029 | M16: 2030 | N16: 2031 | O16: 2032 | P16: 2033 | Q16: 2034 | R16: 2035 | S16: 2036 | T16: 2037 | U16: 2038 | V16: 2039 | W16: 2040 | X16: 2041 | Y16: 2042 | Z16: 2043 | AA16: 2044 | AB16: 2045 | AC16: 2046 | AD16: 2047 | AE16: 2048 | AF16: 2049 | AG16: 2050 | AH16: 2051 | AI16: 2052 | AJ16: 2053 | AK16: 2054 | AL16: 2055 | AM16: 2056 | AN16: 2057 | AO16: 2058 | AP16: 2059 | AQ16: 2060 | AR16: 2061 | AS16: 2062 | AT16: 2063 | AU16: 2064 | AV16: 2065 | AW16: 2066 | AX16: 2067 | AY16: 2068 | AZ16: 2069 | BA16: 2070
B17: 総人口 | C17: =C14 -> 100000 | D17: =C17+(H17-C17)*1/5 -> 99400 | E17: =C17+(H17-C17)*2/5 -> 98800 | F17: =C17+(H17-C17)*3/5 -> 98200 | G17: =C17+(H17-C17)*4/5 -> 97600 | H17: =D14 -> 97000 | I17: =H17+(M17-H17)*1/5 -> 96200 | J17: =H17+(M17-H17)*2/5 -> 95400 | K17: =H17+(M17-H17)*3/5 -> 94600 | L17: =H17+(M17-H17)*4/5 -> 93800 | M17: =E14 -> 93000 | N17: =M17+(R17-M17)*1/5 -> 92200 | O17: =M17+(R17-M17)*2/5 -> 91400 | P17: =M17+(R17-M17)*3/5 -> 90600 | Q17: =M17+(R17-M17)*4/5 -> 89800 | R17: =F14 -> 89000 | S17: =R17+(W17-R17)*1/5 -> 87600 | T17: =R17+(W17-R17)*2/5 -> 86200 | U17: =R17+(W17-R17)*3/5 -> 84800 | V17: =R17+(W17-R17)*4/5 -> 83400 | W17: =G14 -> 82000 | X17: =W17+(AB17-W17)*1/5 -> 81400 | Y17: =W17+(AB17-W17)*2/5 -> 80800 | Z17: =W17+(AB17-W17)*3/5 -> 80200 | AA17: =W17+(AB17-W17)*4/5 -> 79600 | AB17: =H14 -> 79000 | AC17: =AB17+(AG17-AB17)*1/5 -> 78400 | AD17: =AB17+(AG17-AB17)*2/5 -> 77800 | AE17: =AB17+(AG17-AB17)*3/5 -> 77200 | AF17: =AB17+(AG17-AB17)*4/5 -> 76600 | AG17: =I14 -> 76000 | AH17: =AG17 -> 76000 | AI17: =AH17 -> 76000 | AJ17: 76000 | AK17: 76000 | AL17: 76000 | AM17: 76000 | AN17: 76000 | AO17: 76000 | AP17: 76000 | AQ17: 76000 | AR17: 76000 | AS17: 76000 | AT17: 76000 | AU17: 76000 | AV17: 76000 | AW17: 76000 | AX17: 76000 | AY17: 76000 | AZ17: 76000 | BA17: 76000
B18: ※2050年以降は予測値が無いため、2050年の人口指数で一定を仮定した。
B19: ※予測値の存在しない年度は線形補間した。
B20: 基準人口 | C20: 100000
B21: ※創設時の行政区域内人口、計画給水人口等
B22: ダウンサイジング後の費用 | C22: =(HLOOKUP($B$3,$C$16:$BA$17,2,TRUE)/$C$20*100) -> 89 | D22: %
A24: ② | B24: 水需要結果
B25: 年度 | C25: =初期設定!C3 -> 2024 | D25: =C25+1 -> 2025 | E25: =D25+1 -> 2026 | F25: 2027 | G25: 2028 | H25: 2029 | I25: 2030 | J25: 2031 | K25: 2032 | L25: 2033 | M25: 2034 | N25: 2035 | O25: 2036 | P25: 2037 | Q25: 2038 | R25: 2039 | S25: 2040 | T25: 2041 | U25: 2042 | V25: 2043 | W25: 2044 | X25: 2045 | Y25: 2046 | Z25: 2047 | AA25: 2048 | AB25: 2049 | AC25: 2050 | AD25: 2051 | AE25: 2052 | AF25: 2053 | AG25: 2054 | AH25: 2055 | AI25: 2056 | AJ25: 2057 | AK25: 2058 | AL25: 2059 | AM25: 2060 | AN25: 2061 | AO25: 2062 | AP25: 2063 | AQ25: 2064 | AR25: 2065 | AS25: 2066 | AT25: 2067 | AU25: 2068 | AV25: 2069 | AW25: 2070 | AX25: 2071 | AY25: 2072 | AZ25: 2073 | BA25: 2074
B26: 一日最大配水量（m3/日)
B28: 基準水量 | D28: m3/日
B29: ※創設時の施設能力等
B30: ダウンサイジング後の費用 | C30: =(HLOOKUP($B$3,$C$25:$BA$26,2,TRUE)/$C$28*100) ->  | D30: %
A32: ③ | B32: 自由入力
B33: ダウンサイジング後の費用 | C33: 90 | D33: %

Sheet 様式2-2
B1: 様式2-2
B2: ●管路の布設年度別延長
AH3: ①プルダウンメニュー
B4: ②系統 | C4: ③基本種別１ | D4: ④基本種別２ | E4: ⑤基本種別３ | F4: ⑥施設名 | G4: ⑦布設年度 | H4: ⑧延長(m) | I4: 口径(mm) | J4: ダウンサイジング対象 | K4: 変更後 口径(mm) | L4: ⑨法定 耐用年数 | M4: ⑩更新基準 （現有管路） | N4: ⑪更新基準 （更新後） | O4: 改定期首償却未済額 | P4: 改定期末償却未済額 | Q4: ⑭管種 コード | R4: ⑮更新 単価 | S4: ⑯更新費用 (千円) | T4: 変更後更新単価 (千円) | U4: 変更後更新費用 (千円) | V4: ⑰再更新 単価 | W4: ⑱再更新費用 (千円) | AH4: 基本種別１ | AI4: 施設名 | AJ4: 基本種別２ | AK4: 管種コード | AL4: 基本種別３
C5: 配水支管 | D5: ポリエチレン管 （高密度、熱融着継手を有する） （m） | F5: 配水支管 | G5: 2021 | H5: 61.76 | I5: 75 | J5: 1 | K5: =IF(J5=1,IF(I5>=VLOOKUP(C5,管路ダウンサイズ設定!$B$6:$D$12,2,FALSE),INDEX(管路ダウンサイズ設定!$B$35:$B$62,MATCH(I5,管路ダウンサイズ設定!$B$35:$B$62,0)-VLOOKUP(C5,管路ダウンサイズ設定!$B$6:$D$12,3,FALSE),1),""),"") ->  | L5: =IF($Q5="","",VLOOKUP($Q5,初期設定!$E$37:$N$53,9,FALSE)) -> 40 | M5: =IF($Q5="","",VLOOKUP($Q5,初期設定!$E$37:$N$53,10,FALSE)) -> 60 | N5: =IF($Q5="","",VLOOKUP($Q5,初期設定!$E$37:$N$53,10,FALSE)) -> 60 | O5: =IF(S5="","",IFERROR($S5*(1+$AD$43/100)*MAX(1-($AD$41-$G5)/$L5,$AD$40),0)) -> 4909.7125 | P5: =IF(S5="","",IFERROR($S5*(1+$AD$43/100)*MAX(1-($AD$42-$G5)/$L5,$AD$40),0)) -> 4348.6025 | Q5: =IF(D5="","",VLOOKUP(D5,$AJ$5:$AK$21,2,FALSE)) -> G1 | R5: =IF(I5=0,"",VLOOKUP(IF(I5<50,50,I5),管路ダウンサイズ設定!$I$6:$P$23,MATCH(F5,管路ダウンサイズ設定!$J$5:$P$5,0)+1,TRUE)) -> 82.6 | S5: =IF(H5="","",IF(R5="",0,ROUND(H5*R5,))) -> 5101 | T5: =IF(I5=0,"",VLOOKUP(IF(K5<>"",IF(K5<50,50,K5),IF(I5<50,50,I5)),管路ダウンサイズ設定!$I$6:$P$23,MATCH(F5,管路ダウンサイズ設定!$J$5:$P$5,0)+1,TRUE)) -> 82.6 | U5: =IF(H5="","",IF(T5="",0,ROUND(H5*T5,))) -> 5101 | V5: =IF(I5=0,"",VLOOKUP(IF(K5<>"",IF(K5<50,50,K5),IF(I5<50,50,I5)),管路ダウンサイズ設定!$I$6:$P$23,MATCH(F5,管路ダウンサイズ設定!$J$5:$P$5,0)+1,TRUE)) -> 82.6 | W5: =IF(H5="","",IF(V5="",0,ROUND(H5*V5,))) -> 5101 | AC5: 基準年度 | AD5: ='様式2-1'!Y5 -> 2024 | AH5: 導水管 | AI5: 取・導水管 | AJ5: 鋳鉄管 （ダクタイル鋳鉄管は含まない） (m) | AK5: A1 | AL5: 耐震管
C6: 配水支管 | D6: その他 （管種が不明のものを含む） (m) | F6: 配水支管 | G6: 1975 | H6: 1.27 | I6: 250 | J6: 1 | K6: =IF(J6=1,IF(I6>=VLOOKUP(C6,管路ダウンサイズ設定!$B$6:$D$12,2,FALSE),INDEX(管路ダウンサイズ設定!$B$35:$B$62,MATCH(I6,管路ダウンサイズ設定!$B$35:$B$62,0)-VLOOKUP(C6,管路ダウンサイズ設定!$B$6:$D$12,3,FALSE),1),""),"") -> 200 | L6: =IF($Q6="","",VLOOKUP($Q6,初期設定!$E$37:$N$53,9,FALSE)) -> 40 | M6: =IF($Q6="","",VLOOKUP($Q6,初期設定!$E$37:$N$53,10,FALSE)) -> 40 | N6: =IF($Q6="","",VLOOKUP($Q6,初期設定!$E$37:$N$53,10,FALSE)) -> 40 | O6: =IF(S6="","",IFERROR($S6*(1+$AD$43/100)*MAX(1-($AD$41-$G6)/$L6,$AD$40),0)) -> 14.905 | P6: =IF(S6="","",IFERROR($S6*(1+$AD$43/100)*MAX(1-($AD$42-$G6)/$L6,$AD$40),0)) -> 14.905 | Q6: Z9 | R6: =IF(I6=0,"",VLOOKUP(IF(I6<50,50,I6),管路ダウンサイズ設定!$I$6:$P$23,MATCH(F6,管路ダウンサイズ設定!$J$5:$P$5,0)+1,TRUE)) -> 213.6 | S6: =IF(H6="","",IF(R6="",0,ROUND(H6*R6,))) -> 271 | T6: =IF(I6=0,"",VLOOKUP(IF(K6<>"",IF(K6<50,50,K6),IF(I6<50,50,I6)),管路ダウンサイズ設定!$I$6:$P$23,MATCH(F6,管路ダウンサイズ設定!$J$5:$P$5,0)+1,TRUE)) -> 137.9 | U6: =IF(H6="","",IF(T6="",0,ROUND(H6*T6,))) -> 175 | V6: =IF(I6=0,"",VLOOKUP(IF(K6<>"",IF(K6<50,50,K6),IF(I6<50,50,I6)),管路ダウンサイズ設定!$I$6:$P$23,MATCH(F6,管路ダウンサイズ設定!$J$5:$P$5,0)+1,TRUE)) -> 137.9 | W6: =IF(H6="","",IF(V6="",0,ROUND(H6*V6,))) -> 175 | AD6: =AD5-2018 -> 6 | AH6: 送水管 | AI6: 送水管 | AJ6: ダクタイル鋳鉄管 耐震型継手を有する (m) | AK6: A2 | AL6: 非耐震管
C7: 配水支管 | D7: 鋼管 （上記以外・不明なものを含む） (m) | F7: 配水支管 | G7: 1996 | H7: 3.95 | I7: 50 | J7: 1 | K7: =IF(J7=1,IF(I7>=VLOOKUP(C7,管路ダウンサイズ設定!$B$6:$D$12,2,FALSE),INDEX(管路ダウンサイズ設定!$B$35:$B$62,MATCH(I7,管路ダウンサイズ設定!$B$35:$B$62,0)-VLOOKUP(C7,管路ダウンサイズ設定!$B$6:$D$12,3,FALSE),1),""),"") ->  | L7: =IF($Q7="","",VLOOKUP($Q7,初期設定!$E$37:$N$53,9,FALSE)) -> 40 | M7: =IF($Q7="","",VLOOKUP($Q7,初期設定!$E$37:$N$53,10,FALSE)) -> 40 | N7: =IF($Q7="","",VLOOKUP($Q7,初期設定!$E$37:$N$53,10,FALSE)) -> 40 | O7: 81.125 | P7: 48.675 | Q7: B9 | R7: =IF(I7=0,"",VLOOKUP(IF(I7<50,50,I7),管路ダウンサイズ設定!$I$6:$P$23,MATCH(F7,管路ダウンサイズ設定!$J$5:$P$5,0)+1,TRUE)) -> 74.6 | S7: 295 | T7: =IF(I7=0,"",VLOOKUP(IF(K7<>"",IF(K7<50,50,K7),IF(I7<50,50,I7)),管路ダウンサイズ設定!$I$6:$P$23,MATCH(F7,管路ダウンサイズ設定!$J$5:$P$5,0)+1,TRUE)) -> 74.6 | U7: 295 | V7: =IF(I7=0,"",VLOOKUP(IF(K7<>"",IF(K7<50,50,K7),IF(I7<50,50,I7)),管路ダウンサイズ設定!$I$6:$P$23,MATCH(F7,管路ダウンサイズ設定!$J$5:$P$5,0)+1,TRUE)) -> 74.6 | W7: 295 | AH7: 配水本管 | AI7: 配水本管 | AJ7: ダクタイル鋳鉄管 Ｋ形継手等を有するもののうち良い地盤に布設されている (m) | AK7: A3 | AL7: その他１
C8: 配水支管 | D8: 硬質塩化ビニル管 （上記以外・不明なものを含む） (m) | F8: 配水支管 | G8: 1995 | H8: 503.65 | I8: 75 | J8: 1 | K8: =IF(J8=1,IF(I8>=VLOOKUP(C8,管路ダウンサイズ設定!$B$6:$D$12,2,FALSE),INDEX(管路ダウンサイズ設定!$B$35:$B$62,MATCH(I8,管路ダウンサイズ設定!$B$35:$B$62,0)-VLOOKUP(C8,管路ダウンサイズ設定!$B$6:$D$12,3,FALSE),1),""),"") ->  | L8: =IF($Q8="","",VLOOKUP($Q8,初期設定!$E$37:$N$53,9,FALSE)) -> 40 | M8: =IF($Q8="","",VLOOKUP($Q8,初期設定!$E$37:$N$53,10,FALSE)) -> 40 | N8: =IF($Q8="","",VLOOKUP($Q8,初期設定!$E$37:$N$53,10,FALSE)) -> 40 | O8: 10296.2475 | P8: 5720.1375 | Q8: D9 | R8: =IF(I8=0,"",VLOOKUP(IF(I8<50,50,I8),管路ダウンサイズ設定!$I$6:$P$23,MATCH(F8,管路ダウンサイズ設定!$J$5:$P$5,0)+1,TRUE)) -> 82.6 | S8: 41601 | T8: =IF(I8=0,"",VLOOKUP(IF(K8<>"",IF(K8<50,50,K8),IF(I8<50,50,I8)),管路ダウンサイズ設定!$I$6:$P$23,MATCH(F8,管路ダウンサイズ設定!$J$5:$P$5,0)+1,TRUE)) -> 82.6 | U8: 41601 | V8: =IF(I8=0,"",VLOOKUP(IF(K8<>"",IF(K8<50,50,K8),IF(I8<50,50,I8)),管路ダウンサイズ設定!$I$6:$P$23,MATCH(F8,管路ダウンサイズ設定!$J$5:$P$5,0)+1,TRUE)) -> 82.6 | W8: 41601 | AC8: ○健全度の判断基準 | AH8: 配水支管 | AI8: 配水支管 | AJ8: ダクタイル鋳鉄管 (上記以外・不明なものを含む） (m) | AK8: A9 | AL8: その他２
C9: 配水支管 | D9: 硬質塩化ビニル管 （上記以外・不明なものを含む） (m) | F9: 配水支管 | G9: 1990 | H9: 286.05 | I9: 150 | J9: 1 | K9: =IF(J9=1,IF(I9>=VLOOKUP(C9,管路ダウンサイズ設定!$B$6:$D$12,2,FALSE),INDEX(管路ダウンサイズ設定!$B$35:$B$62,MATCH(I9,管路ダウンサイズ設定!$B$35:$B$62,0)-VLOOKUP(C9,管路ダウンサイズ設定!$B$6:$D$12,3,FALSE),1),""),"") -> 125 | L9: =IF($Q9="","",VLOOKUP($Q9,初期設定!$E$37:$N$53,9,FALSE)) -> 40 | M9: =IF($Q9="","",VLOOKUP($Q9,初期設定!$E$37:$N$53,10,FALSE)) -> 40 | N9: =IF($Q9="","",VLOOKUP($Q9,初期設定!$E$37:$N$53,10,FALSE)) -> 40 | O9: 3533.53 | P9: 1766.765 | Q9: D9 | R9: =IF(I9=0,"",VLOOKUP(IF(I9<50,50,I9),管路ダウンサイズ設定!$I$6:$P$23,MATCH(F9,管路ダウンサイズ設定!$J$5:$P$5,0)+1,TRUE)) -> 112.3 | S9: 32123 | T9: =IF(I9=0,"",VLOOKUP(IF(K9<>"",IF(K9<50,50,K9),IF(I9<50,50,I9)),管路ダウンサイズ設定!$I$6:$P$23,MATCH(F9,管路ダウンサイズ設定!$J$5:$P$5,0)+1,TRUE)) -> 101.4 | U9: 29005 | V9: =IF(I9=0,"",VLOOKUP(IF(K9<>"",IF(K9<50,50,K9),IF(I9<50,50,I9)),管路ダウンサイズ設定!$I$6:$P$23,MATCH(F9,管路ダウンサイズ設定!$J$5:$P$5,0)+1,TRUE)) -> 101.4 | W9: 29005 | AC9: 管路健全度 | AD9: 超 | AE9: 以下 | AH9: その他１ | AI9: その他１ | AJ9: 鋼管 （溶接継手を有する） （m） | AK9: B1 | AL9: その他３
C10: 配水支管 | D10: その他 （管種が不明のものを含む） (m) | F10: 配水支管 | G10: 1975 | H10: 2.05 | I10: 75 | J10: 1 | K10: =IF(J10=1,IF(I10>=VLOOKUP(C10,管路ダウンサイズ設定!$B$6:$D$12,2,FALSE),INDEX(管路ダウンサイズ設定!$B$35:$B$62,MATCH(I10,管路ダウンサイズ設定!$B$35:$B$62,0)-VLOOKUP(C10,管路ダウンサイズ設定!$B$6:$D$12,3,FALSE),1),""),"") ->  | L10: =IF($Q10="","",VLOOKUP($Q10,初期設定!$E$37:$N$53,9,FALSE)) -> 40 | M10: =IF($Q10="","",VLOOKUP($Q10,初期設定!$E$37:$N$53,10,FALSE)) -> 40 | N10: =IF($Q10="","",VLOOKUP($Q10,初期設定!$E$37:$N$53,10,FALSE)) -> 40 | O10: 9.295 | P10: 9.295 | Q10: Z9 | R10: =IF(I10=0,"",VLOOKUP(IF(I10<50,50,I10),管路ダウンサイズ設定!$I$6:$P$23,MATCH(F10,管路ダウンサイズ設定!$J$5:$P$5,0)+1,TRUE)) -> 82.6 | S10: 169 | T10: =IF(I10=0,"",VLOOKUP(IF(K10<>"",IF(K10<50,50,K10),IF(I10<50,50,I10)),管路ダウンサイズ設定!$I$6:$P$23,MATCH(F10,管路ダウンサイズ設定!$J$5:$P$5,0)+1,TRUE)) -> 82.6 | U10: 169 | V10: =IF(I10=0,"",VLOOKUP(IF(K10<>"",IF(K10<50,50,K10),IF(I10<50,50,I10)),管路ダウンサイズ設定!$I$6:$P$23,MATCH(F10,管路ダウンサイズ設定!$J$5:$P$5,0)+1,TRUE)) -> 82.6 | W10: 169 | AC10: 健全管路 | AD10: =初期設定!F21 -> 0 | AE10: =初期設定!G21 -> 1 | AH10: その他２ | AI10: その他２ | AJ10: 鋼管 （上記以外・不明なものを含む） (m) | AK10: B9 | AL10: その他４
C11: 配水支管 | D11: 硬質塩化ビニル管 （上記以外・不明なものを含む） (m) | F11: 配水支管 | G11: 1990 | H11: 1.86 | I11: 75 | J11: 1 | K11: =IF(J11=1,IF(I11>=VLOOKUP(C11,管路ダウンサイズ設定!$B$6:$D$12,2,FALSE),INDEX(管路ダウンサイズ設定!$B$35:$B$62,MATCH(I11,管路ダウンサイズ設定!$B$35:$B$62,0)-VLOOKUP(C11,管路ダウンサイズ設定!$B$6:$D$12,3,FALSE),1),""),"") ->  | L11: =IF($Q11="","",VLOOKUP($Q11,初期設定!$E$37:$N$53,9,FALSE)) -> 40 | M11: =IF($Q11="","",VLOOKUP($Q11,初期設定!$E$37:$N$53,10,FALSE)) -> 40 | N11: =IF($Q11="","",VLOOKUP($Q11,初期設定!$E$37:$N$53,10,FALSE)) -> 40 | O11: 16.94 | P11: 8.47 | Q11: D9 | R11: =IF(I11=0,"",VLOOKUP(IF(I11<50,50,I11),管路ダウンサイズ設定!$I$6:$P$23,MATCH(F11,管路ダウンサイズ設定!$J$5:$P$5,0)+1,TRUE)) -> 82.6 | S11: 154 | T11: =IF(I11=0,"",VLOOKUP(IF(K11<>"",IF(K11<50,50,K11),IF(I11<50,50,I11)),管路ダウンサイズ設定!$I$6:$P$23,MATCH(F11,管路ダウンサイズ設定!$J$5:$P$5,0)+1,TRUE)) -> 82.6 | U11: 154 | V11: =IF(I11=0,"",VLOOKUP(IF(K11<>"",IF(K11<50,50,K11),IF(I11<50,50,I11)),管路ダウンサイズ設定!$I$6:$P$23,MATCH(F11,管路ダウンサイズ設定!$J$5:$P$5,0)+1,TRUE)) -> 82.6 | W11: 154 | AC11: 経年化管路 | AD11: =初期設定!F22 -> 1 | AE11: =初期設定!G22 -> 1.5 | AH11: その他３ | AI11: その他３ | AJ11: 石綿セメント管 (m) | AK11: C1 | AL11: その他５
C12: 配水支管 | D12: 硬質塩化ビニル管 （上記以外・不明なものを含む） (m) | F12: 配水支管 | G12: 1990 | H12: 182.17 | I12: 150 | J12: 1 | K12: =IF(J12=1,IF(I12>=VLOOKUP(C12,管路ダウンサイズ設定!$B$6:$D$12,2,FALSE),INDEX(管路ダウンサイズ設定!$B$35:$B$62,MATCH(I12,管路ダウンサイズ設定!$B$35:$B$62,0)-VLOOKUP(C12,管路ダウンサイズ設定!$B$6:$D$12,3,FALSE),1),""),"") -> 125 | L12: =IF($Q12="","",VLOOKUP($Q12,初期設定!$E$37:$N$53,9,FALSE)) -> 40 | M12: =IF($Q12="","",VLOOKUP($Q12,初期設定!$E$37:$N$53,10,FALSE)) -> 40 | N12: =IF($Q12="","",VLOOKUP($Q12,初期設定!$E$37:$N$53,10,FALSE)) -> 40 | O12: 2250.38 | P12: 1125.19 | Q12: D9 | R12: =IF(I12=0,"",VLOOKUP(IF(I12<50,50,I12),管路ダウンサイズ設定!$I$6:$P$23,MATCH(F12,管路ダウンサイズ設定!$J$5:$P$5,0)+1,TRUE)) -> 112.3 | S12: 20458 | T12: =IF(I12=0,"",VLOOKUP(IF(K12<>"",IF(K12<50,50,K12),IF(I12<50,50,I12)),管路ダウンサイズ設定!$I$6:$P$23,MATCH(F12,管路ダウンサイズ設定!$J$5:$P$5,0)+1,TRUE)) -> 101.4 | U12: 18472 | V12: =IF(I12=0,"",VLOOKUP(IF(K12<>"",IF(K12<50,50,K12),IF(I12<50,50,I12)),管路ダウンサイズ設定!$I$6:$P$23,MATCH(F12,管路ダウンサイズ設定!$J$5:$P$5,0)+1,TRUE)) -> 101.4 | W12: 18472 | AC12: 老朽化管路 | AD12: =初期設定!F23 -> 1.5 | AE12: =初期設定!G23 -> 3 | AJ12: 硬質塩化ビニル管 （ＲＲロング継手等を有する） (m) | AK12: D1
C13: 配水支管 | D13: ダクタイル鋳鉄管 (上記以外・不明なものを含む） (m) | F13: 配水支管 | G13: 1992 | H13: 1.32 | I13: 100 | J13: 1 | K13: =IF(J13=1,IF(I13>=VLOOKUP(C13,管路ダウンサイズ設定!$B$6:$D$12,2,FALSE),INDEX(管路ダウンサイズ設定!$B$35:$B$62,MATCH(I13,管路ダウンサイズ設定!$B$35:$B$62,0)-VLOOKUP(C13,管路ダウンサイズ設定!$B$6:$D$12,3,FALSE),1),""),"") -> 75 | L13: =IF($Q13="","",VLOOKUP($Q13,初期設定!$E$37:$N$53,9,FALSE)) -> 40 | M13: =IF($Q13="","",VLOOKUP($Q13,初期設定!$E$37:$N$53,10,FALSE)) -> 60 | N13: =IF($Q13="","",VLOOKUP($Q13,初期設定!$E$37:$N$53,10,FALSE)) -> 60 | O13: 19.965 | P13: 6.655 | Q13: A9 | R13: =IF(I13=0,"",VLOOKUP(IF(I13<50,50,I13),管路ダウンサイズ設定!$I$6:$P$23,MATCH(F13,管路ダウンサイズ設定!$J$5:$P$5,0)+1,TRUE)) -> 91.5 | S13: 121 | T13: =IF(I13=0,"",VLOOKUP(IF(K13<>"",IF(K13<50,50,K13),IF(I13<50,50,I13)),管路ダウンサイズ設定!$I$6:$P$23,MATCH(F13,管路ダウンサイズ設定!$J$5:$P$5,0)+1,TRUE)) -> 82.6 | U13: 109 | V13: =IF(I13=0,"",VLOOKUP(IF(K13<>"",IF(K13<50,50,K13),IF(I13<50,50,I13)),管路ダウンサイズ設定!$I$6:$P$23,MATCH(F13,管路ダウンサイズ設定!$J$5:$P$5,0)+1,TRUE)) -> 82.6 | W13: 109 | AJ13: 硬質塩化ビニル管 （ＲＲ継手等を有する） (m) | AK13: D2
C14: 配水支管 | D14: 硬質塩化ビニル管 （上記以外・不明なものを含む） (m) | F14: 配水支管 | G14: 1996 | H14: 2.34 | I14: 50 | J14: 1 | K14: =IF(J14=1,IF(I14>=VLOOKUP(C14,管路ダウンサイズ設定!$B$6:$D$12,2,FALSE),INDEX(管路ダウンサイズ設定!$B$35:$B$62,MATCH(I14,管路ダウンサイズ設定!$B$35:$B$62,0)-VLOOKUP(C14,管路ダウンサイズ設定!$B$6:$D$12,3,FALSE),1),""),"") ->  | L14: =IF($Q14="","",VLOOKUP($Q14,初期設定!$E$37:$N$53,9,FALSE)) -> 40 | M14: =IF($Q14="","",VLOOKUP($Q14,初期設定!$E$37:$N$53,10,FALSE)) -> 40 | N14: =IF($Q14="","",VLOOKUP($Q14,初期設定!$E$37:$N$53,10,FALSE)) -> 40 | O14: 48.125 | P14: 28.875 | Q14: D9 | R14: =IF(I14=0,"",VLOOKUP(IF(I14<50,50,I14),管路ダウンサイズ設定!$I$6:$P$23,MATCH(F14,管路ダウンサイズ設定!$J$5:$P$5,0)+1,TRUE)) -> 74.6 | S14: 175 | T14: =IF(I14=0,"",VLOOKUP(IF(K14<>"",IF(K14<50,50,K14),IF(I14<50,50,I14)),管路ダウンサイズ設定!$I$6:$P$23,MATCH(F14,管路ダウンサイズ設定!$J$5:$P$5,0)+1,TRUE)) -> 74.6 | U14: 175 | V14: =IF(I14=0,"",VLOOKUP(IF(K14<>"",IF(K14<50,50,K14),IF(I14<50,50,I14)),管路ダウンサイズ設定!$I$6:$P$23,MATCH(F14,管路ダウンサイズ設定!$J$5:$P$5,0)+1,TRUE)) -> 74.6 | W14: 175 | AC14: ○施設単位の単価【更新】（総事業費/総延長） | AJ14: 硬質塩化ビニル管 （上記以外・不明なものを含む） (m) | AK14: D9
C15: 配水支管 | D15: 鋼管 （上記以外・不明なものを含む） (m) | F15: 配水支管 | G15: 2000 | H15: 3.39 | I15: 20 | J15: 1 | K15: =IF(J15=1,IF(I15>=VLOOKUP(C15,管路ダウンサイズ設定!$B$6:$D$12,2,FALSE),INDEX(管路ダウンサイズ設定!$B$35:$B$62,MATCH(I15,管路ダウンサイズ設定!$B$35:$B$62,0)-VLOOKUP(C15,管路ダウンサイズ設定!$B$6:$D$12,3,FALSE),1),""),"") ->  | L15: =IF($Q15="","",VLOOKUP($Q15,初期設定!$E$37:$N$53,9,FALSE)) -> 40 | M15: =IF($Q15="","",VLOOKUP($Q15,初期設定!$E$37:$N$53,10,FALSE)) -> 40 | N15: =IF($Q15="","",VLOOKUP($Q15,初期設定!$E$37:$N$53,10,FALSE)) -> 40 | O15: 97.405 | P15: 69.575 | Q15: B9 | R15: =IF(I15=0,"",VLOOKUP(IF(I15<50,50,I15),管路ダウンサイズ設定!$I$6:$P$23,MATCH(F15,管路ダウンサイズ設定!$J$5:$P$5,0)+1,TRUE)) -> 74.6 | S15: 253 | T15: =IF(I15=0,"",VLOOKUP(IF(K15<>"",IF(K15<50,50,K15),IF(I15<50,50,I15)),管路ダウンサイズ設定!$I$6:$P$23,MATCH(F15,管路ダウンサイズ設定!$J$5:$P$5,0)+1,TRUE)) -> 74.6 | U15: 253 | V15: =IF(I15=0,"",VLOOKUP(IF(K15<>"",IF(K15<50,50,K15),IF(I15<50,50,I15)),管路ダウンサイズ設定!$I$6:$P$23,MATCH(F15,管路ダウンサイズ設定!$J$5:$P$5,0)+1,TRUE)) -> 74.6 | W15: 253 | AC15: 施設名 | AD15: 布設単価（千円/ｍ） | AE15: 総事業費(千円) | AF15: 総延長(m) | AJ15: コンクリート管 (m) | AK15: E1
C16: 配水支管 | D16: 鋼管 （上記以外・不明なものを含む） (m) | F16: 配水支管 | G16: 1992 | H16: 4.28 | I16: 50 | J16: 1 | K16: =IF(J16=1,IF(I16>=VLOOKUP(C16,管路ダウンサイズ設定!$B$6:$D$12,2,FALSE),INDEX(管路ダウンサイズ設定!$B$35:$B$62,MATCH(I16,管路ダウンサイズ設定!$B$35:$B$62,0)-VLOOKUP(C16,管路ダウンサイズ設定!$B$6:$D$12,3,FALSE),1),""),"") ->  | L16: =IF($Q16="","",VLOOKUP($Q16,初期設定!$E$37:$N$53,9,FALSE)) -> 40 | M16: =IF($Q16="","",VLOOKUP($Q16,初期設定!$E$37:$N$53,10,FALSE)) -> 40 | N16: =IF($Q16="","",VLOOKUP($Q16,初期設定!$E$37:$N$53,10,FALSE)) -> 40 | O16: 52.635 | P16: 17.545 | Q16: B9 | R16: =IF(I16=0,"",VLOOKUP(IF(I16<50,50,I16),管路ダウンサイズ設定!$I$6:$P$23,MATCH(F16,管路ダウンサイズ設定!$J$5:$P$5,0)+1,TRUE)) -> 74.6 | S16: 319 | T16: =IF(I16=0,"",VLOOKUP(IF(K16<>"",IF(K16<50,50,K16),IF(I16<50,50,I16)),管路ダウンサイズ設定!$I$6:$P$23,MATCH(F16,管路ダウンサイズ設定!$J$5:$P$5,0)+1,TRUE)) -> 74.6 | U16: 319 | V16: =IF(I16=0,"",VLOOKUP(IF(K16<>"",IF(K16<50,50,K16),IF(I16<50,50,I16)),管路ダウンサイズ設定!$I$6:$P$23,MATCH(F16,管路ダウンサイズ設定!$J$5:$P$5,0)+1,TRUE)) -> 74.6 | W16: 319 | AC16: =AI5 -> 取・導水管 | AD16: =IF(AF16=0,0,INT(AE16/AF16+0.5)) -> 184 | AE16: =SUMIF($F:$F,$AC16,$S:$S) -> 2126349 | AF16: =SUMIF($F:$F,$AC16,$H:$H) -> 11528.47 | AJ16: 鉛管 (m) | AK16: F1
C17: 配水支管 | D17: 硬質塩化ビニル管 （上記以外・不明なものを含む） (m) | F17: 配水支管 | G17: 1993 | H17: 304.12 | I17: 100 | J17: 1 | K17: =IF(J17=1,IF(I17>=VLOOKUP(C17,管路ダウンサイズ設定!$B$6:$D$12,2,FALSE),INDEX(管路ダウンサイズ設定!$B$35:$B$62,MATCH(I17,管路ダウンサイズ設定!$B$35:$B$62,0)-VLOOKUP(C17,管路ダウンサイズ設定!$B$6:$D$12,3,FALSE),1),""),"") -> 75 | L17: =IF($Q17="","",VLOOKUP($Q17,初期設定!$E$37:$N$53,9,FALSE)) -> 40 | M17: =IF($Q17="","",VLOOKUP($Q17,初期設定!$E$37:$N$53,10,FALSE)) -> 40 | N17: =IF($Q17="","",VLOOKUP($Q17,初期設定!$E$37:$N$53,10,FALSE)) -> 40 | O17: 5356.6975 | P17: 2295.7275 | Q17: D9 | R17: =IF(I17=0,"",VLOOKUP(IF(I17<50,50,I17),管路ダウンサイズ設定!$I$6:$P$23,MATCH(F17,管路ダウンサイズ設定!$J$5:$P$5,0)+1,TRUE)) -> 91.5 | S17: 27827 | T17: =IF(I17=0,"",VLOOKUP(IF(K17<>"",IF(K17<50,50,K17),IF(I17<50,50,I17)),管路ダウンサイズ設定!$I$6:$P$23,MATCH(F17,管路ダウンサイズ設定!$J$5:$P$5,0)+1,TRUE)) -> 82.6 | U17: 25120 | V17: =IF(I17=0,"",VLOOKUP(IF(K17<>"",IF(K17<50,50,K17),IF(I17<50,50,I17)),管路ダウンサイズ設定!$I$6:$P$23,MATCH(F17,管路ダウンサイズ設定!$J$5:$P$5,0)+1,TRUE)) -> 82.6 | W17: 25120 | AC17: 送水管 | AD17: =IF(AF17=0,0,INT(AE17/AF17+0.5)) -> 0 | AE17: 0 | AF17: 0 | AJ17: ポリエチレン管 （高密度、熱融着継手を有する） （m） | AK17: G1
C18: 配水支管 | D18: ダクタイル鋳鉄管 (上記以外・不明なものを含む） (m) | F18: 配水支管 | G18: 1993 | H18: 6.15 | I18: 100 | J18: 1 | K18: =IF(J18=1,IF(I18>=VLOOKUP(C18,管路ダウンサイズ設定!$B$6:$D$12,2,FALSE),INDEX(管路ダウンサイズ設定!$B$35:$B$62,MATCH(I18,管路ダウンサイズ設定!$B$35:$B$62,0)-VLOOKUP(C18,管路ダウンサイズ設定!$B$6:$D$12,3,FALSE),1),""),"") -> 75 | L18: =IF($Q18="","",VLOOKUP($Q18,初期設定!$E$37:$N$53,9,FALSE)) -> 40 | M18: =IF($Q18="","",VLOOKUP($Q18,初期設定!$E$37:$N$53,10,FALSE)) -> 60 | N18: =IF($Q18="","",VLOOKUP($Q18,初期設定!$E$37:$N$53,10,FALSE)) -> 60 | O18: 108.3775 | P18: 46.4475 | Q18: A9 | R18: =IF(I18=0,"",VLOOKUP(IF(I18<50,50,I18),管路ダウンサイズ設定!$I$6:$P$23,MATCH(F18,管路ダウンサイズ設定!$J$5:$P$5,0)+1,TRUE)) -> 91.5 | S18: 563 | T18: =IF(I18=0,"",VLOOKUP(IF(K18<>"",IF(K18<50,50,K18),IF(I18<50,50,I18)),管路ダウンサイズ設定!$I$6:$P$23,MATCH(F18,管路ダウンサイズ設定!$J$5:$P$5,0)+1,TRUE)) -> 82.6 | U18: 508 | V18: =IF(I18=0,"",VLOOKUP(IF(K18<>"",IF(K18<50,50,K18),IF(I18<50,50,I18)),管路ダウンサイズ設定!$I$6:$P$23,MATCH(F18,管路ダウンサイズ設定!$J$5:$P$5,0)+1,TRUE)) -> 82.6 | W18: 508 | AC18: 配水本管 | AD18: 0 | AE18: 0 | AF18: 0 | AJ18: ポリエチレン管 （上記以外・不明なものを含む） （m） | AK18: G1
C19: 配水支管 | D19: 硬質塩化ビニル管 （上記以外・不明なものを含む） (m) | F19: 配水支管 | G19: 1993 | H19: 61.21 | I19: 100 | J19: 1 | K19: =IF(J19=1,IF(I19>=VLOOKUP(C19,管路ダウンサイズ設定!$B$6:$D$12,2,FALSE),INDEX(管路ダウンサイズ設定!$B$35:$B$62,MATCH(I19,管路ダウンサイズ設定!$B$35:$B$62,0)-VLOOKUP(C19,管路ダウンサイズ設定!$B$6:$D$12,3,FALSE),1),""),"") -> 75 | L19: =IF($Q19="","",VLOOKUP($Q19,初期設定!$E$37:$N$53,9,FALSE)) -> 40 | M19: =IF($Q19="","",VLOOKUP($Q19,初期設定!$E$37:$N$53,10,FALSE)) -> 40 | N19: =IF($Q19="","",VLOOKUP($Q19,初期設定!$E$37:$N$53,10,FALSE)) -> 40 | O19: 1078.1925 | P19: 462.0825 | Q19: D9 | R19: =IF(I19=0,"",VLOOKUP(IF(I19<50,50,I19),管路ダウンサイズ設定!$I$6:$P$23,MATCH(F19,管路ダウンサイズ設定!$J$5:$P$5,0)+1,TRUE)) -> 91.5 | S19: 5601 | T19: =IF(I19=0,"",VLOOKUP(IF(K19<>"",IF(K19<50,50,K19),IF(I19<50,50,I19)),管路ダウンサイズ設定!$I$6:$P$23,MATCH(F19,管路ダウンサイズ設定!$J$5:$P$5,0)+1,TRUE)) -> 82.6 | U19: 5056 | V19: =IF(I19=0,"",VLOOKUP(IF(K19<>"",IF(K19<50,50,K19),IF(I19<50,50,I19)),管路ダウンサイズ設定!$I$6:$P$23,MATCH(F19,管路ダウンサイズ設定!$J$5:$P$5,0)+1,TRUE)) -> 82.6 | W19: 5056 | AC19: 配水支管 | AD19: 104 | AE19: 33156495 | AF19: 318266.91 | AJ19: ステンレス管 耐震型継手を有する (m) | AK19: H1
C20: 配水支管 | D20: 鋼管 （上記以外・不明なものを含む） (m) | F20: 配水支管 | G20: 1995 | H20: 8.33 | I20: 75 | J20: 1 | K20: =IF(J20=1,IF(I20>=VLOOKUP(C20,管路ダウンサイズ設定!$B$6:$D$12,2,FALSE),INDEX(管路ダウンサイズ設定!$B$35:$B$62,MATCH(I20,管路ダウンサイズ設定!$B$35:$B$62,0)-VLOOKUP(C20,管路ダウンサイズ設定!$B$6:$D$12,3,FALSE),1),""),"") ->  | L20: =IF($Q20="","",VLOOKUP($Q20,初期設定!$E$37:$N$53,9,FALSE)) -> 40 | M20: =IF($Q20="","",VLOOKUP($Q20,初期設定!$E$37:$N$53,10,FALSE)) -> 40 | N20: =IF($Q20="","",VLOOKUP($Q20,初期設定!$E$37:$N$53,10,FALSE)) -> 40 | O20: 170.28 | P20: 94.6 | Q20: B9 | R20: =IF(I20=0,"",VLOOKUP(IF(I20<50,50,I20),管路ダウンサイズ設定!$I$6:$P$23,MATCH(F20,管路ダウンサイズ設定!$J$5:$P$5,0)+1,TRUE)) -> 82.6 | S20: 688 | T20: =IF(I20=0,"",VLOOKUP(IF(K20<>"",IF(K20<50,50,K20),IF(I20<50,50,I20)),管路ダウンサイズ設定!$I$6:$P$23,MATCH(F20,管路ダウンサイズ設定!$J$5:$P$5,0)+1,TRUE)) -> 82.6 | U20: 688 | V20: =IF(I20=0,"",VLOOKUP(IF(K20<>"",IF(K20<50,50,K20),IF(I20<50,50,I20)),管路ダウンサイズ設定!$I$6:$P$23,MATCH(F20,管路ダウンサイズ設定!$J$5:$P$5,0)+1,TRUE)) -> 82.6 | W20: 688 | AC20: その他１ | AD20: 0 | AE20: 0 | AF20: 0 | AJ20: ステンレス管 (上記以外・不明なものを含む） (m) | AK20: H9
C21: 配水支管 | D21: 硬質塩化ビニル管 （上記以外・不明なものを含む） (m) | F21: 配水支管 | G21: 1994 | H21: 114.87 | I21: 75 | J21: 1 | K21: =IF(J21=1,IF(I21>=VLOOKUP(C21,管路ダウンサイズ設定!$B$6:$D$12,2,FALSE),INDEX(管路ダウンサイズ設定!$B$35:$B$62,MATCH(I21,管路ダウンサイズ設定!$B$35:$B$62,0)-VLOOKUP(C21,管路ダウンサイズ設定!$B$6:$D$12,3,FALSE),1),""),"") ->  | L21: =IF($Q21="","",VLOOKUP($Q21,初期設定!$E$37:$N$53,9,FALSE)) -> 40 | M21: =IF($Q21="","",VLOOKUP($Q21,初期設定!$E$37:$N$53,10,FALSE)) -> 40 | N21: =IF($Q21="","",VLOOKUP($Q21,初期設定!$E$37:$N$53,10,FALSE)) -> 40 | O21: 2087.36 | P21: 1043.68 | Q21: D9 | R21: =IF(I21=0,"",VLOOKUP(IF(I21<50,50,I21),管路ダウンサイズ設定!$I$6:$P$23,MATCH(F21,管路ダウンサイズ設定!$J$5:$P$5,0)+1,TRUE)) -> 82.6 | S21: 9488 | T21: =IF(I21=0,"",VLOOKUP(IF(K21<>"",IF(K21<50,50,K21),IF(I21<50,50,I21)),管路ダウンサイズ設定!$I$6:$P$23,MATCH(F21,管路ダウンサイズ設定!$J$5:$P$5,0)+1,TRUE)) -> 82.6 | U21: 9488 | V21: =IF(I21=0,"",VLOOKUP(IF(K21<>"",IF(K21<50,50,K21),IF(I21<50,50,I21)),管路ダウンサイズ設定!$I$6:$P$23,MATCH(F21,管路ダウンサイズ設定!$J$5:$P$5,0)+1,TRUE)) -> 82.6 | W21: 9488 | AC21: その他２ | AD21: 0 | AE21: 0 | AF21: 0 | AJ21: その他 （管種が不明のものを含む） (m) | AK21: Z9
C22: 配水支管 | D22: ダクタイル鋳鉄管 (上記以外・不明なものを含む） (m) | F22: 配水支管 | G22: 1993 | H22: 5.36 | I22: 100 | J22: 1 | K22: =IF(J22=1,IF(I22>=VLOOKUP(C22,管路ダウンサイズ設定!$B$6:$D$12,2,FALSE),INDEX(管路ダウンサイズ設定!$B$35:$B$62,MATCH(I22,管路ダウンサイズ設定!$B$35:$B$62,0)-VLOOKUP(C22,管路ダウンサイズ設定!$B$6:$D$12,3,FALSE),1),""),"") -> 75 | L22: =IF($Q22="","",VLOOKUP($Q22,初期設定!$E$37:$N$53,9,FALSE)) -> 40 | M22: =IF($Q22="","",VLOOKUP($Q22,初期設定!$E$37:$N$53,10,FALSE)) -> 60 | N22: =IF($Q22="","",VLOOKUP($Q22,初期設定!$E$37:$N$53,10,FALSE)) -> 60 | O22: 94.325 | P22: 40.425 | Q22: A9 | R22: =IF(I22=0,"",VLOOKUP(IF(I22<50,50,I22),管路ダウンサイズ設定!$I$6:$P$23,MATCH(F22,管路ダウンサイズ設定!$J$5:$P$5,0)+1,TRUE)) -> 91.5 | S22: 490 | T22: =IF(I22=0,"",VLOOKUP(IF(K22<>"",IF(K22<50,50,K22),IF(I22<50,50,I22)),管路ダウンサイズ設定!$I$6:$P$23,MATCH(F22,管路ダウンサイズ設定!$J$5:$P$5,0)+1,TRUE)) -> 82.6 | U22: 443 | V22: =IF(I22=0,"",VLOOKUP(IF(K22<>"",IF(K22<50,50,K22),IF(I22<50,50,I22)),管路ダウンサイズ設定!$I$6:$P$23,MATCH(F22,管路ダウンサイズ設定!$J$5:$P$5,0)+1,TRUE)) -> 82.6 | W22: 443 | AC22: その他３ | AD22: 0 | AE22: 0 | AF22: 0
C23: 配水支管 | D23: ダクタイル鋳鉄管 (上記以外・不明なものを含む） (m) | F23: 配水支管 | G23: 1995 | H23: 2.3 | I23: 75 | J23: 1 | K23: =IF(J23=1,IF(I23>=VLOOKUP(C23,管路ダウンサイズ設定!$B$6:$D$12,2,FALSE),INDEX(管路ダウンサイズ設定!$B$35:$B$62,MATCH(I23,管路ダウンサイズ設定!$B$35:$B$62,0)-VLOOKUP(C23,管路ダウンサイズ設定!$B$6:$D$12,3,FALSE),1),""),"") ->  | L23: =IF($Q23="","",VLOOKUP($Q23,初期設定!$E$37:$N$53,9,FALSE)) -> 40 | M23: =IF($Q23="","",VLOOKUP($Q23,初期設定!$E$37:$N$53,10,FALSE)) -> 60 | N23: =IF($Q23="","",VLOOKUP($Q23,初期設定!$E$37:$N$53,10,FALSE)) -> 60 | O23: 47.025 | P23: 26.125 | Q23: A9 | R23: =IF(I23=0,"",VLOOKUP(IF(I23<50,50,I23),管路ダウンサイズ設定!$I$6:$P$23,MATCH(F23,管路ダウンサイズ設定!$J$5:$P$5,0)+1,TRUE)) -> 82.6 | S23: 190 | T23: =IF(I23=0,"",VLOOKUP(IF(K23<>"",IF(K23<50,50,K23),IF(I23<50,50,I23)),管路ダウンサイズ設定!$I$6:$P$23,MATCH(F23,管路ダウンサイズ設定!$J$5:$P$5,0)+1,TRUE)) -> 82.6 | U23: 190 | V23: =IF(I23=0,"",VLOOKUP(IF(K23<>"",IF(K23<50,50,K23),IF(I23<50,50,I23)),管路ダウンサイズ設定!$I$6:$P$23,MATCH(F23,管路ダウンサイズ設定!$J$5:$P$5,0)+1,TRUE)) -> 82.6 | W23: 190 | AC23: 合計 | AE23: =SUM(AE16:AE22) -> 35282844 | AF23: =SUM(AF16:AF22) -> 329795.38
C24: 配水支管 | D24: その他 （管種が不明のものを含む） (m) | F24: 配水支管 | G24: 1975 | H24: 5.76 | I24: 0 | J24: 1 | K24: =IF(J24=1,IF(I24>=VLOOKUP(C24,管路ダウンサイズ設定!$B$6:$D$12,2,FALSE),INDEX(管路ダウンサイズ設定!$B$35:$B$62,MATCH(I24,管路ダウンサイズ設定!$B$35:$B$62,0)-VLOOKUP(C24,管路ダウンサイズ設定!$B$6:$D$12,3,FALSE),1),""),"") ->  | L24: =IF($Q24="","",VLOOKUP($Q24,初期設定!$E$37:$N$53,9,FALSE)) -> 40 | M24: =IF($Q24="","",VLOOKUP($Q24,初期設定!$E$37:$N$53,10,FALSE)) -> 40 | N24: =IF($Q24="","",VLOOKUP($Q24,初期設定!$E$37:$N$53,10,FALSE)) -> 40 | O24: 0 | P24: 0 | Q24: Z9 | R24: =IF(I24=0,"",VLOOKUP(IF(I24<50,50,I24),管路ダウンサイズ設定!$I$6:$P$23,MATCH(F24,管路ダウンサイズ設定!$J$5:$P$5,0)+1,TRUE)) ->  | S24: 0 | T24: =IF(I24=0,"",VLOOKUP(IF(K24<>"",IF(K24<50,50,K24),IF(I24<50,50,I24)),管路ダウンサイズ設定!$I$6:$P$23,MATCH(F24,管路ダウンサイズ設定!$J$5:$P$5,0)+1,TRUE)) ->  | U24: 0 | V24: =IF(I24=0,"",VLOOKUP(IF(K24<>"",IF(K24<50,50,K24),IF(I24<50,50,I24)),管路ダウンサイズ設定!$I$6:$P$23,MATCH(F24,管路ダウンサイズ設定!$J$5:$P$5,0)+1,TRUE)) ->  | W24: 0
C25: 配水支管 | D25: ポリエチレン管 （高密度、熱融着継手を有する） （m） | F25: 配水支管 | G25: 2011 | H25: 3.66 | I25: 50 | J25: 1 | K25: =IF(J25=1,IF(I25>=VLOOKUP(C25,管路ダウンサイズ設定!$B$6:$D$12,2,FALSE),INDEX(管路ダウンサイズ設定!$B$35:$B$62,MATCH(I25,管路ダウンサイズ設定!$B$35:$B$62,0)-VLOOKUP(C25,管路ダウンサイズ設定!$B$6:$D$12,3,FALSE),1),""),"") ->  | L25: =IF($Q25="","",VLOOKUP($Q25,初期設定!$E$37:$N$53,9,FALSE)) -> 40 | M25: =IF($Q25="","",VLOOKUP($Q25,初期設定!$E$37:$N$53,10,FALSE)) -> 60 | N25: =IF($Q25="","",VLOOKUP($Q25,初期設定!$E$37:$N$53,10,FALSE)) -> 60 | O25: 187.6875 | P25: 157.6575 | Q25: G1 | R25: =IF(I25=0,"",VLOOKUP(IF(I25<50,50,I25),管路ダウンサイズ設定!$I$6:$P$23,MATCH(F25,管路ダウンサイズ設定!$J$5:$P$5,0)+1,TRUE)) -> 74.6 | S25: 273 | T25: =IF(I25=0,"",VLOOKUP(IF(K25<>"",IF(K25<50,50,K25),IF(I25<50,50,I25)),管路ダウンサイズ設定!$I$6:$P$23,MATCH(F25,管路ダウンサイズ設定!$J$5:$P$5,0)+1,TRUE)) -> 74.6 | U25: 273 | V25: =IF(I25=0,"",VLOOKUP(IF(K25<>"",IF(K25<50,50,K25),IF(I25<50,50,I25)),管路ダウンサイズ設定!$I$6:$P$23,MATCH(F25,管路ダウンサイズ設定!$J$5:$P$5,0)+1,TRUE)) -> 74.6 | W25: 273 | AC25: ○施設単位の単価【再更新】（総事業費/総延長）
C26: 配水支管 | D26: 鋼管 （上記以外・不明なものを含む） (m) | F26: 配水支管 | G26: 2002 | H26: 1.98 | I26: 50 | J26: 1 | K26: =IF(J26=1,IF(I26>=VLOOKUP(C26,管路ダウンサイズ設定!$B$6:$D$12,2,FALSE),INDEX(管路ダウンサイズ設定!$B$35:$B$62,MATCH(I26,管路ダウンサイズ設定!$B$35:$B$62,0)-VLOOKUP(C26,管路ダウンサイズ設定!$B$6:$D$12,3,FALSE),1),""),"") ->  | L26: =IF($Q26="","",VLOOKUP($Q26,初期設定!$E$37:$N$53,9,FALSE)) -> 40 | M26: =IF($Q26="","",VLOOKUP($Q26,初期設定!$E$37:$N$53,10,FALSE)) -> 40 | N26: =IF($Q26="","",VLOOKUP($Q26,初期設定!$E$37:$N$53,10,FALSE)) -> 40 | O26: 65.12 | P26: 48.84 | Q26: B9 | R26: =IF(I26=0,"",VLOOKUP(IF(I26<50,50,I26),管路ダウンサイズ設定!$I$6:$P$23,MATCH(F26,管路ダウンサイズ設定!$J$5:$P$5,0)+1,TRUE)) -> 74.6 | S26: 148 | T26: =IF(I26=0,"",VLOOKUP(IF(K26<>"",IF(K26<50,50,K26),IF(I26<50,50,I26)),管路ダウンサイズ設定!$I$6:$P$23,MATCH(F26,管路ダウンサイズ設定!$J$5:$P$5,0)+1,TRUE)) -> 74.6 | U26: 148 | V26: =IF(I26=0,"",VLOOKUP(IF(K26<>"",IF(K26<50,50,K26),IF(I26<50,50,I26)),管路ダウンサイズ設定!$I$6:$P$23,MATCH(F26,管路ダウンサイズ設定!$J$5:$P$5,0)+1,TRUE)) -> 74.6 | W26: 148 | AC26: 施設名 | AD26: 布設単価（千円/ｍ） | AE26: 総事業費(千円) | AF26: 総延長(m)
C27: 配水支管 | D27: ポリエチレン管 （上記以外・不明なものを含む） （m） | F27: 配水支管 | G27: 1991 | H27: 4.25 | I27: 50 | J27: 1 | K27: =IF(J27=1,IF(I27>=VLOOKUP(C27,管路ダウンサイズ設定!$B$6:$D$12,2,FALSE),INDEX(管路ダウンサイズ設定!$B$35:$B$62,MATCH(I27,管路ダウンサイズ設定!$B$35:$B$62,0)-VLOOKUP(C27,管路ダウンサイズ設定!$B$6:$D$12,3,FALSE),1),""),"") ->  | L27: =IF($Q27="","",VLOOKUP($Q27,初期設定!$E$37:$N$53,9,FALSE)) -> 40 | M27: =IF($Q27="","",VLOOKUP($Q27,初期設定!$E$37:$N$53,10,FALSE)) -> 60 | N27: =IF($Q27="","",VLOOKUP($Q27,初期設定!$E$37:$N$53,10,FALSE)) -> 60 | O27: 43.5875 | P27: 17.435 | Q27: G1 | R27: =IF(I27=0,"",VLOOKUP(IF(I27<50,50,I27),管路ダウンサイズ設定!$I$6:$P$23,MATCH(F27,管路ダウンサイズ設定!$J$5:$P$5,0)+1,TRUE)) -> 74.6 | S27: 317 | T27: =IF(I27=0,"",VLOOKUP(IF(K27<>"",IF(K27<50,50,K27),IF(I27<50,50,I27)),管路ダウンサイズ設定!$I$6:$P$23,MATCH(F27,管路ダウンサイズ設定!$J$5:$P$5,0)+1,TRUE)) -> 74.6 | U27: 317 | V27: =IF(I27=0,"",VLOOKUP(IF(K27<>"",IF(K27<50,50,K27),IF(I27<50,50,I27)),管路ダウンサイズ設定!$I$6:$P$23,MATCH(F27,管路ダウンサイズ設定!$J$5:$P$5,0)+1,TRUE)) -> 74.6 | W27: 317 | AC27: =AI5 -> 取・導水管 | AD27: =IF(AF27=0,0,INT(AE27/AF27+0.5)) -> 179 | AE27: =SUMIF($F:$F,$AC27,$W:$W) -> 2060417 | AF27: =SUMIF($F:$F,$AC27,$H:$H) -> 11528.47
C28: 配水支管 | D28: ダクタイル鋳鉄管 (上記以外・不明なものを含む） (m) | F28: 配水支管 | G28: 1990 | H28: 17.63 | I28: 200 | J28: 1 | K28: =IF(J28=1,IF(I28>=VLOOKUP(C28,管路ダウンサイズ設定!$B$6:$D$12,2,FALSE),INDEX(管路ダウンサイズ設定!$B$35:$B$62,MATCH(I28,管路ダウンサイズ設定!$B$35:$B$62,0)-VLOOKUP(C28,管路ダウンサイズ設定!$B$6:$D$12,3,FALSE),1),""),"") -> 150 | L28: =IF($Q28="","",VLOOKUP($Q28,初期設定!$E$37:$N$53,9,FALSE)) -> 40 | M28: =IF($Q28="","",VLOOKUP($Q28,初期設定!$E$37:$N$53,10,FALSE)) -> 60 | N28: =IF($Q28="","",VLOOKUP($Q28,初期設定!$E$37:$N$53,10,FALSE)) -> 60 | O28: 267.41 | P28: 133.705 | Q28: A9 | R28: =IF(I28=0,"",VLOOKUP(IF(I28<50,50,I28),管路ダウンサイズ設定!$I$6:$P$23,MATCH(F28,管路ダウンサイズ設定!$J$5:$P$5,0)+1,TRUE)) -> 137.9 | S28: 2431 | T28: =IF(I28=0,"",VLOOKUP(IF(K28<>"",IF(K28<50,50,K28),IF(I28<50,50,I28)),管路ダウンサイズ設定!$I$6:$P$23,MATCH(F28,管路ダウンサイズ設定!$J$5:$P$5,0)+1,TRUE)) -> 112.3 | U28: 1980 | V28: =IF(I28=0,"",VLOOKUP(IF(K28<>"",IF(K28<50,50,K28),IF(I28<50,50,I28)),管路ダウンサイズ設定!$I$6:$P$23,MATCH(F28,管路ダウンサイズ設定!$J$5:$P$5,0)+1,TRUE)) -> 112.3 | W28: 1980 | AC28: 送水管 | AD28: =IF(AF28=0,0,INT(AE28/AF28+0.5)) -> 0 | AE28: 0 | AF28: 0
C29: 配水支管 | D29: ダクタイル鋳鉄管 (上記以外・不明なものを含む） (m) | F29: 配水支管 | G29: 1990 | H29: 14.7 | I29: 200 | J29: 1 | K29: =IF(J29=1,IF(I29>=VLOOKUP(C29,管路ダウンサイズ設定!$B$6:$D$12,2,FALSE),INDEX(管路ダウンサイズ設定!$B$35:$B$62,MATCH(I29,管路ダウンサイズ設定!$B$35:$B$62,0)-VLOOKUP(C29,管路ダウンサイズ設定!$B$6:$D$12,3,FALSE),1),""),"") -> 150 | L29: =IF($Q29="","",VLOOKUP($Q29,初期設定!$E$37:$N$53,9,FALSE)) -> 40 | M29: =IF($Q29="","",VLOOKUP($Q29,初期設定!$E$37:$N$53,10,FALSE)) -> 60 | N29: =IF($Q29="","",VLOOKUP($Q29,初期設定!$E$37:$N$53,10,FALSE)) -> 60 | O29: 222.97 | P29: 111.485 | Q29: A9 | R29: =IF(I29=0,"",VLOOKUP(IF(I29<50,50,I29),管路ダウンサイズ設定!$I$6:$P$23,MATCH(F29,管路ダウンサイズ設定!$J$5:$P$5,0)+1,TRUE)) -> 137.9 | S29: 2027 | T29: =IF(I29=0,"",VLOOKUP(IF(K29<>"",IF(K29<50,50,K29),IF(I29<50,50,I29)),管路ダウンサイズ設定!$I$6:$P$23,MATCH(F29,管路ダウンサイズ設定!$J$5:$P$5,0)+1,TRUE)) -> 112.3 | U29: 1651 | V29: =IF(I29=0,"",VLOOKUP(IF(K29<>"",IF(K29<50,50,K29),IF(I29<50,50,I29)),管路ダウンサイズ設定!$I$6:$P$23,MATCH(F29,管路ダウンサイズ設定!$J$5:$P$5,0)+1,TRUE)) -> 112.3 | W29: 1651 | AC29: 配水本管 | AD29: 0 | AE29: 0 | AF29: 0
C30: 配水支管 | D30: ダクタイル鋳鉄管 (上記以外・不明なものを含む） (m) | F30: 配水支管 | G30: 1998 | H30: 25.47 | I30: 200 | J30: 1 | K30: =IF(J30=1,IF(I30>=VLOOKUP(C30,管路ダウンサイズ設定!$B$6:$D$12,2,FALSE),INDEX(管路ダウンサイズ設定!$B$35:$B$62,MATCH(I30,管路ダウンサイズ設定!$B$35:$B$62,0)-VLOOKUP(C30,管路ダウンサイズ設定!$B$6:$D$12,3,FALSE),1),""),"") -> 150 | L30: =IF($Q30="","",VLOOKUP($Q30,初期設定!$E$37:$N$53,9,FALSE)) -> 40 | M30: =IF($Q30="","",VLOOKUP($Q30,初期設定!$E$37:$N$53,10,FALSE)) -> 60 | N30: =IF($Q30="","",VLOOKUP($Q30,初期設定!$E$37:$N$53,10,FALSE)) -> 60 | O30: 1158.96 | P30: 772.64 | Q30: A9 | R30: =IF(I30=0,"",VLOOKUP(IF(I30<50,50,I30),管路ダウンサイズ設定!$I$6:$P$23,MATCH(F30,管路ダウンサイズ設定!$J$5:$P$5,0)+1,TRUE)) -> 137.9 | S30: 3512 | T30: =IF(I30=0,"",VLOOKUP(IF(K30<>"",IF(K30<50,50,K30),IF(I30<50,50,I30)),管路ダウンサイズ設定!$I$6:$P$23,MATCH(F30,管路ダウンサイズ設定!$J$5:$P$5,0)+1,TRUE)) -> 112.3 | U30: 2860 | V30: =IF(I30=0,"",VLOOKUP(IF(K30<>"",IF(K30<50,50,K30),IF(I30<50,50,I30)),管路ダウンサイズ設定!$I$6:$P$23,MATCH(F30,管路ダウンサイズ設定!$J$5:$P$5,0)+1,TRUE)) -> 112.3 | W30: 2860 | AC30: 配水支管 | AD30: 95 | AE30: 30358103 | AF30: 318266.91
C31: 配水支管 | D31: 硬質塩化ビニル管 （上記以外・不明なものを含む） (m) | F31: 配水支管 | G31: 2003 | H31: 48.24 | I31: 100 | J31: 1 | K31: =IF(J31=1,IF(I31>=VLOOKUP(C31,管路ダウンサイズ設定!$B$6:$D$12,2,FALSE),INDEX(管路ダウンサイズ設定!$B$35:$B$62,MATCH(I31,管路ダウンサイズ設定!$B$35:$B$62,0)-VLOOKUP(C31,管路ダウンサイズ設定!$B$6:$D$12,3,FALSE),1),""),"") -> 75 | L31: =IF($Q31="","",VLOOKUP($Q31,初期設定!$E$37:$N$53,9,FALSE)) -> 40 | M31: =IF($Q31="","",VLOOKUP($Q31,初期設定!$E$37:$N$53,10,FALSE)) -> 40 | N31: =IF($Q31="","",VLOOKUP($Q31,初期設定!$E$37:$N$53,10,FALSE)) -> 40 | O31: 2063.545 | P31: 1578.005 | Q31: D9 | R31: =IF(I31=0,"",VLOOKUP(IF(I31<50,50,I31),管路ダウンサイズ設定!$I$6:$P$23,MATCH(F31,管路ダウンサイズ設定!$J$5:$P$5,0)+1,TRUE)) -> 91.5 | S31: 4414 | T31: =IF(I31=0,"",VLOOKUP(IF(K31<>"",IF(K31<50,50,K31),IF(I31<50,50,I31)),管路ダウンサイズ設定!$I$6:$P$23,MATCH(F31,管路ダウンサイズ設定!$J$5:$P$5,0)+1,TRUE)) -> 82.6 | U31: 3985 | V31: =IF(I31=0,"",VLOOKUP(IF(K31<>"",IF(K31<50,50,K31),IF(I31<50,50,I31)),管路ダウンサイズ設定!$I$6:$P$23,MATCH(F31,管路ダウンサイズ設定!$J$5:$P$5,0)+1,TRUE)) -> 82.6 | W31: 3985 | AC31: その他１ | AD31: 0 | AE31: 0 | AF31: 0
C32: 配水支管 | D32: 鋼管 （上記以外・不明なものを含む） (m) | F32: 配水支管 | G32: 2003 | H32: 18.51 | I32: 100 | J32: 1 | K32: =IF(J32=1,IF(I32>=VLOOKUP(C32,管路ダウンサイズ設定!$B$6:$D$12,2,FALSE),INDEX(管路ダウンサイズ設定!$B$35:$B$62,MATCH(I32,管路ダウンサイズ設定!$B$35:$B$62,0)-VLOOKUP(C32,管路ダウンサイズ設定!$B$6:$D$12,3,FALSE),1),""),"") -> 75 | L32: =IF($Q32="","",VLOOKUP($Q32,初期設定!$E$37:$N$53,9,FALSE)) -> 40 | M32: =IF($Q32="","",VLOOKUP($Q32,初期設定!$E$37:$N$53,10,FALSE)) -> 40 | N32: =IF($Q32="","",VLOOKUP($Q32,初期設定!$E$37:$N$53,10,FALSE)) -> 40 | O32: 791.945 | P32: 605.605 | Q32: B9 | R32: =IF(I32=0,"",VLOOKUP(IF(I32<50,50,I32),管路ダウンサイズ設定!$I$6:$P$23,MATCH(F32,管路ダウンサイズ設定!$J$5:$P$5,0)+1,TRUE)) -> 91.5 | S32: 1694 | T32: =IF(I32=0,"",VLOOKUP(IF(K32<>"",IF(K32<50,50,K32),IF(I32<50,50,I32)),管路ダウンサイズ設定!$I$6:$P$23,MATCH(F32,管路ダウンサイズ設定!$J$5:$P$5,0)+1,TRUE)) -> 82.6 | U32: 1529 | V32: =IF(I32=0,"",VLOOKUP(IF(K32<>"",IF(K32<50,50,K32),IF(I32<50,50,I32)),管路ダウンサイズ設定!$I$6:$P$23,MATCH(F32,管路ダウンサイズ設定!$J$5:$P$5,0)+1,TRUE)) -> 82.6 | W32: 1529 | AC32: その他２ | AD32: 0 | AE32: 0 | AF32: 0
C33: 配水支管 | D33: 硬質塩化ビニル管 （上記以外・不明なものを含む） (m) | F33: 配水支管 | G33: 2003 | H33: 96.26 | I33: 100 | J33: 1 | K33: =IF(J33=1,IF(I33>=VLOOKUP(C33,管路ダウンサイズ設定!$B$6:$D$12,2,FALSE),INDEX(管路ダウンサイズ設定!$B$35:$B$62,MATCH(I33,管路ダウンサイズ設定!$B$35:$B$62,0)-VLOOKUP(C33,管路ダウンサイズ設定!$B$6:$D$12,3,FALSE),1),""),"") -> 75 | L33: =IF($Q33="","",VLOOKUP($Q33,初期設定!$E$37:$N$53,9,FALSE)) -> 40 | M33: =IF($Q33="","",VLOOKUP($Q33,初期設定!$E$37:$N$53,10,FALSE)) -> 40 | N33: =IF($Q33="","",VLOOKUP($Q33,初期設定!$E$37:$N$53,10,FALSE)) -> 40 | O33: 4117.74 | P33: 3148.86 | Q33: D9 | R33: =IF(I33=0,"",VLOOKUP(IF(I33<50,50,I33),管路ダウンサイズ設定!$I$6:$P$23,MATCH(F33,管路ダウンサイズ設定!$J$5:$P$5,0)+1,TRUE)) -> 91.5 | S33: 8808 | T33: =IF(I33=0,"",VLOOKUP(IF(K33<>"",IF(K33<50,50,K33),IF(I33<50,50,I33)),管路ダウンサイズ設定!$I$6:$P$23,MATCH(F33,管路ダウンサイズ設定!$J$5:$P$5,0)+1,TRUE)) -> 82.6 | U33: 7951 | V33: =IF(I33=0,"",VLOOKUP(IF(K33<>"",IF(K33<50,50,K33),IF(I33<50,50,I33)),管路ダウンサイズ設定!$I$6:$P$23,MATCH(F33,管路ダウンサイズ設定!$J$5:$P$5,0)+1,TRUE)) -> 82.6 | W33: 7951 | AC33: その他３ | AD33: 0 | AE33: 0 | AF33: 0
C34: 配水支管 | D34: ポリエチレン管 （上記以外・不明なものを含む） （m） | F34: 配水支管 | G34: 2003 | H34: 4.15 | I34: 50 | J34: 1 | K34: =IF(J34=1,IF(I34>=VLOOKUP(C34,管路ダウンサイズ設定!$B$6:$D$12,2,FALSE),INDEX(管路ダウンサイズ設定!$B$35:$B$62,MATCH(I34,管路ダウンサイズ設定!$B$35:$B$62,0)-VLOOKUP(C34,管路ダウンサイズ設定!$B$6:$D$12,3,FALSE),1),""),"") ->  | L34: =IF($Q34="","",VLOOKUP($Q34,初期設定!$E$37:$N$53,9,FALSE)) -> 40 | M34: =IF($Q34="","",VLOOKUP($Q34,初期設定!$E$37:$N$53,10,FALSE)) -> 60 | N34: =IF($Q34="","",VLOOKUP($Q34,初期設定!$E$37:$N$53,10,FALSE)) -> 60 | O34: 144.925 | P34: 110.825 | Q34: G1 | R34: =IF(I34=0,"",VLOOKUP(IF(I34<50,50,I34),管路ダウンサイズ設定!$I$6:$P$23,MATCH(F34,管路ダウンサイズ設定!$J$5:$P$5,0)+1,TRUE)) -> 74.6 | S34: 310 | T34: =IF(I34=0,"",VLOOKUP(IF(K34<>"",IF(K34<50,50,K34),IF(I34<50,50,I34)),管路ダウンサイズ設定!$I$6:$P$23,MATCH(F34,管路ダウンサイズ設定!$J$5:$P$5,0)+1,TRUE)) -> 74.6 | U34: 310 | V34: =IF(I34=0,"",VLOOKUP(IF(K34<>"",IF(K34<50,50,K34),IF(I34<50,50,I34)),管路ダウンサイズ設定!$I$6:$P$23,MATCH(F34,管路ダウンサイズ設定!$J$5:$P$5,0)+1,TRUE)) -> 74.6 | W34: 310 | AC34: 合計 | AE34: =SUM(AE27:AE33) -> 32418520 | AF34: =SUM(AF27:AF33) -> 329795.38
C35: 配水支管 | D35: ダクタイル鋳鉄管 (上記以外・不明なものを含む） (m) | F35: 配水支管 | G35: 1996 | H35: 14.55 | I35: 300 | J35: 1 | K35: =IF(J35=1,IF(I35>=VLOOKUP(C35,管路ダウンサイズ設定!$B$6:$D$12,2,FALSE),INDEX(管路ダウンサイズ設定!$B$35:$B$62,MATCH(I35,管路ダウンサイズ設定!$B$35:$B$62,0)-VLOOKUP(C35,管路ダウンサイズ設定!$B$6:$D$12,3,FALSE),1),""),"") -> 250 | L35: =IF($Q35="","",VLOOKUP($Q35,初期設定!$E$37:$N$53,9,FALSE)) -> 40 | M35: =IF($Q35="","",VLOOKUP($Q35,初期設定!$E$37:$N$53,10,FALSE)) -> 60 | N35: =IF($Q35="","",VLOOKUP($Q35,初期設定!$E$37:$N$53,10,FALSE)) -> 60 | O35: 984.225 | P35: 590.535 | Q35: A9 | R35: =IF(I35=0,"",VLOOKUP(IF(I35<50,50,I35),管路ダウンサイズ設定!$I$6:$P$23,MATCH(F35,管路ダウンサイズ設定!$J$5:$P$5,0)+1,TRUE)) -> 246 | S35: 3579 | T35: =IF(I35=0,"",VLOOKUP(IF(K35<>"",IF(K35<50,50,K35),IF(I35<50,50,I35)),管路ダウンサイズ設定!$I$6:$P$23,MATCH(F35,管路ダウンサイズ設定!$J$5:$P$5,0)+1,TRUE)) -> 213.6 | U35: 3108 | V35: =IF(I35=0,"",VLOOKUP(IF(K35<>"",IF(K35<50,50,K35),IF(I35<50,50,I35)),管路ダウンサイズ設定!$I$6:$P$23,MATCH(F35,管路ダウンサイズ設定!$J$5:$P$5,0)+1,TRUE)) -> 213.6 | W35: 3108
C36: 配水支管 | D36: 硬質塩化ビニル管 （上記以外・不明なものを含む） (m) | F36: 配水支管 | G36: 1990 | H36: 20.02 | I36: 150 | J36: 1 | K36: =IF(J36=1,IF(I36>=VLOOKUP(C36,管路ダウンサイズ設定!$B$6:$D$12,2,FALSE),INDEX(管路ダウンサイズ設定!$B$35:$B$62,MATCH(I36,管路ダウンサイズ設定!$B$35:$B$62,0)-VLOOKUP(C36,管路ダウンサイズ設定!$B$6:$D$12,3,FALSE),1),""),"") -> 125 | L36: =IF($Q36="","",VLOOKUP($Q36,初期設定!$E$37:$N$53,9,FALSE)) -> 40 | M36: =IF($Q36="","",VLOOKUP($Q36,初期設定!$E$37:$N$53,10,FALSE)) -> 40 | N36: =IF($Q36="","",VLOOKUP($Q36,初期設定!$E$37:$N$53,10,FALSE)) -> 40 | O36: 247.28 | P36: 123.64 | Q36: D9 | R36: =IF(I36=0,"",VLOOKUP(IF(I36<50,50,I36),管路ダウンサイズ設定!$I$6:$P$23,MATCH(F36,管路ダウンサイズ設定!$J$5:$P$5,0)+1,TRUE)) -> 112.3 | S36: 2248 | T36: =IF(I36=0,"",VLOOKUP(IF(K36<>"",IF(K36<50,50,K36),IF(I36<50,50,I36)),管路ダウンサイズ設定!$I$6:$P$23,MATCH(F36,管路ダウンサイズ設定!$J$5:$P$5,0)+1,TRUE)) -> 101.4 | U36: 2030 | V36: =IF(I36=0,"",VLOOKUP(IF(K36<>"",IF(K36<50,50,K36),IF(I36<50,50,I36)),管路ダウンサイズ設定!$I$6:$P$23,MATCH(F36,管路ダウンサイズ設定!$J$5:$P$5,0)+1,TRUE)) -> 101.4 | W36: 2030 | AC36: DS検討基準年度 | AD36: =管路ダウンサイズ設定!$B$3 -> 2035
C37: 配水支管 | D37: 硬質塩化ビニル管 （上記以外・不明なものを含む） (m) | F37: 配水支管 | G37: 1990 | H37: 60.83 | I37: 100 | J37: 1 | K37: =IF(J37=1,IF(I37>=VLOOKUP(C37,管路ダウンサイズ設定!$B$6:$D$12,2,FALSE),INDEX(管路ダウンサイズ設定!$B$35:$B$62,MATCH(I37,管路ダウンサイズ設定!$B$35:$B$62,0)-VLOOKUP(C37,管路ダウンサイズ設定!$B$6:$D$12,3,FALSE),1),""),"") -> 75 | L37: =IF($Q37="","",VLOOKUP($Q37,初期設定!$E$37:$N$53,9,FALSE)) -> 40 | M37: =IF($Q37="","",VLOOKUP($Q37,初期設定!$E$37:$N$53,10,FALSE)) -> 40 | N37: =IF($Q37="","",VLOOKUP($Q37,初期設定!$E$37:$N$53,10,FALSE)) -> 40 | O37: 612.26 | P37: 306.13 | Q37: D9 | R37: =IF(I37=0,"",VLOOKUP(IF(I37<50,50,I37),管路ダウンサイズ設定!$I$6:$P$23,MATCH(F37,管路ダウンサイズ設定!$J$5:$P$5,0)+1,TRUE)) -> 91.5 | S37: 5566 | T37: =IF(I37=0,"",VLOOKUP(IF(K37<>"",IF(K37<50,50,K37),IF(I37<50,50,I37)),管路ダウンサイズ設定!$I$6:$P$23,MATCH(F37,管路ダウンサイズ設定!$J$5:$P$5,0)+1,TRUE)) -> 82.6 | U37: 5025 | V37: =IF(I37=0,"",VLOOKUP(IF(K37<>"",IF(K37<50,50,K37),IF(I37<50,50,I37)),管路ダウンサイズ設定!$I$6:$P$23,MATCH(F37,管路ダウンサイズ設定!$J$5:$P$5,0)+1,TRUE)) -> 82.6 | W37: 5025 | AC37: 撤去費 | AD37: =初期設定!J19 -> 算出する
C38: 配水支管 | D38: ダクタイル鋳鉄管 (上記以外・不明なものを含む） (m) | F38: 配水支管 | G38: 1990 | H38: 4.51 | I38: 100 | J38: 1 | K38: =IF(J38=1,IF(I38>=VLOOKUP(C38,管路ダウンサイズ設定!$B$6:$D$12,2,FALSE),INDEX(管路ダウンサイズ設定!$B$35:$B$62,MATCH(I38,管路ダウンサイズ設定!$B$35:$B$62,0)-VLOOKUP(C38,管路ダウンサイズ設定!$B$6:$D$12,3,FALSE),1),""),"") -> 75 | L38: =IF($Q38="","",VLOOKUP($Q38,初期設定!$E$37:$N$53,9,FALSE)) -> 40 | M38: =IF($Q38="","",VLOOKUP($Q38,初期設定!$E$37:$N$53,10,FALSE)) -> 60 | N38: =IF($Q38="","",VLOOKUP($Q38,初期設定!$E$37:$N$53,10,FALSE)) -> 60 | O38: 45.43 | P38: 22.715 | Q38: A9 | R38: =IF(I38=0,"",VLOOKUP(IF(I38<50,50,I38),管路ダウンサイズ設定!$I$6:$P$23,MATCH(F38,管路ダウンサイズ設定!$J$5:$P$5,0)+1,TRUE)) -> 91.5 | S38: 413 | T38: =IF(I38=0,"",VLOOKUP(IF(K38<>"",IF(K38<50,50,K38),IF(I38<50,50,I38)),管路ダウンサイズ設定!$I$6:$P$23,MATCH(F38,管路ダウンサイズ設定!$J$5:$P$5,0)+1,TRUE)) -> 82.6 | U38: 373 | V38: =IF(I38=0,"",VLOOKUP(IF(K38<>"",IF(K38<50,50,K38),IF(I38<50,50,I38)),管路ダウンサイズ設定!$I$6:$P$23,MATCH(F38,管路ダウンサイズ設定!$J$5:$P$5,0)+1,TRUE)) -> 82.6 | W38: 373 | AC38: 撤去費率 | AD38: =初期設定!Q20 -> 0
C39: 配水支管 | D39: ダクタイル鋳鉄管 (上記以外・不明なものを含む） (m) | F39: 配水支管 | G39: 1990 | H39: 5.45 | I39: 250 | J39: 1 | K39: =IF(J39=1,IF(I39>=VLOOKUP(C39,管路ダウンサイズ設定!$B$6:$D$12,2,FALSE),INDEX(管路ダウンサイズ設定!$B$35:$B$62,MATCH(I39,管路ダウンサイズ設定!$B$35:$B$62,0)-VLOOKUP(C39,管路ダウンサイズ設定!$B$6:$D$12,3,FALSE),1),""),"") -> 200 | L39: =IF($Q39="","",VLOOKUP($Q39,初期設定!$E$37:$N$53,9,FALSE)) -> 40 | M39: =IF($Q39="","",VLOOKUP($Q39,初期設定!$E$37:$N$53,10,FALSE)) -> 60 | N39: =IF($Q39="","",VLOOKUP($Q39,初期設定!$E$37:$N$53,10,FALSE)) -> 60 | O39: 128.04 | P39: 64.02 | Q39: A9 | R39: =IF(I39=0,"",VLOOKUP(IF(I39<50,50,I39),管路ダウンサイズ設定!$I$6:$P$23,MATCH(F39,管路ダウンサイズ設定!$J$5:$P$5,0)+1,TRUE)) -> 213.6 | S39: 1164 | T39: =IF(I39=0,"",VLOOKUP(IF(K39<>"",IF(K39<50,50,K39),IF(I39<50,50,I39)),管路ダウンサイズ設定!$I$6:$P$23,MATCH(F39,管路ダウンサイズ設定!$J$5:$P$5,0)+1,TRUE)) -> 137.9 | U39: 752 | V39: =IF(I39=0,"",VLOOKUP(IF(K39<>"",IF(K39<50,50,K39),IF(I39<50,50,I39)),管路ダウンサイズ設定!$I$6:$P$23,MATCH(F39,管路ダウンサイズ設定!$J$5:$P$5,0)+1,TRUE)) -> 137.9 | W39: 752 | AC39: 資産維持費算出関連項目
C40: 配水支管 | D40: 鋼管 （上記以外・不明なものを含む） (m) | F40: 配水支管 | G40: 1990 | H40: 24.4 | I40: 250 | J40: 1 | K40: =IF(J40=1,IF(I40>=VLOOKUP(C40,管路ダウンサイズ設定!$B$6:$D$12,2,FALSE),INDEX(管路ダウンサイズ設定!$B$35:$B$62,MATCH(I40,管路ダウンサイズ設定!$B$35:$B$62,0)-VLOOKUP(C40,管路ダウンサイズ設定!$B$6:$D$12,3,FALSE),1),""),"") -> 200 | L40: =IF($Q40="","",VLOOKUP($Q40,初期設定!$E$37:$N$53,9,FALSE)) -> 40 | M40: =IF($Q40="","",VLOOKUP($Q40,初期設定!$E$37:$N$53,10,FALSE)) -> 40 | N40: =IF($Q40="","",VLOOKUP($Q40,初期設定!$E$37:$N$53,10,FALSE)) -> 40 | O40: 573.32 | P40: 286.66 | Q40: B9 | R40: =IF(I40=0,"",VLOOKUP(IF(I40<50,50,I40),管路ダウンサイズ設定!$I$6:$P$23,MATCH(F40,管路ダウンサイズ設定!$J$5:$P$5,0)+1,TRUE)) -> 213.6 | S40: 5212 | T40: =IF(I40=0,"",VLOOKUP(IF(K40<>"",IF(K40<50,50,K40),IF(I40<50,50,I40)),管路ダウンサイズ設定!$I$6:$P$23,MATCH(F40,管路ダウンサイズ設定!$J$5:$P$5,0)+1,TRUE)) -> 137.9 | U40: 3365 | V40: =IF(I40=0,"",VLOOKUP(IF(K40<>"",IF(K40<50,50,K40),IF(I40<50,50,I40)),管路ダウンサイズ設定!$I$6:$P$23,MATCH(F40,管路ダウンサイズ設定!$J$5:$P$5,0)+1,TRUE)) -> 137.9 | W40: 3365 | AC40: 償却限度割合 | AD40: =財政初期設定シート!C24/100 -> 0.05
C41: 配水支管 | D41: ダクタイル鋳鉄管 (上記以外・不明なものを含む） (m) | F41: 配水支管 | G41: 2000 | H41: 10.8 | I41: 150 | J41: 1 | K41: =IF(J41=1,IF(I41>=VLOOKUP(C41,管路ダウンサイズ設定!$B$6:$D$12,2,FALSE),INDEX(管路ダウンサイズ設定!$B$35:$B$62,MATCH(I41,管路ダウンサイズ設定!$B$35:$B$62,0)-VLOOKUP(C41,管路ダウンサイズ設定!$B$6:$D$12,3,FALSE),1),""),"") -> 125 | L41: =IF($Q41="","",VLOOKUP($Q41,初期設定!$E$37:$N$53,9,FALSE)) -> 40 | M41: =IF($Q41="","",VLOOKUP($Q41,初期設定!$E$37:$N$53,10,FALSE)) -> 60 | N41: =IF($Q41="","",VLOOKUP($Q41,初期設定!$E$37:$N$53,10,FALSE)) -> 60 | O41: 467.005 | P41: 333.575 | Q41: A9 | R41: =IF(I41=0,"",VLOOKUP(IF(I41<50,50,I41),管路ダウンサイズ設定!$I$6:$P$23,MATCH(F41,管路ダウンサイズ設定!$J$5:$P$5,0)+1,TRUE)) -> 112.3 | S41: 1213 | T41: =IF(I41=0,"",VLOOKUP(IF(K41<>"",IF(K41<50,50,K41),IF(I41<50,50,I41)),管路ダウンサイズ設定!$I$6:$P$23,MATCH(F41,管路ダウンサイズ設定!$J$5:$P$5,0)+1,TRUE)) -> 101.4 | U41: 1095 | V41: =IF(I41=0,"",VLOOKUP(IF(K41<>"",IF(K41<50,50,K41),IF(I41<50,50,I41)),管路ダウンサイズ設定!$I$6:$P$23,MATCH(F41,管路ダウンサイズ設定!$J$5:$P$5,0)+1,TRUE)) -> 101.4 | W41: 1095 | AC41: 料金改定年度 | AD41: =財政初期設定シート!C4 -> 2026
C42: 配水支管 | D42: 鋼管 （上記以外・不明なものを含む） (m) | F42: 配水支管 | G42: 1996 | H42: 2.12 | I42: 50 | J42: 1 | K42: =IF(J42=1,IF(I42>=VLOOKUP(C42,管路ダウンサイズ設定!$B$6:$D$12,2,FALSE),INDEX(管路ダウンサイズ設定!$B$35:$B$62,MATCH(I42,管路ダウンサイズ設定!$B$35:$B$62,0)-VLOOKUP(C42,管路ダウンサイズ設定!$B$6:$D$12,3,FALSE),1),""),"") ->  | L42: =IF($Q42="","",VLOOKUP($Q42,初期設定!$E$37:$N$53,9,FALSE)) -> 40 | M42: =IF($Q42="","",VLOOKUP($Q42,初期設定!$E$37:$N$53,10,FALSE)) -> 40 | N42: =IF($Q42="","",VLOOKUP($Q42,初期設定!$E$37:$N$53,10,FALSE)) -> 40 | O42: 43.45 | P42: 26.07 | Q42: B9 | R42: =IF(I42=0,"",VLOOKUP(IF(I42<50,50,I42),管路ダウンサイズ設定!$I$6:$P$23,MATCH(F42,管路ダウンサイズ設定!$J$5:$P$5,0)+1,TRUE)) -> 74.6 | S42: 158 | T42: =IF(I42=0,"",VLOOKUP(IF(K42<>"",IF(K42<50,50,K42),IF(I42<50,50,I42)),管路ダウンサイズ設定!$I$6:$P$23,MATCH(F42,管路ダウンサイズ設定!$J$5:$P$5,0)+1,TRUE)) -> 74.6 | U42: 158 | V42: =IF(I42=0,"",VLOOKUP(IF(K42<>"",IF(K42<50,50,K42),IF(I42<50,50,I42)),管路ダウンサイズ設定!$I$6:$P$23,MATCH(F42,管路ダウンサイズ設定!$J$5:$P$5,0)+1,TRUE)) -> 74.6 | W42: 158 | AC42: 算定期間末 | AD42: =AD41+財政初期設定シート!C3-1 -> 2030
C43: 配水支管 | D43: 硬質塩化ビニル管 （上記以外・不明なものを含む） (m) | F43: 配水支管 | G43: 1984 | H43: 4.84 | I43: 100 | J43: 1 | K43: =IF(J43=1,IF(I43>=VLOOKUP(C43,管路ダウンサイズ設定!$B$6:$D$12,2,FALSE),INDEX(管路ダウンサイズ設定!$B$35:$B$62,MATCH(I43,管路ダウンサイズ設定!$B$35:$B$62,0)-VLOOKUP(C43,管路ダウンサイズ設定!$B$6:$D$12,3,FALSE),1),""),"") -> 75 | L43: =IF($Q43="","",VLOOKUP($Q43,初期設定!$E$37:$N$53,9,FALSE)) -> 40 | M43: =IF($Q43="","",VLOOKUP($Q43,初期設定!$E$37:$N$53,10,FALSE)) -> 40 | N43: =IF($Q43="","",VLOOKUP($Q43,初期設定!$E$37:$N$53,10,FALSE)) -> 40 | O43: 24.365 | P43: 24.365 | Q43: D9 | R43: =IF(I43=0,"",VLOOKUP(IF(I43<50,50,I43),管路ダウンサイズ設定!$I$6:$P$23,MATCH(F43,管路ダウンサイズ設定!$J$5:$P$5,0)+1,TRUE)) -> 91.5 | S43: 443 | T43: =IF(I43=0,"",VLOOKUP(IF(K43<>"",IF(K43<50,50,K43),IF(I43<50,50,I43)),管路ダウンサイズ設定!$I$6:$P$23,MATCH(F43,管路ダウンサイズ設定!$J$5:$P$5,0)+1,TRUE)) -> 82.6 | U43: 400 | V43: =IF(I43=0,"",VLOOKUP(IF(K43<>"",IF(K43<50,50,K43),IF(I43<50,50,I43)),管路ダウンサイズ設定!$I$6:$P$23,MATCH(F43,管路ダウンサイズ設定!$J$5:$P$5,0)+1,TRUE)) -> 82.6 | W43: 400 | AC43: 消費税率 | AD43: =初期設定!J21 -> 10 | AE43: ％
C44: 配水支管 | D44: 鋼管 （上記以外・不明なものを含む） (m) | F44: 配水支管 | G44: 1984 | H44: 32.55 | I44: 100 | J44: 1 | K44: =IF(J44=1,IF(I44>=VLOOKUP(C44,管路ダウンサイズ設定!$B$6:$D$12,2,FALSE),INDEX(管路ダウンサイズ設定!$B$35:$B$62,MATCH(I44,管路ダウンサイズ設定!$B$35:$B$62,0)-VLOOKUP(C44,管路ダウンサイズ設定!$B$6:$D$12,3,FALSE),1),""),"") -> 75 | L44: =IF($Q44="","",VLOOKUP($Q44,初期設定!$E$37:$N$53,9,FALSE)) -> 40 | M44: =IF($Q44="","",VLOOKUP($Q44,初期設定!$E$37:$N$53,10,FALSE)) -> 40 | N44: =IF($Q44="","",VLOOKUP($Q44,初期設定!$E$37:$N$53,10,FALSE)) -> 40 | O44: 163.79 | P44: 163.79 | Q44: B9 | R44: =IF(I44=0,"",VLOOKUP(IF(I44<50,50,I44),管路ダウンサイズ設定!$I$6:$P$23,MATCH(F44,管路ダウンサイズ設定!$J$5:$P$5,0)+1,TRUE)) -> 91.5 | S44: 2978 | T44: =IF(I44=0,"",VLOOKUP(IF(K44<>"",IF(K44<50,50,K44),IF(I44<50,50,I44)),管路ダウンサイズ設定!$I$6:$P$23,MATCH(F44,管路ダウンサイズ設定!$J$5:$P$5,0)+1,TRUE)) -> 82.6 | U44: 2689 | V44: =IF(I44=0,"",VLOOKUP(IF(K44<>"",IF(K44<50,50,K44),IF(I44<50,50,I44)),管路ダウンサイズ設定!$I$6:$P$23,MATCH(F44,管路ダウンサイズ設定!$J$5:$P$5,0)+1,TRUE)) -> 82.6 | W44: 2689 | AC44: ※単価で税込入力
C45: 配水支管 | D45: 硬質塩化ビニル管 （上記以外・不明なものを含む） (m) | F45: 配水支管 | G45: 1984 | H45: 12.33 | I45: 100 | J45: 1 | K45: =IF(J45=1,IF(I45>=VLOOKUP(C45,管路ダウンサイズ設定!$B$6:$D$12,2,FALSE),INDEX(管路ダウンサイズ設定!$B$35:$B$62,MATCH(I45,管路ダウンサイズ設定!$B$35:$B$62,0)-VLOOKUP(C45,管路ダウンサイズ設定!$B$6:$D$12,3,FALSE),1),""),"") -> 75 | L45: =IF($Q45="","",VLOOKUP($Q45,初期設定!$E$37:$N$53,9,FALSE)) -> 40 | M45: =IF($Q45="","",VLOOKUP($Q45,初期設定!$E$37:$N$53,10,FALSE)) -> 40 | N45: =IF($Q45="","",VLOOKUP($Q45,初期設定!$E$37:$N$53,10,FALSE)) -> 40 | O45: 62.04 | P45: 62.04 | Q45: D9 | R45: =IF(I45=0,"",VLOOKUP(IF(I45<50,50,I45),管路ダウンサイズ設定!$I$6:$P$23,MATCH(F45,管路ダウンサイズ設定!$J$5:$P$5,0)+1,TRUE)) -> 91.5 | S45: 1128 | T45: =IF(I45=0,"",VLOOKUP(IF(K45<>"",IF(K45<50,50,K45),IF(I45<50,50,I45)),管路ダウンサイズ設定!$I$6:$P$23,MATCH(F45,管路ダウンサイズ設定!$J$5:$P$5,0)+1,TRUE)) -> 82.6 | U45: 1018 | V45: =IF(I45=0,"",VLOOKUP(IF(K45<>"",IF(K45<50,50,K45),IF(I45<50,50,I45)),管路ダウンサイズ設定!$I$6:$P$23,MATCH(F45,管路ダウンサイズ設定!$J$5:$P$5,0)+1,TRUE)) -> 82.6 | W45: 1018
C46: 配水支管 | D46: 硬質塩化ビニル管 （上記以外・不明なものを含む） (m) | F46: 配水支管 | G46: 1992 | H46: 1.7 | I46: 40 | J46: 1 | K46: =IF(J46=1,IF(I46>=VLOOKUP(C46,管路ダウンサイズ設定!$B$6:$D$12,2,FALSE),INDEX(管路ダウンサイズ設定!$B$35:$B$62,MATCH(I46,管路ダウンサイズ設定!$B$35:$B$62,0)-VLOOKUP(C46,管路ダウンサイズ設定!$B$6:$D$12,3,FALSE),1),""),"") ->  | L46: =IF($Q46="","",VLOOKUP($Q46,初期設定!$E$37:$N$53,9,FALSE)) -> 40 | M46: =IF($Q46="","",VLOOKUP($Q46,初期設定!$E$37:$N$53,10,FALSE)) -> 40 | N46: =IF($Q46="","",VLOOKUP($Q46,初期設定!$E$37:$N$53,10,FALSE)) -> 40 | O46: 20.955 | P46: 6.985 | Q46: D9 | R46: =IF(I46=0,"",VLOOKUP(IF(I46<50,50,I46),管路ダウンサイズ設定!$I$6:$P$23,MATCH(F46,管路ダウンサイズ設定!$J$5:$P$5,0)+1,TRUE)) -> 74.6 | S46: 127 | T46: =IF(I46=0,"",VLOOKUP(IF(K46<>"",IF(K46<50,50,K46),IF(I46<50,50,I46)),管路ダウンサイズ設定!$I$6:$P$23,MATCH(F46,管路ダウンサイズ設定!$J$5:$P$5,0)+1,TRUE)) -> 74.6 | U46: 127 | V46: =IF(I46=0,"",VLOOKUP(IF(K46<>"",IF(K46<50,50,K46),IF(I46<50,50,I46)),管路ダウンサイズ設定!$I$6:$P$23,MATCH(F46,管路ダウンサイズ設定!$J$5:$P$5,0)+1,TRUE)) -> 74.6 | W46: 127
C47: 配水支管 | D47: 鋼管 （上記以外・不明なものを含む） (m) | F47: 配水支管 | G47: 1993 | H47: 3.68 | I47: 50 | J47: 1 | K47: =IF(J47=1,IF(I47>=VLOOKUP(C47,管路ダウンサイズ設定!$B$6:$D$12,2,FALSE),INDEX(管路ダウンサイズ設定!$B$35:$B$62,MATCH(I47,管路ダウンサイズ設定!$B$35:$B$62,0)-VLOOKUP(C47,管路ダウンサイズ設定!$B$6:$D$12,3,FALSE),1),""),"") ->  | L47: =IF($Q47="","",VLOOKUP($Q47,初期設定!$E$37:$N$53,9,FALSE)) -> 40 | M47: =IF($Q47="","",VLOOKUP($Q47,初期設定!$E$37:$N$53,10,FALSE)) -> 40 | N47: =IF($Q47="","",VLOOKUP($Q47,初期設定!$E$37:$N$53,10,FALSE)) -> 40 | O47: 52.9375 | P47: 22.6875 | Q47: B9 | R47: =IF(I47=0,"",VLOOKUP(IF(I47<50,50,I47),管路ダウンサイズ設定!$I$6:$P$23,MATCH(F47,管路ダウンサイズ設定!$J$5:$P$5,0)+1,TRUE)) -> 74.6 | S47: 275 | T47: =IF(I47=0,"",VLOOKUP(IF(K47<>"",IF(K47<50,50,K47),IF(I47<50,50,I47)),管路ダウンサイズ設定!$I$6:$P$23,MATCH(F47,管路ダウンサイズ設定!$J$5:$P$5,0)+1,TRUE)) -> 74.6 | U47: 275 | V47: =IF(I47=0,"",VLOOKUP(IF(K47<>"",IF(K47<50,50,K47),IF(I47<50,50,I47)),管路ダウンサイズ設定!$I$6:$P$23,MATCH(F47,管路ダウンサイズ設定!$J$5:$P$5,0)+1,TRUE)) -> 74.6 | W47: 275
C48: 配水支管 | D48: 鋼管 （上記以外・不明なものを含む） (m) | F48: 配水支管 | G48: 1993 | H48: 6.24 | I48: 50 | J48: 1 | K48: =IF(J48=1,IF(I48>=VLOOKUP(C48,管路ダウンサイズ設定!$B$6:$D$12,2,FALSE),INDEX(管路ダウンサイズ設定!$B$35:$B$62,MATCH(I48,管路ダウンサイズ設定!$B$35:$B$62,0)-VLOOKUP(C48,管路ダウンサイズ設定!$B$6:$D$12,3,FALSE),1),""),"") ->  | L48: =IF($Q48="","",VLOOKUP($Q48,初期設定!$E$37:$N$53,9,FALSE)) -> 40 | M48: =IF($Q48="","",VLOOKUP($Q48,初期設定!$E$37:$N$53,10,FALSE)) -> 40 | N48: =IF($Q48="","",VLOOKUP($Q48,初期設定!$E$37:$N$53,10,FALSE)) -> 40 | O48: 89.705 | P48: 38.445 | Q48: B9 | R48: =IF(I48=0,"",VLOOKUP(IF(I48<50,50,I48),管路ダウンサイズ設定!$I$6:$P$23,MATCH(F48,管路ダウンサイズ設定!$J$5:$P$5,0)+1,TRUE)) -> 74.6 | S48: 466 | T48: =IF(I48=0,"",VLOOKUP(IF(K48<>"",IF(K48<50,50,K48),IF(I48<50,50,I48)),管路ダウンサイズ設定!$I$6:$P$23,MATCH(F48,管路ダウンサイズ設定!$J$5:$P$5,0)+1,TRUE)) -> 74.6 | U48: 466 | V48: =IF(I48=0,"",VLOOKUP(IF(K48<>"",IF(K48<50,50,K48),IF(I48<50,50,I48)),管路ダウンサイズ設定!$I$6:$P$23,MATCH(F48,管路ダウンサイズ設定!$J$5:$P$5,0)+1,TRUE)) -> 74.6 | W48: 466
C49: 配水支管 | D49: 硬質塩化ビニル管 （上記以外・不明なものを含む） (m) | F49: 配水支管 | G49: 1995 | H49: 20.42 | I49: 150 | J49: 1 | K49: =IF(J49=1,IF(I49>=VLOOKUP(C49,管路ダウンサイズ設定!$B$6:$D$12,2,FALSE),INDEX(管路ダウンサイズ設定!$B$35:$B$62,MATCH(I49,管路ダウンサイズ設定!$B$35:$B$62,0)-VLOOKUP(C49,管路ダウンサイズ設定!$B$6:$D$12,3,FALSE),1),""),"") -> 125 | L49: =IF($Q49="","",VLOOKUP($Q49,初期設定!$E$37:$N$53,9,FALSE)) -> 40 | M49: =IF($Q49="","",VLOOKUP($Q49,初期設定!$E$37:$N$53,10,FALSE)) -> 40 | N49: =IF($Q49="","",VLOOKUP($Q49,初期設定!$E$37:$N$53,10,FALSE)) -> 40 | O49: 567.5175 | P49: 315.2875 | Q49: D9 | R49: =IF(I49=0,"",VLOOKUP(IF(I49<50,50,I49),管路ダウンサイズ設定!$I$6:$P$23,MATCH(F49,管路ダウンサイズ設定!$J$5:$P$5,0)+1,TRUE)) -> 112.3 | S49: 2293 | T49: =IF(I49=0,"",VLOOKUP(IF(K49<>"",IF(K49<50,50,K49),IF(I49<50,50,I49)),管路ダウンサイズ設定!$I$6:$P$23,MATCH(F49,管路ダウンサイズ設定!$J$5:$P$5,0)+1,TRUE)) -> 101.4 | U49: 2071 | V49: =IF(I49=0,"",VLOOKUP(IF(K49<>"",IF(K49<50,50,K49),IF(I49<50,50,I49)),管路ダウンサイズ設定!$I$6:$P$23,MATCH(F49,管路ダウンサイズ設定!$J$5:$P$5,0)+1,TRUE)) -> 101.4 | W49: 2071
C50: 配水支管 | D50: 硬質塩化ビニル管 （上記以外・不明なものを含む） (m) | F50: 配水支管 | G50: 1996 | H50: 20.41 | I50: 150 | J50: 1 | K50: =IF(J50=1,IF(I50>=VLOOKUP(C50,管路ダウンサイズ設定!$B$6:$D$12,2,FALSE),INDEX(管路ダウンサイズ設定!$B$35:$B$62,MATCH(I50,管路ダウンサイズ設定!$B$35:$B$62,0)-VLOOKUP(C50,管路ダウンサイズ設定!$B$6:$D$12,3,FALSE),1),""),"") -> 125 | L50: =IF($Q50="","",VLOOKUP($Q50,初期設定!$E$37:$N$53,9,FALSE)) -> 40 | M50: =IF($Q50="","",VLOOKUP($Q50,初期設定!$E$37:$N$53,10,FALSE)) -> 40 | N50: =IF($Q50="","",VLOOKUP($Q50,初期設定!$E$37:$N$53,10,FALSE)) -> 40 | O50: 630.3 | P50: 378.18 | Q50: D9 | R50: =IF(I50=0,"",VLOOKUP(IF(I50<50,50,I50),管路ダウンサイズ設定!$I$6:$P$23,MATCH(F50,管路ダウンサイズ設定!$J$5:$P$5,0)+1,TRUE)) -> 112.3 | S50: 2292 | T50: =IF(I50=0,"",VLOOKUP(IF(K50<>"",IF(K50<50,50,K50),IF(I50<50,50,I50)),管路ダウンサイズ設定!$I$6:$P$23,MATCH(F50,管路ダウンサイズ設定!$J$5:$P$5,0)+1,TRUE)) -> 101.4 | U50: 2070 | V50: =IF(I50=0,"",VLOOKUP(IF(K50<>"",IF(K50<50,50,K50),IF(I50<50,50,I50)),管路ダウンサイズ設定!$I$6:$P$23,MATCH(F50,管路ダウンサイズ設定!$J$5:$P$5,0)+1,TRUE)) -> 101.4 | W50: 2070
C51: 配水支管 | D51: 硬質塩化ビニル管 （上記以外・不明なものを含む） (m) | F51: 配水支管 | G51: 1996 | H51: 10.73 | I51: 150 | J51: 1 | K51: =IF(J51=1,IF(I51>=VLOOKUP(C51,管路ダウンサイズ設定!$B$6:$D$12,2,FALSE),INDEX(管路ダウンサイズ設定!$B$35:$B$62,MATCH(I51,管路ダウンサイズ設定!$B$35:$B$62,0)-VLOOKUP(C51,管路ダウンサイズ設定!$B$6:$D$12,3,FALSE),1),""),"") -> 125 | L51: =IF($Q51="","",VLOOKUP($Q51,初期設定!$E$37:$N$53,9,FALSE)) -> 40 | M51: =IF($Q51="","",VLOOKUP($Q51,初期設定!$E$37:$N$53,10,FALSE)) -> 40 | N51: =IF($Q51="","",VLOOKUP($Q51,初期設定!$E$37:$N$53,10,FALSE)) -> 40 | O51: 331.375 | P51: 198.825 | Q51: D9 | R51: =IF(I51=0,"",VLOOKUP(IF(I51<50,50,I51),管路ダウンサイズ設定!$I$6:$P$23,MATCH(F51,管路ダウンサイズ設定!$J$5:$P$5,0)+1,TRUE)) -> 112.3 | S51: 1205 | T51: =IF(I51=0,"",VLOOKUP(IF(K51<>"",IF(K51<50,50,K51),IF(I51<50,50,I51)),管路ダウンサイズ設定!$I$6:$P$23,MATCH(F51,管路ダウンサイズ設定!$J$5:$P$5,0)+1,TRUE)) -> 101.4 | U51: 1088 | V51: =IF(I51=0,"",VLOOKUP(IF(K51<>"",IF(K51<50,50,K51),IF(I51<50,50,I51)),管路ダウンサイズ設定!$I$6:$P$23,MATCH(F51,管路ダウンサイズ設定!$J$5:$P$5,0)+1,TRUE)) -> 101.4 | W51: 1088
C52: 配水支管 | D52: 硬質塩化ビニル管 （上記以外・不明なものを含む） (m) | F52: 配水支管 | G52: 1995 | H52: 34.84 | I52: 150 | J52: 1 | K52: =IF(J52=1,IF(I52>=VLOOKUP(C52,管路ダウンサイズ設定!$B$6:$D$12,2,FALSE),INDEX(管路ダウンサイズ設定!$B$35:$B$62,MATCH(I52,管路ダウンサイズ設定!$B$35:$B$62,0)-VLOOKUP(C52,管路ダウンサイズ設定!$B$6:$D$12,3,FALSE),1),""),"") -> 125 | L52: =IF($Q52="","",VLOOKUP($Q52,初期設定!$E$37:$N$53,9,FALSE)) -> 40 | M52: =IF($Q52="","",VLOOKUP($Q52,初期設定!$E$37:$N$53,10,FALSE)) -> 40 | N52: =IF($Q52="","",VLOOKUP($Q52,初期設定!$E$37:$N$53,10,FALSE)) -> 40 | O52: 968.4675 | P52: 538.0375 | Q52: D9 | R52: =IF(I52=0,"",VLOOKUP(IF(I52<50,50,I52),管路ダウンサイズ設定!$I$6:$P$23,MATCH(F52,管路ダウンサイズ設定!$J$5:$P$5,0)+1,TRUE)) -> 112.3 | S52: 3913 | T52: =IF(I52=0,"",VLOOKUP(IF(K52<>"",IF(K52<50,50,K52),IF(I52<50,50,I52)),管路ダウンサイズ設定!$I$6:$P$23,MATCH(F52,管路ダウンサイズ設定!$J$5:$P$5,0)+1,TRUE)) -> 101.4 | U52: 3533 | V52: =IF(I52=0,"",VLOOKUP(IF(K52<>"",IF(K52<50,50,K52),IF(I52<50,50,I52)),管路ダウンサイズ設定!$I$6:$P$23,MATCH(F52,管路ダウンサイズ設定!$J$5:$P$5,0)+1,TRUE)) -> 101.4 | W52: 3533
C53: 配水支管 | D53: ポリエチレン管 （上記以外・不明なものを含む） （m） | F53: 配水支管 | G53: 2011 | H53: 16.67 | I53: 50 | J53: 1 | K53: =IF(J53=1,IF(I53>=VLOOKUP(C53,管路ダウンサイズ設定!$B$6:$D$12,2,FALSE),INDEX(管路ダウンサイズ設定!$B$35:$B$62,MATCH(I53,管路ダウンサイズ設定!$B$35:$B$62,0)-VLOOKUP(C53,管路ダウンサイズ設定!$B$6:$D$12,3,FALSE),1),""),"") ->  | L53: =IF($Q53="","",VLOOKUP($Q53,初期設定!$E$37:$N$53,9,FALSE)) -> 40 | M53: =IF($Q53="","",VLOOKUP($Q53,初期設定!$E$37:$N$53,10,FALSE)) -> 60 | N53: =IF($Q53="","",VLOOKUP($Q53,初期設定!$E$37:$N$53,10,FALSE)) -> 60 | O53: 855.25 | P53: 718.41 | Q53: G1 | R53: =IF(I53=0,"",VLOOKUP(IF(I53<50,50,I53),管路ダウンサイズ設定!$I$6:$P$23,MATCH(F53,管路ダウンサイズ設定!$J$5:$P$5,0)+1,TRUE)) -> 74.6 | S53: 1244 | T53: =IF(I53=0,"",VLOOKUP(IF(K53<>"",IF(K53<50,50,K53),IF(I53<50,50,I53)),管路ダウンサイズ設定!$I$6:$P$23,MATCH(F53,管路ダウンサイズ設定!$J$5:$P$5,0)+1,TRUE)) -> 74.6 | U53: 1244 | V53: =IF(I53=0,"",VLOOKUP(IF(K53<>"",IF(K53<50,50,K53),IF(I53<50,50,I53)),管路ダウンサイズ設定!$I$6:$P$23,MATCH(F53,管路ダウンサイズ設定!$J$5:$P$5,0)+1,TRUE)) -> 74.6 | W53: 1244
C54: 配水支管 | D54: 硬質塩化ビニル管 （上記以外・不明なものを含む） (m) | F54: 配水支管 | G54: 1981 | H54: 366.97 | I54: 30 | J54: 1 | K54: =IF(J54=1,IF(I54>=VLOOKUP(C54,管路ダウンサイズ設定!$B$6:$D$12,2,FALSE),INDEX(管路ダウンサイズ設定!$B$35:$B$62,MATCH(I54,管路ダウンサイズ設定!$B$35:$B$62,0)-VLOOKUP(C54,管路ダウンサイズ設定!$B$6:$D$12,3,FALSE),1),""),"") ->  | L54: =IF($Q54="","",VLOOKUP($Q54,初期設定!$E$37:$N$53,9,FALSE)) -> 40 | M54: =IF($Q54="","",VLOOKUP($Q54,初期設定!$E$37:$N$53,10,FALSE)) -> 40 | N54: =IF($Q54="","",VLOOKUP($Q54,初期設定!$E$37:$N$53,10,FALSE)) -> 40 | O54: 1505.68 | P54: 1505.68 | Q54: D9 | R54: =IF(I54=0,"",VLOOKUP(IF(I54<50,50,I54),管路ダウンサイズ設定!$I$6:$P$23,MATCH(F54,管路ダウンサイズ設定!$J$5:$P$5,0)+1,TRUE)) -> 74.6 | S54: 27376 | T54: =IF(I54=0,"",VLOOKUP(IF(K54<>"",IF(K54<50,50,K54),IF(I54<50,50,I54)),管路ダウンサイズ設定!$I$6:$P$23,MATCH(F54,管路ダウンサイズ設定!$J$5:$P$5,0)+1,TRUE)) -> 74.6 | U54: 27376 | V54: =IF(I54=0,"",VLOOKUP(IF(K54<>"",IF(K54<50,50,K54),IF(I54<50,50,I54)),管路ダウンサイズ設定!$I$6:$P$23,MATCH(F54,管路ダウンサイズ設定!$J$5:$P$5,0)+1,TRUE)) -> 74.6 | W54: 27376
C55: 配水支管 | D55: その他 （管種が不明のものを含む） (m) | F55: 配水支管 | G55: 1989 | H55: 2.08 | I55: 75 | J55: 1 | K55: =IF(J55=1,IF(I55>=VLOOKUP(C55,管路ダウンサイズ設定!$B$6:$D$12,2,FALSE),INDEX(管路ダウンサイズ設定!$B$35:$B$62,MATCH(I55,管路ダウンサイズ設定!$B$35:$B$62,0)-VLOOKUP(C55,管路ダウンサイズ設定!$B$6:$D$12,3,FALSE),1),""),"") ->  | L55: =IF($Q55="","",VLOOKUP($Q55,初期設定!$E$37:$N$53,9,FALSE)) -> 40 | M55: =IF($Q55="","",VLOOKUP($Q55,初期設定!$E$37:$N$53,10,FALSE)) -> 40 | N55: =IF($Q55="","",VLOOKUP($Q55,初期設定!$E$37:$N$53,10,FALSE)) -> 40 | O55: 14.19 | P55: 9.46 | Q55: Z9 | R55: =IF(I55=0,"",VLOOKUP(IF(I55<50,50,I55),管路ダウンサイズ設定!$I$6:$P$23,MATCH(F55,管路ダウンサイズ設定!$J$5:$P$5,0)+1,TRUE)) -> 82.6 | S55: 172 | T55: =IF(I55=0,"",VLOOKUP(IF(K55<>"",IF(K55<50,50,K55),IF(I55<50,50,I55)),管路ダウンサイズ設定!$I$6:$P$23,MATCH(F55,管路ダウンサイズ設定!$J$5:$P$5,0)+1,TRUE)) -> 82.6 | U55: 172 | V55: =IF(I55=0,"",VLOOKUP(IF(K55<>"",IF(K55<50,50,K55),IF(I55<50,50,I55)),管路ダウンサイズ設定!$I$6:$P$23,MATCH(F55,管路ダウンサイズ設定!$J$5:$P$5,0)+1,TRUE)) -> 82.6 | W55: 172
C56: 配水支管 | D56: その他 （管種が不明のものを含む） (m) | F56: 配水支管 | G56: 1989 | H56: 13.52 | I56: 75 | J56: 1 | K56: =IF(J56=1,IF(I56>=VLOOKUP(C56,管路ダウンサイズ設定!$B$6:$D$12,2,FALSE),INDEX(管路ダウンサイズ設定!$B$35:$B$62,MATCH(I56,管路ダウンサイズ設定!$B$35:$B$62,0)-VLOOKUP(C56,管路ダウンサイズ設定!$B$6:$D$12,3,FALSE),1),""),"") ->  | L56: =IF($Q56="","",VLOOKUP($Q56,初期設定!$E$37:$N$53,9,FALSE)) -> 40 | M56: =IF($Q56="","",VLOOKUP($Q56,初期設定!$E$37:$N$53,10,FALSE)) -> 40 | N56: =IF($Q56="","",VLOOKUP($Q56,初期設定!$E$37:$N$53,10,FALSE)) -> 40 | O56: 92.1525 | P56: 61.435 | Q56: Z9 | R56: =IF(I56=0,"",VLOOKUP(IF(I56<50,50,I56),管路ダウンサイズ設定!$I$6:$P$23,MATCH(F56,管路ダウンサイズ設定!$J$5:$P$5,0)+1,TRUE)) -> 82.6 | S56: 1117 | T56: =IF(I56=0,"",VLOOKUP(IF(K56<>"",IF(K56<50,50,K56),IF(I56<50,50,I56)),管路ダウンサイズ設定!$I$6:$P$23,MATCH(F56,管路ダウンサイズ設定!$J$5:$P$5,0)+1,TRUE)) -> 82.6 | U56: 1117 | V56: =IF(I56=0,"",VLOOKUP(IF(K56<>"",IF(K56<50,50,K56),IF(I56<50,50,I56)),管路ダウンサイズ設定!$I$6:$P$23,MATCH(F56,管路ダウンサイズ設定!$J$5:$P$5,0)+1,TRUE)) -> 82.6 | W56: 1117
C57: 配水支管 | D57: 硬質塩化ビニル管 （上記以外・不明なものを含む） (m) | F57: 配水支管 | G57: 1978 | H57: 166.25 | I57: 30 | J57: 1 | K57: =IF(J57=1,IF(I57>=VLOOKUP(C57,管路ダウンサイズ設定!$B$6:$D$12,2,FALSE),INDEX(管路ダウンサイズ設定!$B$35:$B$62,MATCH(I57,管路ダウンサイズ設定!$B$35:$B$62,0)-VLOOKUP(C57,管路ダウンサイズ設定!$B$6:$D$12,3,FALSE),1),""),"") ->  | L57: =IF($Q57="","",VLOOKUP($Q57,初期設定!$E$37:$N$53,9,FALSE)) -> 40 | M57: =IF($Q57="","",VLOOKUP($Q57,初期設定!$E$37:$N$53,10,FALSE)) -> 40 | N57: =IF($Q57="","",VLOOKUP($Q57,初期設定!$E$37:$N$53,10,FALSE)) -> 40 | O57: 682.11 | P57: 682.11 | Q57: D9 | R57: =IF(I57=0,"",VLOOKUP(IF(I57<50,50,I57),管路ダウンサイズ設定!$I$6:$P$23,MATCH(F57,管路ダウンサイズ設定!$J$5:$P$5,0)+1,TRUE)) -> 74.6 | S57: 12402 | T57: =IF(I57=0,"",VLOOKUP(IF(K57<>"",IF(K57<50,50,K57),IF(I57<50,50,I57)),管路ダウンサイズ設定!$I$6:$P$23,MATCH(F57,管路ダウンサイズ設定!$J$5:$P$5,0)+1,TRUE)) -> 74.6 | U57: 12402 | V57: =IF(I57=0,"",VLOOKUP(IF(K57<>"",IF(K57<50,50,K57),IF(I57<50,50,I57)),管路ダウンサイズ設定!$I$6:$P$23,MATCH(F57,管路ダウンサイズ設定!$J$5:$P$5,0)+1,TRUE)) -> 74.6 | W57: 12402
C58: 配水支管 | D58: 硬質塩化ビニル管 （上記以外・不明なものを含む） (m) | F58: 配水支管 | G58: 1978 | H58: 166.51 | I58: 50 | J58: 1 | K58: =IF(J58=1,IF(I58>=VLOOKUP(C58,管路ダウンサイズ設定!$B$6:$D$12,2,FALSE),INDEX(管路ダウンサイズ設定!$B$35:$B$62,MATCH(I58,管路ダウンサイズ設定!$B$35:$B$62,0)-VLOOKUP(C58,管路ダウンサイズ設定!$B$6:$D$12,3,FALSE),1),""),"") ->  | L58: =IF($Q58="","",VLOOKUP($Q58,初期設定!$E$37:$N$53,9,FALSE)) -> 40 | M58: =IF($Q58="","",VLOOKUP($Q58,初期設定!$E$37:$N$53,10,FALSE)) -> 40 | N58: =IF($Q58="","",VLOOKUP($Q58,初期設定!$E$37:$N$53,10,FALSE)) -> 40 | O58: 683.21 | P58: 683.21 | Q58: D9 | R58: =IF(I58=0,"",VLOOKUP(IF(I58<50,50,I58),管路ダウンサイズ設定!$I$6:$P$23,MATCH(F58,管路ダウンサイズ設定!$J$5:$P$5,0)+1,TRUE)) -> 74.6 | S58: 12422 | T58: =IF(I58=0,"",VLOOKUP(IF(K58<>"",IF(K58<50,50,K58),IF(I58<50,50,I58)),管路ダウンサイズ設定!$I$6:$P$23,MATCH(F58,管路ダウンサイズ設定!$J$5:$P$5,0)+1,TRUE)) -> 74.6 | U58: 12422 | V58: =IF(I58=0,"",VLOOKUP(IF(K58<>"",IF(K58<50,50,K58),IF(I58<50,50,I58)),管路ダウンサイズ設定!$I$6:$P$23,MATCH(F58,管路ダウンサイズ設定!$J$5:$P$5,0)+1,TRUE)) -> 74.6 | W58: 12422
C59: 配水支管 | D59: 鋼管 （上記以外・不明なものを含む） (m) | F59: 配水支管 | G59: 1989 | H59: 3.06 | I59: 50 | J59: 1 | K59: =IF(J59=1,IF(I59>=VLOOKUP(C59,管路ダウンサイズ設定!$B$6:$D$12,2,FALSE),INDEX(管路ダウンサイズ設定!$B$35:$B$62,MATCH(I59,管路ダウンサイズ設定!$B$35:$B$62,0)-VLOOKUP(C59,管路ダウンサイズ設定!$B$6:$D$12,3,FALSE),1),""),"") ->  | L59: =IF($Q59="","",VLOOKUP($Q59,初期設定!$E$37:$N$53,9,FALSE)) -> 40 | M59: =IF($Q59="","",VLOOKUP($Q59,初期設定!$E$37:$N$53,10,FALSE)) -> 40 | N59: =IF($Q59="","",VLOOKUP($Q59,初期設定!$E$37:$N$53,10,FALSE)) -> 40 | O59: 18.81 | P59: 12.54 | Q59: B9 | R59: =IF(I59=0,"",VLOOKUP(IF(I59<50,50,I59),管路ダウンサイズ設定!$I$6:$P$23,MATCH(F59,管路ダウンサイズ設定!$J$5:$P$5,0)+1,TRUE)) -> 74.6 | S59: 228 | T59: =IF(I59=0,"",VLOOKUP(IF(K59<>"",IF(K59<50,50,K59),IF(I59<50,50,I59)),管路ダウンサイズ設定!$I$6:$P$23,MATCH(F59,管路ダウンサイズ設定!$J$5:$P$5,0)+1,TRUE)) -> 74.6 | U59: 228 | V59: =IF(I59=0,"",VLOOKUP(IF(K59<>"",IF(K59<50,50,K59),IF(I59<50,50,I59)),管路ダウンサイズ設定!$I$6:$P$23,MATCH(F59,管路ダウンサイズ設定!$J$5:$P$5,0)+1,TRUE)) -> 74.6 | W59: 228
C60: 配水支管 | D60: 硬質塩化ビニル管 （上記以外・不明なものを含む） (m) | F60: 配水支管 | G60: 1999 | H60: 3.5 | I60: 50 | J60: 1 | K60: =IF(J60=1,IF(I60>=VLOOKUP(C60,管路ダウンサイズ設定!$B$6:$D$12,2,FALSE),INDEX(管路ダウンサイズ設定!$B$35:$B$62,MATCH(I60,管路ダウンサイズ設定!$B$35:$B$62,0)-VLOOKUP(C60,管路ダウンサイズ設定!$B$6:$D$12,3,FALSE),1),""),"") ->  | L60: =IF($Q60="","",VLOOKUP($Q60,初期設定!$E$37:$N$53,9,FALSE)) -> 40 | M60: =IF($Q60="","",VLOOKUP($Q60,初期設定!$E$37:$N$53,10,FALSE)) -> 40 | N60: =IF($Q60="","",VLOOKUP($Q60,初期設定!$E$37:$N$53,10,FALSE)) -> 40 | O60: 93.3075 | P60: 64.5975 | Q60: D9 | R60: =IF(I60=0,"",VLOOKUP(IF(I60<50,50,I60),管路ダウンサイズ設定!$I$6:$P$23,MATCH(F60,管路ダウンサイズ設定!$J$5:$P$5,0)+1,TRUE)) -> 74.6 | S60: 261 | T60: =IF(I60=0,"",VLOOKUP(IF(K60<>"",IF(K60<50,50,K60),IF(I60<50,50,I60)),管路ダウンサイズ設定!$I$6:$P$23,MATCH(F60,管路ダウンサイズ設定!$J$5:$P$5,0)+1,TRUE)) -> 74.6 | U60: 261 | V60: =IF(I60=0,"",VLOOKUP(IF(K60<>"",IF(K60<50,50,K60),IF(I60<50,50,I60)),管路ダウンサイズ設定!$I$6:$P$23,MATCH(F60,管路ダウンサイズ設定!$J$5:$P$5,0)+1,TRUE)) -> 74.6 | W60: 261
C61: 配水支管 | D61: 鋼管 （上記以外・不明なものを含む） (m) | F61: 配水支管 | G61: 1997 | H61: 1.29 | I61: 75 | J61: 1 | K61: =IF(J61=1,IF(I61>=VLOOKUP(C61,管路ダウンサイズ設定!$B$6:$D$12,2,FALSE),INDEX(管路ダウンサイズ設定!$B$35:$B$62,MATCH(I61,管路ダウンサイズ設定!$B$35:$B$62,0)-VLOOKUP(C61,管路ダウンサイズ設定!$B$6:$D$12,3,FALSE),1),""),"") ->  | L61: =IF($Q61="","",VLOOKUP($Q61,初期設定!$E$37:$N$53,9,FALSE)) -> 40 | M61: =IF($Q61="","",VLOOKUP($Q61,初期設定!$E$37:$N$53,10,FALSE)) -> 40 | N61: =IF($Q61="","",VLOOKUP($Q61,初期設定!$E$37:$N$53,10,FALSE)) -> 40 | O61: 32.3675 | P61: 20.5975 | Q61: B9 | R61: =IF(I61=0,"",VLOOKUP(IF(I61<50,50,I61),管路ダウンサイズ設定!$I$6:$P$23,MATCH(F61,管路ダウンサイズ設定!$J$5:$P$5,0)+1,TRUE)) -> 82.6 | S61: 107 | T61: =IF(I61=0,"",VLOOKUP(IF(K61<>"",IF(K61<50,50,K61),IF(I61<50,50,I61)),管路ダウンサイズ設定!$I$6:$P$23,MATCH(F61,管路ダウンサイズ設定!$J$5:$P$5,0)+1,TRUE)) -> 82.6 | U61: 107 | V61: =IF(I61=0,"",VLOOKUP(IF(K61<>"",IF(K61<50,50,K61),IF(I61<50,50,I61)),管路ダウンサイズ設定!$I$6:$P$23,MATCH(F61,管路ダウンサイズ設定!$J$5:$P$5,0)+1,TRUE)) -> 82.6 | W61: 107
C62: 配水支管 | D62: 鋼管 （上記以外・不明なものを含む） (m) | F62: 配水支管 | G62: 1997 | H62: 3.55 | I62: 75 | J62: 1 | K62: =IF(J62=1,IF(I62>=VLOOKUP(C62,管路ダウンサイズ設定!$B$6:$D$12,2,FALSE),INDEX(管路ダウンサイズ設定!$B$35:$B$62,MATCH(I62,管路ダウンサイズ設定!$B$35:$B$62,0)-VLOOKUP(C62,管路ダウンサイズ設定!$B$6:$D$12,3,FALSE),1),""),"") ->  | L62: =IF($Q62="","",VLOOKUP($Q62,初期設定!$E$37:$N$53,9,FALSE)) -> 40 | M62: =IF($Q62="","",VLOOKUP($Q62,初期設定!$E$37:$N$53,10,FALSE)) -> 40 | N62: =IF($Q62="","",VLOOKUP($Q62,初期設定!$E$37:$N$53,10,FALSE)) -> 40 | O62: 88.6325 | P62: 56.4025 | Q62: B9 | R62: =IF(I62=0,"",VLOOKUP(IF(I62<50,50,I62),管路ダウンサイズ設定!$I$6:$P$23,MATCH(F62,管路ダウンサイズ設定!$J$5:$P$5,0)+1,TRUE)) -> 82.6 | S62: 293 | T62: =IF(I62=0,"",VLOOKUP(IF(K62<>"",IF(K62<50,50,K62),IF(I62<50,50,I62)),管路ダウンサイズ設定!$I$6:$P$23,MATCH(F62,管路ダウンサイズ設定!$J$5:$P$5,0)+1,TRUE)) -> 82.6 | U62: 293 | V62: =IF(I62=0,"",VLOOKUP(IF(K62<>"",IF(K62<50,50,K62),IF(I62<50,50,I62)),管路ダウンサイズ設定!$I$6:$P$23,MATCH(F62,管路ダウンサイズ設定!$J$5:$P$5,0)+1,TRUE)) -> 82.6 | W62: 293
C63: 配水支管 | D63: 硬質塩化ビニル管 （上記以外・不明なものを含む） (m) | F63: 配水支管 | G63: 1991 | H63: 3.51 | I63: 75 | J63: 1 | K63: =IF(J63=1,IF(I63>=VLOOKUP(C63,管路ダウンサイズ設定!$B$6:$D$12,2,FALSE),INDEX(管路ダウンサイズ設定!$B$35:$B$62,MATCH(I63,管路ダウンサイズ設定!$B$35:$B$62,0)-VLOOKUP(C63,管路ダウンサイズ設定!$B$6:$D$12,3,FALSE),1),""),"") ->  | L63: =IF($Q63="","",VLOOKUP($Q63,初期設定!$E$37:$N$53,9,FALSE)) -> 40 | M63: =IF($Q63="","",VLOOKUP($Q63,初期設定!$E$37:$N$53,10,FALSE)) -> 40 | N63: =IF($Q63="","",VLOOKUP($Q63,初期設定!$E$37:$N$53,10,FALSE)) -> 40 | O63: 39.875 | P63: 15.95 | Q63: D9 | R63: =IF(I63=0,"",VLOOKUP(IF(I63<50,50,I63),管路ダウンサイズ設定!$I$6:$P$23,MATCH(F63,管路ダウンサイズ設定!$J$5:$P$5,0)+1,TRUE)) -> 82.6 | S63: 290 | T63: =IF(I63=0,"",VLOOKUP(IF(K63<>"",IF(K63<50,50,K63),IF(I63<50,50,I63)),管路ダウンサイズ設定!$I$6:$P$23,MATCH(F63,管路ダウンサイズ設定!$J$5:$P$5,0)+1,TRUE)) -> 82.6 | U63: 290 | V63: =IF(I63=0,"",VLOOKUP(IF(K63<>"",IF(K63<50,50,K63),IF(I63<50,50,I63)),管路ダウンサイズ設定!$I$6:$P$23,MATCH(F63,管路ダウンサイズ設定!$J$5:$P$5,0)+1,TRUE)) -> 82.6 | W63: 290
C64: 配水支管 | D64: ダクタイル鋳鉄管 (上記以外・不明なものを含む） (m) | F64: 配水支管 | G64: 1997 | H64: 25.46 | I64: 200 | J64: 1 | K64: =IF(J64=1,IF(I64>=VLOOKUP(C64,管路ダウンサイズ設定!$B$6:$D$12,2,FALSE),INDEX(管路ダウンサイズ設定!$B$35:$B$62,MATCH(I64,管路ダウンサイズ設定!$B$35:$B$62,0)-VLOOKUP(C64,管路ダウンサイズ設定!$B$6:$D$12,3,FALSE),1),""),"") -> 150 | L64: =IF($Q64="","",VLOOKUP($Q64,初期設定!$E$37:$N$53,9,FALSE)) -> 40 | M64: =IF($Q64="","",VLOOKUP($Q64,初期設定!$E$37:$N$53,10,FALSE)) -> 60 | N64: =IF($Q64="","",VLOOKUP($Q64,初期設定!$E$37:$N$53,10,FALSE)) -> 60 | O64: 1062.0775 | P64: 675.8675 | Q64: A9 | R64: =IF(I64=0,"",VLOOKUP(IF(I64<50,50,I64),管路ダウンサイズ設定!$I$6:$P$23,MATCH(F64,管路ダウンサイズ設定!$J$5:$P$5,0)+1,TRUE)) -> 137.9 | S64: 3511 | T64: =IF(I64=0,"",VLOOKUP(IF(K64<>"",IF(K64<50,50,K64),IF(I64<50,50,I64)),管路ダウンサイズ設定!$I$6:$P$23,MATCH(F64,管路ダウンサイズ設定!$J$5:$P$5,0)+1,TRUE)) -> 112.3 | U64: 2859 | V64: =IF(I64=0,"",VLOOKUP(IF(K64<>"",IF(K64<50,50,K64),IF(I64<50,50,I64)),管路ダウンサイズ設定!$I$6:$P$23,MATCH(F64,管路ダウンサイズ設定!$J$5:$P$5,0)+1,TRUE)) -> 112.3 | W64: 2859
C65: 配水支管 | D65: ダクタイル鋳鉄管 Ｋ形継手等を有するもののうち良い地盤に布設されている (m) | F65: 配水支管 | G65: 2003 | H65: 8.29 | I65: 100 | J65: 1 | K65: =IF(J65=1,IF(I65>=VLOOKUP(C65,管路ダウンサイズ設定!$B$6:$D$12,2,FALSE),INDEX(管路ダウンサイズ設定!$B$35:$B$62,MATCH(I65,管路ダウンサイズ設定!$B$35:$B$62,0)-VLOOKUP(C65,管路ダウンサイズ設定!$B$6:$D$12,3,FALSE),1),""),"") -> 75 | L65: =IF($Q65="","",VLOOKUP($Q65,初期設定!$E$37:$N$53,9,FALSE)) -> 40 | M65: =IF($Q65="","",VLOOKUP($Q65,初期設定!$E$37:$N$53,10,FALSE)) -> 70 | N65: =IF($Q65="","",VLOOKUP($Q65,初期設定!$E$37:$N$53,10,FALSE)) -> 70 | O65: 354.8325 | P65: 271.3425 | Q65: A3 | R65: =IF(I65=0,"",VLOOKUP(IF(I65<50,50,I65),管路ダウンサイズ設定!$I$6:$P$23,MATCH(F65,管路ダウンサイズ設定!$J$5:$P$5,0)+1,TRUE)) -> 91.5 | S65: 759 | T65: =IF(I65=0,"",VLOOKUP(IF(K65<>"",IF(K65<50,50,K65),IF(I65<50,50,I65)),管路ダウンサイズ設定!$I$6:$P$23,MATCH(F65,管路ダウンサイズ設定!$J$5:$P$5,0)+1,TRUE)) -> 82.6 | U65: 685 | V65: =IF(I65=0,"",VLOOKUP(IF(K65<>"",IF(K65<50,50,K65),IF(I65<50,50,I65)),管路ダウンサイズ設定!$I$6:$P$23,MATCH(F65,管路ダウンサイズ設定!$J$5:$P$5,0)+1,TRUE)) -> 82.6 | W65: 685
C66: 配水支管 | D66: 鋼管 （上記以外・不明なものを含む） (m) | F66: 配水支管 | G66: 1991 | H66: 3.17 | I66: 50 | J66: 1 | K66: =IF(J66=1,IF(I66>=VLOOKUP(C66,管路ダウンサイズ設定!$B$6:$D$12,2,FALSE),INDEX(管路ダウンサイズ設定!$B$35:$B$62,MATCH(I66,管路ダウンサイズ設定!$B$35:$B$62,0)-VLOOKUP(C66,管路ダウンサイズ設定!$B$6:$D$12,3,FALSE),1),""),"") ->  | L66: =IF($Q66="","",VLOOKUP($Q66,初期設定!$E$37:$N$53,9,FALSE)) -> 40 | M66: =IF($Q66="","",VLOOKUP($Q66,初期設定!$E$37:$N$53,10,FALSE)) -> 40 | N66: =IF($Q66="","",VLOOKUP($Q66,初期設定!$E$37:$N$53,10,FALSE)) -> 40 | O66: 32.45 | P66: 12.98 | Q66: B9 | R66: =IF(I66=0,"",VLOOKUP(IF(I66<50,50,I66),管路ダウンサイズ設定!$I$6:$P$23,MATCH(F66,管路ダウンサイズ設定!$J$5:$P$5,0)+1,TRUE)) -> 74.6 | S66: 236 | T66: =IF(I66=0,"",VLOOKUP(IF(K66<>"",IF(K66<50,50,K66),IF(I66<50,50,I66)),管路ダウンサイズ設定!$I$6:$P$23,MATCH(F66,管路ダウンサイズ設定!$J$5:$P$5,0)+1,TRUE)) -> 74.6 | U66: 236 | V66: =IF(I66=0,"",VLOOKUP(IF(K66<>"",IF(K66<50,50,K66),IF(I66<50,50,I66)),管路ダウンサイズ設定!$I$6:$P$23,MATCH(F66,管路ダウンサイズ設定!$J$5:$P$5,0)+1,TRUE)) -> 74.6 | W66: 236
C67: 配水支管 | D67: ポリエチレン管 （上記以外・不明なものを含む） （m） | F67: 配水支管 | G67: 1988 | H67: 189.06 | I67: 50 | J67: 1 | K67: =IF(J67=1,IF(I67>=VLOOKUP(C67,管路ダウンサイズ設定!$B$6:$D$12,2,FALSE),INDEX(管路ダウンサイズ設定!$B$35:$B$62,MATCH(I67,管路ダウンサイズ設定!$B$35:$B$62,0)-VLOOKUP(C67,管路ダウンサイズ設定!$B$6:$D$12,3,FALSE),1),""),"") ->  | L67: =IF($Q67="","",VLOOKUP($Q67,初期設定!$E$37:$N$53,9,FALSE)) -> 40 | M67: =IF($Q67="","",VLOOKUP($Q67,初期設定!$E$37:$N$53,10,FALSE)) -> 60 | N67: =IF($Q67="","",VLOOKUP($Q67,初期設定!$E$37:$N$53,10,FALSE)) -> 60 | O67: 775.72 | P67: 775.72 | Q67: G1 | R67: =IF(I67=0,"",VLOOKUP(IF(I67<50,50,I67),管路ダウンサイズ設定!$I$6:$P$23,MATCH(F67,管路ダウンサイズ設定!$J$5:$P$5,0)+1,TRUE)) -> 74.6 | S67: 14104 | T67: =IF(I67=0,"",VLOOKUP(IF(K67<>"",IF(K67<50,50,K67),IF(I67<50,50,I67)),管路ダウンサイズ設定!$I$6:$P$23,MATCH(F67,管路ダウンサイズ設定!$J$5:$P$5,0)+1,TRUE)) -> 74.6 | U67: 14104 | V67: =IF(I67=0,"",VLOOKUP(IF(K67<>"",IF(K67<50,50,K67),IF(I67<50,50,I67)),管路ダウンサイズ設定!$I$6:$P$23,MATCH(F67,管路ダウンサイズ設定!$J$5:$P$5,0)+1,TRUE)) -> 74.6 | W67: 14104
C68: 配水支管 | D68: 硬質塩化ビニル管 （上記以外・不明なものを含む） (m) | F68: 配水支管 | G68: 1978 | H68: 4.01 | I68: 50 | J68: 1 | K68: =IF(J68=1,IF(I68>=VLOOKUP(C68,管路ダウンサイズ設定!$B$6:$D$12,2,FALSE),INDEX(管路ダウンサイズ設定!$B$35:$B$62,MATCH(I68,管路ダウンサイズ設定!$B$35:$B$62,0)-VLOOKUP(C68,管路ダウンサイズ設定!$B$6:$D$12,3,FALSE),1),""),"") ->  | L68: =IF($Q68="","",VLOOKUP($Q68,初期設定!$E$37:$N$53,9,FALSE)) -> 40 | M68: =IF($Q68="","",VLOOKUP($Q68,初期設定!$E$37:$N$53,10,FALSE)) -> 40 | N68: =IF($Q68="","",VLOOKUP($Q68,初期設定!$E$37:$N$53,10,FALSE)) -> 40 | O68: 16.445 | P68: 16.445 | Q68: D9 | R68: =IF(I68=0,"",VLOOKUP(IF(I68<50,50,I68),管路ダウンサイズ設定!$I$6:$P$23,MATCH(F68,管路ダウンサイズ設定!$J$5:$P$5,0)+1,TRUE)) -> 74.6 | S68: 299 | T68: =IF(I68=0,"",VLOOKUP(IF(K68<>"",IF(K68<50,50,K68),IF(I68<50,50,I68)),管路ダウンサイズ設定!$I$6:$P$23,MATCH(F68,管路ダウンサイズ設定!$J$5:$P$5,0)+1,TRUE)) -> 74.6 | U68: 299 | V68: =IF(I68=0,"",VLOOKUP(IF(K68<>"",IF(K68<50,50,K68),IF(I68<50,50,I68)),管路ダウンサイズ設定!$I$6:$P$23,MATCH(F68,管路ダウンサイズ設定!$J$5:$P$5,0)+1,TRUE)) -> 74.6 | W68: 299
C69: 配水支管 | D69: 鋼管 （上記以外・不明なものを含む） (m) | F69: 配水支管 | G69: 1991 | H69: 3.75 | I69: 50 | J69: 1 | K69: =IF(J69=1,IF(I69>=VLOOKUP(C69,管路ダウンサイズ設定!$B$6:$D$12,2,FALSE),INDEX(管路ダウンサイズ設定!$B$35:$B$62,MATCH(I69,管路ダウンサイズ設定!$B$35:$B$62,0)-VLOOKUP(C69,管路ダウンサイズ設定!$B$6:$D$12,3,FALSE),1),""),"") ->  | L69: =IF($Q69="","",VLOOKUP($Q69,初期設定!$E$37:$N$53,9,FALSE)) -> 40 | M69: =IF($Q69="","",VLOOKUP($Q69,初期設定!$E$37:$N$53,10,FALSE)) -> 40 | N69: =IF($Q69="","",VLOOKUP($Q69,初期設定!$E$37:$N$53,10,FALSE)) -> 40 | O69: 38.5 | P69: 15.4 | Q69: =IF(D69="","",VLOOKUP(D69,$AJ$5:$AK$21,2,FALSE)) -> B9 | R69: =IF(I69=0,"",VLOOKUP(IF(I69<50,50,I69),管路ダウンサイズ設定!$I$6:$P$23,MATCH(F69,管路ダウンサイズ設定!$J$5:$P$5,0)+1,TRUE)) -> 74.6 | S69: 280 | T69: =IF(I69=0,"",VLOOKUP(IF(K69<>"",IF(K69<50,50,K69),IF(I69<50,50,I69)),管路ダウンサイズ設定!$I$6:$P$23,MATCH(F69,管路ダウンサイズ設定!$J$5:$P$5,0)+1,TRUE)) -> 74.6 | U69: 280 | V69: =IF(I69=0,"",VLOOKUP(IF(K69<>"",IF(K69<50,50,K69),IF(I69<50,50,I69)),管路ダウンサイズ設定!$I$6:$P$23,MATCH(F69,管路ダウンサイズ設定!$J$5:$P$5,0)+1,TRUE)) -> 74.6 | W69: 280
C70: 配水支管 | D70: 硬質塩化ビニル管 （上記以外・不明なものを含む） (m) | F70: 配水支管 | G70: 1989 | H70: 10.78 | I70: 150 | J70: 1 | K70: =IF(J70=1,IF(I70>=VLOOKUP(C70,管路ダウンサイズ設定!$B$6:$D$12,2,FALSE),INDEX(管路ダウンサイズ設定!$B$35:$B$62,MATCH(I70,管路ダウンサイズ設定!$B$35:$B$62,0)-VLOOKUP(C70,管路ダウンサイズ設定!$B$6:$D$12,3,FALSE),1),""),"") -> 125 | L70: =IF($Q70="","",VLOOKUP($Q70,初期設定!$E$37:$N$53,9,FALSE)) -> 40 | M70: =IF($Q70="","",VLOOKUP($Q70,初期設定!$E$37:$N$53,10,FALSE)) -> 40 | N70: =IF($Q70="","",VLOOKUP($Q70,初期設定!$E$37:$N$53,10,FALSE)) -> 40 | O70: =IF(S70="","",IFERROR($S70*(1+$AD$43/100)*MAX(1-($AD$41-$G70)/$L70,$AD$40),0)) -> 99.9075 | P70: =IF(S70="","",IFERROR($S70*(1+$AD$43/100)*MAX(1-($AD$42-$G70)/$L70,$AD$40),0)) -> 66.605 | Q70: D9 | R70: =IF(I70=0,"",VLOOKUP(IF(I70<50,50,I70),管路ダウンサイズ設定!$I$6:$P$23,MATCH(F70,管路ダウンサイズ設定!$J$5:$P$5,0)+1,TRUE)) -> 112.3 | S70: =IF(H70="","",IF(R70="",0,ROUND(H70*R70,))) -> 1211 | T70: =IF(I70=0,"",VLOOKUP(IF(K70<>"",IF(K70<50,50,K70),IF(I70<50,50,I70)),管路ダウンサイズ設定!$I$6:$P$23,MATCH(F70,管路ダウンサイズ設定!$J$5:$P$5,0)+1,TRUE)) -> 101.4 | U70: =IF(H70="","",IF(T70="",0,ROUND(H70*T70,))) -> 1093 | V70: =IF(I70=0,"",VLOOKUP(IF(K70<>"",IF(K70<50,50,K70),IF(I70<50,50,I70)),管路ダウンサイズ設定!$I$6:$P$23,MATCH(F70,管路ダウンサイズ設定!$J$5:$P$5,0)+1,TRUE)) -> 101.4 | W70: =IF(H70="","",IF(V70="",0,ROUND(H70*V70,))) -> 1093
C71: 配水支管 | D71: 硬質塩化ビニル管 （上記以外・不明なものを含む） (m) | F71: 配水支管 | G71: 1989 | H71: 0.19 | I71: 150 | J71: 1 | K71: =IF(J71=1,IF(I71>=VLOOKUP(C71,管路ダウンサイズ設定!$B$6:$D$12,2,FALSE),INDEX(管路ダウンサイズ設定!$B$35:$B$62,MATCH(I71,管路ダウンサイズ設定!$B$35:$B$62,0)-VLOOKUP(C71,管路ダウンサイズ設定!$B$6:$D$12,3,FALSE),1),""),"") -> 125 | L71: =IF($Q71="","",VLOOKUP($Q71,初期設定!$E$37:$N$53,9,FALSE)) -> 40 | M71: =IF($Q71="","",VLOOKUP($Q71,初期設定!$E$37:$N$53,10,FALSE)) -> 40 | N71: =IF($Q71="","",VLOOKUP($Q71,初期設定!$E$37:$N$53,10,FALSE)) -> 40 | O71: 1.7325 | P71: 1.155 | Q71: D9 | R71: =IF(I71=0,"",VLOOKUP(IF(I71<50,50,I71),管路ダウンサイズ設定!$I$6:$P$23,MATCH(F71,管路ダウンサイズ設定!$J$5:$P$5,0)+1,TRUE)) -> 112.3 | S71: 21 | T71: =IF(I71=0,"",VLOOKUP(IF(K71<>"",IF(K71<50,50,K71),IF(I71<50,50,I71)),管路ダウンサイズ設定!$I$6:$P$23,MATCH(F71,管路ダウンサイズ設定!$J$5:$P$5,0)+1,TRUE)) -> 101.4 | U71: 19 | V71: =IF(I71=0,"",VLOOKUP(IF(K71<>"",IF(K71<50,50,K71),IF(I71<50,50,I71)),管路ダウンサイズ設定!$I$6:$P$23,MATCH(F71,管路ダウンサイズ設定!$J$5:$P$5,0)+1,TRUE)) -> 101.4 | W71: 19
C72: 配水支管 | D72: ダクタイル鋳鉄管 (上記以外・不明なものを含む） (m) | F72: 配水支管 | G72: 1998 | H72: 2.81 | I72: 150 | J72: 1 | K72: =IF(J72=1,IF(I72>=VLOOKUP(C72,管路ダウンサイズ設定!$B$6:$D$12,2,FALSE),INDEX(管路ダウンサイズ設定!$B$35:$B$62,MATCH(I72,管路ダウンサイズ設定!$B$35:$B$62,0)-VLOOKUP(C72,管路ダウンサイズ設定!$B$6:$D$12,3,FALSE),1),""),"") -> 125 | L72: =IF($Q72="","",VLOOKUP($Q72,初期設定!$E$37:$N$53,9,FALSE)) -> 40 | M72: =IF($Q72="","",VLOOKUP($Q72,初期設定!$E$37:$N$53,10,FALSE)) -> 60 | N72: =IF($Q72="","",VLOOKUP($Q72,初期設定!$E$37:$N$53,10,FALSE)) -> 60 | O72: 104.28 | P72: 69.52 | Q72: A9 | R72: =IF(I72=0,"",VLOOKUP(IF(I72<50,50,I72),管路ダウンサイズ設定!$I$6:$P$23,MATCH(F72,管路ダウンサイズ設定!$J$5:$P$5,0)+1,TRUE)) -> 112.3 | S72: 316 | T72: =IF(I72=0,"",VLOOKUP(IF(K72<>"",IF(K72<50,50,K72),IF(I72<50,50,I72)),管路ダウンサイズ設定!$I$6:$P$23,MATCH(F72,管路ダウンサイズ設定!$J$5:$P$5,0)+1,TRUE)) -> 101.4 | U72: 285 | V72: =IF(I72=0,"",VLOOKUP(IF(K72<>"",IF(K72<50,50,K72),IF(I72<50,50,I72)),管路ダウンサイズ設定!$I$6:$P$23,MATCH(F72,管路ダウンサイズ設定!$J$5:$P$5,0)+1,TRUE)) -> 101.4 | W72: 285
C73: 配水支管 | D73: ダクタイル鋳鉄管 (上記以外・不明なものを含む） (m) | F73: 配水支管 | G73: 1998 | H73: 2.57 | I73: 150 | J73: 1 | K73: =IF(J73=1,IF(I73>=VLOOKUP(C73,管路ダウンサイズ設定!$B$6:$D$12,2,FALSE),INDEX(管路ダウンサイズ設定!$B$35:$B$62,MATCH(I73,管路ダウンサイズ設定!$B$35:$B$62,0)-VLOOKUP(C73,管路ダウンサイズ設定!$B$6:$D$12,3,FALSE),1),""),"") -> 125 | L73: =IF($Q73="","",VLOOKUP($Q73,初期設定!$E$37:$N$53,9,FALSE)) -> 40 | M73: =IF($Q73="","",VLOOKUP($Q73,初期設定!$E$37:$N$53,10,FALSE)) -> 60 | N73: =IF($Q73="","",VLOOKUP($Q73,初期設定!$E$37:$N$53,10,FALSE)) -> 60 | O73: 95.37 | P73: 63.58 | Q73: A9 | R73: =IF(I73=0,"",VLOOKUP(IF(I73<50,50,I73),管路ダウンサイズ設定!$I$6:$P$23,MATCH(F73,管路ダウンサイズ設定!$J$5:$P$5,0)+1,TRUE)) -> 112.3 | S73: 289 | T73: =IF(I73=0,"",VLOOKUP(IF(K73<>"",IF(K73<50,50,K73),IF(I73<50,50,I73)),管路ダウンサイズ設定!$I$6:$P$23,MATCH(F73,管路ダウンサイズ設定!$J$5:$P$5,0)+1,TRUE)) -> 101.4 | U73: 261 | V73: =IF(I73=0,"",VLOOKUP(IF(K73<>"",IF(K73<50,50,K73),IF(I73<50,50,I73)),管路ダウンサイズ設定!$I$6:$P$23,MATCH(F73,管路ダウンサイズ設定!$J$5:$P$5,0)+1,TRUE)) -> 101.4 | W73: 261
